Workbook

Sheet INDICE
F1: PAÍSES TERCEIROS - DÉCADA
F2: Trocas comerciais com Portugal (PT) 2009-2018 Agroalimentar, Mar & Florestas
C3: Fonte
D4: Estatísticas do Comércio Internacional | F4: 1. Países Terceiros - Síntese
D5: dados: 2017 provisórios; 2018 preliminares | F5: 2. Evolução da balança comercial
F6: 3. Principais transações de Agroalimentar, Mar & Florestas (NC 2 e 4 dígitos)
C7: Data | D7: 2019-11-21T09:59:42.630 | F7: 3A Principais produtos agrícolas e agroalimentares transacionados (NC 2D)
F8: 3B Principais origens/destinos para Agroalimentar, Mar & Florestas
F9: 3C Principais origens/destinos produtos agrícolas e agroalimentares
F10: 4. Evolução da balança comercial por país e produto
F11: 4A Evolução da balança comercial por produto
F12: 5.1. Trocas comerciais por país
F13: 5.1A Trocas comerciais por país (produtos agrícolas e agroalimentares)
F14: 5.2. Trocas comerciais por produto (NC 2 dígitos)
C17: Lista de países
D18: Todo os países, exceto os da União Europeia

Sheet 1
A1: Países Terceiros - Síntese para Agroalimentar, Mar & Florestas 2009-2018
A3: • As trocas comerciais de bens transacionáveis (excluindo serviços) entre Portugal e Países Terceiros representam um total de 11,7 mil milhões de € em exportações e 14,9 mil milhões de € em importações, na média do período 2009-2018, correspondendo a um saldo negativo da balança comercial de cerca de -3,2 mil milhões.
A4: • No que respeita aos produtos dos setores agrícola e agroalimentar, mar e florestas, Portugal exportou para Países Terceiros 2,7 mil milhões de € em média anual, no mesmo período, enquanto as importações ascenderam a 2,3 mil milhões de € . Estes setores representam perto de 23,4% do total de exportações de bens transacionáveis e as importações 15,5% das correspondentes importações. Se nos referirmos apenas ao setor agrícola e agroalimentar, as exportações representam, em média, 2,7 mil milhões de € e as importações 2,3 mil milhões.
A5: • As principais exportações do setor Agroalimentar, Mar & Florestas (NC 4 dígitos) neste período são Papel e cartão p/ escrita, etc. (13%), Vinhos de uvas frescas (10%) e Azeite (processos mecânicos ou físicos) (7%). As importações mais relevantes do mesmo setor referem-se a Soja, mesmo triturada (13%), Milho (10%) e Açúcares (cana/beterraba); sacarose pura (7%).
A6: • Os principais destinos das exportações do setor Agroalimentar, Mar & Florestas no mesmo período são Angola (23%), Estados Unidos (14%) e Brasil (11%). As principais origens das importações são Brasil (17%), Estados Unidos (11%) e Ucrânia (8%).
A8: Trocas PT-Países Terceiros (milhões de euros) Agroalimentar, Mar & Florestas | H8: Trocas PT-Países Terceiros (milhões de euros) produtos agrícolas e agroalimentares
B10: 2016 | C10: 2017 | D10: 2018 | E10: média 2009-2018 | F10: TVMA* 2009-2018 | G10: TVT* 2009-2018 | I10: 2016 | J10: 2017 | K10: 2018 | L10: média 2009-2018 | M10: TVMA* 2009-2018 | N10: TVT* 2009-2018
A11: Exportações | B11: 3045.723128 | C11: 3296.340191 | D11: 3306.477743 | E11: 2739.219463 | F11: 0.07996635096 | G11: 1.158252446 | H11: Exportações | I11: 1607.918888 | J11: 1793.157603 | K11: 1723.694344 | L11: 1486.877429 | M11: 0.06427989404 | N11: 0.8644836404
A12: Importações | B12: 2382.032371 | C12: 2613.576917 | D12: 2846.982304 | E12: 2304.764967 | F12: 0.04956221072 | G12: 0.6221158066 | H12: Importações | I12: 1517.650771 | J12: 1673.392942 | K12: 1757.778092 | L12: 1566.452313 | M12: 0.0381859039 | N12: 0.4546257759
A13: Saldo | B13: 663.690757 | C13: 682.763274 | D13: 459.495439 | E13: 434.454496 | H13: Saldo | I13: 90.268117 | J13: 119.764661 | K13: -34.083748 | L13: -79.5748837
A14: *TVMA - Taxa de variação média anual; TVT - Taxa de variação total
C15: Saldo da Balança Comercial PT-Países Terceiros (milhões de euros)
C16: 2009 | D16: 2010 | E16: 2011 | F16: 2012 | G16: 2013 | H16: 2014 | I16: 2015 | J16: 2016 | K16: 2017 | L16: 2018 | M16: média 2009-2018
A17: Total bens transacionáveis* | C17: -3844.864859 | D17: -5286.367084 | E17: -5528.277949 | F17: -3699.830404 | G17: -2580.34699 | H17: -1236.113518 | I17: -829.91087 | J17: -1348.275213 | K17: -2320.444346 | L17: -5077.399331 | M17: -3175.183056
A18: Agrícola e Agroalimentar (AA) | C18: -283.916855 | D18: -274.661444 | E18: -509.42507 | F18: -185.696132 | G18: -105.089949 | H18: 341.987397 | I18: 45.104186 | J18: 90.268117 | K18: 119.764661 | L18: -34.083748 | M18: -79.5748837
B19: Mar (M) | C19: -242.547316 | D19: -238.502565 | E19: -233.085976 | F19: -212.248336 | G19: -183.628029 | H19: -224.77854 | I19: -305.550543 | J19: -382.711015 | K19: -440.061703 | L19: -501.798622 | M19: -296.4912645
B20: Florestas (F) | C20: 303.376162 | D20: 444.298018 | E20: 720.255684 | F20: 862.897593 | G20: 907.852782 | H20: 937.508815 | I20: 974.445608 | J20: 956.133655 | K20: 1003.060316 | L20: 995.377809 | M20: 810.5206442
B21: AA + M + F | C21: -223.088009 | D21: -68.865991 | E21: -22.255362 | F21: 464.953125 | G21: 619.134804 | H21: 1054.717672 | I21: 713.999251 | J21: 663.690757 | K21: 682.763274 | L21: 459.495439 | M21: 434.454496
B22: *exclui serviços
A23: Evolução das trocas comerciais PT-Países Terceiros (em milhões de euros 2009-2018)
F32: Exportações | H32: Importações | J32: Saldo
A33: Principais transações de Agroalimentar, Mar & Florestas (NC 2 dígitos)
A52: Principais origens e destinos em Países Terceiros para Agroalimentar, Mar & Florestas (média 2009-2018)
A67: Principais transações de Agroalimentar, Mar & Florestas (NC 4 dígitos - média 2009-2018)
A89: Fonte: GPP a partir de dados INE/Comércio Internacional (2017 provisórios; 2018 preliminares) | L89: 2019-11-21T09:59:42.630

Sheet 2
A1: Evolução da balança comercial Portugal-Países Terceiros 2009-2018 em milhões de euros
A3: Total de Bens Transacionáveis (BT)(1) | B3: 2009 | C3: 2010 | D3: 2011 | E3: 2012 | F3: 2013 | G3: 2014 | H3: 2015 | I3: 2016 | J3: 2017 | K3: 2018 | L3: média período | M3: var. 09/10 | N3: var. 10/11 | O3: var. 11/12 | P3: var. 12/13 | Q3: var. 13/14 | R3: var. 14/15 | S3: var. 15/16 | T3: var. 16/17 | U3: var. 17/18 | V3: TVMA* 2009-2018 | W3: TVT* 2009-2018
A4: Exportações | B4: 7084.617795 | C4: 8469.930518 | D4: 10331.00789 | E4: 12379.57657 | F4: 13327.64909 | G4: 13338.99408 | H4: 13017.72845 | I4: 12021.6475 | J4: 13757.48497 | K4: 13160.70327 | L4: 11688.93401 | M4: 0.1955381028 | N4: 0.2197275845 | O4: 0.1982932064 | P4: 0.07658359852 | Q4: 0.0008512369226 | R4: -0.02408469672 | S4: -0.07651726294 | T4: 0.1443926437 | U4: -0.04337869185 | V4: 0.06388887408 | W4: 0.8576447801
A5: Importações | B5: 10929.48265 | C5: 13756.2976 | D5: 15859.28584 | E5: 16079.40698 | F5: 15907.99608 | G5: 14575.1076 | H5: 13847.63932 | I5: 13369.92272 | J5: 16077.92931 | K5: 18238.1026 | L5: 14864.11707 | M5: 0.2586412402 | N5: 0.1528745815 | O5: 0.01387963728 | P5: -0.01066027449 | Q5: -0.08378732796 | R5: -0.04991169156 | S5: -0.03449805392 | T5: 0.2025446709 | U5: 0.1343564362 | V5: 0.05253853492 | W5: 0.6687068523
A6: Saldo (exp-imp) | B6: -3844.864859 | C6: -5286.367084 | D6: -5528.277949 | E6: -3699.830404 | F6: -2580.34699 | G6: -1236.113518 | H6: -829.91087 | I6: -1348.275213 | J6: -2320.444346 | K6: -5077.399331 | L6: -3175.183056
A7: Cobertura (exp/imp) | B7: 0.6482116326 | C7: 0.6157129457 | D7: 0.6514169677 | E7: 0.7699025586 | F7: 0.8377955981 | G7: 0.9151900931 | H7: 0.9400684225 | I7: 0.8991560952 | J7: 0.8556751743 | K7: 0.7216048488 | L7: 0.7863860301
A8: Exp BT Países Terceiros / Exp BT Mundo | B8: 0.2244488894 | C8: 0.227935348 | D8: 0.2411607794 | E8: 0.2737519222 | F8: 0.2816587118 | G8: 0.2775475591 | H8: 0.2621838739 | I8: 0.2402087882 | J8: 0.2500114175 | K8: 0.2276452313 | L8: 0.2515368701 | V8: Exportações
A9: Imp BT Países Terceiros / Imp BT Mundo | B9: 0.2130547363 | C9: 0.2348964962 | D9: 0.2663121627 | E9: 0.2852269368 | F9: 0.2790248707 | G9: 0.2469013044 | H9: 0.2294752726 | I9: 0.2176660503 | J9: 0.2307111561 | K9: 0.242000466 | L9: 0.2442129264 | V9: Importações
A10: Exp BT Países Terceiros / Exp TE Mundo | B10: 0.1491102384 | C10: 0.1575775052 | D10: 0.1710152341 | E10: 0.1949421885 | F10: 0.1980807258 | G10: 0.1923144054 | H10: 0.1791901849 | I10: 0.1611067485 | J10: 0.1655564311 | K10: 0.1497782429 | L10: 0.1718822959
A11: Imp BT Países Terceiros / Imp TE Mundo | B11: 0.183211105 | C11: 0.2042490637 | D11: 0.2333897572 | E11: 0.249839315 | F11: 0.2426008748 | G11: 0.2111317269 | H11: 0.1934011848 | I11: 0.1843030198 | J11: 0.1971823902 | K11: 0.2082384314 | L11: 0.2101863618
A12: (1) Todos os produtos transacionados entre PT e Países Terceiros (exclui serviços) | D12: TE - Total da Economia (bens e serviços) Fonte: INE/Contas Nacionais | M12: *TVMA - Taxa de variação média anual; TVT - Taxa de variação total
A24: Agro(1) + Mar + Florestas (AMF) | B24: 2009 | C24: 2010 | D24: 2011 | E24: 2012 | F24: 2013 | G24: 2014 | H24: 2015 | I24: 2016 | J24: 2017 | K24: 2018 | L24: média período | M24: var. 09/10 | N24: var. 10/11 | O24: var. 11/12 | P24: var. 12/13 | Q24: var. 13/14 | R24: var. 14/15 | S24: var. 15/16 | T24: var. 16/17 | U24: var. 17/18 | V24: TVMA* 2009-2018 | W24: TVT* 2009-2018
A25: Exportações | B25: 1532.016215 | C25: 1971.709073 | D25: 2491.748967 | E25: 2697.159494 | F25: 2921.833056 | G25: 3101.513056 | H25: 3027.673709 | I25: 3045.723128 | J25: 3296.340191 | K25: 3306.477743 | L25: 2739.219463 | M25: 0.2870027443 | N25: 0.2637508247 | O25: 0.0824362846 | P25: 0.08330006531 | Q25: 0.06149564214 | R25: -0.02380752416 | S25: 0.005961480904 | T25: 0.08228491313 | U25: 0.00307539617 | V25: 0.07996635096 | W25: 1.158252446
A26: Importações | B26: 1755.104224 | C26: 2040.575064 | D26: 2514.004329 | E26: 2232.206369 | F26: 2302.698252 | G26: 2046.795384 | H26: 2313.674458 | I26: 2382.032371 | J26: 2613.576917 | K26: 2846.982304 | L26: 2304.764967 | M26: 0.1626517879 | N26: 0.2320077675 | O26: -0.1120912787 | P26: 0.03157946504 | Q26: -0.111131742 | R26: 0.1303887414 | S26: 0.02954517338 | T26: 0.09720461771 | U26: 0.0893049619 | V26: 0.04956221072 | W26: 0.6221158066
A27: Saldo (exp-imp) | B27: -223.088009 | C27: -68.865991 | D27: -22.255362 | E27: 464.953125 | F27: 619.134804 | G27: 1054.717672 | H27: 713.999251 | I27: 663.690757 | J27: 682.763274 | K27: 459.495439 | L27: 434.454496
A28: Cobertura (exp/imp) | B28: 0.8728918739 | C28: 0.9662516747 | D28: 0.9911474448 | E28: 1.208293073 | F28: 1.268873615 | G28: 1.515301959 | H28: 1.308599703 | I28: 1.278623735 | J28: 1.261237107 | K28: 1.161397364 | L28: 1.188502733
A29: Exp AMF / Exp BT | B29: 0.2162454291 | C29: 0.2327892854 | D29: 0.2411912751 | E29: 0.2178717082 | F29: 0.2192309413 | G29: 0.2325147636 | H29: 0.2325808008 | I29: 0.2533532219 | J29: 0.2396034013 | K29: 0.251238682 | L29: 0.2343429657 | V29: Exportações
A30: Imp AMF / Imp BT | B30: 0.1605843826 | C30: 0.1483375195 | D30: 0.1585193907 | E30: 0.1388239238 | F30: 0.1447509944 | G30: 0.1404308936 | H30: 0.1670807857 | I30: 0.1781635109 | J30: 0.162556811 | K30: 0.1561007944 | L30: 0.1550556253 | V30: Importações
A31: Exp AMF Países Terceiros / Exp AMF Mundo | B31: 0.2285864698 | C31: 0.2524823384 | D31: 0.2874558906 | E31: 0.3004558293 | F31: 0.3070184287 | G31: 0.3111096273 | H31: 0.290948692 | I31: 0.2897261656 | J31: 0.2956752717 | K31: 0.2977214665 | L31: 0.2888993963
A32: Imp AMF Países Terceiros / Imp AMF Mundo | B32: 0.185122951 | C32: 0.1973600383 | D32: 0.2243498369 | E32: 0.2108644253 | F32: 0.2088671686 | G32: 0.185955358 | H32: 0.2013296228 | I32: 0.199869504 | J32: 0.2005300574 | K32: 0.225506806 | L32: 0.2044835609
A33: (1) Produtos agrícolas e agroalimentares | B33: BT - Total de Bens Transacionáveis (exclui serviços) | M33: *TVMA - Taxa de variação média anual; TVT - Taxa de variação total
A49: Agroalimentar (AA)(1) | B49: 2009 | C49: 2010 | D49: 2011 | E49: 2012 | F49: 2013 | G49: 2014 | H49: 2015 | I49: 2016 | J49: 2017 | K49: 2018 | L49: média período | M49: var. 09/10 | N49: var. 10/11 | O49: var. 11/12 | P49: var. 12/13 | Q49: var. 13/14 | R49: var. 14/15 | S49: var. 15/16 | T49: var. 16/17 | U49: var. 17/18 | V49: TVMA* 2009-2018 | W49: TVT* 2009-2018
A50: Exportações | B50: 924.488854 | C50: 1070.17872 | D50: 1321.486929 | E50: 1457.735908 | F50: 1615.475915 | G50: 1756.512987 | H50: 1598.124144 | I50: 1607.918888 | J50: 1793.157603 | K50: 1723.694344 | L50: 1486.877429 | M50: 0.1575896403 | N50: 0.2348282621 | O50: 0.1031027822 | P50: 0.1082089054 | Q50: 0.08730372932 | R50: -0.09017231536 | S50: 0.006128900584 | T50: 0.1152040171 | U50: -0.03873795526 | V50: 0.06427989404 | W50: 0.8644836404
A51: Importações | B51: 1208.405709 | C51: 1344.840164 | D51: 1830.911999 | E51: 1643.43204 | F51: 1720.565864 | G51: 1414.52559 | H51: 1553.019958 | I51: 1517.650771 | J51: 1673.392942 | K51: 1757.778092 | L51: 1566.452313 | M51: 0.1129045105 | N51: 0.3614346508 | O51: -0.1023970344 | P51: 0.04693459913 | Q51: -0.1778718737 | R51: 0.0979087045 | S51: -0.02277445748 | T51: 0.1026205593 | U51: 0.05042757614 | V51: 0.0381859039 | W51: 0.4546257759
A52: Saldo (exp-imp) | B52: -283.916855 | C52: -274.661444 | D52: -509.42507 | E52: -185.696132 | F52: -105.089949 | G52: 341.987397 | H52: 45.104186 | I52: 90.268117 | J52: 119.764661 | K52: -34.083748 | L52: -79.5748837
A53: Cobertura (exp/imp) | B53: 0.7650483998 | C53: 0.7957664774 | D53: 0.7217643064 | E53: 0.8870071123 | F53: 0.9389212868 | G53: 1.241768265 | H53: 1.029042889 | I53: 1.059478846 | J53: 1.071569957 | K53: 0.9806097549 | L53: 0.9492005706
A54: Exp AA / Exp AMF | B54: 0.6034458676 | C54: 0.5427670515 | D54: 0.5303451297 | E54: 0.5404707846 | F54: 0.5528980897 | G54: 0.5663406716 | H54: 0.5278389607 | I54: 0.5279268077 | J54: 0.5439843885 | K54: 0.521308316 | L54: 0.5428106251 | V54: Exportações
A55: Imp AA / Imp AMF | B55: 0.6885093731 | C55: 0.6590495923 | D55: 0.7282851417 | E55: 0.7362366056 | F55: 0.7471955401 | G55: 0.6910928181 | H55: 0.6712352953 | I55: 0.6371243269 | J55: 0.6402692536 | K55: 0.6174179901 | L55: 0.6796581583 | V55: Importações
A56: Exp AA / Exp BT | B56: 0.1304924106 | C56: 0.1263503541 | D56: 0.1279146181 | E56: 0.1177532931 | F56: 0.1212123686 | G56: 0.1316825674 | H56: 0.1227652082 | I56: 0.1337519577 | J56: 0.1303405097 | K56: 0.1309728142 | L56: 0.1272038517
A57: Imp AA / Imp BT | B57: 0.1105638526 | C57: 0.09776178176 | D57: 0.1154473169 | E57: 0.1022072544 | F57: 0.1081572974 | G57: 0.09705078199 | H57: 0.1121505205 | I57: 0.1135123069 | J57: 0.1040801281 | K57: 0.09637943874 | L57: 0.1053848207
A58: Exp AA Países Terceiros / Exp AA Mundo | B58: 0.2628422677 | C58: 0.2874551163 | D58: 0.3179324546 | E58: 0.3258001115 | F58: 0.3348833225 | G58: 0.3407272317 | H58: 0.2970586111 | I58: 0.2939091107 | J58: 0.3044865443 | K58: 0.2833195991 | L58: 0.3054773374
A59: Imp AA Países Terceiros / Imp AA Mundo | B59: 0.185028015 | C59: 0.1925431781 | D59: 0.2392690513 | E59: 0.2203991989 | F59: 0.2196203902 | G59: 0.1877349345 | H59: 0.2000289305 | I59: 0.1903103356 | J59: 0.1915212672 | K59: 0.1954526648 | L59: 0.2022205479
A60: (1) Produtos agrícolas e agroalimentares | B60: AMF - Agroalimentar, Mar e Florestas; BT - Total de Bens Transacionáveis (exclui serviços) | M60: *TVMA - Taxa de variação média anual; TVT - Taxa de variação total
A72: Mar (M) | B72: 2009 | C72: 2010 | D72: 2011 | E72: 2012 | F72: 2013 | G72: 2014 | H72: 2015 | I72: 2016 | J72: 2017 | K72: 2018 | L72: média período | M72: var. 09/10 | N72: var. 10/11 | O72: var. 11/12 | P72: var. 12/13 | Q72: var. 13/14 | R72: var. 14/15 | S72: var. 15/16 | T72: var. 16/17 | U72: var. 17/18 | V72: TVMA* 2009-2018 | W72: TVT* 2009-2018
A73: Exportações | B73: 86.691793 | C73: 112.295649 | D73: 148.115468 | E73: 172.620055 | F73: 198.655801 | G73: 187.150395 | H73: 180.936197 | I73: 169.801469 | J73: 199.452857 | K73: 198.062034 | L73: 165.3781718 | M73: 0.2953434819 | N73: 0.3189777994 | O73: 0.1654424574 | P73: 0.1508268897 | Q73: -0.05791628506 | R73: -0.03320430074 | S73: -0.06153952711 | T73: 0.1746238603 | U73: -0.006973191665 | V73: 0.08613128904 | W73: 1.284668792
A74: Importações | B74: 329.239109 | C74: 350.798214 | D74: 381.201444 | E74: 384.868391 | F74: 382.28383 | G74: 411.928935 | H74: 486.48674 | I74: 552.512484 | J74: 639.51456 | K74: 699.860656 | L74: 461.8694363 | M74: 0.06548160413 | N74: 0.08666871377 | O74: 0.009619446772 | P74: -0.006715441071 | Q74: 0.0775473684 | R74: 0.1809967659 | S74: 0.1357195142 | T74: 0.1574662628 | U74: 0.09436234884 | V74: 0.07832584947 | W74: 1.125691137
A75: Saldo (exp-imp) | B75: -242.547316 | C75: -238.502565 | D75: -233.085976 | E75: -212.248336 | F75: -183.628029 | G75: -224.77854 | H75: -305.550543 | I75: -382.711015 | J75: -440.061703 | K75: -501.798622 | L75: -296.4912645
A76: Cobertura (exp/imp) | B76: 0.2633095238 | C76: 0.3201146543 | D76: 0.3885490738 | E76: 0.448517101 | F76: 0.5196552546 | G76: 0.4543268974 | H76: 0.3719242111 | I76: 0.3073260314 | J76: 0.3118816513 | K76: 0.2830020981 | L76: 0.3580626013
A77: Exp M / Exp AMF | B77: 0.05658673332 | C77: 0.05695345756 | D77: 0.05944237159 | E77: 0.06400068494 | F77: 0.06799012715 | G77: 0.06034164346 | H77: 0.05976079802 | I77: 0.05575078951 | J77: 0.06050736436 | K77: 0.05990121495 | L77: 0.06037419565 | V77: Exportações
A78: Imp M / Imp AMF | B78: 0.1875894916 | C78: 0.171911448 | D78: 0.1516311804 | E78: 0.1724161334 | F78: 0.1660155992 | G78: 0.2012555521 | H78: 0.2102658558 | I78: 0.2319500317 | J78: 0.2446893971 | K78: 0.2458254324 | L78: 0.2003976296 | V78: Importações
A79: Exp M / Exp BT | B79: 0.01223662243 | C79: 0.01325815469 | D79: 0.0143369814 | E79: 0.01394393855 | F79: 0.01490553957 | G79: 0.01403032297 | H79: 0.01389921426 | I79: 0.01412464215 | J79: 0.0144977703 | K79: 0.01504950229 | L79: 0.01414826806
A80: Imp M / Imp BT | B80: 0.03012394268 | C80: 0.02550091777 | D80: 0.02403648234 | E80: 0.02393548416 | F80: 0.02403092306 | G80: 0.02826249701 | H80: 0.03513138439 | I80: 0.04132503199 | J80: 0.03977592808 | K80: 0.03837354529 | L80: 0.03107277978
A81: Exp M Países Terceiros / Exp M Mundo | B81: 0.16726228 | C81: 0.1635244579 | D81: 0.1860488821 | E81: 0.2200860797 | F81: 0.242906874 | G81: 0.2083641022 | H81: 0.2013298634 | I81: 0.1766855738 | J81: 0.1878966175 | K81: 0.1820762617 | L81: 0.1943220789
A82: Imp M Países Terceiros / Imp M Mundo | B82: 0.258978134 | C82: 0.2510605773 | D82: 0.2526934881 | E82: 0.2634971423 | F82: 0.2648743219 | G82: 0.2617605614 | H82: 0.2758322861 | I82: 0.2863012177 | J82: 0.2992660985 | K82: 0.3176836202 | L82: 0.2767644944
A83: AMF - Agroalimentar, Mar e Florestas; BT - Total de Bens Transacionáveis (exclui serviços) | M83: *TVMA - Taxa de variação média anual; TVT - Taxa de variação total
A95: Florestas (F) | B95: 2009 | C95: 2010 | D95: 2011 | E95: 2012 | F95: 2013 | G95: 2014 | H95: 2015 | I95: 2016 | J95: 2017 | K95: 2018 | L95: média período | M95: var. 09/10 | N95: var. 10/11 | O95: var. 11/12 | P95: var. 12/13 | Q95: var. 13/14 | R95: var. 14/15 | S95: var. 15/16 | T95: var. 16/17 | U95: var. 17/18 | V95: TVMA* 2009-2018 | W95: TVT* 2009-2018
A96: Exportações | B96: 520.835568 | C96: 789.234704 | D96: 1022.14657 | E96: 1066.803531 | F96: 1107.70134 | G96: 1157.849674 | H96: 1248.613368 | I96: 1268.002771 | J96: 1303.729731 | K96: 1384.721365 | L96: 1086.963862 | M96: 0.5153241301 | N96: 0.2951110295 | O96: 0.04368939085 | P96: 0.03833677693 | Q96: 0.04527243237 | R96: 0.07838987741 | S96: 0.01552874853 | T96: 0.02817577439 | U96: 0.06212302448 | V96: 0.1027223472 | W96: 1.658653614
A97: Importações | B97: 217.459406 | C97: 344.936686 | D97: 301.890886 | E97: 203.905938 | F97: 199.848558 | G97: 220.340859 | H97: 274.16776 | I97: 311.869116 | J97: 300.669415 | K97: 389.343556 | L97: 276.443218 | M97: 0.5862118468 | N97: -0.1247933367 | O97: -0.3245707391 | P97: -0.01989829252 | Q97: 0.1025391487 | R97: 0.2442892401 | S97: 0.1375119963 | T97: -0.03591154246 | U97: 0.2949223851 | V97: 0.05997465103 | W97: 0.7904194772
A98: Saldo (exp-imp) | B98: 303.376162 | C98: 444.298018 | D98: 720.255684 | E98: 862.897593 | F98: 907.852782 | G98: 937.508815 | H98: 974.445608 | I98: 956.133655 | J98: 1003.060316 | K98: 995.377809 | L98: 810.5206442
A99: Cobertura (exp/imp) | B99: 2.395093308 | C99: 2.288056725 | D99: 3.385814602 | E99: 5.231841414 | F99: 5.542703691 | G99: 5.254811474 | H99: 4.554194731 | I99: 4.065817056 | J99: 4.33609029 | K99: 3.556553958 | L99: 3.931960676
A100: Exp F / Exp AMF | B100: 0.3399673991 | C100: 0.4002794909 | D100: 0.4102124987 | E100: 0.3955285304 | F100: 0.3791117832 | G100: 0.373317685 | H100: 0.4124002412 | I100: 0.4163224028 | J100: 0.3955082472 | K100: 0.4187904691 | L100: 0.3968151792 | V100: Exportações
A101: Imp F / Imp AMF | B101: 0.1239011353 | C101: 0.1690389597 | D101: 0.1200836779 | E101: 0.09134726109 | F101: 0.08678886078 | G101: 0.1076516298 | H101: 0.1184988489 | I101: 0.1309256414 | J101: 0.1150413493 | K101: 0.1367565775 | L101: 0.1199442121 | V101: Importações
A102: Exp F / Exp BT | B102: 0.0735163961 | C102: 0.09318077667 | D102: 0.09893967565 | E102: 0.08617447655 | F102: 0.08311303308 | G102: 0.08680187329 | H102: 0.09591637838 | I102: 0.1054766221 | J102: 0.09476512125 | K102: 0.1052163655 | L102: 0.09299084595
A103: Imp F / Imp BT | B103: 0.01989658732 | C103: 0.02507481998 | D103: 0.01903559145 | E103: 0.01268118521 | F103: 0.0125627739 | G103: 0.01511761457 | H103: 0.01979888078 | I103: 0.02332617193 | J103: 0.01870075488 | K103: 0.02134781038 | L103: 0.01859802481
A104: Exp F Países Terceiros / Exp F Mundo | B104: 0.1953215043 | C104: 0.2321529646 | D104: 0.2750907676 | E104: 0.2869111821 | F104: 0.2858601131 | G104: 0.2956851673 | H104: 0.3024977 | I104: 0.3107408738 | J104: 0.3105676848 | K104: 0.3519680846 | L104: 0.2888459553
A105: Imp F Países Terceiros / Imp F Mundo | B105: 0.1295546862 | C105: 0.1762154262 | D105: 0.1476185118 | E105: 0.1221910654 | F105: 0.1143844863 | G105: 0.1160582749 | H105: 0.1395759537 | I105: 0.1548891794 | J105: 0.1392616259 | K105: 0.2725662537 | L105: 0.1489396017
A106: AMF - Agroalimentar, Mar e Florestas; BT - Total de Bens Transacionáveis (exclui serviços) | M106: *TVMA - Taxa de variação média anual; TVT - Taxa de variação total
A116: Fonte: GPP a partir de dados INE/Comércio Internacional (2017 provisórios; 2018 preliminares) | M116: 2019-11-21T09:59:42.630

Sheet 3
A1: Principais transações de Agroalimentar, Mar & Florestas entre Portugal e Países Terceiros em 2009-2018 (NC a 2 e 4 dígitos) em milhões de euros
AC4: P | AE4: Cód.NC | AF4: Descritivo | AG4: Média export quinquénio | AH4: % do total | AI4: % acumulada | AN4: P | AO4: NC | AP4: Exportações | AQ4: 2009 | AR4: 2010 | AS4: 2011 | AT4: 2012 | AU4: 2013 | AV4: 2014 | AW4: 2015 | AX4: 2016 | AY4: 2017 | AZ4: 2018 | BA4: média período
AC5: 1 | AD5: º | AE5: 48 | AF5: Papel e cartão | AG5: 484.410521 | AH5: 0.1768425376 | AN5: 1º | AO5: 48 | AP5: Papel e cartão | AQ5: 148.888646 | AR5: 337.483366 | AS5: 477.283757 | AT5: 473.370694 | AU5: 506.805015 | AV5: 527.642476 | AW5: 583.841843 | AX5: 573.573588 | AY5: 577.917685 | AZ5: 637.29814 | BA5: 484.410521
AC6: 2 | AD6: º | AE6: 22 | AF6: Bebidas, líquidos alcoólicos e vinagres | AG6: 479.6808936 | AH6: 0.1751159044 | AN6: 2º | AO6: 22 | AP6: Bebidas, líquidos alcoólicos e vinagres | AQ6: 369.031727 | AR6: 413.664376 | AS6: 495.767542 | AT6: 561.628468 | AU6: 558.592432 | AV6: 585.582599 | AW6: 475.500148 | AX6: 408.529344 | AY6: 477.257488 | AZ6: 451.254812 | BA6: 479.6808936
AC7: 3 | AD7: º | AE7: 45 | AF7: Cortiça e suas obras | AG7: 349.5214923 | AH7: 0.1275989372 | AI7: 0.4795573792 | AN7: 3º | AO7: 45 | AP7: Cortiça e suas obras | AQ7: 258.031994 | AR7: 295.129095 | AS7: 325.874601 | AT7: 352.804078 | AU7: 344.970919 | AV7: 347.910438 | AW7: 381.696851 | AX7: 377.684472 | AY7: 393.817402 | AZ7: 417.295073 | BA7: 349.5214923
AC8: 4 | AD8: º | AE8: 15 | AF8: Gorduras e óleos animais ou vegetais | AG8: 277.4092584 | AH8: 0.1012731043 | AO8: - | AP8: Outros | AQ8: 756.063848 | AR8: 925.432236 | AS8: 1192.823067 | AT8: 1309.356254 | AU8: 1511.46469 | AV8: 1640.377543 | AW8: 1586.634867 | AX8: 1685.935724 | AY8: 1847.347616 | AZ8: 1800.629718 | BA8: 1425.606556
AC9: 5 | AD9: º | AE9: 44 | AF9: Madeira e suas obras | AG9: 133.3422908 | AH9: 0.04867893668 | AP9: Total | AQ9: 1532.016215 | AR9: 1971.709073 | AS9: 2491.748967 | AT9: 2697.159494 | AU9: 2921.833056 | AV9: 3101.513056 | AW9: 3027.673709 | AX9: 3045.723128 | AY9: 3296.340191 | AZ9: 3306.477743 | BA9: 2739.219463
AC10: 6 | AD10: º | AE10: 03 | AF10: Peixes e crustáceos | AG10: 121.241892 | AH10: 0.04426147435
AC11: 7 | AD11: º | AE11: 20 | AF11: Preparações de produtos vegetais | AG11: 112.8649008 | AH11: 0.04120330712
AC12: 8 | AD12: º | AE12: 47 | AF12: Pastas de madeira | AG12: 105.0207334 | AH12: 0.03833965654
AC13: 9 | AD13: º | AE13: 04 | AF13: Leite e laticínios; ovos; mel, etc. | AG13: 92.8489999 | AH13: 0.03389615222
AC14: 10 | AD14: º | AE14: 19a | AF14: Preparações à base de cereais (exc. NC 19022010) (a) | AG14: 72.7279673 | AH14: 0.02655061717 | AI14: 0.8137606276
AE15: - | AF15: Outros | AG15: 510.1505137 | AH15: 0.1862393724
AE16: Total | AG16: 2739.219463 | AH16: 1
AC38: P | AE38: Cód.NC | AF38: Descritivo | AG38: Média import quinquénio | AH38: % do total | AI38: % acumulada | AN38: P | AO38: NC | AP38: Importações | AQ38: 2009 | AR38: 2010 | AS38: 2011 | AT38: 2012 | AU38: 2013 | AV38: 2014 | AW38: 2015 | AX38: 2016 | AY38: 2017 | AZ38: 2018 | BA38: média período
AC39: 1 | AD39: º | AE39: 03 | AF39: Peixes e crustáceos | AG39: 416.095865 | AH39: 0.1805372222 | AN39: 1º | AO39: 03 | AP39: Peixes e crustáceos | AQ39: 309.365053 | AR39: 334.12515 | AS39: 359.842636 | AT39: 358.986574 | AU39: 336.897678 | AV39: 356.623215 | AW39: 438.08537 | AX39: 489.364438 | AY39: 554.99893 | AZ39: 622.669606 | BA39: 416.095865
AC40: 2 | AD40: º | AE40: 12 | AF40: Sementes e frutos oleaginosos | AG40: 386.708603 | AH40: 0.1677865676 | AN40: 2º | AO40: 12 | AP40: Sementes e frutos oleaginosos | AQ40: 316.714405 | AR40: 349.357243 | AS40: 394.391622 | AT40: 368.881202 | AU40: 408.157627 | AV40: 386.397866 | AW40: 419.762222 | AX40: 400.328036 | AY40: 393.776554 | AZ40: 429.319253 | BA40: 386.708603
AC41: 3 | AD41: º | AE41: 10 | AF41: Cereais | AG41: 291.5420206 | AH41: 0.1264953367 | AI41: 0.4748191265 | AN41: 3º | AO41: 10 | AP41: Cereais | AQ41: 116.459476 | AR41: 197.433154 | AS41: 376.738718 | AT41: 342.10901 | AU41: 356.362661 | AV41: 272.673048 | AW41: 283.020676 | AX41: 268.388056 | AY41: 295.747732 | AZ41: 406.487675 | BA41: 291.5420206
AC42: 4 | AD42: º | AE42: 08 | AF42: Frutas | AG42: 194.6833258 | AH42: 0.08446992581 | AO42: - | AP42: Outros | AQ42: 1012.56529 | AR42: 1159.659517 | AS42: 1383.031353 | AT42: 1162.229583 | AU42: 1201.280286 | AV42: 1031.101255 | AW42: 1172.80619 | AX42: 1223.951841 | AY42: 1369.053701 | AZ42: 1388.50577 | BA42: 1210.418479
AC43: 5 | AD43: º | AE43: 17 | AF43: Açúcares e produtos de confeitaria | AG43: 177.4520218 | AH43: 0.07699354352 | AP43: Total | AQ43: 1755.104224 | AR43: 2040.575064 | AS43: 2514.004329 | AT43: 2232.206369 | AU43: 2302.698252 | AV43: 2046.795384 | AW43: 2313.674458 | AX43: 2382.032371 | AY43: 2613.576917 | AZ43: 2846.982304 | BA43: 2304.764967
AC44: 6 | AD44: º | AE44: 44 | AF44: Madeira e suas obras | AG44: 172.0085277 | AH44: 0.07463170004
AC45: 7 | AD45: º | AE45: 09 | AF45: Café, chá, mate e especiarias | AG45: 110.4286273 | AH45: 0.04791318372
AC46: 8 | AD46: º | AE46: 24 | AF46: Tabaco | AG46: 71.0997565 | AH46: 0.03084902691
AC47: 9 | AD47: º | AE47: 23a | AF47: Resíduos indústrias alimentares; alimentos p/ animais (exc. NC 230120) (a) | AG47: 70.5043724 | AH47: 0.03059069944
AC48: 10 | AD48: º | AE48: 15 | AF48: Gorduras e óleos animais ou vegetais | AG48: 54.1039293 | AH48: 0.02347481417 | AI48: 0.8437420202
AE49: - | AF49: Outros | AG49: 360.1379178 | AH49: 0.1562579798
AE50: Total | AG50: 2304.764967 | AH50: 1
AC62: DESAGREGAÇÃO A 4 DÍGITOS | AN62: DESAGREGAÇÃO A 4 DÍGITOS
AC64: P | AE64: Cód.NC | AF64: Descritivo | AG64: Média export quinquénio | AH64: % do total | AI64: % acumulada | AN64: P | AO64: NC | AP64: Exportações | AQ64: 2009 | AR64: 2010 | AS64: 2011 | AT64: 2012 | AU64: 2013 | AV64: 2014 | AW64: 2015 | AX64: 2016 | AY64: 2017 | AZ64: 2018 | BA64: média período
AC65: 1 | AD65: º | AE65: 4802 | AF65: Papel e cartão p/ escrita, etc. | AG65: 365.2884009 | AH65: 0.1333549231 | AN65: 1º | AO65: 4802 | AP65: Papel e cartão p/ escrita, etc. | AQ65: 34.076144 | AR65: 186.540013 | AS65: 359.684549 | AT65: 358.690235 | AU65: 383.761958 | AV65: 403.982458 | AW65: 473.412226 | AX65: 462.740658 | AY65: 478.829608 | AZ65: 511.16616 | BA65: 365.2884009
AC66: 2 | AD66: º | AE66: 2204 | AF66: Vinhos de uvas frescas | AG66: 286.9427898 | AH66: 0.1047534868 | AN66: 2º | AO66: 2204 | AP66: Vinhos de uvas frescas | AQ66: 200.638624 | AR66: 225.344467 | AS66: 262.465272 | AT66: 293.701467 | AU66: 308.609118 | AV66: 314.790703 | AW66: 308.974196 | AX66: 287.441864 | AY66: 328.740692 | AZ66: 338.721495 | BA66: 286.9427898
AC67: 3 | AD67: º | AE67: 1509 | AF67: Azeite (processos mecânicos ou físicos) | AG67: 181.4073228 | AH67: 0.06622591772 | AI67: 0.3043343276 | AN67: 3º | AO67: 1509 | AP67: Azeite (processos mecânicos ou físicos) | AQ67: 102.528554 | AR67: 128.26451 | AS67: 142.201628 | AT67: 176.336953 | AU67: 207.506343 | AV67: 202.968131 | AW67: 183.239079 | AX67: 177.703003 | AY67: 236.471256 | AZ67: 256.853771 | BA67: 181.4073228
AC68: 4 | AD68: º | AE68: 4504 | AF68: Cortiça aglomerada e suas obras | AG68: 169.3614731 | AH68: 0.0618283695 | AN68: - | AO68: - | AP68: Outros | AQ68: 1194.772893 | AR68: 1431.560083 | AS68: 1727.397518 | AT68: 1868.430839 | AU68: 2021.955637 | AV68: 2179.771764 | AW68: 2062.048208 | AX68: 2117.837603 | AY68: 2252.298635 | AZ68: 2199.736317 | BA68: 1905.58095
AC69: 5 | AD69: º | AE69: 4503 | AF69: Obras de cortiça natural | AG69: 164.4832219 | AH69: 0.06004747853 | AP69: Total | AQ69: 1532.016215 | AR69: 1971.709073 | AS69: 2491.748967 | AT69: 2697.159494 | AU69: 2921.833056 | AV69: 3101.513056 | AW69: 3027.673709 | AX69: 3045.723128 | AY69: 3296.340191 | AZ69: 3306.477743 | BA69: 2739.219463
AC70: 6 | AD70: º | AE70: 2203 | AF70: Cervejas de malte | AG70: 123.8770591 | AH70: 0.04522348821
AC71: 7 | AD71: º | AE71: 1507 | AF71: Óleo de soja e suas frações | AG71: 60.3735852 | AH71: 0.02204043378
AC72: 8 | AD72: º | AE72: 1601 | AF72: Enchidos e etc., de carne, miudezas ou sangue | AG72: 56.1204845 | AH72: 0.02048776495
AC73: 9 | AD73: º | AE73: 4703 | AF73: Pastas químicas de madeira, à soda ou ao sulfato | AG73: 51.5011352 | AH73: 0.01880139065
AC74: 10 | AD74: º | AE74: 2002 | AF74: Tomates preparados | AG74: 49.9071421 | AH74: 0.01821947557 | AI74: 0.5509827288
AE75: - | AF75: Outros | AG75: 1229.956849 | AH75: 0.4490172712
AE76: Total | AG76: 2739.219463 | AH76: 1
AC89: DESAGREGAÇÃO A 4 DÍGITOS | AN89: DESAGREGAÇÃO A 4 DÍGITOS
G91: média 2009-2018 em milhões de euros | I91: Cód. NC | J91: Descritivo | K91: Export | L91: Import | M91: Saldo | AC91: P | AE91: Cód.NC | AF91: Descritivo | AG91: Média import quinquénio | AH91: % do total | AI91: % acumulada | AN91: P | AO91: NC | AP91: Importações | AQ91: 2009 | AR91: 2010 | AS91: 2011 | AT91: 2012 | AU91: 2013 | AV91: 2014 | AW91: 2015 | AX91: 2016 | AY91: 2017 | AZ91: 2018 | BA91: média período
I92: 4802 | J92: Papel e cartão p/ escrita, etc. | K92: 365.2884009 | L92: 1.1312708 | M92: 364.1571301 | AC92: 1 | AD92: º | AE92: 1201 | AF92: Soja, mesmo triturada | AG92: 290.2541189 | AH92: 0.1259365371 | AN92: 1º | AO92: 1201 | AP92: Soja, mesmo triturada | AQ92: 277.300023 | AR92: 278.927499 | AS92: 250.41425 | AT92: 275.907233 | AU92: 336.522342 | AV92: 294.3216 | AW92: 284.806767 | AX92: 260.849375 | AY92: 284.259406 | AZ92: 359.232694 | BA92: 290.2541189
I93: 2204 | J93: Vinhos de uvas frescas | K93: 286.9427898 | L93: 1.1093139 | M93: 285.8334759 | AC93: 2 | AD93: º | AE93: 1005 | AF93: Milho | AG93: 225.1491617 | AH93: 0.09768855606 | AN93: 2º | AO93: 1005 | AP93: Milho | AQ93: 61.274412 | AR93: 144.685264 | AS93: 267.014539 | AT93: 263.326342 | AU93: 288.91531 | AV93: 217.802985 | AW93: 215.94334 | AX93: 205.012562 | AY93: 254.111169 | AZ93: 333.405694 | BA93: 225.1491617
I94: 1509 | J94: Azeite (processos mecânicos ou físicos) | K94: 181.4073228 | L94: 8.1271554 | M94: 173.2801674 | AC94: 3 | AD94: º | AE94: 1701 | AF94: Açúcares (cana/beterraba); sacarose pura | AG94: 168.73937 | AH94: 0.07321326573 | AI94: 0.2968383589 | AN94: 3º | AO94: 1701 | AP94: Açúcares (cana/beterraba); sacarose pura | AQ94: 199.096375 | AR94: 161.947305 | AS94: 233.330096 | AT94: 214.112652 | AU94: 264.462969 | AV94: 142.512211 | AW94: 119.706555 | AX94: 127.260702 | AY94: 129.780445 | AZ94: 95.18439 | BA94: 168.73937
I95: 4504 | J95: Cortiça aglomerada e suas obras | K95: 169.3614731 | L95: 1.1118055 | M95: 168.2496676 | AC95: 4 | AD95: º | AE95: 0303 | AF95: Peixes congelados | AG95: 128.4390693 | AH95: 0.05572762131 | AN95: - | AO95: - | AP95: Outros | AQ95: 1217.433414 | AR95: 1455.014996 | AS95: 1763.245444 | AT95: 1478.860142 | AU95: 1412.797631 | AV95: 1392.158588 | AW95: 1693.217796 | AX95: 1788.909732 | AY95: 1945.425897 | AZ95: 2059.159526 | BA95: 1620.622317
I96: 4503 | J96: Obras de cortiça natural | K96: 164.4832219 | L96: 16.2860385 | M96: 148.1971834 | AC96: 5 | AD96: º | AE96: 0901 | AF96: Café | AG96: 107.8901496 | AH96: 0.04681177957 | AP96: Total | AQ96: 1755.104224 | AR96: 2040.575064 | AS96: 2514.004329 | AT96: 2232.206369 | AU96: 2302.698252 | AV96: 2046.795384 | AW96: 2313.674458 | AX96: 2382.032371 | AY96: 2613.576917 | AZ96: 2846.982304 | BA96: 2304.764967
I97: 2203 | J97: Cervejas de malte | K97: 123.8770591 | L97: 1.1780399 | M97: 122.6990192 | AC97: 6 | AD97: º | AE97: 0307 | AF97: Moluscos | AG97: 96.3792918 | AH97: 0.04181740575
I98: 1601 | J98: Enchidos e etc., de carne, miudezas ou sangue | K98: 56.1204845 | L98: 0.009003 | M98: 56.1114815 | AC98: 7 | AD98: º | AE98: 0306 | AF98: Crustáceos | AG98: 79.477386 | AH98: 0.03448394397
I99: 1507 | J99: Óleo de soja e suas frações | K99: 60.3735852 | L99: 7.5795444 | M99: 52.7940408 | AC99: 8 | AD99: º | AE99: 4401 | AF99: Lenha, resíduos de madeira, etc. | AG99: 72.9520164 | AH99: 0.03165269233
I100: 2002 | J100: Tomates preparados | K100: 49.9071421 | L100: 0.6603327 | M100: 49.2468094 | AC100: 9 | AD100: º | AE100: 1205 | AF100: Sementes de nabo silvestre ou de colza | AG100: 70.6310057 | AH100: 0.03064564357
I101: 4703 | J101: Pastas químicas de madeira, à soda ou ao sulfato | K101: 51.5011352 | L101: 3.9723495 | M101: 47.5287857 | AC101: 10 | AD101: º | AE101: 2401 | AF101: Tabaco não manufaturado | AG101: 63.7154258 | AH101: 0.02764508603 | AI101: 0.5656225315
I102: - | J102: Outros | K102: 1142.442062 | L102: 973.7317742 | M102: 168.7102877 | AE102: - | AF102: Outros | AG102: 1001.137972 | AH102: 0.4343774685
I103: 0805 | J103: Citrinos, frescos ou secos | K103: 2.7795131 | L103: 49.95677 | M103: -47.1772569 | AE103: Total | AG103: 2304.764967 | AH103: 1
I104: 1205 | J104: Sementes de nabo silvestre ou de colza | K104: 0.0029085 | L104: 70.6310057 | M104: -70.6280972
I105: 4401 | J105: Lenha, resíduos de madeira, etc. | K105: 0.7451529 | L105: 72.9520164 | M105: -72.2068635
I106: 0306 | J106: Crustáceos | K106: 6.5378719 | L106: 79.477386 | M106: -72.9395141
J107: Moluscos | K107: 14.0406489 | L107: 96.3792918 | M107: -82.3386429
I108: 0303 | J108: Peixes congelados | K108: 41.4456878 | L108: 128.4390693 | M108: -86.9933815
I109: 0901 | J109: Café | K109: 14.7785274 | L109: 107.8901496 | M109: -93.1116222
I110: 1701 | J110: Açúcares (cana/beterraba); sacarose pura | K110: 6.6746175 | L110: 168.73937 | M110: -162.0647525
I111: 1005 | J111: Milho | K111: 0.4382721 | L111: 225.1491617 | M111: -224.7108896
I112: 1201 | J112: Soja, mesmo triturada | K112: 0.0715866 | L112: 290.2541189 | M112: -290.1825323
I113: Total | K113: 2739.219463 | L113: 2304.764967 | M113: 434.454496
A116: Fonte: GPP a partir de dados INE/Comércio Internacional (2017 provisórios; 2018 preliminares) | Y116: 2019-11-21T09:59:42.630

Sheet 3A
A1: Principais produtos agrícolas e agroalimentares transacionados entre Portugal e Países Terceiros em 2009-2018 (NC 2 dígitos) em milhões de euros
AC4: P | AE4: Cód.NC | AF4: Descritivo | AG4: Média export quinquénio | AH4: % do total | AI4: % acumulada | AN4: P | AO4: NC | AP4: Exportações | AQ4: 2009 | AR4: 2010 | AS4: 2011 | AT4: 2012 | AU4: 2013 | AV4: 2014 | AW4: 2015 | AX4: 2016 | AY4: 2017 | AZ4: 2018 | BA4: média período
AC5: 1 | AD5: º | AE5: 22 | AF5: Bebidas, líquidos alcoólicos e vinagres | AG5: 479.6808936 | AH5: 0.3226095737 | AN5: 1º | AO5: 22 | AP5: Bebidas, líquidos alcoólicos e vinagres | AQ5: 369.031727 | AR5: 413.664376 | AS5: 495.767542 | AT5: 561.628468 | AU5: 558.592432 | AV5: 585.582599 | AW5: 475.500148 | AX5: 408.529344 | AY5: 477.257488 | AZ5: 451.254812 | BA5: 479.6808936
AC6: 2 | AD6: º | AE6: 15 | AF6: Gorduras e óleos animais ou vegetais | AG6: 277.4092584 | AH6: 0.1865717059 | AN6: 2º | AO6: 15 | AP6: Gorduras e óleos animais ou vegetais | AQ6: 153.061654 | AR6: 190.458681 | AS6: 262.008886 | AT6: 259.077716 | AU6: 312.883254 | AV6: 286.791168 | AW6: 268.035588 | AX6: 279.382695 | AY6: 389.710451 | AZ6: 372.682491 | BA6: 277.4092584
AC7: 3 | AD7: º | AE7: 20 | AF7: Preparações de produtos vegetais | AG7: 112.8649008 | AH7: 0.07590733344 | AI7: 0.585088613 | AN7: 3º | AO7: 20 | AP7: Preparações de produtos vegetais | AQ7: 77.364074 | AR7: 84.128532 | AS7: 101.89138 | AT7: 107.07396 | AU7: 129.224792 | AV7: 122.279658 | AW7: 128.318654 | AX7: 122.24704 | AY7: 128.509259 | AZ7: 127.611659 | BA7: 112.8649008
AC8: 4 | AD8: º | AE8: 04 | AF8: Leite e laticínios; ovos; mel, etc. | AG8: 92.8489999 | AH8: 0.06244563141 | AO8: - | AP8: Outros | AQ8: 325.031399 | AR8: 381.927131 | AS8: 461.819121 | AT8: 529.955764 | AU8: 614.775437 | AV8: 761.859562 | AW8: 726.269754 | AX8: 797.759809 | AY8: 797.680405 | AZ8: 772.145382 | BA8: 616.9223764
AC9: 5 | AD9: º | AE9: 19a | AF9: Preparações à base de cereais (exc. NC 19022010) (a) | AG9: 72.7279673 | AH9: 0.04891322302 | AP9: Total | AQ9: 924.488854 | AR9: 1070.17872 | AS9: 1321.486929 | AT9: 1457.735908 | AU9: 1615.475915 | AV9: 1756.512987 | AW9: 1598.124144 | AX9: 1607.918888 | AY9: 1793.157603 | AZ9: 1723.694344 | BA9: 1486.877429
AC10: 6 | AD10: º | AE10: 16a | AF10: Preparações de carnes (exc. NC 1604-05) (a) | AG10: 69.1806076 | AH10: 0.04652744486
AC11: 7 | AD11: º | AE11: 02 | AF11: Carnes e miudezas | AG11: 60.8928993 | AH11: 0.04095354338
AC12: 8 | AD12: º | AE12: 08 | AF12: Frutas | AG12: 56.7794046 | AH12: 0.0381870109
AC13: 9 | AD13: º | AE13: 24 | AF13: Tabaco | AG13: 51.8933526 | AH13: 0.03490089471
AC14: 10 | AD14: º | AE14: 21 | AF14: Preparações alimentícias diversas | AG14: 32.3587002 | AH14: 0.02176285655 | AI14: 0.8787792179
AE15: - | AF15: Outros | AG15: 180.2404449 | AH15: 0.1212207821
AE16: Total | AG16: 1486.877429 | AH16: 1
AC38: P | AE38: Cód.NC | AF38: Descritivo | AG38: Média import quinquénio | AH38: % do total | AI38: % acumulada | AN38: P | AO38: NC | AP38: Importações | AQ38: 2009 | AR38: 2010 | AS38: 2011 | AT38: 2012 | AU38: 2013 | AV38: 2014 | AW38: 2015 | AX38: 2016 | AY38: 2017 | AZ38: 2018 | BA38: média período
AC39: 1 | AD39: º | AE39: 12 | AF39: Sementes e frutos oleaginosos | AG39: 386.708603 | AH39: 0.2468690555 | AN39: 1º | AO39: 12 | AP39: Sementes e frutos oleaginosos | AQ39: 316.714405 | AR39: 349.357243 | AS39: 394.391622 | AT39: 368.881202 | AU39: 408.157627 | AV39: 386.397866 | AW39: 419.762222 | AX39: 400.328036 | AY39: 393.776554 | AZ39: 429.319253 | BA39: 386.708603
AC40: 2 | AD40: º | AE40: 10 | AF40: Cereais | AG40: 291.5420206 | AH40: 0.1861161161 | AN40: 2º | AO40: 10 | AP40: Cereais | AQ40: 116.459476 | AR40: 197.433154 | AS40: 376.738718 | AT40: 342.10901 | AU40: 356.362661 | AV40: 272.673048 | AW40: 283.020676 | AX40: 268.388056 | AY40: 295.747732 | AZ40: 406.487675 | BA40: 291.5420206
AC41: 3 | AD41: º | AE41: 08 | AF41: Frutas | AG41: 194.6833258 | AH41: 0.1242829572 | AI41: 0.5572681289 | AN41: 3º | AO41: 08 | AP41: Frutas | AQ41: 163.878406 | AR41: 199.414277 | AS41: 177.131806 | AT41: 138.485949 | AU41: 166.207205 | AV41: 141.286436 | AW41: 189.74559 | AX41: 210.941908 | AY41: 275.903933 | AZ41: 283.837748 | BA41: 194.6833258
AC42: 4 | AD42: º | AE42: 17 | AF42: Açúcares e produtos de confeitaria | AG42: 177.4520218 | AH42: 0.1132827475 | AO42: - | AP42: Outros | AQ42: 611.353422 | AR42: 598.63549 | AS42: 882.649853 | AT42: 793.955879 | AU42: 789.838371 | AV42: 614.16824 | AW42: 660.49147 | AX42: 637.992771 | AY42: 707.964723 | AZ42: 638.133416 | BA42: 693.5183635
AC43: 5 | AD43: º | AE43: 09 | AF43: Café, chá, mate e especiarias | AG43: 110.4286273 | AH43: 0.07049600322 | AP43: Total | AQ43: 1208.405709 | AR43: 1344.840164 | AS43: 1830.911999 | AT43: 1643.43204 | AU43: 1720.565864 | AV43: 1414.52559 | AW43: 1553.019958 | AX43: 1517.650771 | AY43: 1673.392942 | AZ43: 1757.778092 | BA43: 1566.452313
AC44: 6 | AD44: º | AE44: 24 | AF44: Tabaco | AG44: 71.0997565 | AH44: 0.0453890335
AC45: 7 | AD45: º | AE45: 23a | AF45: Resíduos indústrias alimentares; alimentos p/ animais (exc. NC 230120) (a) | AG45: 70.5043724 | AH45: 0.04500894909
AC46: 8 | AD46: º | AE46: 15 | AF46: Gorduras e óleos animais ou vegetais | AG46: 54.1039293 | AH46: 0.03453914866
AC47: 9 | AD47: º | AE47: 07 | AF47: Produtos hortícolas | AG47: 47.7788313 | AH47: 0.0305012996
AC48: 10 | AD48: º | AE48: 52 | AF48: Algodão (NC 5201-5203) | AG48: 42.4389624 | AH48: 0.02709240623 | AI48: 0.9235777167
AE49: - | AF49: Outros | AG49: 119.7118625 | AH49: 0.07642228334
AE50: Total | AG50: 1566.452313 | AH50: 1
A56: Fonte: GPP a partir de dados INE/Comércio Internacional (2017 provisórios; 2018 preliminares) | Y56: 2019-11-21T11:25:33.210

Sheet 3B
A1: Principais origens e destinos em Países Terceiros para Agroalimentar, Mar & Florestas (2009-2018) em milhões de euros
AC4: P | AE4: País | AF4: Média export quinquénio | AG4: % do total | AH4: % acumulada | AM4: P | AN4: Exportações | AO4: 2009 | AP4: 2010 | AQ4: 2011 | AR4: 2012 | AS4: 2013 | AT4: 2014 | AU4: 2015 | AV4: 2016 | AW4: 2017 | AX4: 2018 | AY4: média período
AC5: 1 | AD5: º | AE5: Angola | AF5: 629.0147436 | AG5: 0.2296328396 | AM5: 1º | AN5: Angola | AO5: 480.237803 | AP5: 496.066013 | AQ5: 694.209474 | AR5: 770.305544 | AS5: 836.324981 | AT5: 873.004277 | AU5: 619.867358 | AV5: 512.399099 | AW5: 551.600723 | AX5: 456.132164 | AY5: 629.0147436
AC6: 2 | AD6: º | AE6: Estados Unidos | AF6: 387.1031353 | AG6: 0.1413187737 | AM6: 2º | AN6: Estados Unidos | AO6: 207.752644 | AP6: 293.661786 | AQ6: 331.757756 | AR6: 361.934658 | AS6: 380.78371 | AT6: 401.572439 | AU6: 487.078474 | AV6: 456.826354 | AW6: 462.235205 | AX6: 487.428327 | AY6: 387.1031353
AC7: 3 | AD7: º | AE7: Brasil | AF7: 303.3322481 | AG7: 0.1107367453 | AH7: 0.4816883586 | AM7: 3º | AN7: Brasil | AO7: 155.181717 | AP7: 227.362042 | AQ7: 268.243887 | AR7: 301.8178 | AS7: 322.487227 | AT7: 337.706071 | AU7: 297.187507 | AV7: 292.346759 | AW7: 403.960331 | AX7: 427.02914 | AY7: 303.3322481
AC8: 4 | AD8: º | AE8: China | AF8: 120.581571 | AG8: 0.04402041261 | AN8: Outros | AO8: 688.844051 | AP8: 954.619232 | AQ8: 1197.53785 | AR8: 1263.101492 | AS8: 1382.237138 | AT8: 1489.230269 | AU8: 1623.54037 | AV8: 1784.150916 | AW8: 1878.543932 | AX8: 1935.888112 | AY8: 1419.769336
AC9: 5 | AD9: º | AE9: Suíça | AF9: 109.6599867 | AG9: 0.04003329714 | AN9: Total | AO9: 1532.016215 | AP9: 1971.709073 | AQ9: 2491.748967 | AR9: 2697.159494 | AS9: 2921.833056 | AT9: 3101.513056 | AU9: 3027.673709 | AV9: 3045.723128 | AW9: 3296.340191 | AX9: 3306.477743 | AY9: 2739.219463
AC10: 6 | AD10: º | AE10: Turquia | AF10: 93.879429 | AG10: 0.0342723284
AC11: 7 | AD11: º | AE11: Canadá | AF11: 75.7804871 | AG11: 0.02766499294
AC12: 8 | AD12: º | AE12: Cabo Verde | AF12: 74.2010511 | AG12: 0.02708839219
AC13: 9 | AD13: º | AE13: Marrocos | AF13: 71.7160532 | AG13: 0.02618120022
AC14: 10 | AD14: º | AE14: Rússia | AF14: 68.7090392 | AG14: 0.02508343713 | AH14: 0.7060324192
AE15: Outros | AF15: 805.2417189 | AG15: 0.2939675808
AE16: Total | AF16: 2739.219463 | AG16: 1
AF18: 0
AC38: P | AE38: País | AF38: Média import quinquénio | AG38: % do total | AH38: % acumulada | AM38: P | AN38: Importações | AO38: 2009 | AP38: 2010 | AQ38: 2011 | AR38: 2012 | AS38: 2013 | AT38: 2014 | AU38: 2015 | AV38: 2016 | AW38: 2017 | AX38: 2018 | AY38: média período
AC39: 1 | AD39: º | AE39: Brasil | AF39: 385.8087895 | AG39: 0.1673961532 | AM39: 1º | AN39: Brasil | AO39: 345.963741 | AP39: 411.729086 | AQ39: 448.773991 | AR39: 454.029826 | AS39: 495.951627 | AT39: 287.92945 | AU39: 366.986145 | AV39: 270.456682 | AW39: 359.351142 | AX39: 416.916205 | AY39: 385.8087895
AC40: 2 | AD40: º | AE40: Estados Unidos | AF40: 247.858253 | AG40: 0.1075416611 | AM40: 2º | AN40: Estados Unidos | AO40: 137.760542 | AP40: 214.109728 | AQ40: 308.658349 | AR40: 226.799752 | AS40: 265.247762 | AT40: 284.255803 | AU40: 250.403615 | AV40: 233.965822 | AW40: 194.259927 | AX40: 363.12123 | AY40: 247.858253
AC41: 3 | AD41: º | AE41: Ucrânia | AF41: 173.6962032 | AG41: 0.07536395497 | AH41: 0.3503017692 | AM41: 3º | AN41: Ucrânia | AO41: 53.677449 | AP41: 86.6082 | AQ41: 147.923941 | AR41: 293.434596 | AS41: 188.158236 | AT41: 185.767138 | AU41: 226.431054 | AV41: 171.160479 | AW41: 194.84805 | AX41: 188.952889 | AY41: 173.6962032
AC42: 4 | AD42: º | AE42: China | AF42: 132.3784827 | AG42: 0.05743686865 | AN42: Outros | AO42: 1217.702492 | AP42: 1328.12805 | AQ42: 1608.648048 | AR42: 1257.942195 | AS42: 1353.340627 | AT42: 1288.842993 | AU42: 1469.853644 | AV42: 1706.449388 | AW42: 1865.117798 | AX42: 1877.99198 | AY42: 1497.401721
AC43: 5 | AD43: º | AE43: Canadá | AF43: 84.9680339 | AG43: 0.03686624671 | AN43: Total | AO43: 1755.104224 | AP43: 2040.575064 | AQ43: 2514.004329 | AR43: 2232.206369 | AS43: 2302.698252 | AT43: 2046.795384 | AU43: 2313.674458 | AV43: 2382.032371 | AW43: 2613.576917 | AX43: 2846.982304 | AY43: 2304.764967
AC44: 6 | AD44: º | AE44: Argentina | AF44: 79.1520122 | AG44: 0.03434276958
AC45: 7 | AD45: º | AE45: África do Sul | AF45: 78.5922962 | AG45: 0.03409991792
AC46: 8 | AD46: º | AE46: Uruguai | AF46: 72.2336461 | AG46: 0.03134100315
AC47: 9 | AD47: º | AE47: Índia | AF47: 58.3765442 | AG47: 0.02532863222
AC48: 10 | AD48: º | AE48: Vietname | AF48: 58.3513411 | AG48: 0.025317697 | AH48: 0.5950349045
AE49: Outros | AF49: 933.3493651 | AG49: 0.4049650955
AE50: Total | AF50: 2304.764967 | AG50: 1
AF52: 0
A57: Fonte: GPP a partir de dados INE/Comércio Internacional (2017 provisórios; 2018 preliminares) | Y57: 2019-11-21T09:59:42.630

Sheet 3C
A1: Principais origens e destinos em Países Terceiros para os produtos agrícolas e agroalimentares (2009-2018) em milhões de euros
AC4: P | AE4: País | AF4: Média export quinquénio | AG4: % do total | AH4: % acumulada | AM4: P | AN4: Exportações | AO4: 2009 | AP4: 2010 | AQ4: 2011 | AR4: 2012 | AS4: 2013 | AT4: 2014 | AU4: 2015 | AV4: 2016 | AW4: 2017 | AX4: 2018 | AY4: média período
AC5: 1 | AD5: º | AE5: Angola | AF5: 520.5222978 | AG5: 0.3500774762 | AM5: 1º | AN5: Angola | AO5: 391.268748 | AP5: 411.863273 | AQ5: 585.144886 | AR5: 643.349358 | AS5: 678.931402 | AT5: 727.341365 | AU5: 515.86971 | AV5: 413.455182 | AW5: 465.986251 | AX5: 372.012803 | AY5: 520.5222978
AC6: 2 | AD6: º | AE6: Brasil | AF6: 229.6315656 | AG6: 0.1544387998 | AM6: 2º | AN6: Brasil | AO6: 119.249916 | AP6: 164.97796 | AQ6: 188.590468 | AR6: 219.452279 | AS6: 241.19525 | AT6: 252.424352 | AU6: 232.970951 | AV6: 226.293688 | AW6: 313.410428 | AX6: 337.750364 | AY6: 229.6315656
AC7: 3 | AD7: º | AE7: Estados Unidos | AF7: 101.2841336 | AG7: 0.0681186839 | AH7: 0.5726349599 | AM7: 3º | AN7: Estados Unidos | AO7: 66.961533 | AP7: 75.898807 | AQ7: 76.367209 | AR7: 82.375861 | AS7: 91.162535 | AT7: 96.186167 | AU7: 120.44212 | AV7: 126.010345 | AW7: 136.122933 | AX7: 141.313826 | AY7: 101.2841336
AC8: 4 | AD8: º | AE8: Cabo Verde | AF8: 62.1123514 | AG8: 0.04177368637 | AN8: Outros | AO8: 347.008657 | AP8: 417.43868 | AQ8: 471.384366 | AR8: 512.55841 | AS8: 604.186728 | AT8: 680.561103 | AU8: 728.841363 | AV8: 842.159673 | AW8: 877.637991 | AX8: 872.617351 | AY8: 635.4394322
AC9: 5 | AD9: º | AE9: Suíça | AF9: 61.424644 | AG9: 0.04131116849 | AN9: Total | AO9: 924.488854 | AP9: 1070.17872 | AQ9: 1321.486929 | AR9: 1457.735908 | AS9: 1615.475915 | AT9: 1756.512987 | AU9: 1598.124144 | AV9: 1607.918888 | AW9: 1793.157603 | AX9: 1723.694344 | AY9: 1486.877429
AC10: 6 | AD10: º | AE10: Canadá | AF10: 55.0266271 | AG10: 0.03700817971
AC11: 7 | AD11: º | AE11: Japão | AF11: 37.3626756 | AG11: 0.02512828217
AC12: 8 | AD12: º | AE12: China | AF12: 35.3457935 | AG12: 0.02377182732
AC13: 9 | AD13: º | AE13: Rússia | AF13: 32.0295186 | AG13: 0.02154146534
AC14: 10 | AD14: º | AE14: Israel | AF14: 30.2246223 | AG14: 0.02032758162 | AH14: 0.7834971509
AE15: Outros | AF15: 321.9131997 | AG15: 0.2165028491
AE16: Total | AF16: 1486.877429 | AG16: 1
AC38: P | AE38: País | AF38: Média import quinquénio | AG38: % do total | AH38: % acumulada | AM38: P | AN38: Importações | AO38: 2009 | AP38: 2010 | AQ38: 2011 | AR38: 2012 | AS38: 2013 | AT38: 2014 | AU38: 2015 | AV38: 2016 | AW38: 2017 | AX38: 2018 | AY38: média período
AC39: 1 | AD39: º | AE39: Brasil | AF39: 347.2755745 | AG39: 0.2216955931 | AM39: 1º | AN39: Brasil | AO39: 306.295092 | AP39: 361.063752 | AQ39: 413.498023 | AR39: 424.754097 | AS39: 473.574245 | AT39: 262.797571 | AU39: 327.676138 | AV39: 227.417466 | AW39: 327.222502 | AX39: 348.456859 | AY39: 347.2755745
AC40: 2 | AD40: º | AE40: Estados Unidos | AF40: 178.4363968 | AG40: 0.1139111579 | AM40: 2º | AN40: Estados Unidos | AO40: 76.016388 | AP40: 125.16543 | AQ40: 226.580722 | AR40: 143.356484 | AS40: 208.21926 | AT40: 226.868002 | AU40: 174.275043 | AV40: 168.233305 | AW40: 140.251101 | AX40: 295.398233 | AY40: 178.4363968
AC41: 3 | AD41: º | AE41: Ucrânia | AF41: 173.0323777 | AG41: 0.110461312 | AH41: 0.446068063 | AM41: 3º | AN41: Ucrânia | AO41: 53.410502 | AP41: 86.410131 | AQ41: 147.814179 | AR41: 293.348573 | AS41: 187.877972 | AT41: 185.431872 | AU41: 225.738874 | AV41: 170.061094 | AW41: 193.127889 | AX41: 187.102691 | AY41: 173.0323777
AC42: 4 | AD42: º | AE42: Canadá | AF42: 77.9202683 | AG42: 0.0497431474 | AN42: Outros | AO42: 772.683727 | AP42: 772.200851 | AQ42: 1043.019075 | AR42: 781.972886 | AS42: 850.894387 | AT42: 739.428145 | AU42: 825.329903 | AV42: 951.938906 | AW42: 1012.79145 | AX42: 926.820309 | AY42: 867.7079639
AC43: 5 | AD43: º | AE43: Argentina | AF43: 66.7442489 | AG43: 0.04260854183 | AN43: Total | AO43: 1208.405709 | AP43: 1344.840164 | AQ43: 1830.911999 | AR43: 1643.43204 | AS43: 1720.565864 | AT43: 1414.52559 | AU43: 1553.019958 | AV43: 1517.650771 | AW43: 1673.392942 | AX43: 1757.778092 | AY43: 1566.452313
AC44: 6 | AD44: º | AE44: África do Sul | AF44: 54.1047485 | AG44: 0.03453967162
AC45: 7 | AD45: º | AE45: Paraguai | AF45: 49.7914253 | AG45: 0.03178610985
AC46: 8 | AD46: º | AE46: Costa Rica | AF46: 44.7398033 | AG46: 0.02856122905
AC47: 9 | AD47: º | AE47: China | AF47: 35.7421185 | AG47: 0.02281724008
AC48: 10 | AD48: º | AE48: Guiana | AF48: 28.7684759 | AG48: 0.01836536974 | AH48: 0.6744893726
AE49: Outros | AF49: 509.8968752 | AG49: 0.3255106274
AE50: Total | AF50: 1566.452313 | AG50: 1
A57: Fonte: GPP a partir de dados INE/Comércio Internacional (2017 provisórios; 2018 preliminares) | Y57: 2019-11-21T09:59:42.630

Sheet 4
A1: Evolução da balança comercial por país e por produto 2009-2018 em euros (NC 2 dígitos) Agroalimentar, Mar & Florestas
A2: =+aux!A55 -> Evolução da balança comercial Portugal-Angola
A4: Selecione o país:
A19: =+aux!A56 -> Evolução da balança comercial Portugal-Angola para Bebidas, líquidos alcoólicos e vinagres
M21: Selecione o produto:
A38: Fonte: GPP a partir de dados INE/Comércio Internacional (2017 provisórios; 2018 preliminares) | R38: 2019-11-21T09:59:42.630

Sheet 4A
A1: Evolução da balança comercial Portugal-Países Terceiros 2009-2018 por produto em euros (NC 2 dígitos)
A3: =+aux!A31 -> Evolução da balança comercial Portugal-Países Terceiros para Bebidas, líquidos alcoólicos e vinagres
A5: Selecione o produto:
U7: Para obter uma maior desagregação deste produto, clique no botão respetivo:
A20: =+aux!A43 -> Evolução da balança comercial Portugal-Países Terceiros para Sementes e frutos oleaginosos
A22: Selecione o produto:
A38: Fonte: GPP a partir de dados INE/Comércio Internacional (2017 provisórios; 2018 preliminares) | R38: 2019-11-21T09:59:42.630

Sheet 5.1
A1: Trocas comerciais Portugal-Países Terceiros (2009-2018) por país em milhares de euros | C1: Agroalimentar, Mar & Florestas
A2: Cód. País | B2: País | C2: Importações | O2: Exportações | AA2: Saldo período (exp-imp) | AB2: Evolução das importações | AC2: =+"Variação das Importações " & INDEX(C3:K3,1,aux!$BA$1) & "-"& L3 &"" -> Variação das Importações 2009-2018 | AG2: Evolução das exportações | AH2: ="Variação das Exportações " & INDEX(O3:W3,1,aux!BA1) & "-"& X3 &"" -> Variação das Exportações 2009-2018
C3: 2009 | D3: 2010 | E3: 2011 | F3: 2012 | G3: 2013 | H3: 2014 | I3: 2015 | J3: 2016 | K3: 2017 | L3: 2018 | M3: média período | N3: % Total | O3: 2009 | P3: 2010 | Q3: 2011 | R3: 2012 | S3: 2013 | T3: 2014 | U3: 2015 | V3: 2016 | W3: 2017 | X3: 2018 | Y3: média período | Z3: % Total | AC3: variação total em valor | AD3: % no total de variação | AE3: taxa de variação média anual | AF3: taxa de variação total | AH3: variação total em valor | AI3: % no total de variação | AJ3: taxa de variação média anual | AK3: taxa de variação total | CC3: filtro
A4: 0660 | B4: Afeganistão | C4: 0 | D4: 0 | E4: 0 | F4: 0 | G4: 0 | H4: 0 | I4: 15.895 | J4: 0 | K4: 385.134 | L4: 21.004 | M4: 42.2033 | N4: 1.831132484e-05 | O4: 6.722 | P4: 2.25 | Q4: 0.025 | R4: 0 | S4: 0 | T4: 0.03 | U4: 41.829 | V4: 79.696 | W4: 0.024 | X4: 0 | Y4: 13.0576 | Z4: 4.766905381e-06 | AA4: -29.1457 | AC4: =L4-INDEX($C4:$L4,1,aux!$BA$1) -> 21.004 | AD4: =AC4/$AC$252 -> 1.923657997e-05 | AE4: =+IF(INDEX($C4:$L4,1,aux!$BA$1)>0,(L4/INDEX($C4:$L4,1,aux!$BA$1))^(1/($L$3-INDEX($C$3:$L$3,1,aux!$BA$1)))-1,"n.d.") -> n.d. | AF4: =IF(INDEX($C4:$L4,1,aux!$BA$1)>0,(L4-INDEX($C4:$L4,1,aux!$BA$1))/INDEX($C4:$L4,1,aux!$BA$1),"n.d.") -> n.d. | AH4: =X4-INDEX($O4:$X4,1,aux!$BA$1) -> -6.722 | AI4: =AH4/$AH$252 -> -3.788191456e-06 | AJ4: =+IF(INDEX($O4:$X4,1,aux!$BA$1)>0,(X4/INDEX($O4:$X4,1,aux!$BA$1))^(1/($X$3-INDEX($O$3:$X$3,1,aux!$BA$1)))-1,"n.d.") -> -1 | AK4: =IF(INDEX($O4:$X4,1,aux!$BA$1)>0,(X4-INDEX($O4:$X4,1,aux!$BA$1))/INDEX($O4:$X4,1,aux!$BA$1),"n.d.") -> -1 | CC4: =+IF(ISNA(MATCH('5.1'!A4,AUX_2d_pais!$G$2:$G$40000,0)),0,1) -> 1
A5: 0388 | B5: África do Sul | C5: 30102.67 | D5: 57455.489 | E5: 55242.735 | F5: 55967.093 | G5: 59250.275 | H5: 70543.551 | I5: 82333.458 | J5: 92391.16 | K5: 128110.53 | L5: 154526.001 | M5: 78592.2962 | N5: 0.03409991792 | O5: 20510.277 | P5: 19363.921 | Q5: 22083.184 | R5: 22113.85 | S5: 48432.763 | T5: 33899.989 | U5: 28735.207 | V5: 25113.374 | W5: 37304.403 | X5: 32337.699 | Y5: 28989.4667 | Z5: 0.01058311212 | AA5: -49602.8295 | AC5: =L5-INDEX($C5:$L5,1,aux!$BA$1) -> 124423.331 | AD5: 0.113953502 | AE5: =+IF(INDEX($C5:$L5,1,aux!$BA$1)>0,(L5/INDEX($C5:$L5,1,aux!$BA$1))^(1/($L$3-INDEX($C$3:$L$3,1,aux!$BA$1)))-1,"n.d.") -> 0.1993141281 | AF5: =IF(INDEX($C5:$L5,1,aux!$BA$1)>0,(L5-INDEX($C5:$L5,1,aux!$BA$1))/INDEX($C5:$L5,1,aux!$BA$1),"n.d.") -> 4.13329884 | AH5: =X5-INDEX($O5:$X5,1,aux!$BA$1) -> 11827.422 | AI5: 0.006665358371 | AJ5: =+IF(INDEX($O5:$X5,1,aux!$BA$1)>0,(X5/INDEX($O5:$X5,1,aux!$BA$1))^(1/($X$3-INDEX($O$3:$X$3,1,aux!$BA$1)))-1,"n.d.") -> 0.0518912516 | AK5: =IF(INDEX($O5:$X5,1,aux!$BA$1)>0,(X5-INDEX($O5:$X5,1,aux!$BA$1))/INDEX($O5:$X5,1,aux!$BA$1),"n.d.") -> 0.576658326 | CC5: =+IF(ISNA(MATCH('5.1'!A5,AUX_2d_pais!$G$2:$G$40000,0)),0,1) -> 1
A6: 0070 | B6: Albânia | C6: 0 | D6: 0 | E6: 0 | F6: 4.072 | G6: 9.813 | H6: 0 | I6: 7.471 | J6: 0 | K6: 0.211 | L6: 87.981 | M6: 10.9548 | N6: 4.753109387e-06 | O6: 189.978 | P6: 610.847 | Q6: 333.661 | R6: 386.631 | S6: 853.687 | T6: 1197.757 | U6: 1755.258 | V6: 2258.285 | W6: 4489.109 | X6: 4756.841 | Y6: 1683.2054 | Z6: 0.0006144835865 | AA6: 1672.2506 | AC6: =L6-INDEX($C6:$L6,1,aux!$BA$1) -> 87.981 | AD6: 8.057767768e-05 | AE6: =+IF(INDEX($C6:$L6,1,aux!$BA$1)>0,(L6/INDEX($C6:$L6,1,aux!$BA$1))^(1/($L$3-INDEX($C$3:$L$3,1,aux!$BA$1)))-1,"n.d.") -> n.d. | AF6: =IF(INDEX($C6:$L6,1,aux!$BA$1)>0,(L6-INDEX($C6:$L6,1,aux!$BA$1))/INDEX($C6:$L6,1,aux!$BA$1),"n.d.") -> n.d. | AH6: =X6-INDEX($O6:$X6,1,aux!$BA$1) -> 4566.863 | AI6: 0.002573661321 | AJ6: =+IF(INDEX($O6:$X6,1,aux!$BA$1)>0,(X6/INDEX($O6:$X6,1,aux!$BA$1))^(1/($X$3-INDEX($O$3:$X$3,1,aux!$BA$1)))-1,"n.d.") -> 0.4302162319 | AK6: =IF(INDEX($O6:$X6,1,aux!$BA$1)>0,(X6-INDEX($O6:$X6,1,aux!$BA$1))/INDEX($O6:$X6,1,aux!$BA$1),"n.d.") -> 24.0389045 | CC6: =+IF(ISNA(MATCH('5.1'!A6,AUX_2d_pais!$G$2:$G$40000,0)),0,1) -> 1
A7: 0004 | B7: Alemanha | C7: 0 | D7: 0 | E7: 0 | F7: 0 | G7: 0 | H7: 0 | I7: 0 | J7: 0 | K7: 0 | L7: 0 | M7: 0 | N7: 0 | O7: 0 | P7: 0 | Q7: 0 | R7: 0 | S7: 0 | T7: 0 | U7: 0 | V7: 0 | W7: 0 | X7: 0 | Y7: 0 | Z7: 0 | AA7: 0 | AC7: =L7-INDEX($C7:$L7,1,aux!$BA$1) -> 0 | AD7: 0 | AE7: =+IF(INDEX($C7:$L7,1,aux!$BA$1)>0,(L7/INDEX($C7:$L7,1,aux!$BA$1))^(1/($L$3-INDEX($C$3:$L$3,1,aux!$BA$1)))-1,"n.d.") -> n.d. | AF7: =IF(INDEX($C7:$L7,1,aux!$BA$1)>0,(L7-INDEX($C7:$L7,1,aux!$BA$1))/INDEX($C7:$L7,1,aux!$BA$1),"n.d.") -> n.d. | AH7: =X7-INDEX($O7:$X7,1,aux!$BA$1) -> 0 | AI7: 0 | AJ7: =+IF(INDEX($O7:$X7,1,aux!$BA$1)>0,(X7/INDEX($O7:$X7,1,aux!$BA$1))^(1/($X$3-INDEX($O$3:$X$3,1,aux!$BA$1)))-1,"n.d.") -> n.d. | AK7: =IF(INDEX($O7:$X7,1,aux!$BA$1)>0,(X7-INDEX($O7:$X7,1,aux!$BA$1))/INDEX($O7:$X7,1,aux!$BA$1),"n.d.") -> n.d. | AM7: =SUM(A7:AA7) -> 0 | CC7: =+IF(ISNA(MATCH('5.1'!A7,AUX_2d_pais!$G$2:$G$40000,0)),0,1) -> 0
A8: 0043 | B8: Andorra | C8: 2.468 | D8: 4.745 | E8: 16.714 | F8: 8.506 | G8: 2.502 | H8: 8.845 | I8: 3.737 | J8: 0.352 | K8: 4.672 | L8: 6.077 | M8: 5.8618 | N8: 2.543339596e-06 | O8: 3772.85 | P8: 4611.007 | Q8: 4139.411 | R8: 4051.349 | S8: 3427.815 | T8: 3358.954 | U8: 2688.888 | V8: 3015.551 | W8: 3153.534 | X8: 3135.642 | Y8: 3535.5001 | Z8: 0.001290696181 | AA8: 3529.6383 | AC8: =L8-INDEX($C8:$L8,1,aux!$BA$1) -> 3.609 | AD8: 3.305314088e-06 | AE8: =+IF(INDEX($C8:$L8,1,aux!$BA$1)>0,(L8/INDEX($C8:$L8,1,aux!$BA$1))^(1/($L$3-INDEX($C$3:$L$3,1,aux!$BA$1)))-1,"n.d.") -> 0.105306377 | AF8: =IF(INDEX($C8:$L8,1,aux!$BA$1)>0,(L8-INDEX($C8:$L8,1,aux!$BA$1))/INDEX($C8:$L8,1,aux!$BA$1),"n.d.") -> 1.462317666 | AH8: =X8-INDEX($O8:$X8,1,aux!$BA$1) -> -637.208 | AI8: -0.0003590993605 | AJ8: =+IF(INDEX($O8:$X8,1,aux!$BA$1)>0,(X8/INDEX($O8:$X8,1,aux!$BA$1))^(1/($X$3-INDEX($O$3:$X$3,1,aux!$BA$1)))-1,"n.d.") -> -0.0203453761 | AK8: =IF(INDEX($O8:$X8,1,aux!$BA$1)>0,(X8-INDEX($O8:$X8,1,aux!$BA$1))/INDEX($O8:$X8,1,aux!$BA$1),"n.d.") -> -0.1688930119 | CC8: =+IF(ISNA(MATCH('5.1'!A8,AUX_2d_pais!$G$2:$G$40000,0)),0,1) -> 1
A9: 0330 | B9: Angola | C9: 782.305 | D9: 762.17 | E9: 3169.056 | F9: 1187.629 | G9: 1173.602 | H9: 1335.286 | I9: 7506.884 | J9: 9618.916 | K9: 12788.967 | L9: 9246.757 | M9: 4757.1572 | N9: 0.002064053067 | O9: 480237.803 | P9: 496066.013 | Q9: 694209.474 | R9: 770305.544 | S9: 836324.981 | T9: 873004.277 | U9: 619867.358 | V9: 512399.099 | W9: 551600.723 | X9: 456132.164 | Y9: 629014.7436 | Z9: 0.2296328396 | AA9: 624257.5864 | AC9: =L9-INDEX($C9:$L9,1,aux!$BA$1) -> 8464.452 | AD9: 0.00775219519 | AE9: =+IF(INDEX($C9:$L9,1,aux!$BA$1)>0,(L9/INDEX($C9:$L9,1,aux!$BA$1))^(1/($L$3-INDEX($C$3:$L$3,1,aux!$BA$1)))-1,"n.d.") -> 0.3157678179 | AF9: =IF(INDEX($C9:$L9,1,aux!$BA$1)>0,(L9-INDEX($C9:$L9,1,aux!$BA$1))/INDEX($C9:$L9,1,aux!$BA$1),"n.d.") -> 10.81988738 | AH9: =X9-INDEX($O9:$X9,1,aux!$BA$1) -> -24105.639 | AI9: -0.01358476283 | AJ9: =+IF(INDEX($O9:$X9,1,aux!$BA$1)>0,(X9/INDEX($O9:$X9,1,aux!$BA$1))^(1/($X$3-INDEX($O$3:$X$3,1,aux!$BA$1)))-1,"n.d.") -> -0.005705749282 | AK9: =IF(INDEX($O9:$X9,1,aux!$BA$1)>0,(X9-INDEX($O9:$X9,1,aux!$BA$1))/INDEX($O9:$X9,1,aux!$BA$1),"n.d.") -> -0.05019521339 | CC9: =+IF(ISNA(MATCH('5.1'!A9,AUX_2d_pais!$G$2:$G$40000,0)),0,1) -> 1
A10: 0446 | B10: Anguila | C10: 0 | D10: 0 | E10: 0 | F10: 0 | G10: 0 | H10: 0 | I10: 0 | J10: 0 | K10: 0 | L10: 0 | M10: 0 | N10: 0 | O10: 30.682 | P10: 0 | Q10: 0 | R10: 0 | S10: 12.412 | T10: 2 | U10: 0 | V10: 0 | W10: 0.013 | X10: 2.054 | Y10: 4.7161 | Z10: 1.721694834e-06 | AA10: 4.7161 | AC10: =L10-INDEX($C10:$L10,1,aux!$BA$1) -> 0 | AD10: 0 | AE10: =+IF(INDEX($C10:$L10,1,aux!$BA$1)>0,(L10/INDEX($C10:$L10,1,aux!$BA$1))^(1/($L$3-INDEX($C$3:$L$3,1,aux!$BA$1)))-1,"n.d.") -> n.d. | AF10: =IF(INDEX($C10:$L10,1,aux!$BA$1)>0,(L10-INDEX($C10:$L10,1,aux!$BA$1))/INDEX($C10:$L10,1,aux!$BA$1),"n.d.") -> n.d. | AH10: =X10-INDEX($O10:$X10,1,aux!$BA$1) -> -28.628 | AI10: -1.613334499e-05 | AJ10: =+IF(INDEX($O10:$X10,1,aux!$BA$1)>0,(X10/INDEX($O10:$X10,1,aux!$BA$1))^(1/($X$3-INDEX($O$3:$X$3,1,aux!$BA$1)))-1,"n.d.") -> -0.2595016657 | AK10: =IF(INDEX($O10:$X10,1,aux!$BA$1)>0,(X10-INDEX($O10:$X10,1,aux!$BA$1))/INDEX($O10:$X10,1,aux!$BA$1),"n.d.") -> -0.9330552115 | CC10: =+IF(ISNA(MATCH('5.1'!A10,AUX_2d_pais!$G$2:$G$40000,0)),0,1) -> 1
A11: 0891 | B11: Antárctica | C11: 0 | D11: 0 | E11: 0 | F11: 0 | G11: 0 | H11: 0 | I11: 0 | J11: 0 | K11: 0 | L11: 0 | M11: 0 | N11: 0 | O11: 0 | P11: 0 | Q11: 0.968 | R11: 0 | S11: 0 | T11: 0 | U11: 0 | V11: 0 | W11: 0 | X11: 0 | Y11: 0.0968 | Z11: 3.533853395e-08 | AA11: 0.0968 | AC11: =L11-INDEX($C11:$L11,1,aux!$BA$1) -> 0 | AD11: 0 | AE11: =+IF(INDEX($C11:$L11,1,aux!$BA$1)>0,(L11/INDEX($C11:$L11,1,aux!$BA$1))^(1/($L$3-INDEX($C$3:$L$3,1,aux!$BA$1)))-1,"n.d.") -> n.d. | AF11: =IF(INDEX($C11:$L11,1,aux!$BA$1)>0,(L11-INDEX($C11:$L11,1,aux!$BA$1))/INDEX($C11:$L11,1,aux!$BA$1),"n.d.") -> n.d. | AH11: =X11-INDEX($O11:$X11,1,aux!$BA$1) -> 0 | AI11: 0 | AJ11: =+IF(INDEX($O11:$X11,1,aux!$BA$1)>0,(X11/INDEX($O11:$X11,1,aux!$BA$1))^(1/($X$3-INDEX($O$3:$X$3,1,aux!$BA$1)))-1,"n.d.") -> n.d. | AK11: =IF(INDEX($O11:$X11,1,aux!$BA$1)>0,(X11-INDEX($O11:$X11,1,aux!$BA$1))/INDEX($O11:$X11,1,aux!$BA$1),"n.d.") -> n.d. | BO11: =SUM(C11:L11,O11:X11) -> 0.968 | CC11: =+IF(ISNA(MATCH('5.1'!A11,AUX_2d_pais!$G$2:$G$40000,0)),0,1) -> 1
A12: 0459 | B12: Antígua e Barbuda | C12: 0 | D12: 20.843 | E12: 15.412 | F12: 0 | G12: 0 | H12: 0 | I12: 0.728 | J12: 0 | K12: 0 | L12: 0 | M12: 3.6983 | N12: 1.604632165e-06 | O12: 236.499 | P12: 9.82 | Q12: 20.312 | R12: 56.233 | S12: 19.001 | T12: 20.386 | U12: 100.061 | V12: 72.599 | W12: 21.105 | X12: 296.211 | Y12: 85.2227 | Z12: 3.111203799e-05 | AA12: 81.5244 | AC12: =L12-INDEX($C12:$L12,1,aux!$BA$1) -> 0 | AD12: 0 | AE12: =+IF(INDEX($C12:$L12,1,aux!$BA$1)>0,(L12/INDEX($C12:$L12,1,aux!$BA$1))^(1/($L$3-INDEX($C$3:$L$3,1,aux!$BA$1)))-1,"n.d.") -> n.d. | AF12: =IF(INDEX($C12:$L12,1,aux!$BA$1)>0,(L12-INDEX($C12:$L12,1,aux!$BA$1))/INDEX($C12:$L12,1,aux!$BA$1),"n.d.") -> n.d. | AH12: =X12-INDEX($O12:$X12,1,aux!$BA$1) -> 59.712 | AI12: 3.365077183e-05 | AJ12: =+IF(INDEX($O12:$X12,1,aux!$BA$1)>0,(X12/INDEX($O12:$X12,1,aux!$BA$1))^(1/($X$3-INDEX($O$3:$X$3,1,aux!$BA$1)))-1,"n.d.") -> 0.02532970957 | AK12: =IF(INDEX($O12:$X12,1,aux!$BA$1)>0,(X12-INDEX($O12:$X12,1,aux!$BA$1))/INDEX($O12:$X12,1,aux!$BA$1),"n.d.") -> 0.2524830972 | CC12: =+IF(ISNA(MATCH('5.1'!A12,AUX_2d_pais!$G$2:$G$40000,0)),0,1) -> 1
A13: 0478 | B13: Antilhas Holandesas | C13: 0 | D13: 0 | E13: 0 | F13: 9.492 | G13: 0 | H13: 0 | I13: 0 | J13: 0 | K13: 0 | L13: 0 | M13: 0.9492 | N13: 4.11842428e-07 | O13: 611.524 | P13: 544.829 | Q13: 460.494 | R13: 406.111 | S13: 0 | T13: 0 | U13: 0 | V13: 0 | W13: 0 | X13: 0 | Y13: 202.2958 | Z13: 7.385162186e-05 | AA13: 201.3466 | AC13: =L13-INDEX($C13:$L13,1,aux!$BA$1) -> 0 | AD13: 0 | AE13: =+IF(INDEX($C13:$L13,1,aux!$BA$1)>0,(L13/INDEX($C13:$L13,1,aux!$BA$1))^(1/($L$3-INDEX($C$3:$L$3,1,aux!$BA$1)))-1,"n.d.") -> n.d. | AF13: =IF(INDEX($C13:$L13,1,aux!$BA$1)>0,(L13-INDEX($C13:$L13,1,aux!$BA$1))/INDEX($C13:$L13,1,aux!$BA$1),"n.d.") -> n.d. | AH13: =X13-INDEX($O13:$X13,1,aux!$BA$1) -> -611.524 | AI13: -0.0003446251104 | AJ13: =+IF(INDEX($O13:$X13,1,aux!$BA$1)>0,(X13/INDEX($O13:$X13,1,aux!$BA$1))^(1/($X$3-INDEX($O$3:$X$3,1,aux!$BA$1)))-1,"n.d.") -> -1 | AK13: =IF(INDEX($O13:$X13,1,aux!$BA$1)>0,(X13-INDEX($O13:$X13,1,aux!$BA$1))/INDEX($O13:$X13,1,aux!$BA$1),"n.d.") -> -1 | BO13: 2032.45 | CC13: =+IF(ISNA(MATCH('5.1'!A13,AUX_2d_pais!$G$2:$G$40000,0)),0,1) -> 1
A14: 0632 | B14: Arábia Saudita | C14: 6.542 | D14: 91.343 | E14: 168.605 | F14: 79.994 | G14: 80.135 | H14: 2675.57 | I14: 54.697 | J14: 173.804 | K14: 25.747 | L14: 14.768 | M14: 337.1205 | N14: 0.000146271097 | O14: 3012.124 | P14: 10986.968 | Q14: 31251.242 | R14: 21148.63 | S14: 20616.246 | T14: 16628.455 | U14: 27055.402 | V14: 23646.204 | W14: 43121.791 | X14: 33634.551 | Y14: 23110.1613 | Z14: 0.008436768799 | AA14: 22773.0408 | AC14: =L14-INDEX($C14:$L14,1,aux!$BA$1) -> 8.226 | AD14: 7.53380817e-06 | AE14: =+IF(INDEX($C14:$L14,1,aux!$BA$1)>0,(L14/INDEX($C14:$L14,1,aux!$BA$1))^(1/($L$3-INDEX($C$3:$L$3,1,aux!$BA$1)))-1,"n.d.") -> 0.0946874196 | AF14: =IF(INDEX($C14:$L14,1,aux!$BA$1)>0,(L14-INDEX($C14:$L14,1,aux!$BA$1))/INDEX($C14:$L14,1,aux!$BA$1),"n.d.") -> 1.257413635 | AH14: =X14-INDEX($O14:$X14,1,aux!$BA$1) -> 30622.427 | AI14: 0.0172573068 | AJ14: =+IF(INDEX($O14:$X14,1,aux!$BA$1)>0,(X14/INDEX($O14:$X14,1,aux!$BA$1))^(1/($X$3-INDEX($O$3:$X$3,1,aux!$BA$1)))-1,"n.d.") -> 0.3074790964 | AK14: =IF(INDEX($O14:$X14,1,aux!$BA$1)>0,(X14-INDEX($O14:$X14,1,aux!$BA$1))/INDEX($O14:$X14,1,aux!$BA$1),"n.d.") -> 10.1663899 | CC14: =+IF(ISNA(MATCH('5.1'!A14,AUX_2d_pais!$G$2:$G$40000,0)),0,1) -> 1
A15: 0208 | B15: Argélia | C15: 858.656 | D15: 2100.528 | E15: 4181.128 | F15: 2347.724 | G15: 1224.239 | H15: 806.704 | I15: 800.304 | J15: 666.534 | K15: 1278.34 | L15: 3691.177 | M15: 1795.5334 | N15: 0.0007790527128 | O15: 16997.242 | P15: 47939.781 | Q15: 48421.298 | R15: 50966.313 | S15: 52690.584 | T15: 64191.299 | U15: 70437.247 | V15: 66040.033 | W15: 74365.378 | X15: 73206.08 | Y15: 56525.5255 | Z15: 0.02063563225 | AA15: 54729.9921 | AC15: =L15-INDEX($C15:$L15,1,aux!$BA$1) -> 2832.521 | AD15: 0.002594173335 | AE15: =+IF(INDEX($C15:$L15,1,aux!$BA$1)>0,(L15/INDEX($C15:$L15,1,aux!$BA$1))^(1/($L$3-INDEX($C$3:$L$3,1,aux!$BA$1)))-1,"n.d.") -> 0.1759036549 | AF15: =IF(INDEX($C15:$L15,1,aux!$BA$1)>0,(L15-INDEX($C15:$L15,1,aux!$BA$1))/INDEX($C15:$L15,1,aux!$BA$1),"n.d.") -> 3.298784379 | AH15: =X15-INDEX($O15:$X15,1,aux!$BA$1) -> 56208.838 | AI15: 0.03167656053 | AJ15: =+IF(INDEX($O15:$X15,1,aux!$BA$1)>0,(X15/INDEX($O15:$X15,1,aux!$BA$1))^(1/($X$3-INDEX($O$3:$X$3,1,aux!$BA$1)))-1,"n.d.") -> 0.1761512873 | AK15: =IF(INDEX($O15:$X15,1,aux!$BA$1)>0,(X15-INDEX($O15:$X15,1,aux!$BA$1))/INDEX($O15:$X15,1,aux!$BA$1),"n.d.") -> 3.306938737 | CC15: =+IF(ISNA(MATCH('5.1'!A15,AUX_2d_pais!$G$2:$G$40000,0)),0,1) -> 1
A16: 0528 | B16: Argentina | C16: 102708.646 | D16: 79600.415 | E16: 134675.118 | F16: 80360.002 | G16: 57702.391 | H16: 44903.349 | I16: 39591.441 | J16: 97840.646 | K16: 92130.178 | L16: 62007.936 | M16: 79152.0122 | N16: 0.03434276958 | O16: 15616.725 | P16: 16525.998 | Q16: 18490.579 | R16: 18485.118 | S16: 20357.771 | T16: 19256.212 | U16: 24212.897 | V16: 19689.899 | W16: 21134.873 | X16: 12497.79 | Y16: 18626.7862 | Z16: 0.006800034262 | AA16: -60525.226 | AC16: =L16-INDEX($C16:$L16,1,aux!$BA$1) -> -40700.71 | AD16: -0.03727587424 | AE16: =+IF(INDEX($C16:$L16,1,aux!$BA$1)>0,(L16/INDEX($C16:$L16,1,aux!$BA$1))^(1/($L$3-INDEX($C$3:$L$3,1,aux!$BA$1)))-1,"n.d.") -> -0.05452746171 | AF16: =IF(INDEX($C16:$L16,1,aux!$BA$1)>0,(L16-INDEX($C16:$L16,1,aux!$BA$1))/INDEX($C16:$L16,1,aux!$BA$1),"n.d.") -> -0.3962734549 | AH16: =X16-INDEX($O16:$X16,1,aux!$BA$1) -> -3118.935 | AI16: -0.001757679697 | AJ16: =+IF(INDEX($O16:$X16,1,aux!$BA$1)>0,(X16/INDEX($O16:$X16,1,aux!$BA$1))^(1/($X$3-INDEX($O$3:$X$3,1,aux!$BA$1)))-1,"n.d.") -> -0.02445063372 | AK16: =IF(INDEX($O16:$X16,1,aux!$BA$1)>0,(X16-INDEX($O16:$X16,1,aux!$BA$1))/INDEX($O16:$X16,1,aux!$BA$1),"n.d.") -> -0.1997176104 | CC16: =+IF(ISNA(MATCH('5.1'!A16,AUX_2d_pais!$G$2:$G$40000,0)),0,1) -> 1
A17: 0077 | B17: Arménia | C17: 0 | D17: 0 | E17: 0 | F17: 0 | G17: 0 | H17: 0 | I17: 0 | J17: 0 | K17: 0 | L17: 0 | M17: 0 | N17: 0 | O17: 382.059 | P17: 1278.135 | Q17: 1812.527 | R17: 2279.612 | S17: 3150.044 | T17: 2985.247 | U17: 1940.695 | V17: 2090.229 | W17: 2636.337 | X17: 2738.626 | Y17: 2129.3511 | Z17: 0.0007773568816 | AA17: 2129.3511 | AC17: =L17-INDEX($C17:$L17,1,aux!$BA$1) -> 0 | AD17: 0 | AE17: =+IF(INDEX($C17:$L17,1,aux!$BA$1)>0,(L17/INDEX($C17:$L17,1,aux!$BA$1))^(1/($L$3-INDEX($C$3:$L$3,1,aux!$BA$1)))-1,"n.d.") -> n.d. | AF17: =IF(INDEX($C17:$L17,1,aux!$BA$1)>0,(L17-INDEX($C17:$L17,1,aux!$BA$1))/INDEX($C17:$L17,1,aux!$BA$1),"n.d.") -> n.d. | AH17: =X17-INDEX($O17:$X17,1,aux!$BA$1) -> 2356.567 | AI17: 0.001328046262 | AJ17: =+IF(INDEX($O17:$X17,1,aux!$BA$1)>0,(X17/INDEX($O17:$X17,1,aux!$BA$1))^(1/($X$3-INDEX($O$3:$X$3,1,aux!$BA$1)))-1,"n.d.") -> 0.2446427083 | AK17: =IF(INDEX($O17:$X17,1,aux!$BA$1)>0,(X17-INDEX($O17:$X17,1,aux!$BA$1))/INDEX($O17:$X17,1,aux!$BA$1),"n.d.") -> 6.1680709 | CC17: =+IF(ISNA(MATCH('5.1'!A17,AUX_2d_pais!$G$2:$G$40000,0)),0,1) -> 1
A18: 0474 | B18: Aruba | C18: 0 | D18: 0 | E18: 0 | F18: 0 | G18: 0 | H18: 0 | I18: 0 | J18: 0 | K18: 0 | L18: 0 | M18: 0 | N18: 0 | O18: 56.2 | P18: 81.148 | Q18: 54.458 | R18: 70.314 | S18: 73.131 | T18: 76.47 | U18: 78.324 | V18: 262.709 | W18: 127.221 | X18: 252.003 | Y18: 113.1978 | Z18: 4.132483779e-05 | AA18: 113.1978 | AC18: =L18-INDEX($C18:$L18,1,aux!$BA$1) -> 0 | AD18: 0 | AE18: =+IF(INDEX($C18:$L18,1,aux!$BA$1)>0,(L18/INDEX($C18:$L18,1,aux!$BA$1))^(1/($L$3-INDEX($C$3:$L$3,1,aux!$BA$1)))-1,"n.d.") -> n.d. | AF18: =IF(INDEX($C18:$L18,1,aux!$BA$1)>0,(L18-INDEX($C18:$L18,1,aux!$BA$1))/INDEX($C18:$L18,1,aux!$BA$1),"n.d.") -> n.d. | AH18: =X18-INDEX($O18:$X18,1,aux!$BA$1) -> 195.803 | AI18: 0.0001103450241 | AJ18: =+IF(INDEX($O18:$X18,1,aux!$BA$1)>0,(X18/INDEX($O18:$X18,1,aux!$BA$1))^(1/($X$3-INDEX($O$3:$X$3,1,aux!$BA$1)))-1,"n.d.") -> 0.1814292272 | AK18: =IF(INDEX($O18:$X18,1,aux!$BA$1)>0,(X18-INDEX($O18:$X18,1,aux!$BA$1))/INDEX($O18:$X18,1,aux!$BA$1),"n.d.") -> 3.484039146 | BO18: 1131.978 | CC18: =+IF(ISNA(MATCH('5.1'!A18,AUX_2d_pais!$G$2:$G$40000,0)),0,1) -> 1
A19: 0800 | B19: Austrália | C19: 2744.427 | D19: 1342.838 | E19: 6435.298 | F19: 4231.605 | G19: 5312.424 | H19: 7644.793 | I19: 30799.283 | J19: 5128.872 | K19: 29461.198 | L19: 16754.601 | M19: 10985.5339 | N19: 0.004766444326 | O19: 13330.372 | P19: 17805.223 | Q19: 26363.911 | R19: 21159.969 | S19: 19962.213 | T19: 20178.923 | U19: 25798.104 | V19: 27016.205 | W19: 37506.491 | X19: 36418.115 | Y19: 24553.9526 | Z19: 0.008963850078 | AA19: 13568.4187 | AC19: =L19-INDEX($C19:$L19,1,aux!$BA$1) -> 14010.174 | AD19: 0.01283126226 | AE19: =+IF(INDEX($C19:$L19,1,aux!$BA$1)>0,(L19/INDEX($C19:$L19,1,aux!$BA$1))^(1/($L$3-INDEX($C$3:$L$3,1,aux!$BA$1)))-1,"n.d.") -> 0.2226384377 | AF19: =IF(INDEX($C19:$L19,1,aux!$BA$1)>0,(L19-INDEX($C19:$L19,1,aux!$BA$1))/INDEX($C19:$L19,1,aux!$BA$1),"n.d.") -> 5.104954149 | AH19: =X19-INDEX($O19:$X19,1,aux!$BA$1) -> 23087.743 | AI19: 0.01301112627 | AJ19: =+IF(INDEX($O19:$X19,1,aux!$BA$1)>0,(X19/INDEX($O19:$X19,1,aux!$BA$1))^(1/($X$3-INDEX($O$3:$X$3,1,aux!$BA$1)))-1,"n.d.") -> 0.1181427283 | AK19: =IF(INDEX($O19:$X19,1,aux!$BA$1)>0,(X19-INDEX($O19:$X19,1,aux!$BA$1))/INDEX($O19:$X19,1,aux!$BA$1),"n.d.") -> 1.731965395 | CC19: =+IF(ISNA(MATCH('5.1'!A19,AUX_2d_pais!$G$2:$G$40000,0)),0,1) -> 1
A20: 0038 | B20: Áustria | C20: 0 | D20: 0 | E20: 0 | F20: 0 | G20: 0 | H20: 0 | I20: 0 | J20: 0 | K20: 0 | L20: 0 | M20: 0 | N20: 0 | O20: 0 | P20: 0 | Q20: 0 | R20: 0 | S20: 0 | T20: 0 | U20: 0 | V20: 0 | W20: 0 | X20: 0 | Y20: 0 | Z20: 0 | AA20: 0 | AC20: =L20-INDEX($C20:$L20,1,aux!$BA$1) -> 0 | AD20: 0 | AE20: =+IF(INDEX($C20:$L20,1,aux!$BA$1)>0,(L20/INDEX($C20:$L20,1,aux!$BA$1))^(1/($L$3-INDEX($C$3:$L$3,1,aux!$BA$1)))-1,"n.d.") -> n.d. | AF20: =IF(INDEX($C20:$L20,1,aux!$BA$1)>0,(L20-INDEX($C20:$L20,1,aux!$BA$1))/INDEX($C20:$L20,1,aux!$BA$1),"n.d.") -> n.d. | AH20: =X20-INDEX($O20:$X20,1,aux!$BA$1) -> 0 | AI20: 0 | AJ20: =+IF(INDEX($O20:$X20,1,aux!$BA$1)>0,(X20/INDEX($O20:$X20,1,aux!$BA$1))^(1/($X$3-INDEX($O$3:$X$3,1,aux!$BA$1)))-1,"n.d.") -> n.d. | AK20: =IF(INDEX($O20:$X20,1,aux!$BA$1)>0,(X20-INDEX($O20:$X20,1,aux!$BA$1))/INDEX($O20:$X20,1,aux!$BA$1),"n.d.") -> n.d. | AM20: 0 | CC20: =+IF(ISNA(MATCH('5.1'!A20,AUX_2d_pais!$G$2:$G$40000,0)),0,1) -> 0
A21: 0078 | B21: Azerbaijão | C21: 0 | D21: 0 | E21: 0 | F21: 0.023 | G21: 0 | H21: 0 | I21: 0 | J21: 0 | K21: 0 | L21: 5.351 | M21: 0.5374 | N21: 2.331691117e-07 | O21: 482.25 | P21: 295.352 | Q21: 831.543 | R21: 1371.208 | S21: 1152.888 | T21: 1760.536 | U21: 1027.756 | V21: 604.048 | W21: 736.649 | X21: 1417.937 | Y21: 968.0167 | Z21: 0.0003533914361 | AA21: 967.4793 | AC21: =L21-INDEX($C21:$L21,1,aux!$BA$1) -> 5.351 | AD21: 4.900730309e-06 | AE21: =+IF(INDEX($C21:$L21,1,aux!$BA$1)>0,(L21/INDEX($C21:$L21,1,aux!$BA$1))^(1/($L$3-INDEX($C$3:$L$3,1,aux!$BA$1)))-1,"n.d.") -> n.d. | AF21: =IF(INDEX($C21:$L21,1,aux!$BA$1)>0,(L21-INDEX($C21:$L21,1,aux!$BA$1))/INDEX($C21:$L21,1,aux!$BA$1),"n.d.") -> n.d. | AH21: =X21-INDEX($O21:$X21,1,aux!$BA$1) -> 935.687 | AI21: 0.000527307572 | AJ21: =+IF(INDEX($O21:$X21,1,aux!$BA$1)>0,(X21/INDEX($O21:$X21,1,aux!$BA$1))^(1/($X$3-INDEX($O$3:$X$3,1,aux!$BA$1)))-1,"n.d.") -> 0.1273084032 | AK21: =IF(INDEX($O21:$X21,1,aux!$BA$1)>0,(X21-INDEX($O21:$X21,1,aux!$BA$1))/INDEX($O21:$X21,1,aux!$BA$1),"n.d.") -> 1.940252981 | CC21: =+IF(ISNA(MATCH('5.1'!A21,AUX_2d_pais!$G$2:$G$40000,0)),0,1) -> 1
A22: 0453 | B22: Bahamas | C22: 0 | D22: 0 | E22: 0 | F22: 0 | G22: 0 | H22: 0 | I22: 0.299 | J22: 0.005 | K22: 0 | L22: 0 | M22: 0.0304 | N22: 1.319006512e-08 | O22: 0 | P22: 3.935 | Q22: 51.382 | R22: 47.803 | S22: 75.215 | T22: 103.856 | U22: 230.663 | V22: 75.183 | W22: 72.878 | X22: 136.89 | Y22: 79.7805 | Z22: 2.912526764e-05 | AA22: 79.7501 | AC22: =L22-INDEX($C22:$L22,1,aux!$BA$1) -> 0 | AD22: 0 | AE22: =+IF(INDEX($C22:$L22,1,aux!$BA$1)>0,(L22/INDEX($C22:$L22,1,aux!$BA$1))^(1/($L$3-INDEX($C$3:$L$3,1,aux!$BA$1)))-1,"n.d.") -> n.d. | AF22: =IF(INDEX($C22:$L22,1,aux!$BA$1)>0,(L22-INDEX($C22:$L22,1,aux!$BA$1))/INDEX($C22:$L22,1,aux!$BA$1),"n.d.") -> n.d. | AH22: =X22-INDEX($O22:$X22,1,aux!$BA$1) -> 136.89 | AI22: 7.714452967e-05 | AJ22: =+IF(INDEX($O22:$X22,1,aux!$BA$1)>0,(X22/INDEX($O22:$X22,1,aux!$BA$1))^(1/($X$3-INDEX($O$3:$X$3,1,aux!$BA$1)))-1,"n.d.") -> n.d. | AK22: =IF(INDEX($O22:$X22,1,aux!$BA$1)>0,(X22-INDEX($O22:$X22,1,aux!$BA$1))/INDEX($O22:$X22,1,aux!$BA$1),"n.d.") -> n.d. | BO22: 798.109 | CC22: =+IF(ISNA(MATCH('5.1'!A22,AUX_2d_pais!$G$2:$G$40000,0)),0,1) -> 1
A23: 0666 | B23: Bangladesh | C23: 3140.349 | D23: 6993.729 | E23: 6187.062 | F23: 8823.126 | G23: 6650.219 | H23: 7819.628 | I23: 4270.629 | J23: 5128.022 | K23: 8117.274 | L23: 7021.888 | M23: 6415.1926 | N23: 0.002783447636 | O23: 371.285 | P23: 538.755 | Q23: 2237.217 | R23: 174.925 | S23: 180.055 | T23: 330.369 | U23: 165.124 | V23: 201.541 | W23: 516.286 | X23: 382.391 | Y23: 509.7948 | Z23: 0.0001861095129 | AA23: -5905.3978 | AC23: =L23-INDEX($C23:$L23,1,aux!$BA$1) -> 3881.539 | AD23: 0.003554919795 | AE23: =+IF(INDEX($C23:$L23,1,aux!$BA$1)>0,(L23/INDEX($C23:$L23,1,aux!$BA$1))^(1/($L$3-INDEX($C$3:$L$3,1,aux!$BA$1)))-1,"n.d.") -> 0.09352990609 | AF23: =IF(INDEX($C23:$L23,1,aux!$BA$1)>0,(L23-INDEX($C23:$L23,1,aux!$BA$1))/INDEX($C23:$L23,1,aux!$BA$1),"n.d.") -> 1.236021538 | AH23: =X23-INDEX($O23:$X23,1,aux!$BA$1) -> 11.106 | AI23: 6.258800106e-06 | AJ23: =+IF(INDEX($O23:$X23,1,aux!$BA$1)>0,(X23/INDEX($O23:$X23,1,aux!$BA$1))^(1/($X$3-INDEX($O$3:$X$3,1,aux!$BA$1)))-1,"n.d.") -> 0.003280221922 | AK23: =IF(INDEX($O23:$X23,1,aux!$BA$1)>0,(X23-INDEX($O23:$X23,1,aux!$BA$1))/INDEX($O23:$X23,1,aux!$BA$1),"n.d.") -> 0.0299123315 | CC23: =+IF(ISNA(MATCH('5.1'!A23,AUX_2d_pais!$G$2:$G$40000,0)),0,1) -> 1
A24: 0469 | B24: Barbados | C24: 0 | D24: 0 | E24: 3795.134 | F24: 0 | G24: 0 | H24: 2489.02 | I24: 0 | J24: 36.689 | K24: 1.348 | L24: 0 | M24: 632.2191 | N24: 0.0002743095756 | O24: 87.825 | P24: 179.623 | Q24: 218.423 | R24: 310.611 | S24: 197.61 | T24: 92.474 | U24: 254.899 | V24: 255.542 | W24: 417.118 | X24: 590.762 | Y24: 260.4887 | Z24: 9.509595836e-05 | AA24: -371.7304 | AC24: =L24-INDEX($C24:$L24,1,aux!$BA$1) -> 0 | AD24: 0 | AE24: =+IF(INDEX($C24:$L24,1,aux!$BA$1)>0,(L24/INDEX($C24:$L24,1,aux!$BA$1))^(1/($L$3-INDEX($C$3:$L$3,1,aux!$BA$1)))-1,"n.d.") -> n.d. | AF24: =IF(INDEX($C24:$L24,1,aux!$BA$1)>0,(L24-INDEX($C24:$L24,1,aux!$BA$1))/INDEX($C24:$L24,1,aux!$BA$1),"n.d.") -> n.d. | AH24: =X24-INDEX($O24:$X24,1,aux!$BA$1) -> 502.937 | AI24: 0.0002834307716 | AJ24: =+IF(INDEX($O24:$X24,1,aux!$BA$1)>0,(X24/INDEX($O24:$X24,1,aux!$BA$1))^(1/($X$3-INDEX($O$3:$X$3,1,aux!$BA$1)))-1,"n.d.") -> 0.2358824207 | AK24: =IF(INDEX($O24:$X24,1,aux!$BA$1)>0,(X24-INDEX($O24:$X24,1,aux!$BA$1))/INDEX($O24:$X24,1,aux!$BA$1),"n.d.") -> 5.72658127 | BO24: 8927.078 | CC24: =+IF(ISNA(MATCH('5.1'!A24,AUX_2d_pais!$G$2:$G$40000,0)),0,1) -> 1
A25: 0640 | B25: Barém | C25: 0 | D25: 0 | E25: 0 | F25: 0.431 | G25: 0 | H25: 0 | I25: 0 | J25: 0 | K25: 0.438 | L25: 0.342 | M25: 0.1211 | N25: 5.254331861e-08 | O25: 202.243 | P25: 264.421 | Q25: 675.265 | R25: 315.646 | S25: 260.907 | T25: 318.122 | U25: 447.168 | V25: 510.212 | W25: 1124.626 | X25: 769.988 | Y25: 488.8598 | Z25: 0.0001784668248 | AA25: 488.7387 | AC25: =L25-INDEX($C25:$L25,1,aux!$BA$1) -> 0.342 | AD25: 3.132217839e-07 | AE25: =+IF(INDEX($C25:$L25,1,aux!$BA$1)>0,(L25/INDEX($C25:$L25,1,aux!$BA$1))^(1/($L$3-INDEX($C$3:$L$3,1,aux!$BA$1)))-1,"n.d.") -> n.d. | AF25: =IF(INDEX($C25:$L25,1,aux!$BA$1)>0,(L25-INDEX($C25:$L25,1,aux!$BA$1))/INDEX($C25:$L25,1,aux!$BA$1),"n.d.") -> n.d. | AH25: =X25-INDEX($O25:$X25,1,aux!$BA$1) -> 567.745 | AI25: 0.0003199534005 | AJ25: =+IF(INDEX($O25:$X25,1,aux!$BA$1)>0,(X25/INDEX($O25:$X25,1,aux!$BA$1))^(1/($X$3-INDEX($O$3:$X$3,1,aux!$BA$1)))-1,"n.d.") -> 0.1601450013 | AK25: =IF(INDEX($O25:$X25,1,aux!$BA$1)>0,(X25-INDEX($O25:$X25,1,aux!$BA$1))/INDEX($O25:$X25,1,aux!$BA$1),"n.d.") -> 2.807241783 | CC25: =+IF(ISNA(MATCH('5.1'!A25,AUX_2d_pais!$G$2:$G$40000,0)),0,1) -> 1
A26: 0073 | B26: Belarus | C26: 16.632 | D26: 0.495 | E26: 16.799 | F26: 0.262 | G26: 9.586 | H26: 0 | I26: 0 | J26: 18.707 | K26: 485.343 | L26: 896.686 | M26: 144.451 | N26: 6.267493738e-05 | O26: 628.373 | P26: 1126.181 | Q26: 1475.006 | R26: 2011.118 | S26: 3317.67 | T26: 4152.532 | U26: 5478.779 | V26: 4362.988 | W26: 5288.625 | X26: 5518.251 | Y26: 3335.9523 | Z26: 0.001217847765 | AA26: 3191.5013 | AC26: =L26-INDEX($C26:$L26,1,aux!$BA$1) -> 880.054 | AD26: 0.000806000245 | AE26: =+IF(INDEX($C26:$L26,1,aux!$BA$1)>0,(L26/INDEX($C26:$L26,1,aux!$BA$1))^(1/($L$3-INDEX($C$3:$L$3,1,aux!$BA$1)))-1,"n.d.") -> 0.557437606 | AF26: =IF(INDEX($C26:$L26,1,aux!$BA$1)>0,(L26-INDEX($C26:$L26,1,aux!$BA$1))/INDEX($C26:$L26,1,aux!$BA$1),"n.d.") -> 52.91329966 | AH26: =X26-INDEX($O26:$X26,1,aux!$BA$1) -> 4889.878 | AI26: 0.002755696826 | AJ26: =+IF(INDEX($O26:$X26,1,aux!$BA$1)>0,(X26/INDEX($O26:$X26,1,aux!$BA$1))^(1/($X$3-INDEX($O$3:$X$3,1,aux!$BA$1)))-1,"n.d.") -> 0.273041787 | AK26: =IF(INDEX($O26:$X26,1,aux!$BA$1)>0,(X26-INDEX($O26:$X26,1,aux!$BA$1))/INDEX($O26:$X26,1,aux!$BA$1),"n.d.") -> 7.781807939 | CC26: =+IF(ISNA(MATCH('5.1'!A26,AUX_2d_pais!$G$2:$G$40000,0)),0,1) -> 1
A27: 0017 | B27: Bélgica | C27: 0 | D27: 0 | E27: 0 | F27: 0 | G27: 0 | H27: 0 | I27: 0 | J27: 0 | K27: 0 | L27: 0 | M27: 0 | N27: 0 | O27: 0 | P27: 0 | Q27: 0 | R27: 0 | S27: 0 | T27: 0 | U27: 0 | V27: 0 | W27: 0 | X27: 0 | Y27: 0 | Z27: 0 | AA27: 0 | AC27: =L27-INDEX($C27:$L27,1,aux!$BA$1) -> 0 | AD27: 0 | AE27: =+IF(INDEX($C27:$L27,1,aux!$BA$1)>0,(L27/INDEX($C27:$L27,1,aux!$BA$1))^(1/($L$3-INDEX($C$3:$L$3,1,aux!$BA$1)))-1,"n.d.") -> n.d. | AF27: =IF(INDEX($C27:$L27,1,aux!$BA$1)>0,(L27-INDEX($C27:$L27,1,aux!$BA$1))/INDEX($C27:$L27,1,aux!$BA$1),"n.d.") -> n.d. | AH27: =X27-INDEX($O27:$X27,1,aux!$BA$1) -> 0 | AI27: 0 | AJ27: =+IF(INDEX($O27:$X27,1,aux!$BA$1)>0,(X27/INDEX($O27:$X27,1,aux!$BA$1))^(1/($X$3-INDEX($O$3:$X$3,1,aux!$BA$1)))-1,"n.d.") -> n.d. | AK27: =IF(INDEX($O27:$X27,1,aux!$BA$1)>0,(X27-INDEX($O27:$X27,1,aux!$BA$1))/INDEX($O27:$X27,1,aux!$BA$1),"n.d.") -> n.d. | AM27: 0 | CC27: =+IF(ISNA(MATCH('5.1'!A27,AUX_2d_pais!$G$2:$G$40000,0)),0,1) -> 0
A28: 0421 | B28: Belize | C28: 437.434 | D28: 382.555 | E28: 309.307 | F28: 10748.77 | G28: 9089.849 | H28: 445.45 | I28: 488.859 | J28: 1080.5 | K28: 12846.208 | L28: 3126.349 | M28: 3895.5281 | N28: 0.001690206227 | O28: 0 | P28: 5.959 | Q28: 13.692 | R28: 7.715 | S28: 6.217 | T28: 7.903 | U28: 2.927 | V28: 2.935 | W28: 2.763 | X28: 4.182 | Y28: 5.4293 | Z28: 1.982060975e-06 | AA28: -3890.0988 | AC28: =L28-INDEX($C28:$L28,1,aux!$BA$1) -> 2688.915 | AD28: 0.002462651325 | AE28: =+IF(INDEX($C28:$L28,1,aux!$BA$1)>0,(L28/INDEX($C28:$L28,1,aux!$BA$1))^(1/($L$3-INDEX($C$3:$L$3,1,aux!$BA$1)))-1,"n.d.") -> 0.2442360179 | AF28: =IF(INDEX($C28:$L28,1,aux!$BA$1)>0,(L28-INDEX($C28:$L28,1,aux!$BA$1))/INDEX($C28:$L28,1,aux!$BA$1),"n.d.") -> 6.14701875 | AH28: =X28-INDEX($O28:$X28,1,aux!$BA$1) -> 4.182 | AI28: 2.356771299e-06 | AJ28: =+IF(INDEX($O28:$X28,1,aux!$BA$1)>0,(X28/INDEX($O28:$X28,1,aux!$BA$1))^(1/($X$3-INDEX($O$3:$X$3,1,aux!$BA$1)))-1,"n.d.") -> n.d. | AK28: =IF(INDEX($O28:$X28,1,aux!$BA$1)>0,(X28-INDEX($O28:$X28,1,aux!$BA$1))/INDEX($O28:$X28,1,aux!$BA$1),"n.d.") -> n.d. | CC28: =+IF(ISNA(MATCH('5.1'!A28,AUX_2d_pais!$G$2:$G$40000,0)),0,1) -> 1
A29: 0284 | B29: Benim | C29: 10394.211 | D29: 7623.169 | E29: 2911.167 | F29: 7334.942 | G29: 2539.356 | H29: 3473.422 | I29: 3282.67 | J29: 1303.332 | K29: 1150.272 | L29: 883.122 | M29: 4089.5663 | N29: 0.001774396244 | O29: 368.023 | P29: 330.105 | Q29: 863.096 | R29: 1709.664 | S29: 2180.064 | T29: 1508.149 | U29: 2084.547 | V29: 2026.752 | W29: 1575.799 | X29: 575.281 | Y29: 1322.148 | Z29: 0.0004826732643 | AA29: -2767.4183 | AC29: =L29-INDEX($C29:$L29,1,aux!$BA$1) -> -9511.089 | AD29: -0.008710761004 | AE29: =+IF(INDEX($C29:$L29,1,aux!$BA$1)>0,(L29/INDEX($C29:$L29,1,aux!$BA$1))^(1/($L$3-INDEX($C$3:$L$3,1,aux!$BA$1)))-1,"n.d.") -> -0.2396291417 | AF29: =IF(INDEX($C29:$L29,1,aux!$BA$1)>0,(L29-INDEX($C29:$L29,1,aux!$BA$1))/INDEX($C29:$L29,1,aux!$BA$1),"n.d.") -> -0.9150371298 | AH29: =X29-INDEX($O29:$X29,1,aux!$BA$1) -> 207.258 | AI29: 0.0001168005035 | AJ29: =+IF(INDEX($O29:$X29,1,aux!$BA$1)>0,(X29/INDEX($O29:$X29,1,aux!$BA$1))^(1/($X$3-INDEX($O$3:$X$3,1,aux!$BA$1)))-1,"n.d.") -> 0.05088724003 | AK29: =IF(INDEX($O29:$X29,1,aux!$BA$1)>0,(X29-INDEX($O29:$X29,1,aux!$BA$1))/INDEX($O29:$X29,1,aux!$BA$1),"n.d.") -> 0.5631658891 | CC29: =+IF(ISNA(MATCH('5.1'!A29,AUX_2d_pais!$G$2:$G$40000,0)),0,1) -> 1
A30: 0413 | B30: Bermudas | C30: 0.346 | D30: 0 | E30: 0 | F30: 0 | G30: 0 | H30: 0 | I30: 0 | J30: 0 | K30: 0 | L30: 0 | M30: 0.0346 | N30: 1.501237675e-08 | O30: 509.829 | P30: 448.578 | Q30: 1789.534 | R30: 435.714 | S30: 439.795 | T30: 261.858 | U30: 524.601 | V30: 588.996 | W30: 644.27 | X30: 780.283 | Y30: 642.3458 | Z30: 0.000234499575 | AA30: 642.3112 | AC30: =L30-INDEX($C30:$L30,1,aux!$BA$1) -> -0.346 | AD30: -3.168851966e-07 | AE30: =+IF(INDEX($C30:$L30,1,aux!$BA$1)>0,(L30/INDEX($C30:$L30,1,aux!$BA$1))^(1/($L$3-INDEX($C$3:$L$3,1,aux!$BA$1)))-1,"n.d.") -> -1 | AF30: =IF(INDEX($C30:$L30,1,aux!$BA$1)>0,(L30-INDEX($C30:$L30,1,aux!$BA$1))/INDEX($C30:$L30,1,aux!$BA$1),"n.d.") -> -1 | AH30: =X30-INDEX($O30:$X30,1,aux!$BA$1) -> 270.454 | AI30: 0.0001524146879 | AJ30: =+IF(INDEX($O30:$X30,1,aux!$BA$1)>0,(X30/INDEX($O30:$X30,1,aux!$BA$1))^(1/($X$3-INDEX($O$3:$X$3,1,aux!$BA$1)))-1,"n.d.") -> 0.04842266512 | AK30: =IF(INDEX($O30:$X30,1,aux!$BA$1)>0,(X30-INDEX($O30:$X30,1,aux!$BA$1))/INDEX($O30:$X30,1,aux!$BA$1),"n.d.") -> 0.5304798276 | CC30: =+IF(ISNA(MATCH('5.1'!A30,AUX_2d_pais!$G$2:$G$40000,0)),0,1) -> 1
A31: 0516 | B31: Bolívia | C31: 552.431 | D31: 1481.171 | E31: 1030.298 | F31: 759.065 | G31: 10101.212 | H31: 245.271 | I31: 789.13 | J31: 908.047 | K31: 373.935 | L31: 759.726 | M31: 1700.0286 | N31: 0.0007376147348 | O31: 394.369 | P31: 551.525 | Q31: 904.476 | R31: 788.047 | S31: 728.006 | T31: 889.02 | U31: 661.86 | V31: 1120.132 | W31: 1704.109 | X31: 1951.593 | Y31: 969.3137 | Z31: 0.0003538649287 | AA31: -730.7149 | AC31: =L31-INDEX($C31:$L31,1,aux!$BA$1) -> 207.295 | AD31: 0.0001898517827 | AE31: =+IF(INDEX($C31:$L31,1,aux!$BA$1)>0,(L31/INDEX($C31:$L31,1,aux!$BA$1))^(1/($L$3-INDEX($C$3:$L$3,1,aux!$BA$1)))-1,"n.d.") -> 0.03603741279 | AF31: =IF(INDEX($C31:$L31,1,aux!$BA$1)>0,(L31-INDEX($C31:$L31,1,aux!$BA$1))/INDEX($C31:$L31,1,aux!$BA$1),"n.d.") -> 0.3752414329 | AH31: =X31-INDEX($O31:$X31,1,aux!$BA$1) -> 1557.224 | AI31: 0.000877575521 | AJ31: =+IF(INDEX($O31:$X31,1,aux!$BA$1)>0,(X31/INDEX($O31:$X31,1,aux!$BA$1))^(1/($X$3-INDEX($O$3:$X$3,1,aux!$BA$1)))-1,"n.d.") -> 0.1944422715 | AK31: =IF(INDEX($O31:$X31,1,aux!$BA$1)>0,(X31-INDEX($O31:$X31,1,aux!$BA$1))/INDEX($O31:$X31,1,aux!$BA$1),"n.d.") -> 3.948647079 | CC31: =+IF(ISNA(MATCH('5.1'!A31,AUX_2d_pais!$G$2:$G$40000,0)),0,1) -> 1
A32: 0477 | B32: Bonaire, Santo Eustáquio e Saba | C32: 0 | D32: 0 | E32: 0 | F32: 0 | G32: 0 | H32: 0 | I32: 0 | J32: 0 | K32: 0 | L32: 0 | M32: 0 | N32: 0 | O32: 0 | P32: 0 | Q32: 0 | R32: 0 | S32: 56.784 | T32: 39.65 | U32: 250.632 | V32: 157.886 | W32: 55.39 | X32: 78.798 | Y32: 63.914 | Z32: 2.333292416e-05 | AA32: 63.914 | AC32: =L32-INDEX($C32:$L32,1,aux!$BA$1) -> 0 | AD32: 0 | AE32: =+IF(INDEX($C32:$L32,1,aux!$BA$1)>0,(L32/INDEX($C32:$L32,1,aux!$BA$1))^(1/($L$3-INDEX($C$3:$L$3,1,aux!$BA$1)))-1,"n.d.") -> n.d. | AF32: =IF(INDEX($C32:$L32,1,aux!$BA$1)>0,(L32-INDEX($C32:$L32,1,aux!$BA$1))/INDEX($C32:$L32,1,aux!$BA$1),"n.d.") -> n.d. | AH32: =X32-INDEX($O32:$X32,1,aux!$BA$1) -> 78.798 | AI32: 4.440671086e-05 | AJ32: =+IF(INDEX($O32:$X32,1,aux!$BA$1)>0,(X32/INDEX($O32:$X32,1,aux!$BA$1))^(1/($X$3-INDEX($O$3:$X$3,1,aux!$BA$1)))-1,"n.d.") -> n.d. | AK32: =IF(INDEX($O32:$X32,1,aux!$BA$1)>0,(X32-INDEX($O32:$X32,1,aux!$BA$1))/INDEX($O32:$X32,1,aux!$BA$1),"n.d.") -> n.d. | BO32: 639.14 | CC32: =+IF(ISNA(MATCH('5.1'!A32,AUX_2d_pais!$G$2:$G$40000,0)),0,1) -> 1
A33: 0093 | B33: Bósnia-Herzegovina | C33: 0 | D33: 0 | E33: 86.649 | F33: 213.392 | G33: 74.897 | H33: 107.068 | I33: 54.684 | J33: 157.655 | K33: 127.464 | L33: 89.271 | M33: 91.108 | N33: 3.953027805e-05 | O33: 72.062 | P33: 66.089 | Q33: 221.894 | R33: 257.864 | S33: 159.259 | T33: 103.252 | U33: 195.411 | V33: 415.654 | W33: 428.611 | X33: 558.847 | Y33: 247.8943 | Z33: 9.049815224e-05 | AA33: 156.7863 | AC33: =L33-INDEX($C33:$L33,1,aux!$BA$1) -> 89.271 | AD33: 8.175912827e-05 | AE33: =+IF(INDEX($C33:$L33,1,aux!$BA$1)>0,(L33/INDEX($C33:$L33,1,aux!$BA$1))^(1/($L$3-INDEX($C$3:$L$3,1,aux!$BA$1)))-1,"n.d.") -> n.d. | AF33: =IF(INDEX($C33:$L33,1,aux!$BA$1)>0,(L33-INDEX($C33:$L33,1,aux!$BA$1))/INDEX($C33:$L33,1,aux!$BA$1),"n.d.") -> n.d. | AH33: =X33-INDEX($O33:$X33,1,aux!$BA$1) -> 486.785 | AI33: 0.0002743282919 | AJ33: =+IF(INDEX($O33:$X33,1,aux!$BA$1)>0,(X33/INDEX($O33:$X33,1,aux!$BA$1))^(1/($X$3-INDEX($O$3:$X$3,1,aux!$BA$1)))-1,"n.d.") -> 0.2555758591 | AK33: =IF(INDEX($O33:$X33,1,aux!$BA$1)>0,(X33-INDEX($O33:$X33,1,aux!$BA$1))/INDEX($O33:$X33,1,aux!$BA$1),"n.d.") -> 6.755085898 | CC33: =+IF(ISNA(MATCH('5.1'!A33,AUX_2d_pais!$G$2:$G$40000,0)),0,1) -> 1
A34: 0391 | B34: Botswana | C34: 7.109 | D34: 5.731 | E34: 0.129 | F34: 0 | G34: 0 | H34: 0 | I34: 0 | J34: 0 | K34: 0 | L34: 0 | M34: 1.2969 | N34: 5.627037978e-07 | O34: 7.826 | P34: 39.112 | Q34: 0.713 | R34: 0 | S34: 0.598 | T34: 0 | U34: 0.075 | V34: 41.179 | W34: 11.75 | X34: 22.405 | Y34: 12.3658 | Z34: 4.514351685e-06 | AA34: 11.0689 | AC34: =L34-INDEX($C34:$L34,1,aux!$BA$1) -> -7.109 | AD34: -6.51080018e-06 | AE34: =+IF(INDEX($C34:$L34,1,aux!$BA$1)>0,(L34/INDEX($C34:$L34,1,aux!$BA$1))^(1/($L$3-INDEX($C$3:$L$3,1,aux!$BA$1)))-1,"n.d.") -> -1 | AF34: =IF(INDEX($C34:$L34,1,aux!$BA$1)>0,(L34-INDEX($C34:$L34,1,aux!$BA$1))/INDEX($C34:$L34,1,aux!$BA$1),"n.d.") -> -1 | AH34: =X34-INDEX($O34:$X34,1,aux!$BA$1) -> 14.579 | AI34: 8.216013574e-06 | AJ34: =+IF(INDEX($O34:$X34,1,aux!$BA$1)>0,(X34/INDEX($O34:$X34,1,aux!$BA$1))^(1/($X$3-INDEX($O$3:$X$3,1,aux!$BA$1)))-1,"n.d.") -> 0.1239736314 | AK34: =IF(INDEX($O34:$X34,1,aux!$BA$1)>0,(X34-INDEX($O34:$X34,1,aux!$BA$1))/INDEX($O34:$X34,1,aux!$BA$1),"n.d.") -> 1.862892921 | CC34: =+IF(ISNA(MATCH('5.1'!A34,AUX_2d_pais!$G$2:$G$40000,0)),0,1) -> 1
A35: 0892 | B35: Bouvet, Ilha | C35: 0 | D35: 0 | E35: 0 | F35: 0 | G35: 0 | H35: 0 | I35: 0 | J35: 0 | K35: 0 | L35: 0 | M35: 0 | N35: 0 | O35: 0 | P35: 0 | Q35: 0 | R35: 0 | S35: 0 | T35: 0 | U35: 0 | V35: 0 | W35: 0 | X35: 0 | Y35: 0 | Z35: 0 | AA35: 0 | AC35: =L35-INDEX($C35:$L35,1,aux!$BA$1) -> 0 | AD35: 0 | AE35: =+IF(INDEX($C35:$L35,1,aux!$BA$1)>0,(L35/INDEX($C35:$L35,1,aux!$BA$1))^(1/($L$3-INDEX($C$3:$L$3,1,aux!$BA$1)))-1,"n.d.") -> n.d. | AF35: =IF(INDEX($C35:$L35,1,aux!$BA$1)>0,(L35-INDEX($C35:$L35,1,aux!$BA$1))/INDEX($C35:$L35,1,aux!$BA$1),"n.d.") -> n.d. | AH35: =X35-INDEX($O35:$X35,1,aux!$BA$1) -> 0 | AI35: 0 | AJ35: =+IF(INDEX($O35:$X35,1,aux!$BA$1)>0,(X35/INDEX($O35:$X35,1,aux!$BA$1))^(1/($X$3-INDEX($O$3:$X$3,1,aux!$BA$1)))-1,"n.d.") -> n.d. | AK35: =IF(INDEX($O35:$X35,1,aux!$BA$1)>0,(X35-INDEX($O35:$X35,1,aux!$BA$1))/INDEX($O35:$X35,1,aux!$BA$1),"n.d.") -> n.d. | AM35: 0 | BO35: 0 | CC35: =+IF(ISNA(MATCH('5.1'!A35,AUX_2d_pais!$G$2:$G$40000,0)),0,1) -> 0
A36: 0508 | B36: Brasil | C36: 345963.741 | D36: 411729.086 | E36: 448773.991 | F36: 454029.826 | G36: 495951.627 | H36: 287929.45 | I36: 366986.145 | J36: 270456.682 | K36: 359351.142 | L36: 416916.205 | M36: 385808.7895 | N36: 0.1673961532 | O36: 155181.717 | P36: 227362.042 | Q36: 268243.887 | R36: 301817.8 | S36: 322487.227 | T36: 337706.071 | U36: 297187.507 | V36: 292346.759 | W36: 403960.331 | X36: 427029.14 | Y36: 303332.2481 | Z36: 0.1107367453 | AA36: -82476.5414 | AC36: =L36-INDEX($C36:$L36,1,aux!$BA$1) -> 70952.464 | AD36: =AC36/$AC$252 -> 0.06498203902 | AE36: =+IF(INDEX($C36:$L36,1,aux!$BA$1)>0,(L36/INDEX($C36:$L36,1,aux!$BA$1))^(1/($L$3-INDEX($C$3:$L$3,1,aux!$BA$1)))-1,"n.d.") -> 0.02094423529 | AF36: =IF(INDEX($C36:$L36,1,aux!$BA$1)>0,(L36-INDEX($C36:$L36,1,aux!$BA$1))/INDEX($C36:$L36,1,aux!$BA$1),"n.d.") -> 0.2050864168 | AH36: =X36-INDEX($O36:$X36,1,aux!$BA$1) -> 271847.423 | AI36: =AH36/$AH$252 -> 0.1531999532 | AJ36: =+IF(INDEX($O36:$X36,1,aux!$BA$1)>0,(X36/INDEX($O36:$X36,1,aux!$BA$1))^(1/($X$3-INDEX($O$3:$X$3,1,aux!$BA$1)))-1,"n.d.") -> 0.1190418505 | AK36: =IF(INDEX($O36:$X36,1,aux!$BA$1)>0,(X36-INDEX($O36:$X36,1,aux!$BA$1))/INDEX($O36:$X36,1,aux!$BA$1),"n.d.") -> 1.751800587 | CC36: =+IF(ISNA(MATCH('5.1'!A36,AUX_2d_pais!$G$2:$G$40000,0)),0,1) -> 1
A37: 0703 | B37: Brunei Darussalam | C37: 0 | D37: 0 | E37: 0 | F37: 0 | G37: 0 | H37: 0 | I37: 0 | J37: 0 | K37: 0 | L37: 0 | M37: 0 | N37: 0 | O37: 0 | P37: 0 | Q37: 113.149 | R37: 0 | S37: 0 | T37: 0.413 | U37: 25.849 | V37: 0.037 | W37: 19.175 | X37: 0.034 | Y37: 15.8657 | Z37: 5.792051427e-06 | AA37: 15.8657 | AC37: =L37-INDEX($C37:$L37,1,aux!$BA$1) -> 0 | AD37: 0 | AE37: =+IF(INDEX($C37:$L37,1,aux!$BA$1)>0,(L37/INDEX($C37:$L37,1,aux!$BA$1))^(1/($L$3-INDEX($C$3:$L$3,1,aux!$BA$1)))-1,"n.d.") -> n.d. | AF37: =IF(INDEX($C37:$L37,1,aux!$BA$1)>0,(L37-INDEX($C37:$L37,1,aux!$BA$1))/INDEX($C37:$L37,1,aux!$BA$1),"n.d.") -> n.d. | AH37: =X37-INDEX($O37:$X37,1,aux!$BA$1) -> 0.034 | AI37: 1.916074227e-08 | AJ37: =+IF(INDEX($O37:$X37,1,aux!$BA$1)>0,(X37/INDEX($O37:$X37,1,aux!$BA$1))^(1/($X$3-INDEX($O$3:$X$3,1,aux!$BA$1)))-1,"n.d.") -> n.d. | AK37: =IF(INDEX($O37:$X37,1,aux!$BA$1)>0,(X37-INDEX($O37:$X37,1,aux!$BA$1))/INDEX($O37:$X37,1,aux!$BA$1),"n.d.") -> n.d. | BO37: 158.657 | CC37: =+IF(ISNA(MATCH('5.1'!A37,AUX_2d_pais!$G$2:$G$40000,0)),0,1) -> 1
A38: 0068 | B38: Bulgária | C38: 0 | D38: 0 | E38: 0 | F38: 0 | G38: 0 | H38: 0 | I38: 0 | J38: 0 | K38: 0 | L38: 0 | M38: 0 | N38: 0 | O38: 0 | P38: 0 | Q38: 0 | R38: 0 | S38: 0 | T38: 0 | U38: 0 | V38: 0 | W38: 0 | X38: 0 | Y38: 0 | Z38: 0 | AA38: 0 | AC38: =L38-INDEX($C38:$L38,1,aux!$BA$1) -> 0 | AD38: 0 | AE38: =+IF(INDEX($C38:$L38,1,aux!$BA$1)>0,(L38/INDEX($C38:$L38,1,aux!$BA$1))^(1/($L$3-INDEX($C$3:$L$3,1,aux!$BA$1)))-1,"n.d.") -> n.d. | AF38: =IF(INDEX($C38:$L38,1,aux!$BA$1)>0,(L38-INDEX($C38:$L38,1,aux!$BA$1))/INDEX($C38:$L38,1,aux!$BA$1),"n.d.") -> n.d. | AH38: =X38-INDEX($O38:$X38,1,aux!$BA$1) -> 0 | AI38: 0 | AJ38: =+IF(INDEX($O38:$X38,1,aux!$BA$1)>0,(X38/INDEX($O38:$X38,1,aux!$BA$1))^(1/($X$3-INDEX($O$3:$X$3,1,aux!$BA$1)))-1,"n.d.") -> n.d. | AK38: =IF(INDEX($O38:$X38,1,aux!$BA$1)>0,(X38-INDEX($O38:$X38,1,aux!$BA$1))/INDEX($O38:$X38,1,aux!$BA$1),"n.d.") -> n.d. | AM38: 0 | CC38: =+IF(ISNA(MATCH('5.1'!A38,AUX_2d_pais!$G$2:$G$40000,0)),0,1) -> 0
A39: 0236 | B39: Burquina Faso | C39: 268.485 | D39: 1975.276 | E39: 743.528 | F39: 99.973 | G39: 2815.336 | H39: 4630.702 | I39: 2084.177 | J39: 1682.509 | K39: 1398.475 | L39: 1562.598 | M39: 1726.1059 | N39: 0.0007489292507 | O39: 14.758 | P39: 19.429 | Q39: 465.646 | R39: 777.427 | S39: 1009.494 | T39: 1611.139 | U39: 1985.592 | V39: 2373.299 | W39: 2309.07 | X39: 2325.006 | Y39: 1289.086 | Z39: 0.0004706034027 | AA39: -437.0199 | AC39: =L39-INDEX($C39:$L39,1,aux!$BA$1) -> 1294.113 | AD39: 0.001185217492 | AE39: =+IF(INDEX($C39:$L39,1,aux!$BA$1)>0,(L39/INDEX($C39:$L39,1,aux!$BA$1))^(1/($L$3-INDEX($C$3:$L$3,1,aux!$BA$1)))-1,"n.d.") -> 0.2161633605 | AF39: =IF(INDEX($C39:$L39,1,aux!$BA$1)>0,(L39-INDEX($C39:$L39,1,aux!$BA$1))/INDEX($C39:$L39,1,aux!$BA$1),"n.d.") -> 4.820056986 | AH39: =X39-INDEX($O39:$X39,1,aux!$BA$1) -> 2310.248 | AI39: 0.001301943132 | AJ39: =+IF(INDEX($O39:$X39,1,aux!$BA$1)>0,(X39/INDEX($O39:$X39,1,aux!$BA$1))^(1/($X$3-INDEX($O$3:$X$3,1,aux!$BA$1)))-1,"n.d.") -> 0.7545072803 | AK39: =IF(INDEX($O39:$X39,1,aux!$BA$1)>0,(X39-INDEX($O39:$X39,1,aux!$BA$1))/INDEX($O39:$X39,1,aux!$BA$1),"n.d.") -> 156.5420789 | CC39: =+IF(ISNA(MATCH('5.1'!A39,AUX_2d_pais!$G$2:$G$40000,0)),0,1) -> 1
A40: 0328 | B40: Burundi | C40: 0 | D40: 0 | E40: 243.674 | F40: 0 | G40: 0 | H40: 0 | I40: 0 | J40: 0 | K40: 0 | L40: 0 | M40: 24.3674 | N40: 1.057261818e-05 | O40: 0 | P40: 0 | Q40: 16.398 | R40: 0 | S40: 0.1 | T40: 0 | U40: 0 | V40: 15.187 | W40: 1185.771 | X40: 1029.705 | Y40: 224.7161 | Z40: 8.203654472e-05 | AA40: 200.3487 | AC40: =L40-INDEX($C40:$L40,1,aux!$BA$1) -> 0 | AD40: 0 | AE40: =+IF(INDEX($C40:$L40,1,aux!$BA$1)>0,(L40/INDEX($C40:$L40,1,aux!$BA$1))^(1/($L$3-INDEX($C$3:$L$3,1,aux!$BA$1)))-1,"n.d.") -> n.d. | AF40: =IF(INDEX($C40:$L40,1,aux!$BA$1)>0,(L40-INDEX($C40:$L40,1,aux!$BA$1))/INDEX($C40:$L40,1,aux!$BA$1),"n.d.") -> n.d. | AH40: =X40-INDEX($O40:$X40,1,aux!$BA$1) -> 1029.705 | AI40: 0.0005802915328 | AJ40: =+IF(INDEX($O40:$X40,1,aux!$BA$1)>0,(X40/INDEX($O40:$X40,1,aux!$BA$1))^(1/($X$3-INDEX($O$3:$X$3,1,aux!$BA$1)))-1,"n.d.") -> n.d. | AK40: =IF(INDEX($O40:$X40,1,aux!$BA$1)>0,(X40-INDEX($O40:$X40,1,aux!$BA$1))/INDEX($O40:$X40,1,aux!$BA$1),"n.d.") -> n.d. | BO40: 2490.835 | CC40: =+IF(ISNA(MATCH('5.1'!A40,AUX_2d_pais!$G$2:$G$40000,0)),0,1) -> 1
A41: 0675 | B41: Butão | C41: 0 | D41: 0 | E41: 0 | F41: 0 | G41: 0 | H41: 2.092 | I41: 0 | J41: 0.5 | K41: 0 | L41: 6.089 | M41: 0.8681 | N41: 3.766544582e-07 | O41: 0 | P41: 0 | Q41: 0 | R41: 0 | S41: 0 | T41: 0 | U41: 1.652 | V41: 0 | W41: 0 | X41: 0 | Y41: 0.1652 | Z41: 6.030915092e-08 | AA41: -0.7029 | AC41: =L41-INDEX($C41:$L41,1,aux!$BA$1) -> 6.089 | AD41: 5.576629948e-06 | AE41: =+IF(INDEX($C41:$L41,1,aux!$BA$1)>0,(L41/INDEX($C41:$L41,1,aux!$BA$1))^(1/($L$3-INDEX($C$3:$L$3,1,aux!$BA$1)))-1,"n.d.") -> n.d. | AF41: =IF(INDEX($C41:$L41,1,aux!$BA$1)>0,(L41-INDEX($C41:$L41,1,aux!$BA$1))/INDEX($C41:$L41,1,aux!$BA$1),"n.d.") -> n.d. | AH41: =X41-INDEX($O41:$X41,1,aux!$BA$1) -> 0 | AI41: 0 | AJ41: =+IF(INDEX($O41:$X41,1,aux!$BA$1)>0,(X41/INDEX($O41:$X41,1,aux!$BA$1))^(1/($X$3-INDEX($O$3:$X$3,1,aux!$BA$1)))-1,"n.d.") -> n.d. | AK41: =IF(INDEX($O41:$X41,1,aux!$BA$1)>0,(X41-INDEX($O41:$X41,1,aux!$BA$1))/INDEX($O41:$X41,1,aux!$BA$1),"n.d.") -> n.d. | BO41: 10.333 | CC41: =+IF(ISNA(MATCH('5.1'!A41,AUX_2d_pais!$G$2:$G$40000,0)),0,1) -> 1
A42: 0247 | B42: Cabo Verde | C42: 1515.249 | D42: 564.526 | E42: 1024.177 | F42: 1321.13 | G42: 1691.017 | H42: 1096.436 | I42: 513.98 | J42: 585.26 | K42: 2489.423 | L42: 2432.119 | M42: 1323.3317 | N42: 0.0005741720821 | O42: 61404.409 | P42: 68599.338 | Q42: 76359.595 | R42: 69722.561 | S42: 70021.71 | T42: 70540.294 | U42: 69807.822 | V42: 81646.446 | W42: 86814.423 | X42: 87093.913 | Y42: 74201.0511 | Z42: 0.02708839219 | AA42: 72877.7194 | AC42: =L42-INDEX($C42:$L42,1,aux!$BA$1) -> 916.87 | AD42: 0.0008397182953 | AE42: =+IF(INDEX($C42:$L42,1,aux!$BA$1)>0,(L42/INDEX($C42:$L42,1,aux!$BA$1))^(1/($L$3-INDEX($C$3:$L$3,1,aux!$BA$1)))-1,"n.d.") -> 0.05398255772 | AF42: =IF(INDEX($C42:$L42,1,aux!$BA$1)>0,(L42-INDEX($C42:$L42,1,aux!$BA$1))/INDEX($C42:$L42,1,aux!$BA$1),"n.d.") -> 0.6050952682 | AH42: =X42-INDEX($O42:$X42,1,aux!$BA$1) -> 25689.504 | AI42: 0.01447735191 | AJ42: =+IF(INDEX($O42:$X42,1,aux!$BA$1)>0,(X42/INDEX($O42:$X42,1,aux!$BA$1))^(1/($X$3-INDEX($O$3:$X$3,1,aux!$BA$1)))-1,"n.d.") -> 0.03959782167 | AK42: =IF(INDEX($O42:$X42,1,aux!$BA$1)>0,(X42-INDEX($O42:$X42,1,aux!$BA$1))/INDEX($O42:$X42,1,aux!$BA$1),"n.d.") -> 0.4183657887 | CC42: =+IF(ISNA(MATCH('5.1'!A42,AUX_2d_pais!$G$2:$G$40000,0)),0,1) -> 1
A43: 0463 | B43: Caimão, Ilhas | C43: 0 | D43: 0 | E43: 0 | F43: 0 | G43: 0 | H43: 0 | I43: 0 | J43: 0 | K43: 0 | L43: 0 | M43: 0 | N43: 0 | O43: 38.431 | P43: 22.818 | Q43: 32.896 | R43: 11.518 | S43: 38.626 | T43: 42.016 | U43: 22.51 | V43: 27.788 | W43: 19.48 | X43: 33.971 | Y43: 29.0054 | Z43: 1.058892885e-05 | AA43: 29.0054 | AC43: =L43-INDEX($C43:$L43,1,aux!$BA$1) -> 0 | AD43: 0 | AE43: =+IF(INDEX($C43:$L43,1,aux!$BA$1)>0,(L43/INDEX($C43:$L43,1,aux!$BA$1))^(1/($L$3-INDEX($C$3:$L$3,1,aux!$BA$1)))-1,"n.d.") -> n.d. | AF43: =IF(INDEX($C43:$L43,1,aux!$BA$1)>0,(L43-INDEX($C43:$L43,1,aux!$BA$1))/INDEX($C43:$L43,1,aux!$BA$1),"n.d.") -> n.d. | AH43: =X43-INDEX($O43:$X43,1,aux!$BA$1) -> -4.46 | AI43: -2.513438544e-06 | AJ43: =+IF(INDEX($O43:$X43,1,aux!$BA$1)>0,(X43/INDEX($O43:$X43,1,aux!$BA$1))^(1/($X$3-INDEX($O$3:$X$3,1,aux!$BA$1)))-1,"n.d.") -> -0.01361285182 | AK43: =IF(INDEX($O43:$X43,1,aux!$BA$1)>0,(X43-INDEX($O43:$X43,1,aux!$BA$1))/INDEX($O43:$X43,1,aux!$BA$1),"n.d.") -> -0.1160521454 | BO43: 290.054 | CC43: =+IF(ISNA(MATCH('5.1'!A43,AUX_2d_pais!$G$2:$G$40000,0)),0,1) -> 1
A44: 0302 | B44: Camarões | C44: 15843.308 | D44: 16456.664 | E44: 23198.274 | F44: 17929.268 | G44: 12426.718 | H44: 13683.189 | I44: 16711.075 | J44: 15061.707 | K44: 14255.59 | L44: 11688.863 | M44: 15725.4656 | N44: 0.006823023529 | O44: 151.855 | P44: 737.029 | Q44: 689.906 | R44: 1010.445 | S44: 2664.396 | T44: 4126.051 | U44: 3650.702 | V44: 4368.688 | W44: 4047.457 | X44: 7464.89 | Y44: 2891.1419 | Z44: 0.001055461944 | AA44: -12834.3237 | AC44: =L44-INDEX($C44:$L44,1,aux!$BA$1) -> -4154.445 | AD44: -0.00380486162 | AE44: =+IF(INDEX($C44:$L44,1,aux!$BA$1)>0,(L44/INDEX($C44:$L44,1,aux!$BA$1))^(1/($L$3-INDEX($C$3:$L$3,1,aux!$BA$1)))-1,"n.d.") -> -0.03322556867 | AF44: =IF(INDEX($C44:$L44,1,aux!$BA$1)>0,(L44-INDEX($C44:$L44,1,aux!$BA$1))/INDEX($C44:$L44,1,aux!$BA$1),"n.d.") -> -0.2622208064 | AH44: =X44-INDEX($O44:$X44,1,aux!$BA$1) -> 7313.035 | AI44: 0.004121269965 | AJ44: =+IF(INDEX($O44:$X44,1,aux!$BA$1)>0,(X44/INDEX($O44:$X44,1,aux!$BA$1))^(1/($X$3-INDEX($O$3:$X$3,1,aux!$BA$1)))-1,"n.d.") -> 0.5415404463 | AK44: =IF(INDEX($O44:$X44,1,aux!$BA$1)>0,(X44-INDEX($O44:$X44,1,aux!$BA$1))/INDEX($O44:$X44,1,aux!$BA$1),"n.d.") -> 48.15801258 | CC44: =+IF(ISNA(MATCH('5.1'!A44,AUX_2d_pais!$G$2:$G$40000,0)),0,1) -> 1
A45: 0696 | B45: Camboja | C45: 0.377 | D45: 1153.17 | E45: 2816.037 | F45: 1643.533 | G45: 2716.517 | H45: 3541.082 | I45: 5492.004 | J45: 5344.809 | K45: 3241.383 | L45: 4585.308 | M45: 3053.422 | N45: 0.001324830099 | O45: 154.517 | P45: 22.079 | Q45: 170.555 | R45: 29.833 | S45: 45.27 | T45: 122.969 | U45: 152.828 | V45: 193.849 | W45: 98.469 | X45: 655.395 | Y45: 164.5764 | Z45: 6.008149482e-05 | AA45: -2888.8456 | AC45: =L45-INDEX($C45:$L45,1,aux!$BA$1) -> 4584.931 | AD45: 0.004199123587 | AE45: =+IF(INDEX($C45:$L45,1,aux!$BA$1)>0,(L45/INDEX($C45:$L45,1,aux!$BA$1))^(1/($L$3-INDEX($C$3:$L$3,1,aux!$BA$1)))-1,"n.d.") -> 1.843753228 | AF45: =IF(INDEX($C45:$L45,1,aux!$BA$1)>0,(L45-INDEX($C45:$L45,1,aux!$BA$1))/INDEX($C45:$L45,1,aux!$BA$1),"n.d.") -> 12161.62069 | AH45: =X45-INDEX($O45:$X45,1,aux!$BA$1) -> 500.878 | AI45: 0.0002822704196 | AJ45: =+IF(INDEX($O45:$X45,1,aux!$BA$1)>0,(X45/INDEX($O45:$X45,1,aux!$BA$1))^(1/($X$3-INDEX($O$3:$X$3,1,aux!$BA$1)))-1,"n.d.") -> 0.1741543901 | AK45: =IF(INDEX($O45:$X45,1,aux!$BA$1)>0,(X45-INDEX($O45:$X45,1,aux!$BA$1))/INDEX($O45:$X45,1,aux!$BA$1),"n.d.") -> 3.241572125 | CC45: =+IF(ISNA(MATCH('5.1'!A45,AUX_2d_pais!$G$2:$G$40000,0)),0,1) -> 1
A46: 0404 | B46: Canadá | C46: 61080.867 | D46: 78615.144 | E46: 183716.767 | F46: 68644.165 | G46: 35540.06 | H46: 84600.369 | I46: 43451.732 | J46: 113057.105 | K46: 99618.429 | L46: 81355.701 | M46: 84968.0339 | N46: 0.03686624671 | O46: 57065.585 | P46: 63111.478 | Q46: 68454.074 | R46: 75705.946 | S46: 76314.519 | T46: 72955.664 | U46: 78674.559 | V46: 85617.893 | W46: 91382.112 | X46: 88523.041 | Y46: 75780.4871 | Z46: 0.02766499294 | AA46: -9187.5468 | AC46: =L46-INDEX($C46:$L46,1,aux!$BA$1) -> 20274.834 | AD46: 0.01856877097 | AE46: =+IF(INDEX($C46:$L46,1,aux!$BA$1)>0,(L46/INDEX($C46:$L46,1,aux!$BA$1))^(1/($L$3-INDEX($C$3:$L$3,1,aux!$BA$1)))-1,"n.d.") -> 0.03236060168 | AF46: =IF(INDEX($C46:$L46,1,aux!$BA$1)>0,(L46-INDEX($C46:$L46,1,aux!$BA$1))/INDEX($C46:$L46,1,aux!$BA$1),"n.d.") -> 0.3319342864 | AH46: =X46-INDEX($O46:$X46,1,aux!$BA$1) -> 31457.456 | AI46: 0.01772788843 | AJ46: =+IF(INDEX($O46:$X46,1,aux!$BA$1)>0,(X46/INDEX($O46:$X46,1,aux!$BA$1))^(1/($X$3-INDEX($O$3:$X$3,1,aux!$BA$1)))-1,"n.d.") -> 0.04999418657 | AK46: =IF(INDEX($O46:$X46,1,aux!$BA$1)>0,(X46-INDEX($O46:$X46,1,aux!$BA$1))/INDEX($O46:$X46,1,aux!$BA$1),"n.d.") -> 0.5512509159 | CC46: =+IF(ISNA(MATCH('5.1'!A46,AUX_2d_pais!$G$2:$G$40000,0)),0,1) -> 1
A47: 0644 | B47: Catar | C47: 0 | D47: 4.907 | E47: 6.714 | F47: 0.067 | G47: 0.744 | H47: 0.218 | I47: 0.702 | J47: 0.215 | K47: 8.722 | L47: 2.643 | M47: 2.4932 | N47: 1.081758893e-06 | O47: 134.592 | P47: 155.686 | Q47: 1014.296 | R47: 1978.832 | S47: 1120.35 | T47: 1560.805 | U47: 2331.099 | V47: 3120.661 | W47: 4252.952 | X47: 5560.451 | Y47: 2122.9724 | Z47: 0.0007750282256 | AA47: 2120.4792 | AC47: =L47-INDEX($C47:$L47,1,aux!$BA$1) -> 2.643 | AD47: 2.420599926e-06 | AE47: =+IF(INDEX($C47:$L47,1,aux!$BA$1)>0,(L47/INDEX($C47:$L47,1,aux!$BA$1))^(1/($L$3-INDEX($C$3:$L$3,1,aux!$BA$1)))-1,"n.d.") -> n.d. | AF47: =IF(INDEX($C47:$L47,1,aux!$BA$1)>0,(L47-INDEX($C47:$L47,1,aux!$BA$1))/INDEX($C47:$L47,1,aux!$BA$1),"n.d.") -> n.d. | AH47: =X47-INDEX($O47:$X47,1,aux!$BA$1) -> 5425.859 | AI47: 0.003057749585 | AJ47: =+IF(INDEX($O47:$X47,1,aux!$BA$1)>0,(X47/INDEX($O47:$X47,1,aux!$BA$1))^(1/($X$3-INDEX($O$3:$X$3,1,aux!$BA$1)))-1,"n.d.") -> 0.51204822 | AK47: =IF(INDEX($O47:$X47,1,aux!$BA$1)>0,(X47-INDEX($O47:$X47,1,aux!$BA$1))/INDEX($O47:$X47,1,aux!$BA$1),"n.d.") -> 40.31338415 | CC47: =+IF(ISNA(MATCH('5.1'!A47,AUX_2d_pais!$G$2:$G$40000,0)),0,1) -> 1
A48: 0079 | B48: Cazaquistão | C48: 153.261 | D48: 0.113 | E48: 31.581 | F48: 145.39 | G48: 0 | H48: 0 | I48: 0 | J48: 61.006 | K48: 0 | L48: 0.021 | M48: 39.1372 | N48: 1.698099397e-05 | O48: 568.096 | P48: 736.887 | Q48: 667.058 | R48: 886.363 | S48: 2299.853 | T48: 1963.629 | U48: 3460.011 | V48: 1426.884 | W48: 1402.829 | X48: 1668.438 | Y48: 1508.0048 | Z48: 0.0005505235416 | AA48: 1468.8676 | AC48: =L48-INDEX($C48:$L48,1,aux!$BA$1) -> -153.24 | AD48: -0.0001403453397 | AE48: =+IF(INDEX($C48:$L48,1,aux!$BA$1)>0,(L48/INDEX($C48:$L48,1,aux!$BA$1))^(1/($L$3-INDEX($C$3:$L$3,1,aux!$BA$1)))-1,"n.d.") -> -0.6278190139 | AF48: =IF(INDEX($C48:$L48,1,aux!$BA$1)>0,(L48-INDEX($C48:$L48,1,aux!$BA$1))/INDEX($C48:$L48,1,aux!$BA$1),"n.d.") -> -0.9998629788 | AH48: =X48-INDEX($O48:$X48,1,aux!$BA$1) -> 1100.342 | AI48: 0.000620099102 | AJ48: =+IF(INDEX($O48:$X48,1,aux!$BA$1)>0,(X48/INDEX($O48:$X48,1,aux!$BA$1))^(1/($X$3-INDEX($O$3:$X$3,1,aux!$BA$1)))-1,"n.d.") -> 0.1271652559 | AK48: =IF(INDEX($O48:$X48,1,aux!$BA$1)>0,(X48-INDEX($O48:$X48,1,aux!$BA$1))/INDEX($O48:$X48,1,aux!$BA$1),"n.d.") -> 1.936894469 | CC48: =+IF(ISNA(MATCH('5.1'!A48,AUX_2d_pais!$G$2:$G$40000,0)),0,1) -> 1
A49: 0306 | B49: Centro-Africana, República | C49: 789.963 | D49: 2348.775 | E49: 3713.272 | F49: 907.935 | G49: 610.099 | H49: 351.297 | I49: 1573.486 | J49: 2782.86 | K49: 1213.616 | L49: 3045.54 | M49: 1733.6843 | N49: 0.0007522173951 | O49: 3.743 | P49: 2.573 | Q49: 7.539 | R49: 11.07 | S49: 5.018 | T49: 2.69 | U49: 0 | V49: 0 | W49: 58.263 | X49: 34.392 | Y49: 12.5288 | Z49: 4.573857688e-06 | AA49: -1721.1555 | AC49: =L49-INDEX($C49:$L49,1,aux!$BA$1) -> 2255.577 | AD49: 0.002065777344 | AE49: =+IF(INDEX($C49:$L49,1,aux!$BA$1)>0,(L49/INDEX($C49:$L49,1,aux!$BA$1))^(1/($L$3-INDEX($C$3:$L$3,1,aux!$BA$1)))-1,"n.d.") -> 0.1617629077 | AF49: =IF(INDEX($C49:$L49,1,aux!$BA$1)>0,(L49-INDEX($C49:$L49,1,aux!$BA$1))/INDEX($C49:$L49,1,aux!$BA$1),"n.d.") -> 2.855294488 | AH49: =X49-INDEX($O49:$X49,1,aux!$BA$1) -> 30.649 | AI49: 1.727228205e-05 | AJ49: =+IF(INDEX($O49:$X49,1,aux!$BA$1)>0,(X49/INDEX($O49:$X49,1,aux!$BA$1))^(1/($X$3-INDEX($O$3:$X$3,1,aux!$BA$1)))-1,"n.d.") -> 0.2794590795 | AK49: =IF(INDEX($O49:$X49,1,aux!$BA$1)>0,(X49-INDEX($O49:$X49,1,aux!$BA$1))/INDEX($O49:$X49,1,aux!$BA$1),"n.d.") -> 8.18835159 | BO49: 17462.131 | CC49: =+IF(ISNA(MATCH('5.1'!A49,AUX_2d_pais!$G$2:$G$40000,0)),0,1) -> 1
A50: 0021 | B50: Ceuta | C50: 0 | D50: 0 | E50: 0 | F50: 0 | G50: 0 | H50: 0 | I50: 0 | J50: 0 | K50: 0 | L50: 0 | M50: 0 | N50: 0 | O50: 0.577 | P50: 7.315 | Q50: 131.762 | R50: 255.72 | S50: 931.383 | T50: 1202.454 | U50: 1509.708 | V50: 1896.862 | W50: 1594.038 | X50: 1875.413 | Y50: 940.5232 | Z50: 0.0003433544528 | AA50: 940.5232 | AC50: =L50-INDEX($C50:$L50,1,aux!$BA$1) -> 0 | AD50: 0 | AE50: =+IF(INDEX($C50:$L50,1,aux!$BA$1)>0,(L50/INDEX($C50:$L50,1,aux!$BA$1))^(1/($L$3-INDEX($C$3:$L$3,1,aux!$BA$1)))-1,"n.d.") -> n.d. | AF50: =IF(INDEX($C50:$L50,1,aux!$BA$1)>0,(L50-INDEX($C50:$L50,1,aux!$BA$1))/INDEX($C50:$L50,1,aux!$BA$1),"n.d.") -> n.d. | AH50: =X50-INDEX($O50:$X50,1,aux!$BA$1) -> 1874.836 | AI50: 0.001056566158 | AJ50: =+IF(INDEX($O50:$X50,1,aux!$BA$1)>0,(X50/INDEX($O50:$X50,1,aux!$BA$1))^(1/($X$3-INDEX($O$3:$X$3,1,aux!$BA$1)))-1,"n.d.") -> 1.455915706 | AK50: =IF(INDEX($O50:$X50,1,aux!$BA$1)>0,(X50-INDEX($O50:$X50,1,aux!$BA$1))/INDEX($O50:$X50,1,aux!$BA$1),"n.d.") -> 3249.282496 | CC50: =+IF(ISNA(MATCH('5.1'!A50,AUX_2d_pais!$G$2:$G$40000,0)),0,1) -> 1
A51: 0022 | B51: Ceuta e Melilha | C51: 0 | D51: 0 | E51: 0 | F51: 0 | G51: 0 | H51: 0 | I51: 0 | J51: 0 | K51: 0 | L51: 0 | M51: 0 | N51: 0 | O51: 0.577 | P51: 7.315 | Q51: 131.762 | R51: 255.72 | S51: 931.383 | T51: 1202.454 | U51: 1509.708 | V51: 1896.862 | W51: 1594.038 | X51: 1875.413 | Y51: 940.5232 | Z51: 0.0003433544528 | AA51: 940.5232 | AC51: =L51-INDEX($C51:$L51,1,aux!$BA$1) -> 0 | AD51: 0 | AE51: =+IF(INDEX($C51:$L51,1,aux!$BA$1)>0,(L51/INDEX($C51:$L51,1,aux!$BA$1))^(1/($L$3-INDEX($C$3:$L$3,1,aux!$BA$1)))-1,"n.d.") -> n.d. | AF51: =IF(INDEX($C51:$L51,1,aux!$BA$1)>0,(L51-INDEX($C51:$L51,1,aux!$BA$1))/INDEX($C51:$L51,1,aux!$BA$1),"n.d.") -> n.d. | AH51: =X51-INDEX($O51:$X51,1,aux!$BA$1) -> 1874.836 | AI51: 0.001056566158 | AJ51: =+IF(INDEX($O51:$X51,1,aux!$BA$1)>0,(X51/INDEX($O51:$X51,1,aux!$BA$1))^(1/($X$3-INDEX($O$3:$X$3,1,aux!$BA$1)))-1,"n.d.") -> 1.455915706 | AK51: =IF(INDEX($O51:$X51,1,aux!$BA$1)>0,(X51-INDEX($O51:$X51,1,aux!$BA$1))/INDEX($O51:$X51,1,aux!$BA$1),"n.d.") -> 3249.282496 | CC51: =+IF(ISNA(MATCH('5.1'!A51,AUX_2d_pais!$G$2:$G$40000,0)),0,1) -> 1
A52: 0244 | B52: Chade | C52: 3071.061 | D52: 7191.885 | E52: 7383.47 | F52: 3902.439 | G52: 4480.735 | H52: 3615.471 | I52: 3530.524 | J52: 4545.664 | K52: 6311.506 | L52: 1864.112 | M52: 4589.6867 | N52: 0.001991390344 | O52: 0 | P52: 0 | Q52: 0 | R52: 0 | S52: 11.96 | T52: 56.722 | U52: 76.29 | V52: 69.216 | W52: 47.677 | X52: 0.334 | Y52: 26.2199 | Z52: 9.57203333e-06 | AA52: -4563.4668 | AC52: =L52-INDEX($C52:$L52,1,aux!$BA$1) -> -1206.949 | AD52: -0.001105388067 | AE52: =+IF(INDEX($C52:$L52,1,aux!$BA$1)>0,(L52/INDEX($C52:$L52,1,aux!$BA$1))^(1/($L$3-INDEX($C$3:$L$3,1,aux!$BA$1)))-1,"n.d.") -> -0.05396046844 | AF52: =IF(INDEX($C52:$L52,1,aux!$BA$1)>0,(L52-INDEX($C52:$L52,1,aux!$BA$1))/INDEX($C52:$L52,1,aux!$BA$1),"n.d.") -> -0.3930071724 | AH52: =X52-INDEX($O52:$X52,1,aux!$BA$1) -> 0.334 | AI52: 1.882261152e-07 | AJ52: =+IF(INDEX($O52:$X52,1,aux!$BA$1)>0,(X52/INDEX($O52:$X52,1,aux!$BA$1))^(1/($X$3-INDEX($O$3:$X$3,1,aux!$BA$1)))-1,"n.d.") -> n.d. | AK52: =IF(INDEX($O52:$X52,1,aux!$BA$1)>0,(X52-INDEX($O52:$X52,1,aux!$BA$1))/INDEX($O52:$X52,1,aux!$BA$1),"n.d.") -> n.d. | CC52: =+IF(ISNA(MATCH('5.1'!A52,AUX_2d_pais!$G$2:$G$40000,0)),0,1) -> 1
A53: 0061 | B53: Checa, República | C53: 0 | D53: 0 | E53: 0 | F53: 0 | G53: 0 | H53: 0 | I53: 0 | J53: 0 | K53: 0 | L53: 0 | M53: 0 | N53: 0 | O53: 0 | P53: 0 | Q53: 0 | R53: 0 | S53: 0 | T53: 0 | U53: 0 | V53: 0 | W53: 0 | X53: 0 | Y53: 0 | Z53: 0 | AA53: 0 | AC53: =L53-INDEX($C53:$L53,1,aux!$BA$1) -> 0 | AD53: 0 | AE53: =+IF(INDEX($C53:$L53,1,aux!$BA$1)>0,(L53/INDEX($C53:$L53,1,aux!$BA$1))^(1/($L$3-INDEX($C$3:$L$3,1,aux!$BA$1)))-1,"n.d.") -> n.d. | AF53: =IF(INDEX($C53:$L53,1,aux!$BA$1)>0,(L53-INDEX($C53:$L53,1,aux!$BA$1))/INDEX($C53:$L53,1,aux!$BA$1),"n.d.") -> n.d. | AH53: =X53-INDEX($O53:$X53,1,aux!$BA$1) -> 0 | AI53: 0 | AJ53: =+IF(INDEX($O53:$X53,1,aux!$BA$1)>0,(X53/INDEX($O53:$X53,1,aux!$BA$1))^(1/($X$3-INDEX($O$3:$X$3,1,aux!$BA$1)))-1,"n.d.") -> n.d. | AK53: =IF(INDEX($O53:$X53,1,aux!$BA$1)>0,(X53-INDEX($O53:$X53,1,aux!$BA$1))/INDEX($O53:$X53,1,aux!$BA$1),"n.d.") -> n.d. | AM53: 0 | CC53: =+IF(ISNA(MATCH('5.1'!A53,AUX_2d_pais!$G$2:$G$40000,0)),0,1) -> 0
A54: 0512 | B54: Chile | C54: 23488.849 | D54: 44122.462 | E54: 47025.236 | F54: 23211.971 | G54: 30442.071 | H54: 44434.042 | I54: 38624.676 | J54: 49753.62 | K54: 67212.404 | L54: 46400.962 | M54: 41471.6293 | N54: 0.01799386484 | O54: 19890.671 | P54: 21133.161 | Q54: 23945.74 | R54: 33243.053 | S54: 30623.361 | T54: 35377.076 | U54: 36988.723 | V54: 36270.348 | W54: 36533.784 | X54: 46322.627 | Y54: 32032.8544 | Z54: 0.01169415406 | AA54: -9438.7749 | AC54: =L54-INDEX($C54:$L54,1,aux!$BA$1) -> 22912.113 | AD54: 0.02098413131 | AE54: =+IF(INDEX($C54:$L54,1,aux!$BA$1)>0,(L54/INDEX($C54:$L54,1,aux!$BA$1))^(1/($L$3-INDEX($C$3:$L$3,1,aux!$BA$1)))-1,"n.d.") -> 0.07857833936 | AF54: =IF(INDEX($C54:$L54,1,aux!$BA$1)>0,(L54-INDEX($C54:$L54,1,aux!$BA$1))/INDEX($C54:$L54,1,aux!$BA$1),"n.d.") -> 0.9754463916 | AH54: =X54-INDEX($O54:$X54,1,aux!$BA$1) -> 26431.956 | AI54: 0.01489576166 | AJ54: =+IF(INDEX($O54:$X54,1,aux!$BA$1)>0,(X54/INDEX($O54:$X54,1,aux!$BA$1))^(1/($X$3-INDEX($O$3:$X$3,1,aux!$BA$1)))-1,"n.d.") -> 0.09848403554 | AK54: =IF(INDEX($O54:$X54,1,aux!$BA$1)>0,(X54-INDEX($O54:$X54,1,aux!$BA$1))/INDEX($O54:$X54,1,aux!$BA$1),"n.d.") -> 1.328861957 | CC54: =+IF(ISNA(MATCH('5.1'!A54,AUX_2d_pais!$G$2:$G$40000,0)),0,1) -> 1
A55: 0720 | B55: China, República Popular da | C55: 99072.721 | D55: 150734.179 | E55: 141836.046 | F55: 115253.035 | G55: 114095.982 | H55: 108827.664 | I55: 124064.101 | J55: 131890.503 | K55: 172641.396 | L55: 165369.2 | M55: 132378.4827 | N55: 0.05743686865 | O55: 43045.143 | P55: 49114.856 | Q55: 87431.085 | R55: 83004.343 | S55: 106500.591 | T55: 95693.094 | U55: 126172.214 | V55: 195139.008 | W55: 230671.365 | X55: 189044.011 | Y55: 120581.571 | Z55: 0.04402041261 | AA55: -11796.9117 | AC55: =L55-INDEX($C55:$L55,1,aux!$BA$1) -> 66296.479 | AD55: 0.0607178404 | AE55: =+IF(INDEX($C55:$L55,1,aux!$BA$1)>0,(L55/INDEX($C55:$L55,1,aux!$BA$1))^(1/($L$3-INDEX($C$3:$L$3,1,aux!$BA$1)))-1,"n.d.") -> 0.0585765805 | AF55: =IF(INDEX($C55:$L55,1,aux!$BA$1)>0,(L55-INDEX($C55:$L55,1,aux!$BA$1))/INDEX($C55:$L55,1,aux!$BA$1),"n.d.") -> 0.6691698616 | AH55: =X55-INDEX($O55:$X55,1,aux!$BA$1) -> 145998.868 | AI55: 0.08227784356 | AJ55: =+IF(INDEX($O55:$X55,1,aux!$BA$1)>0,(X55/INDEX($O55:$X55,1,aux!$BA$1))^(1/($X$3-INDEX($O$3:$X$3,1,aux!$BA$1)))-1,"n.d.") -> 0.1787027794 | AK55: =IF(INDEX($O55:$X55,1,aux!$BA$1)>0,(X55-INDEX($O55:$X55,1,aux!$BA$1))/INDEX($O55:$X55,1,aux!$BA$1),"n.d.") -> 3.391761714 | CC55: =+IF(ISNA(MATCH('5.1'!A55,AUX_2d_pais!$G$2:$G$40000,0)),0,1) -> 1
A56: 0600 | B56: Chipre | C56: 0 | D56: 0 | E56: 0 | F56: 0 | G56: 0 | H56: 0 | I56: 0 | J56: 0 | K56: 0 | L56: 0 | M56: 0 | N56: 0 | O56: 0 | P56: 0 | Q56: 0 | R56: 0 | S56: 0 | T56: 0 | U56: 0 | V56: 0 | W56: 0 | X56: 0 | Y56: 0 | Z56: 0 | AA56: 0 | AC56: =L56-INDEX($C56:$L56,1,aux!$BA$1) -> 0 | AD56: 0 | AE56: =+IF(INDEX($C56:$L56,1,aux!$BA$1)>0,(L56/INDEX($C56:$L56,1,aux!$BA$1))^(1/($L$3-INDEX($C$3:$L$3,1,aux!$BA$1)))-1,"n.d.") -> n.d. | AF56: =IF(INDEX($C56:$L56,1,aux!$BA$1)>0,(L56-INDEX($C56:$L56,1,aux!$BA$1))/INDEX($C56:$L56,1,aux!$BA$1),"n.d.") -> n.d. | AH56: =X56-INDEX($O56:$X56,1,aux!$BA$1) -> 0 | AI56: 0 | AJ56: =+IF(INDEX($O56:$X56,1,aux!$BA$1)>0,(X56/INDEX($O56:$X56,1,aux!$BA$1))^(1/($X$3-INDEX($O$3:$X$3,1,aux!$BA$1)))-1,"n.d.") -> n.d. | AK56: =IF(INDEX($O56:$X56,1,aux!$BA$1)>0,(X56-INDEX($O56:$X56,1,aux!$BA$1))/INDEX($O56:$X56,1,aux!$BA$1),"n.d.") -> n.d. | AM56: 0 | CC56: =+IF(ISNA(MATCH('5.1'!A56,AUX_2d_pais!$G$2:$G$40000,0)),0,1) -> 0
A57: 0834 | B57: Christmas, Ilha | C57: 0 | D57: 0 | E57: 0 | F57: 0 | G57: 0 | H57: 0 | I57: 0 | J57: 0 | K57: 0 | L57: 0 | M57: 0 | N57: 0 | O57: 0 | P57: 0.217 | Q57: 0 | R57: 0 | S57: 0 | T57: 0 | U57: 0 | V57: 0 | W57: 0 | X57: 0 | Y57: 0.0217 | Z57: 7.921964739e-09 | AA57: 0.0217 | AC57: =L57-INDEX($C57:$L57,1,aux!$BA$1) -> 0 | AD57: 0 | AE57: =+IF(INDEX($C57:$L57,1,aux!$BA$1)>0,(L57/INDEX($C57:$L57,1,aux!$BA$1))^(1/($L$3-INDEX($C$3:$L$3,1,aux!$BA$1)))-1,"n.d.") -> n.d. | AF57: =IF(INDEX($C57:$L57,1,aux!$BA$1)>0,(L57-INDEX($C57:$L57,1,aux!$BA$1))/INDEX($C57:$L57,1,aux!$BA$1),"n.d.") -> n.d. | AH57: =X57-INDEX($O57:$X57,1,aux!$BA$1) -> 0 | AI57: 0 | AJ57: =+IF(INDEX($O57:$X57,1,aux!$BA$1)>0,(X57/INDEX($O57:$X57,1,aux!$BA$1))^(1/($X$3-INDEX($O$3:$X$3,1,aux!$BA$1)))-1,"n.d.") -> n.d. | AK57: =IF(INDEX($O57:$X57,1,aux!$BA$1)>0,(X57-INDEX($O57:$X57,1,aux!$BA$1))/INDEX($O57:$X57,1,aux!$BA$1),"n.d.") -> n.d. | BO57: 0.217 | CC57: =+IF(ISNA(MATCH('5.1'!A57,AUX_2d_pais!$G$2:$G$40000,0)),0,1) -> 1
A58: 0833 | B58: Cocos (Keeling), Ilhas | C58: 0 | D58: 0 | E58: 20.799 | F58: 0 | G58: 0 | H58: 0 | I58: 0 | J58: 0 | K58: 0 | L58: 0 | M58: 2.0799 | N58: 9.024347513e-07 | O58: 0 | P58: 0 | Q58: 0 | R58: 0 | S58: 0 | T58: 0 | U58: 0 | V58: 0 | W58: 0 | X58: 0 | Y58: 0 | Z58: 0 | AA58: -2.0799 | AC58: =L58-INDEX($C58:$L58,1,aux!$BA$1) -> 0 | AD58: 0 | AE58: =+IF(INDEX($C58:$L58,1,aux!$BA$1)>0,(L58/INDEX($C58:$L58,1,aux!$BA$1))^(1/($L$3-INDEX($C$3:$L$3,1,aux!$BA$1)))-1,"n.d.") -> n.d. | AF58: =IF(INDEX($C58:$L58,1,aux!$BA$1)>0,(L58-INDEX($C58:$L58,1,aux!$BA$1))/INDEX($C58:$L58,1,aux!$BA$1),"n.d.") -> n.d. | AH58: =X58-INDEX($O58:$X58,1,aux!$BA$1) -> 0 | AI58: 0 | AJ58: =+IF(INDEX($O58:$X58,1,aux!$BA$1)>0,(X58/INDEX($O58:$X58,1,aux!$BA$1))^(1/($X$3-INDEX($O$3:$X$3,1,aux!$BA$1)))-1,"n.d.") -> n.d. | AK58: =IF(INDEX($O58:$X58,1,aux!$BA$1)>0,(X58-INDEX($O58:$X58,1,aux!$BA$1))/INDEX($O58:$X58,1,aux!$BA$1),"n.d.") -> n.d. | BO58: 20.799 | CC58: =+IF(ISNA(MATCH('5.1'!A58,AUX_2d_pais!$G$2:$G$40000,0)),0,1) -> 1
A59: 0480 | B59: Colômbia | C59: 20600.411 | D59: 14279.911 | E59: 16391.121 | F59: 17473.051 | G59: 15935.747 | H59: 5927.369 | I59: 17190.682 | J59: 15386.163 | K59: 29373.18 | L59: 25273.31 | M59: 17783.0945 | N59: 0.007715795213 | O59: 614.239 | P59: 2470.466 | Q59: 1782.693 | R59: 1822.929 | S59: 1062.46 | T59: 2072.466 | U59: 3029.896 | V59: 3393.962 | W59: 5673.053 | X59: 7742.273 | Y59: 2966.4437 | Z59: 0.001082952184 | AA59: -14816.6508 | AC59: =L59-INDEX($C59:$L59,1,aux!$BA$1) -> 4672.899 | AD59: 0.004279689359 | AE59: =+IF(INDEX($C59:$L59,1,aux!$BA$1)>0,(L59/INDEX($C59:$L59,1,aux!$BA$1))^(1/($L$3-INDEX($C$3:$L$3,1,aux!$BA$1)))-1,"n.d.") -> 0.02297527648 | AF59: =IF(INDEX($C59:$L59,1,aux!$BA$1)>0,(L59-INDEX($C59:$L59,1,aux!$BA$1))/INDEX($C59:$L59,1,aux!$BA$1),"n.d.") -> 0.2268352316 | AH59: =X59-INDEX($O59:$X59,1,aux!$BA$1) -> 7128.034 | AI59: 0.004017012422 | AJ59: =+IF(INDEX($O59:$X59,1,aux!$BA$1)>0,(X59/INDEX($O59:$X59,1,aux!$BA$1))^(1/($X$3-INDEX($O$3:$X$3,1,aux!$BA$1)))-1,"n.d.") -> 0.3251994061 | AK59: =IF(INDEX($O59:$X59,1,aux!$BA$1)>0,(X59-INDEX($O59:$X59,1,aux!$BA$1))/INDEX($O59:$X59,1,aux!$BA$1),"n.d.") -> 11.60465877 | CC59: =+IF(ISNA(MATCH('5.1'!A59,AUX_2d_pais!$G$2:$G$40000,0)),0,1) -> 1
A60: 0375 | B60: Comores | C60: 0 | D60: 0 | E60: 0 | F60: 0 | G60: 0 | H60: 2.392 | I60: 0 | J60: 0 | K60: 0 | L60: 0 | M60: 0.2392 | N60: 1.037849861e-07 | O60: 0 | P60: 0 | Q60: 0 | R60: 26.6 | S60: 29.546 | T60: 0 | U60: 0 | V60: 43.928 | W60: 155.175 | X60: 70.26 | Y60: 32.5509 | Z60: 1.188327567e-05 | AA60: 32.3117 | AC60: =L60-INDEX($C60:$L60,1,aux!$BA$1) -> 0 | AD60: 0 | AE60: =+IF(INDEX($C60:$L60,1,aux!$BA$1)>0,(L60/INDEX($C60:$L60,1,aux!$BA$1))^(1/($L$3-INDEX($C$3:$L$3,1,aux!$BA$1)))-1,"n.d.") -> n.d. | AF60: =IF(INDEX($C60:$L60,1,aux!$BA$1)>0,(L60-INDEX($C60:$L60,1,aux!$BA$1))/INDEX($C60:$L60,1,aux!$BA$1),"n.d.") -> n.d. | AH60: =X60-INDEX($O60:$X60,1,aux!$BA$1) -> 70.26 | AI60: 3.959511034e-05 | AJ60: =+IF(INDEX($O60:$X60,1,aux!$BA$1)>0,(X60/INDEX($O60:$X60,1,aux!$BA$1))^(1/($X$3-INDEX($O$3:$X$3,1,aux!$BA$1)))-1,"n.d.") -> n.d. | AK60: =IF(INDEX($O60:$X60,1,aux!$BA$1)>0,(X60-INDEX($O60:$X60,1,aux!$BA$1))/INDEX($O60:$X60,1,aux!$BA$1),"n.d.") -> n.d. | CC60: =+IF(ISNA(MATCH('5.1'!A60,AUX_2d_pais!$G$2:$G$40000,0)),0,1) -> 1
A61: 0318 | B61: Congo | C61: 14488.1 | D61: 16809.835 | E61: 1389.882 | F61: 1840.692 | G61: 5283.906 | H61: 4346.29 | I61: 8316.623 | J61: 6120.497 | K61: 3696.594 | L61: 6002.885 | M61: 6829.5304 | N61: 0.002963222063 | O61: 212.076 | P61: 589.397 | Q61: 258.188 | R61: 1432.018 | S61: 1958.834 | T61: 1617.813 | U61: 4288.565 | V61: 1347.365 | W61: 1926.206 | X61: 1446.626 | Y61: 1507.7088 | Z61: 0.0005504154816 | AA61: -5321.8216 | AC61: =L61-INDEX($C61:$L61,1,aux!$BA$1) -> -8485.215 | AD61: -0.007771211049 | AE61: =+IF(INDEX($C61:$L61,1,aux!$BA$1)>0,(L61/INDEX($C61:$L61,1,aux!$BA$1))^(1/($L$3-INDEX($C$3:$L$3,1,aux!$BA$1)))-1,"n.d.") -> -0.093259161 | AF61: =IF(INDEX($C61:$L61,1,aux!$BA$1)>0,(L61-INDEX($C61:$L61,1,aux!$BA$1))/INDEX($C61:$L61,1,aux!$BA$1),"n.d.") -> -0.585667893 | AH61: =X61-INDEX($O61:$X61,1,aux!$BA$1) -> 1234.55 | AI61: 0.0006957321872 | AJ61: =+IF(INDEX($O61:$X61,1,aux!$BA$1)>0,(X61/INDEX($O61:$X61,1,aux!$BA$1))^(1/($X$3-INDEX($O$3:$X$3,1,aux!$BA$1)))-1,"n.d.") -> 0.2378033054 | AK61: =IF(INDEX($O61:$X61,1,aux!$BA$1)>0,(X61-INDEX($O61:$X61,1,aux!$BA$1))/INDEX($O61:$X61,1,aux!$BA$1),"n.d.") -> 5.821262189 | CC61: =+IF(ISNA(MATCH('5.1'!A61,AUX_2d_pais!$G$2:$G$40000,0)),0,1) -> 1
A62: 0322 | B62: Congo, República Democrática do | C62: 18577.393 | D62: 14050.618 | E62: 9500.33 | F62: 5177.861 | G62: 5481.996 | H62: 5206.371 | I62: 7435.106 | J62: 4456.909 | K62: 4393.818 | L62: 5292.611 | M62: 7957.3013 | N62: 0.003452543497 | O62: 537.709 | P62: 1617.376 | Q62: 2438.674 | R62: 1376.215 | S62: 2157.697 | T62: 1355.165 | U62: 1292.926 | V62: 909.114 | W62: 1675.276 | X62: 1291.424 | Y62: 1465.1576 | Z62: 0.0005348814214 | AA62: -6492.1437 | AC62: =L62-INDEX($C62:$L62,1,aux!$BA$1) -> -13284.782 | AD62: -0.0121669097 | AE62: =+IF(INDEX($C62:$L62,1,aux!$BA$1)>0,(L62/INDEX($C62:$L62,1,aux!$BA$1))^(1/($L$3-INDEX($C$3:$L$3,1,aux!$BA$1)))-1,"n.d.") -> -0.1302198994 | AF62: =IF(INDEX($C62:$L62,1,aux!$BA$1)>0,(L62-INDEX($C62:$L62,1,aux!$BA$1))/INDEX($C62:$L62,1,aux!$BA$1),"n.d.") -> -0.7151047512 | AH62: =X62-INDEX($O62:$X62,1,aux!$BA$1) -> 753.715 | AI62: 0.0004247570252 | AJ62: =+IF(INDEX($O62:$X62,1,aux!$BA$1)>0,(X62/INDEX($O62:$X62,1,aux!$BA$1))^(1/($X$3-INDEX($O$3:$X$3,1,aux!$BA$1)))-1,"n.d.") -> 0.1022501636 | AK62: =IF(INDEX($O62:$X62,1,aux!$BA$1)>0,(X62-INDEX($O62:$X62,1,aux!$BA$1))/INDEX($O62:$X62,1,aux!$BA$1),"n.d.") -> 1.401715426 | CC62: =+IF(ISNA(MATCH('5.1'!A62,AUX_2d_pais!$G$2:$G$40000,0)),0,1) -> 1
A63: 0837 | B63: Cook, Ilhas | C63: 0 | D63: 0 | E63: 0 | F63: 0 | G63: 0 | H63: 0 | I63: 0 | J63: 0 | K63: 0 | L63: 0 | M63: 0 | N63: 0 | O63: 0 | P63: 0 | Q63: 0 | R63: 0 | S63: 0 | T63: 0 | U63: 0 | V63: 0 | W63: 0 | X63: 0 | Y63: 0 | Z63: 0 | AA63: 0 | AC63: =L63-INDEX($C63:$L63,1,aux!$BA$1) -> 0 | AD63: 0 | AE63: =+IF(INDEX($C63:$L63,1,aux!$BA$1)>0,(L63/INDEX($C63:$L63,1,aux!$BA$1))^(1/($L$3-INDEX($C$3:$L$3,1,aux!$BA$1)))-1,"n.d.") -> n.d. | AF63: =IF(INDEX($C63:$L63,1,aux!$BA$1)>0,(L63-INDEX($C63:$L63,1,aux!$BA$1))/INDEX($C63:$L63,1,aux!$BA$1),"n.d.") -> n.d. | AH63: =X63-INDEX($O63:$X63,1,aux!$BA$1) -> 0 | AI63: 0 | AJ63: =+IF(INDEX($O63:$X63,1,aux!$BA$1)>0,(X63/INDEX($O63:$X63,1,aux!$BA$1))^(1/($X$3-INDEX($O$3:$X$3,1,aux!$BA$1)))-1,"n.d.") -> n.d. | AK63: =IF(INDEX($O63:$X63,1,aux!$BA$1)>0,(X63-INDEX($O63:$X63,1,aux!$BA$1))/INDEX($O63:$X63,1,aux!$BA$1),"n.d.") -> n.d. | AM63: 0 | BO63: 0 | CC63: =+IF(ISNA(MATCH('5.1'!A63,AUX_2d_pais!$G$2:$G$40000,0)),0,1) -> 0
A64: 0728 | B64: Coreia, República da | C64: 1792.131 | D64: 2314.703 | E64: 2807.265 | F64: 2249.172 | G64: 3627.067 | H64: 6740.744 | I64: 9952.016 | J64: 10433.062 | K64: 11251.118 | L64: 12527.414 | M64: 6369.4692 | N64: 0.002763608997 | O64: 12320.022 | P64: 7096.313 | Q64: 5927.148 | R64: 7791.97 | S64: 5648.419 | T64: 5410.759 | U64: 8450.011 | V64: 10025.964 | W64: 9615.696 | X64: 9682.698 | Y64: 8196.9 | Z64: 0.002992421787 | AA64: 1827.4308 | AC64: =L64-INDEX($C64:$L64,1,aux!$BA$1) -> 10735.283 | AD64: 0.009831942958 | AE64: =+IF(INDEX($C64:$L64,1,aux!$BA$1)>0,(L64/INDEX($C64:$L64,1,aux!$BA$1))^(1/($L$3-INDEX($C$3:$L$3,1,aux!$BA$1)))-1,"n.d.") -> 0.2411732546 | AF64: =IF(INDEX($C64:$L64,1,aux!$BA$1)>0,(L64-INDEX($C64:$L64,1,aux!$BA$1))/INDEX($C64:$L64,1,aux!$BA$1),"n.d.") -> 5.990233415 | AH64: =X64-INDEX($O64:$X64,1,aux!$BA$1) -> -2637.324 | AI64: -0.001486267219 | AJ64: =+IF(INDEX($O64:$X64,1,aux!$BA$1)>0,(X64/INDEX($O64:$X64,1,aux!$BA$1))^(1/($X$3-INDEX($O$3:$X$3,1,aux!$BA$1)))-1,"n.d.") -> -0.02641000927 | AK64: =IF(INDEX($O64:$X64,1,aux!$BA$1)>0,(X64-INDEX($O64:$X64,1,aux!$BA$1))/INDEX($O64:$X64,1,aux!$BA$1),"n.d.") -> -0.2140681242 | CC64: =+IF(ISNA(MATCH('5.1'!A64,AUX_2d_pais!$G$2:$G$40000,0)),0,1) -> 1
A65: 0724 | B65: Coreia, República Popular Democrática da | C65: 0 | D65: 0 | E65: 0 | F65: 0 | G65: 0 | H65: 0 | I65: 0 | J65: 0 | K65: 0 | L65: 0 | M65: 0 | N65: 0 | O65: 0 | P65: 0 | Q65: 0 | R65: 0 | S65: 0 | T65: 11.34 | U65: 0 | V65: 0 | W65: 0 | X65: 0 | Y65: 1.134 | Z65: 4.139865444e-07 | AA65: 1.134 | AC65: =L65-INDEX($C65:$L65,1,aux!$BA$1) -> 0 | AD65: 0 | AE65: =+IF(INDEX($C65:$L65,1,aux!$BA$1)>0,(L65/INDEX($C65:$L65,1,aux!$BA$1))^(1/($L$3-INDEX($C$3:$L$3,1,aux!$BA$1)))-1,"n.d.") -> n.d. | AF65: =IF(INDEX($C65:$L65,1,aux!$BA$1)>0,(L65-INDEX($C65:$L65,1,aux!$BA$1))/INDEX($C65:$L65,1,aux!$BA$1),"n.d.") -> n.d. | AH65: =X65-INDEX($O65:$X65,1,aux!$BA$1) -> 0 | AI65: 0 | AJ65: =+IF(INDEX($O65:$X65,1,aux!$BA$1)>0,(X65/INDEX($O65:$X65,1,aux!$BA$1))^(1/($X$3-INDEX($O$3:$X$3,1,aux!$BA$1)))-1,"n.d.") -> n.d. | AK65: =IF(INDEX($O65:$X65,1,aux!$BA$1)>0,(X65-INDEX($O65:$X65,1,aux!$BA$1))/INDEX($O65:$X65,1,aux!$BA$1),"n.d.") -> n.d. | BO65: 11.34 | CC65: =+IF(ISNA(MATCH('5.1'!A65,AUX_2d_pais!$G$2:$G$40000,0)),0,1) -> 1
A66: 0272 | B66: Costa do Marfim | C66: 7599.677 | D66: 14986.26 | E66: 13552.489 | F66: 19865.109 | G66: 16108.01 | H66: 21515.819 | I66: 19234.625 | J66: 22362.891 | K66: 15110.948 | L66: 19861.723 | M66: 17019.7551 | N66: 0.007384594673 | O66: 1706.53 | P66: 1911.299 | Q66: 1496.032 | R66: 2904.726 | S66: 3550.536 | T66: 5800.007 | U66: 7805.244 | V66: 7539.761 | W66: 5945.922 | X66: 8113.314 | Y66: 4677.3371 | Z66: 0.001707543759 | AA66: -12342.418 | AC66: =L66-INDEX($C66:$L66,1,aux!$BA$1) -> 12262.046 | AD66: 0.01123023369 | AE66: =+IF(INDEX($C66:$L66,1,aux!$BA$1)>0,(L66/INDEX($C66:$L66,1,aux!$BA$1))^(1/($L$3-INDEX($C$3:$L$3,1,aux!$BA$1)))-1,"n.d.") -> 0.1126484731 | AF66: =IF(INDEX($C66:$L66,1,aux!$BA$1)>0,(L66-INDEX($C66:$L66,1,aux!$BA$1))/INDEX($C66:$L66,1,aux!$BA$1),"n.d.") -> 1.613495679 | AH66: =X66-INDEX($O66:$X66,1,aux!$BA$1) -> 6406.784 | AI66: 0.003610551088 | AJ66: =+IF(INDEX($O66:$X66,1,aux!$BA$1)>0,(X66/INDEX($O66:$X66,1,aux!$BA$1))^(1/($X$3-INDEX($O$3:$X$3,1,aux!$BA$1)))-1,"n.d.") -> 0.1891361863 | AK66: =IF(INDEX($O66:$X66,1,aux!$BA$1)>0,(X66-INDEX($O66:$X66,1,aux!$BA$1))/INDEX($O66:$X66,1,aux!$BA$1),"n.d.") -> 3.754275635 | CC66: =+IF(ISNA(MATCH('5.1'!A66,AUX_2d_pais!$G$2:$G$40000,0)),0,1) -> 1
A67: 0436 | B67: Costa Rica | C67: 49925.891 | D67: 53802.505 | E67: 54078.379 | F67: 33295.145 | G67: 52489.604 | H67: 16193.701 | I67: 27829.854 | J67: 40013.389 | K67: 56568.24 | L67: 63428.998 | M67: 44762.5706 | N67: 0.01942175069 | O67: 245.53 | P67: 782.132 | Q67: 2641.391 | R67: 1469.605 | S67: 1095.116 | T67: 1188.506 | U67: 2131.689 | V67: 2182.021 | W67: 2433.89 | X67: 4538.21 | Y67: 1870.809 | Z67: 0.0006829715637 | AA67: -42891.7616 | AC67: =L67-INDEX($C67:$L67,1,aux!$BA$1) -> 13503.107 | AD67: 0.01236686334 | AE67: =+IF(INDEX($C67:$L67,1,aux!$BA$1)>0,(L67/INDEX($C67:$L67,1,aux!$BA$1))^(1/($L$3-INDEX($C$3:$L$3,1,aux!$BA$1)))-1,"n.d.") -> 0.02695481689 | AF67: =IF(INDEX($C67:$L67,1,aux!$BA$1)>0,(L67-INDEX($C67:$L67,1,aux!$BA$1))/INDEX($C67:$L67,1,aux!$BA$1),"n.d.") -> 0.2704630149 | AH67: =X67-INDEX($O67:$X67,1,aux!$BA$1) -> 4292.68 | AI67: 0.00241914515 | AJ67: =+IF(INDEX($O67:$X67,1,aux!$BA$1)>0,(X67/INDEX($O67:$X67,1,aux!$BA$1))^(1/($X$3-INDEX($O$3:$X$3,1,aux!$BA$1)))-1,"n.d.") -> 0.3827807852 | AK67: =IF(INDEX($O67:$X67,1,aux!$BA$1)>0,(X67-INDEX($O67:$X67,1,aux!$BA$1))/INDEX($O67:$X67,1,aux!$BA$1),"n.d.") -> 17.48332179 | CC67: =+IF(ISNA(MATCH('5.1'!A67,AUX_2d_pais!$G$2:$G$40000,0)),0,1) -> 1
A68: 0092 | B68: Croácia | C68: 0 | D68: 0 | E68: 0 | F68: 0 | G68: 0 | H68: 0 | I68: 0 | J68: 0 | K68: 0 | L68: 0 | M68: 0 | N68: 0 | O68: 0 | P68: 0 | Q68: 0 | R68: 0 | S68: 0 | T68: 0 | U68: 0 | V68: 0 | W68: 0 | X68: 0 | Y68: 0 | Z68: 0 | AA68: 0 | AC68: =L68-INDEX($C68:$L68,1,aux!$BA$1) -> 0 | AD68: =AC68/$AC$252 -> 0 | AE68: =+IF(INDEX($C68:$L68,1,aux!$BA$1)>0,(L68/INDEX($C68:$L68,1,aux!$BA$1))^(1/($L$3-INDEX($C$3:$L$3,1,aux!$BA$1)))-1,"n.d.") -> n.d. | AF68: =IF(INDEX($C68:$L68,1,aux!$BA$1)>0,(L68-INDEX($C68:$L68,1,aux!$BA$1))/INDEX($C68:$L68,1,aux!$BA$1),"n.d.") -> n.d. | AH68: =X68-INDEX($O68:$X68,1,aux!$BA$1) -> 0 | AI68: =AH68/$AH$252 -> 0 | AJ68: =+IF(INDEX($O68:$X68,1,aux!$BA$1)>0,(X68/INDEX($O68:$X68,1,aux!$BA$1))^(1/($X$3-INDEX($O$3:$X$3,1,aux!$BA$1)))-1,"n.d.") -> n.d. | AK68: =IF(INDEX($O68:$X68,1,aux!$BA$1)>0,(X68-INDEX($O68:$X68,1,aux!$BA$1))/INDEX($O68:$X68,1,aux!$BA$1),"n.d.") -> n.d. | AM68: =SUM(A68:AA68) -> 0 | CC68: =+IF(ISNA(MATCH('5.1'!A68,AUX_2d_pais!$G$2:$G$40000,0)),0,1) -> 0
A69: 0448 | B69: Cuba | C69: 19276.906 | D69: 17546.132 | E69: 6253.582 | F69: 32040.22 | G69: 32384.132 | H69: 15458.61 | I69: 26750.152 | J69: 46616.662 | K69: 18448.479 | L69: 44722.644 | M69: 25949.7519 | N69: 0.01125917491 | O69: 586.343 | P69: 243.286 | Q69: 822.52 | R69: 2734.903 | S69: 1539.137 | T69: 2224.974 | U69: 6221.31 | V69: 5829.356 | W69: 5960.309 | X69: 5851.422 | Y69: 3201.356 | Z69: 0.00116871103 | AA69: -22748.3959 | AC69: =L69-INDEX($C69:$L69,1,aux!$BA$1) -> 25445.738 | AD69: 0.02330455979 | AE69: =+IF(INDEX($C69:$L69,1,aux!$BA$1)>0,(L69/INDEX($C69:$L69,1,aux!$BA$1))^(1/($L$3-INDEX($C$3:$L$3,1,aux!$BA$1)))-1,"n.d.") -> 0.09801940593 | AF69: =IF(INDEX($C69:$L69,1,aux!$BA$1)>0,(L69-INDEX($C69:$L69,1,aux!$BA$1))/INDEX($C69:$L69,1,aux!$BA$1),"n.d.") -> 1.320011521 | AH69: =X69-INDEX($O69:$X69,1,aux!$BA$1) -> 5265.079 | AI69: 0.002967141816 | AJ69: =+IF(INDEX($O69:$X69,1,aux!$BA$1)>0,(X69/INDEX($O69:$X69,1,aux!$BA$1))^(1/($X$3-INDEX($O$3:$X$3,1,aux!$BA$1)))-1,"n.d.") -> 0.2912555053 | AK69: =IF(INDEX($O69:$X69,1,aux!$BA$1)>0,(X69-INDEX($O69:$X69,1,aux!$BA$1))/INDEX($O69:$X69,1,aux!$BA$1),"n.d.") -> 8.97952052 | CC69: =+IF(ISNA(MATCH('5.1'!A69,AUX_2d_pais!$G$2:$G$40000,0)),0,1) -> 1
A70: 0475 | B70: Curaçau | C70: 0 | D70: 0 | E70: 0 | F70: 0 | G70: 17.8 | H70: 12.77 | I70: 716.997 | J70: 0 | K70: 0 | L70: 0 | M70: 74.7567 | N70: 3.243571517e-05 | O70: 0 | P70: 0 | Q70: 0 | R70: 0 | S70: 231.137 | T70: 370.567 | U70: 232.095 | V70: 360.865 | W70: 333.813 | X70: 351.834 | Y70: 188.0311 | Z70: 6.86440435e-05 | AA70: 113.2744 | AC70: =L70-INDEX($C70:$L70,1,aux!$BA$1) -> 0 | AD70: 0 | AE70: =+IF(INDEX($C70:$L70,1,aux!$BA$1)>0,(L70/INDEX($C70:$L70,1,aux!$BA$1))^(1/($L$3-INDEX($C$3:$L$3,1,aux!$BA$1)))-1,"n.d.") -> n.d. | AF70: =IF(INDEX($C70:$L70,1,aux!$BA$1)>0,(L70-INDEX($C70:$L70,1,aux!$BA$1))/INDEX($C70:$L70,1,aux!$BA$1),"n.d.") -> n.d. | AH70: =X70-INDEX($O70:$X70,1,aux!$BA$1) -> 351.834 | AI70: 0.0001982764881 | AJ70: =+IF(INDEX($O70:$X70,1,aux!$BA$1)>0,(X70/INDEX($O70:$X70,1,aux!$BA$1))^(1/($X$3-INDEX($O$3:$X$3,1,aux!$BA$1)))-1,"n.d.") -> n.d. | AK70: =IF(INDEX($O70:$X70,1,aux!$BA$1)>0,(X70-INDEX($O70:$X70,1,aux!$BA$1))/INDEX($O70:$X70,1,aux!$BA$1),"n.d.") -> n.d. | CC70: =+IF(ISNA(MATCH('5.1'!A70,AUX_2d_pais!$G$2:$G$40000,0)),0,1) -> 1
A71: 0008 | B71: Dinamarca | C71: 0 | D71: 0 | E71: 0 | F71: 0 | G71: 0 | H71: 0 | I71: 0 | J71: 0 | K71: 0 | L71: 0 | M71: 0 | N71: 0 | O71: 0 | P71: 0 | Q71: 0 | R71: 0 | S71: 0 | T71: 0 | U71: 0 | V71: 0 | W71: 0 | X71: 0 | Y71: 0 | Z71: 0 | AA71: 0 | AC71: =L71-INDEX($C71:$L71,1,aux!$BA$1) -> 0 | AD71: 0 | AE71: =+IF(INDEX($C71:$L71,1,aux!$BA$1)>0,(L71/INDEX($C71:$L71,1,aux!$BA$1))^(1/($L$3-INDEX($C$3:$L$3,1,aux!$BA$1)))-1,"n.d.") -> n.d. | AF71: =IF(INDEX($C71:$L71,1,aux!$BA$1)>0,(L71-INDEX($C71:$L71,1,aux!$BA$1))/INDEX($C71:$L71,1,aux!$BA$1),"n.d.") -> n.d. | AH71: =X71-INDEX($O71:$X71,1,aux!$BA$1) -> 0 | AI71: 0 | AJ71: =+IF(INDEX($O71:$X71,1,aux!$BA$1)>0,(X71/INDEX($O71:$X71,1,aux!$BA$1))^(1/($X$3-INDEX($O$3:$X$3,1,aux!$BA$1)))-1,"n.d.") -> n.d. | AK71: =IF(INDEX($O71:$X71,1,aux!$BA$1)>0,(X71-INDEX($O71:$X71,1,aux!$BA$1))/INDEX($O71:$X71,1,aux!$BA$1),"n.d.") -> n.d. | AM71: 0 | CC71: =+IF(ISNA(MATCH('5.1'!A71,AUX_2d_pais!$G$2:$G$40000,0)),0,1) -> 0
A72: 0460 | B72: Domínica | C72: 0 | D72: 0 | E72: 0 | F72: 0 | G72: 0 | H72: 0 | I72: 0 | J72: 0 | K72: 0 | L72: 0 | M72: 0 | N72: 0 | O72: 0 | P72: 26.272 | Q72: 0 | R72: 0 | S72: 0 | T72: 0 | U72: 0 | V72: 0.202 | W72: 0 | X72: 0 | Y72: 2.6474 | Z72: 9.664796982e-07 | AA72: 2.6474 | AC72: =L72-INDEX($C72:$L72,1,aux!$BA$1) -> 0 | AD72: 0 | AE72: =+IF(INDEX($C72:$L72,1,aux!$BA$1)>0,(L72/INDEX($C72:$L72,1,aux!$BA$1))^(1/($L$3-INDEX($C$3:$L$3,1,aux!$BA$1)))-1,"n.d.") -> n.d. | AF72: =IF(INDEX($C72:$L72,1,aux!$BA$1)>0,(L72-INDEX($C72:$L72,1,aux!$BA$1))/INDEX($C72:$L72,1,aux!$BA$1),"n.d.") -> n.d. | AH72: =X72-INDEX($O72:$X72,1,aux!$BA$1) -> 0 | AI72: 0 | AJ72: =+IF(INDEX($O72:$X72,1,aux!$BA$1)>0,(X72/INDEX($O72:$X72,1,aux!$BA$1))^(1/($X$3-INDEX($O$3:$X$3,1,aux!$BA$1)))-1,"n.d.") -> n.d. | AK72: =IF(INDEX($O72:$X72,1,aux!$BA$1)>0,(X72-INDEX($O72:$X72,1,aux!$BA$1))/INDEX($O72:$X72,1,aux!$BA$1),"n.d.") -> n.d. | BO72: =SUM(C72:L72,O72:X72) -> 26.474 | CC72: =+IF(ISNA(MATCH('5.1'!A72,AUX_2d_pais!$G$2:$G$40000,0)),0,1) -> 1
A73: 0456 | B73: Dominicana, República | C73: 733.979 | D73: 631.354 | E73: 334.177 | F73: 950.261 | G73: 13072.145 | H73: 16567.857 | I73: 1211.934 | J73: 249.324 | K73: 435.417 | L73: 906.601 | M73: 3509.3049 | N73: 0.001522630268 | O73: 1467.389 | P73: 3976.16 | Q73: 4434.087 | R73: 4972.924 | S73: 5272.541 | T73: 4905.433 | U73: 7522.558 | V73: 7138.029 | W73: 7637.691 | X73: 9585.592 | Y73: 5691.2404 | Z73: 0.002077686902 | AA73: 2181.9355 | AC73: =L73-INDEX($C73:$L73,1,aux!$BA$1) -> 172.622 | AD73: 0.0001580964058 | AE73: =+IF(INDEX($C73:$L73,1,aux!$BA$1)>0,(L73/INDEX($C73:$L73,1,aux!$BA$1))^(1/($L$3-INDEX($C$3:$L$3,1,aux!$BA$1)))-1,"n.d.") -> 0.02374668055 | AF73: =IF(INDEX($C73:$L73,1,aux!$BA$1)>0,(L73-INDEX($C73:$L73,1,aux!$BA$1))/INDEX($C73:$L73,1,aux!$BA$1),"n.d.") -> 0.2351865653 | AH73: =X73-INDEX($O73:$X73,1,aux!$BA$1) -> 8118.203 | AI73: 0.004575023393 | AJ73: =+IF(INDEX($O73:$X73,1,aux!$BA$1)>0,(X73/INDEX($O73:$X73,1,aux!$BA$1))^(1/($X$3-INDEX($O$3:$X$3,1,aux!$BA$1)))-1,"n.d.") -> 0.2318667761 | AK73: =IF(INDEX($O73:$X73,1,aux!$BA$1)>0,(X73-INDEX($O73:$X73,1,aux!$BA$1))/INDEX($O73:$X73,1,aux!$BA$1),"n.d.") -> 5.532413695 | CC73: =+IF(ISNA(MATCH('5.1'!A73,AUX_2d_pais!$G$2:$G$40000,0)),0,1) -> 1
A74: 0220 | B74: Egito | C74: 5063.32 | D74: 4522.76 | E74: 4675.66 | F74: 4663.667 | G74: 10580.358 | H74: 9713.929 | I74: 9415.833 | J74: 8411.472 | K74: 7769.676 | L74: 6524.289 | M74: 7134.0964 | N74: 0.003095368292 | O74: 12164.633 | P74: 20938.768 | Q74: 31751.203 | R74: 35400.305 | S74: 35288.839 | T74: 43418.004 | U74: 51440.08 | V74: 57986.886 | W74: 64246.232 | X74: 76853.563 | Y74: 42948.8513 | Z74: 0.01567922975 | AA74: 35814.7549 | AC74: =L74-INDEX($C74:$L74,1,aux!$BA$1) -> 1460.969 | AD74: 0.001338033089 | AE74: =+IF(INDEX($C74:$L74,1,aux!$BA$1)>0,(L74/INDEX($C74:$L74,1,aux!$BA$1))^(1/($L$3-INDEX($C$3:$L$3,1,aux!$BA$1)))-1,"n.d.") -> 0.02856819365 | AF74: =IF(INDEX($C74:$L74,1,aux!$BA$1)>0,(L74-INDEX($C74:$L74,1,aux!$BA$1))/INDEX($C74:$L74,1,aux!$BA$1),"n.d.") -> 0.2885397328 | AH74: =X74-INDEX($O74:$X74,1,aux!$BA$1) -> 64688.93 | AI74: 0.03645552692 | AJ74: =+IF(INDEX($O74:$X74,1,aux!$BA$1)>0,(X74/INDEX($O74:$X74,1,aux!$BA$1))^(1/($X$3-INDEX($O$3:$X$3,1,aux!$BA$1)))-1,"n.d.") -> 0.2273026337 | AK74: =IF(INDEX($O74:$X74,1,aux!$BA$1)>0,(X74-INDEX($O74:$X74,1,aux!$BA$1))/INDEX($O74:$X74,1,aux!$BA$1),"n.d.") -> 5.317787228 | CC74: =+IF(ISNA(MATCH('5.1'!A74,AUX_2d_pais!$G$2:$G$40000,0)),0,1) -> 1
A75: 0428 | B75: El Salvador | C75: 1956.92 | D75: 568.227 | E75: 143.152 | F75: 279.425 | G75: 141.005 | H75: 175.032 | I75: 305.271 | J75: 1083.794 | K75: 4180.437 | L75: 4424.473 | M75: 1325.7736 | N75: 0.0005752315828 | O75: 40.486 | P75: 304.937 | Q75: 829.224 | R75: 181.299 | S75: 185.659 | T75: 165.106 | U75: 171.935 | V75: 482.538 | W75: 243.227 | X75: 1167.129 | Y75: 377.154 | Z75: 0.0001376866677 | AA75: -948.6196 | AC75: =L75-INDEX($C75:$L75,1,aux!$BA$1) -> 2467.553 | AD75: 0.002259916235 | AE75: =+IF(INDEX($C75:$L75,1,aux!$BA$1)>0,(L75/INDEX($C75:$L75,1,aux!$BA$1))^(1/($L$3-INDEX($C$3:$L$3,1,aux!$BA$1)))-1,"n.d.") -> 0.09487713539 | AF75: =IF(INDEX($C75:$L75,1,aux!$BA$1)>0,(L75-INDEX($C75:$L75,1,aux!$BA$1))/INDEX($C75:$L75,1,aux!$BA$1),"n.d.") -> 1.260937085 | AH75: =X75-INDEX($O75:$X75,1,aux!$BA$1) -> 1126.643 | AI75: 0.0006349210632 | AJ75: =+IF(INDEX($O75:$X75,1,aux!$BA$1)>0,(X75/INDEX($O75:$X75,1,aux!$BA$1))^(1/($X$3-INDEX($O$3:$X$3,1,aux!$BA$1)))-1,"n.d.") -> 0.4527856934 | AK75: =IF(INDEX($O75:$X75,1,aux!$BA$1)>0,(X75-INDEX($O75:$X75,1,aux!$BA$1))/INDEX($O75:$X75,1,aux!$BA$1),"n.d.") -> 27.82796522 | CC75: =+IF(ISNA(MATCH('5.1'!A75,AUX_2d_pais!$G$2:$G$40000,0)),0,1) -> 1
A76: 0647 | B76: Emirados Árabes Unidos | C76: 170.671 | D76: 124.492 | E76: 114.002 | F76: 376.675 | G76: 277.982 | H76: 298.327 | I76: 272.192 | J76: 338.823 | K76: 686.462 | L76: 376.825 | M76: 303.6451 | N76: 0.0001317466659 | O76: 5952.937 | P76: 10020.195 | Q76: 17998.704 | R76: 20814.093 | S76: 18500.777 | T76: 24571.909 | U76: 35586.342 | V76: 40343.811 | W76: 42542.008 | X76: 29681.125 | Y76: 24601.1901 | Z76: 0.008981094954 | AA76: 24297.545 | AC76: =L76-INDEX($C76:$L76,1,aux!$BA$1) -> 206.154 | AD76: 0.0001888067943 | AE76: =+IF(INDEX($C76:$L76,1,aux!$BA$1)>0,(L76/INDEX($C76:$L76,1,aux!$BA$1))^(1/($L$3-INDEX($C$3:$L$3,1,aux!$BA$1)))-1,"n.d.") -> 0.09199335898 | AF76: =IF(INDEX($C76:$L76,1,aux!$BA$1)>0,(L76-INDEX($C76:$L76,1,aux!$BA$1))/INDEX($C76:$L76,1,aux!$BA$1),"n.d.") -> 1.207902924 | AH76: =X76-INDEX($O76:$X76,1,aux!$BA$1) -> 23728.188 | AI76: 0.01337204984 | AJ76: =+IF(INDEX($O76:$X76,1,aux!$BA$1)>0,(X76/INDEX($O76:$X76,1,aux!$BA$1))^(1/($X$3-INDEX($O$3:$X$3,1,aux!$BA$1)))-1,"n.d.") -> 0.1954397004 | AK76: =IF(INDEX($O76:$X76,1,aux!$BA$1)>0,(X76-INDEX($O76:$X76,1,aux!$BA$1))/INDEX($O76:$X76,1,aux!$BA$1),"n.d.") -> 3.985963231 | CC76: =+IF(ISNA(MATCH('5.1'!A76,AUX_2d_pais!$G$2:$G$40000,0)),0,1) -> 1
A77: 0500 | B77: Equador | C77: 23785.579 | D77: 21812.538 | E77: 21749.973 | F77: 12215.045 | G77: 16057.221 | H77: 13998.156 | I77: 13363.068 | J77: 17915.844 | K77: 25037.02 | L77: 29078.267 | M77: 19501.2711 | N77: 0.008461284069 | O77: 301.873 | P77: 1482.762 | Q77: 3647.257 | R77: 2138.757 | S77: 6523.192 | T77: 4325.287 | U77: 2550.75 | V77: 3573.32 | W77: 1881.327 | X77: 3170.376 | Y77: 2959.4901 | Z77: 0.001080413651 | AA77: -16541.781 | AC77: =L77-INDEX($C77:$L77,1,aux!$BA$1) -> 5292.688 | AD77: 0.004847325079 | AE77: =+IF(INDEX($C77:$L77,1,aux!$BA$1)>0,(L77/INDEX($C77:$L77,1,aux!$BA$1))^(1/($L$3-INDEX($C$3:$L$3,1,aux!$BA$1)))-1,"n.d.") -> 0.02257454338 | AF77: =IF(INDEX($C77:$L77,1,aux!$BA$1)>0,(L77-INDEX($C77:$L77,1,aux!$BA$1))/INDEX($C77:$L77,1,aux!$BA$1),"n.d.") -> 0.222516677 | AH77: =X77-INDEX($O77:$X77,1,aux!$BA$1) -> 2868.503 | AI77: 0.001616548432 | AJ77: =+IF(INDEX($O77:$X77,1,aux!$BA$1)>0,(X77/INDEX($O77:$X77,1,aux!$BA$1))^(1/($X$3-INDEX($O$3:$X$3,1,aux!$BA$1)))-1,"n.d.") -> 0.2986026294 | AK77: =IF(INDEX($O77:$X77,1,aux!$BA$1)>0,(X77-INDEX($O77:$X77,1,aux!$BA$1))/INDEX($O77:$X77,1,aux!$BA$1),"n.d.") -> 9.502350326 | CC77: =+IF(ISNA(MATCH('5.1'!A77,AUX_2d_pais!$G$2:$G$40000,0)),0,1) -> 1
A78: 0336 | B78: Eritreia | C78: 0 | D78: 0 | E78: 0 | F78: 0 | G78: 0 | H78: 0 | I78: 0 | J78: 0 | K78: 0 | L78: 0 | M78: 0 | N78: 0 | O78: 0 | P78: 0 | Q78: 0 | R78: 0 | S78: 0 | T78: 0 | U78: 0 | V78: 0 | W78: 0 | X78: 0 | Y78: 0 | Z78: 0 | AA78: 0 | AC78: =L78-INDEX($C78:$L78,1,aux!$BA$1) -> 0 | AD78: 0 | AE78: =+IF(INDEX($C78:$L78,1,aux!$BA$1)>0,(L78/INDEX($C78:$L78,1,aux!$BA$1))^(1/($L$3-INDEX($C$3:$L$3,1,aux!$BA$1)))-1,"n.d.") -> n.d. | AF78: =IF(INDEX($C78:$L78,1,aux!$BA$1)>0,(L78-INDEX($C78:$L78,1,aux!$BA$1))/INDEX($C78:$L78,1,aux!$BA$1),"n.d.") -> n.d. | AH78: =X78-INDEX($O78:$X78,1,aux!$BA$1) -> 0 | AI78: 0 | AJ78: =+IF(INDEX($O78:$X78,1,aux!$BA$1)>0,(X78/INDEX($O78:$X78,1,aux!$BA$1))^(1/($X$3-INDEX($O$3:$X$3,1,aux!$BA$1)))-1,"n.d.") -> n.d. | AK78: =IF(INDEX($O78:$X78,1,aux!$BA$1)>0,(X78-INDEX($O78:$X78,1,aux!$BA$1))/INDEX($O78:$X78,1,aux!$BA$1),"n.d.") -> n.d. | AM78: 0 | BO78: 0 | CC78: =+IF(ISNA(MATCH('5.1'!A78,AUX_2d_pais!$G$2:$G$40000,0)),0,1) -> 0
A79: 0063 | B79: Eslováquia | C79: 0 | D79: 0 | E79: 0 | F79: 0 | G79: 0 | H79: 0 | I79: 0 | J79: 0 | K79: 0 | L79: 0 | M79: 0 | N79: 0 | O79: 0 | P79: 0 | Q79: 0 | R79: 0 | S79: 0 | T79: 0 | U79: 0 | V79: 0 | W79: 0 | X79: 0 | Y79: 0 | Z79: 0 | AA79: 0 | AC79: =L79-INDEX($C79:$L79,1,aux!$BA$1) -> 0 | AD79: 0 | AE79: =+IF(INDEX($C79:$L79,1,aux!$BA$1)>0,(L79/INDEX($C79:$L79,1,aux!$BA$1))^(1/($L$3-INDEX($C$3:$L$3,1,aux!$BA$1)))-1,"n.d.") -> n.d. | AF79: =IF(INDEX($C79:$L79,1,aux!$BA$1)>0,(L79-INDEX($C79:$L79,1,aux!$BA$1))/INDEX($C79:$L79,1,aux!$BA$1),"n.d.") -> n.d. | AH79: =X79-INDEX($O79:$X79,1,aux!$BA$1) -> 0 | AI79: 0 | AJ79: =+IF(INDEX($O79:$X79,1,aux!$BA$1)>0,(X79/INDEX($O79:$X79,1,aux!$BA$1))^(1/($X$3-INDEX($O$3:$X$3,1,aux!$BA$1)))-1,"n.d.") -> n.d. | AK79: =IF(INDEX($O79:$X79,1,aux!$BA$1)>0,(X79-INDEX($O79:$X79,1,aux!$BA$1))/INDEX($O79:$X79,1,aux!$BA$1),"n.d.") -> n.d. | AM79: 0 | CC79: =+IF(ISNA(MATCH('5.1'!A79,AUX_2d_pais!$G$2:$G$40000,0)),0,1) -> 0
A80: 0091 | B80: Eslovénia | C80: 0 | D80: 0 | E80: 0 | F80: 0 | G80: 0 | H80: 0 | I80: 0 | J80: 0 | K80: 0 | L80: 0 | M80: 0 | N80: 0 | O80: 0 | P80: 0 | Q80: 0 | R80: 0 | S80: 0 | T80: 0 | U80: 0 | V80: 0 | W80: 0 | X80: 0 | Y80: 0 | Z80: 0 | AA80: 0 | AC80: =L80-INDEX($C80:$L80,1,aux!$BA$1) -> 0 | AD80: 0 | AE80: =+IF(INDEX($C80:$L80,1,aux!$BA$1)>0,(L80/INDEX($C80:$L80,1,aux!$BA$1))^(1/($L$3-INDEX($C$3:$L$3,1,aux!$BA$1)))-1,"n.d.") -> n.d. | AF80: =IF(INDEX($C80:$L80,1,aux!$BA$1)>0,(L80-INDEX($C80:$L80,1,aux!$BA$1))/INDEX($C80:$L80,1,aux!$BA$1),"n.d.") -> n.d. | AH80: =X80-INDEX($O80:$X80,1,aux!$BA$1) -> 0 | AI80: 0 | AJ80: =+IF(INDEX($O80:$X80,1,aux!$BA$1)>0,(X80/INDEX($O80:$X80,1,aux!$BA$1))^(1/($X$3-INDEX($O$3:$X$3,1,aux!$BA$1)))-1,"n.d.") -> n.d. | AK80: =IF(INDEX($O80:$X80,1,aux!$BA$1)>0,(X80-INDEX($O80:$X80,1,aux!$BA$1))/INDEX($O80:$X80,1,aux!$BA$1),"n.d.") -> n.d. | AM80: 0 | CC80: =+IF(ISNA(MATCH('5.1'!A80,AUX_2d_pais!$G$2:$G$40000,0)),0,1) -> 0
A81: 0011 | B81: Espanha | C81: 0 | D81: 0 | E81: 0 | F81: 0 | G81: 0 | H81: 0 | I81: 0 | J81: 0 | K81: 0 | L81: 0 | M81: 0 | N81: 0 | O81: 0 | P81: 0 | Q81: 0 | R81: 0 | S81: 0 | T81: 0 | U81: 0 | V81: 0 | W81: 0 | X81: 0 | Y81: 0 | Z81: 0 | AA81: 0 | AC81: =L81-INDEX($C81:$L81,1,aux!$BA$1) -> 0 | AD81: 0 | AE81: =+IF(INDEX($C81:$L81,1,aux!$BA$1)>0,(L81/INDEX($C81:$L81,1,aux!$BA$1))^(1/($L$3-INDEX($C$3:$L$3,1,aux!$BA$1)))-1,"n.d.") -> n.d. | AF81: =IF(INDEX($C81:$L81,1,aux!$BA$1)>0,(L81-INDEX($C81:$L81,1,aux!$BA$1))/INDEX($C81:$L81,1,aux!$BA$1),"n.d.") -> n.d. | AH81: =X81-INDEX($O81:$X81,1,aux!$BA$1) -> 0 | AI81: 0 | AJ81: =+IF(INDEX($O81:$X81,1,aux!$BA$1)>0,(X81/INDEX($O81:$X81,1,aux!$BA$1))^(1/($X$3-INDEX($O$3:$X$3,1,aux!$BA$1)))-1,"n.d.") -> n.d. | AK81: =IF(INDEX($O81:$X81,1,aux!$BA$1)>0,(X81-INDEX($O81:$X81,1,aux!$BA$1))/INDEX($O81:$X81,1,aux!$BA$1),"n.d.") -> n.d. | AM81: 0 | CC81: =+IF(ISNA(MATCH('5.1'!A81,AUX_2d_pais!$G$2:$G$40000,0)),0,1) -> 0
A82: 0400 | B82: Estados Unidos | C82: 137760.542 | D82: 214109.728 | E82: 308658.349 | F82: 226799.752 | G82: 265247.762 | H82: 284255.803 | I82: 250403.615 | J82: 233965.822 | K82: 194259.927 | L82: 363121.23 | M82: 247858.253 | N82: 0.1075416611 | O82: 207752.644 | P82: 293661.786 | Q82: 331757.756 | R82: 361934.658 | S82: 380783.71 | T82: 401572.439 | U82: 487078.474 | V82: 456826.354 | W82: 462235.205 | X82: 487428.327 | Y82: 387103.1353 | Z82: 0.1413187737 | AA82: 139244.8823 | AC82: =L82-INDEX($C82:$L82,1,aux!$BA$1) -> 225360.688 | AD82: 0.2063973003 | AE82: =+IF(INDEX($C82:$L82,1,aux!$BA$1)>0,(L82/INDEX($C82:$L82,1,aux!$BA$1))^(1/($L$3-INDEX($C$3:$L$3,1,aux!$BA$1)))-1,"n.d.") -> 0.1137036531 | AF82: =IF(INDEX($C82:$L82,1,aux!$BA$1)>0,(L82-INDEX($C82:$L82,1,aux!$BA$1))/INDEX($C82:$L82,1,aux!$BA$1),"n.d.") -> 1.63588706 | AH82: =X82-INDEX($O82:$X82,1,aux!$BA$1) -> 279675.683 | AI82: 0.1576115788 | AJ82: =+IF(INDEX($O82:$X82,1,aux!$BA$1)>0,(X82/INDEX($O82:$X82,1,aux!$BA$1))^(1/($X$3-INDEX($O$3:$X$3,1,aux!$BA$1)))-1,"n.d.") -> 0.09938948363 | AK82: =IF(INDEX($O82:$X82,1,aux!$BA$1)>0,(X82-INDEX($O82:$X82,1,aux!$BA$1))/INDEX($O82:$X82,1,aux!$BA$1),"n.d.") -> 1.346195541 | CC82: =+IF(ISNA(MATCH('5.1'!A82,AUX_2d_pais!$G$2:$G$40000,0)),0,1) -> 1
A83: 0053 | B83: Estónia | C83: 0 | D83: 0 | E83: 0 | F83: 0 | G83: 0 | H83: 0 | I83: 0 | J83: 0 | K83: 0 | L83: 0 | M83: 0 | N83: 0 | O83: 0 | P83: 0 | Q83: 0 | R83: 0 | S83: 0 | T83: 0 | U83: 0 | V83: 0 | W83: 0 | X83: 0 | Y83: 0 | Z83: 0 | AA83: 0 | AC83: =L83-INDEX($C83:$L83,1,aux!$BA$1) -> 0 | AD83: 0 | AE83: =+IF(INDEX($C83:$L83,1,aux!$BA$1)>0,(L83/INDEX($C83:$L83,1,aux!$BA$1))^(1/($L$3-INDEX($C$3:$L$3,1,aux!$BA$1)))-1,"n.d.") -> n.d. | AF83: =IF(INDEX($C83:$L83,1,aux!$BA$1)>0,(L83-INDEX($C83:$L83,1,aux!$BA$1))/INDEX($C83:$L83,1,aux!$BA$1),"n.d.") -> n.d. | AH83: =X83-INDEX($O83:$X83,1,aux!$BA$1) -> 0 | AI83: 0 | AJ83: =+IF(INDEX($O83:$X83,1,aux!$BA$1)>0,(X83/INDEX($O83:$X83,1,aux!$BA$1))^(1/($X$3-INDEX($O$3:$X$3,1,aux!$BA$1)))-1,"n.d.") -> n.d. | AK83: =IF(INDEX($O83:$X83,1,aux!$BA$1)>0,(X83-INDEX($O83:$X83,1,aux!$BA$1))/INDEX($O83:$X83,1,aux!$BA$1),"n.d.") -> n.d. | AM83: 0 | CC83: =+IF(ISNA(MATCH('5.1'!A83,AUX_2d_pais!$G$2:$G$40000,0)),0,1) -> 0
A84: 0334 | B84: Etiópia | C84: 13557.843 | D84: 1015.774 | E84: 255.988 | F84: 1864.726 | G84: 2830.688 | H84: 5649.774 | I84: 3489.428 | J84: 4709.007 | K84: 6740.565 | L84: 6282.593 | M84: 4639.6386 | N84: 0.00201306366 | O84: 183.999 | P84: 697.998 | Q84: 407.937 | R84: 898.176 | S84: 1428.583 | T84: 1528.211 | U84: 798.43 | V84: 4148.308 | W84: 3604.826 | X84: 3285.219 | Y84: 1698.1687 | Z84: 0.000619946201 | AA84: -2941.4699 | AC84: =L84-INDEX($C84:$L84,1,aux!$BA$1) -> -7275.25 | AD84: -0.00666306077 | AE84: =+IF(INDEX($C84:$L84,1,aux!$BA$1)>0,(L84/INDEX($C84:$L84,1,aux!$BA$1))^(1/($L$3-INDEX($C$3:$L$3,1,aux!$BA$1)))-1,"n.d.") -> -0.08191445988 | AF84: =IF(INDEX($C84:$L84,1,aux!$BA$1)>0,(L84-INDEX($C84:$L84,1,aux!$BA$1))/INDEX($C84:$L84,1,aux!$BA$1),"n.d.") -> -0.5366082201 | AH84: =X84-INDEX($O84:$X84,1,aux!$BA$1) -> 3101.22 | AI84: 0.001747696386 | AJ84: =+IF(INDEX($O84:$X84,1,aux!$BA$1)>0,(X84/INDEX($O84:$X84,1,aux!$BA$1))^(1/($X$3-INDEX($O$3:$X$3,1,aux!$BA$1)))-1,"n.d.") -> 0.3774733555 | AK84: =IF(INDEX($O84:$X84,1,aux!$BA$1)>0,(X84-INDEX($O84:$X84,1,aux!$BA$1))/INDEX($O84:$X84,1,aux!$BA$1),"n.d.") -> 16.85454812 | CC84: =+IF(ISNA(MATCH('5.1'!A84,AUX_2d_pais!$G$2:$G$40000,0)),0,1) -> 1
A85: 0529 | B85: Falkland Ilhas (Malvinas) | C85: 0 | D85: 0 | E85: 0 | F85: 0 | G85: 0 | H85: 0 | I85: 0 | J85: 0 | K85: 0 | L85: 190.311 | M85: 19.0311 | N85: 8.257284483e-06 | O85: 0 | P85: 0 | Q85: 0 | R85: 0 | S85: 0 | T85: 0 | U85: 0 | V85: 0 | W85: 0 | X85: 0 | Y85: 0 | Z85: 0 | AA85: -19.0311 | AC85: =L85-INDEX($C85:$L85,1,aux!$BA$1) -> 190.311 | AD85: 0.0001742969325 | AE85: =+IF(INDEX($C85:$L85,1,aux!$BA$1)>0,(L85/INDEX($C85:$L85,1,aux!$BA$1))^(1/($L$3-INDEX($C$3:$L$3,1,aux!$BA$1)))-1,"n.d.") -> n.d. | AF85: =IF(INDEX($C85:$L85,1,aux!$BA$1)>0,(L85-INDEX($C85:$L85,1,aux!$BA$1))/INDEX($C85:$L85,1,aux!$BA$1),"n.d.") -> n.d. | AH85: =X85-INDEX($O85:$X85,1,aux!$BA$1) -> 0 | AI85: 0 | AJ85: =+IF(INDEX($O85:$X85,1,aux!$BA$1)>0,(X85/INDEX($O85:$X85,1,aux!$BA$1))^(1/($X$3-INDEX($O$3:$X$3,1,aux!$BA$1)))-1,"n.d.") -> n.d. | AK85: =IF(INDEX($O85:$X85,1,aux!$BA$1)>0,(X85-INDEX($O85:$X85,1,aux!$BA$1))/INDEX($O85:$X85,1,aux!$BA$1),"n.d.") -> n.d. | BO85: 190.311 | CC85: =+IF(ISNA(MATCH('5.1'!A85,AUX_2d_pais!$G$2:$G$40000,0)),0,1) -> 1
A86: 0041 | B86: Faroé, Ilhas | C86: 131.754 | D86: 0 | E86: 46.119 | F86: 259.933 | G86: 0 | H86: 0 | I86: 6.437 | J86: 67.736 | K86: 2434.705 | L86: 12.226 | M86: 295.891 | N86: 0.0001283822881 | O86: 0 | P86: 0 | Q86: 0.011 | R86: 0.141 | S86: 0 | T86: 0 | U86: 0.026 | V86: 0.863 | W86: 0.403 | X86: 0.753 | Y86: 0.2197 | Z86: 8.020532964e-08 | AA86: -295.6713 | AC86: =L86-INDEX($C86:$L86,1,aux!$BA$1) -> -119.528 | AD86: -0.0001094700976 | AE86: =+IF(INDEX($C86:$L86,1,aux!$BA$1)>0,(L86/INDEX($C86:$L86,1,aux!$BA$1))^(1/($L$3-INDEX($C$3:$L$3,1,aux!$BA$1)))-1,"n.d.") -> -0.2321435005 | AF86: =IF(INDEX($C86:$L86,1,aux!$BA$1)>0,(L86-INDEX($C86:$L86,1,aux!$BA$1))/INDEX($C86:$L86,1,aux!$BA$1),"n.d.") -> -0.9072058533 | AH86: =X86-INDEX($O86:$X86,1,aux!$BA$1) -> 0.753 | AI86: 4.243540861e-07 | AJ86: =+IF(INDEX($O86:$X86,1,aux!$BA$1)>0,(X86/INDEX($O86:$X86,1,aux!$BA$1))^(1/($X$3-INDEX($O$3:$X$3,1,aux!$BA$1)))-1,"n.d.") -> n.d. | AK86: =IF(INDEX($O86:$X86,1,aux!$BA$1)>0,(X86-INDEX($O86:$X86,1,aux!$BA$1))/INDEX($O86:$X86,1,aux!$BA$1),"n.d.") -> n.d. | BO86: 2961.107 | CC86: =+IF(ISNA(MATCH('5.1'!A86,AUX_2d_pais!$G$2:$G$40000,0)),0,1) -> 1
A87: 0815 | B87: Fiji, Ilhas | C87: 0 | D87: 0 | E87: 73.248 | F87: 0.24 | G87: 18927.738 | H87: 0.743 | I87: 14350.046 | J87: 11904.997 | K87: 18669.343 | L87: 460.131 | M87: 6438.6486 | N87: 0.002793624813 | O87: 0.464 | P87: 0 | Q87: 13.512 | R87: 13.572 | S87: 0 | T87: 18.636 | U87: 0 | V87: 0 | W87: 21.325 | X87: 21.503 | Y87: 8.9012 | Z87: 3.249538827e-06 | AA87: -6429.7474 | AC87: =L87-INDEX($C87:$L87,1,aux!$BA$1) -> 460.131 | AD87: 0.0004214124346 | AE87: =+IF(INDEX($C87:$L87,1,aux!$BA$1)>0,(L87/INDEX($C87:$L87,1,aux!$BA$1))^(1/($L$3-INDEX($C$3:$L$3,1,aux!$BA$1)))-1,"n.d.") -> n.d. | AF87: =IF(INDEX($C87:$L87,1,aux!$BA$1)>0,(L87-INDEX($C87:$L87,1,aux!$BA$1))/INDEX($C87:$L87,1,aux!$BA$1),"n.d.") -> n.d. | AH87: =X87-INDEX($O87:$X87,1,aux!$BA$1) -> 21.039 | AI87: 1.18565546e-05 | AJ87: =+IF(INDEX($O87:$X87,1,aux!$BA$1)>0,(X87/INDEX($O87:$X87,1,aux!$BA$1))^(1/($X$3-INDEX($O$3:$X$3,1,aux!$BA$1)))-1,"n.d.") -> 0.5314718141 | AK87: =IF(INDEX($O87:$X87,1,aux!$BA$1)>0,(X87-INDEX($O87:$X87,1,aux!$BA$1))/INDEX($O87:$X87,1,aux!$BA$1),"n.d.") -> 45.34267241 | BO87: 64475.498 | CC87: =+IF(ISNA(MATCH('5.1'!A87,AUX_2d_pais!$G$2:$G$40000,0)),0,1) -> 1
A88: 0708 | B88: Filipinas | C88: 1406.372 | D88: 1122.108 | E88: 3229.153 | F88: 2047.217 | G88: 830.579 | H88: 1222.64 | I88: 3612.304 | J88: 4423.379 | K88: 7572.089 | L88: 13985.46 | M88: 3945.1301 | N88: 0.001711727728 | O88: 885.264 | P88: 1580.57 | Q88: 1462.04 | R88: 1405.585 | S88: 1403.627 | T88: 1719.369 | U88: 1695.069 | V88: 1614.479 | W88: 2480.129 | X88: 2726.224 | Y88: 1697.2356 | Z88: 0.0006196055565 | AA88: -2247.8945 | AC88: =L88-INDEX($C88:$L88,1,aux!$BA$1) -> 12579.088 | AD88: 0.01152059761 | AE88: =+IF(INDEX($C88:$L88,1,aux!$BA$1)>0,(L88/INDEX($C88:$L88,1,aux!$BA$1))^(1/($L$3-INDEX($C$3:$L$3,1,aux!$BA$1)))-1,"n.d.") -> 0.2907491218 | AF88: =IF(INDEX($C88:$L88,1,aux!$BA$1)>0,(L88-INDEX($C88:$L88,1,aux!$BA$1))/INDEX($C88:$L88,1,aux!$BA$1),"n.d.") -> 8.944353272 | AH88: =X88-INDEX($O88:$X88,1,aux!$BA$1) -> 1840.96 | AI88: 0.001037475297 | AJ88: =+IF(INDEX($O88:$X88,1,aux!$BA$1)>0,(X88/INDEX($O88:$X88,1,aux!$BA$1))^(1/($X$3-INDEX($O$3:$X$3,1,aux!$BA$1)))-1,"n.d.") -> 0.1331216198 | AK88: =IF(INDEX($O88:$X88,1,aux!$BA$1)>0,(X88-INDEX($O88:$X88,1,aux!$BA$1))/INDEX($O88:$X88,1,aux!$BA$1),"n.d.") -> 2.079560448 | CC88: =+IF(ISNA(MATCH('5.1'!A88,AUX_2d_pais!$G$2:$G$40000,0)),0,1) -> 1
A89: 0032 | B89: Finlândia | C89: 0 | D89: 0 | E89: 0 | F89: 0 | G89: 0 | H89: 0 | I89: 0 | J89: 0 | K89: 0 | L89: 0 | M89: 0 | N89: 0 | O89: 0 | P89: 0 | Q89: 0 | R89: 0 | S89: 0 | T89: 0 | U89: 0 | V89: 0 | W89: 0 | X89: 0 | Y89: 0 | Z89: 0 | AA89: 0 | AC89: =L89-INDEX($C89:$L89,1,aux!$BA$1) -> 0 | AD89: 0 | AE89: =+IF(INDEX($C89:$L89,1,aux!$BA$1)>0,(L89/INDEX($C89:$L89,1,aux!$BA$1))^(1/($L$3-INDEX($C$3:$L$3,1,aux!$BA$1)))-1,"n.d.") -> n.d. | AF89: =IF(INDEX($C89:$L89,1,aux!$BA$1)>0,(L89-INDEX($C89:$L89,1,aux!$BA$1))/INDEX($C89:$L89,1,aux!$BA$1),"n.d.") -> n.d. | AH89: =X89-INDEX($O89:$X89,1,aux!$BA$1) -> 0 | AI89: 0 | AJ89: =+IF(INDEX($O89:$X89,1,aux!$BA$1)>0,(X89/INDEX($O89:$X89,1,aux!$BA$1))^(1/($X$3-INDEX($O$3:$X$3,1,aux!$BA$1)))-1,"n.d.") -> n.d. | AK89: =IF(INDEX($O89:$X89,1,aux!$BA$1)>0,(X89-INDEX($O89:$X89,1,aux!$BA$1))/INDEX($O89:$X89,1,aux!$BA$1),"n.d.") -> n.d. | AM89: 0 | CC89: =+IF(ISNA(MATCH('5.1'!A89,AUX_2d_pais!$G$2:$G$40000,0)),0,1) -> 0
A90: 0001 | B90: França | C90: 0 | D90: 0 | E90: 0 | F90: 0 | G90: 0 | H90: 0 | I90: 0 | J90: 0 | K90: 0 | L90: 0 | M90: 0 | N90: 0 | O90: 0 | P90: 0 | Q90: 0 | R90: 0 | S90: 0 | T90: 0 | U90: 0 | V90: 0 | W90: 0 | X90: 0 | Y90: 0 | Z90: 0 | AA90: 0 | AC90: =L90-INDEX($C90:$L90,1,aux!$BA$1) -> 0 | AD90: 0 | AE90: =+IF(INDEX($C90:$L90,1,aux!$BA$1)>0,(L90/INDEX($C90:$L90,1,aux!$BA$1))^(1/($L$3-INDEX($C$3:$L$3,1,aux!$BA$1)))-1,"n.d.") -> n.d. | AF90: =IF(INDEX($C90:$L90,1,aux!$BA$1)>0,(L90-INDEX($C90:$L90,1,aux!$BA$1))/INDEX($C90:$L90,1,aux!$BA$1),"n.d.") -> n.d. | AH90: =X90-INDEX($O90:$X90,1,aux!$BA$1) -> 0 | AI90: 0 | AJ90: =+IF(INDEX($O90:$X90,1,aux!$BA$1)>0,(X90/INDEX($O90:$X90,1,aux!$BA$1))^(1/($X$3-INDEX($O$3:$X$3,1,aux!$BA$1)))-1,"n.d.") -> n.d. | AK90: =IF(INDEX($O90:$X90,1,aux!$BA$1)>0,(X90-INDEX($O90:$X90,1,aux!$BA$1))/INDEX($O90:$X90,1,aux!$BA$1),"n.d.") -> n.d. | AM90: 0 | CC90: =+IF(ISNA(MATCH('5.1'!A90,AUX_2d_pais!$G$2:$G$40000,0)),0,1) -> 0
A91: 0314 | B91: Gabão | C91: 4549.798 | D91: 5045.583 | E91: 3537.913 | F91: 1682.535 | G91: 2531.669 | H91: 1914.978 | I91: 3485.592 | J91: 3425.94 | K91: 2940.069 | L91: 2562.928 | M91: 3167.7005 | N91: 0.00137441368 | O91: 229.661 | P91: 386.061 | Q91: 872.376 | R91: 617.412 | S91: 807.456 | T91: 1629.968 | U91: 2135.477 | V91: 1565.466 | W91: 1652.258 | X91: 2378.447 | Y91: 1227.4582 | Z91: 0.0004481050958 | AA91: -1940.2423 | AC91: =L91-INDEX($C91:$L91,1,aux!$BA$1) -> -1986.87 | AD91: -0.001819681186 | AE91: =+IF(INDEX($C91:$L91,1,aux!$BA$1)>0,(L91/INDEX($C91:$L91,1,aux!$BA$1))^(1/($L$3-INDEX($C$3:$L$3,1,aux!$BA$1)))-1,"n.d.") -> -0.06177949319 | AF91: =IF(INDEX($C91:$L91,1,aux!$BA$1)>0,(L91-INDEX($C91:$L91,1,aux!$BA$1))/INDEX($C91:$L91,1,aux!$BA$1),"n.d.") -> -0.4366941126 | AH91: =X91-INDEX($O91:$X91,1,aux!$BA$1) -> 2148.786 | AI91: 0.001210951022 | AJ91: =+IF(INDEX($O91:$X91,1,aux!$BA$1)>0,(X91/INDEX($O91:$X91,1,aux!$BA$1))^(1/($X$3-INDEX($O$3:$X$3,1,aux!$BA$1)))-1,"n.d.") -> 0.2965841009 | AK91: =IF(INDEX($O91:$X91,1,aux!$BA$1)>0,(X91-INDEX($O91:$X91,1,aux!$BA$1))/INDEX($O91:$X91,1,aux!$BA$1),"n.d.") -> 9.356338255 | CC91: =+IF(ISNA(MATCH('5.1'!A91,AUX_2d_pais!$G$2:$G$40000,0)),0,1) -> 1
A92: 0252 | B92: Gâmbia | C92: 0 | D92: 128.565 | E92: 96.521 | F92: 0.345 | G92: 0 | H92: 0 | I92: 53.517 | J92: 392.138 | K92: 612.15 | L92: 661.744 | M92: 194.498 | N92: 8.438951597e-05 | O92: 291.164 | P92: 196.028 | Q92: 51.318 | R92: 96.113 | S92: 186.863 | T92: 513.346 | U92: 663.146 | V92: 654.331 | W92: 559.399 | X92: 210.703 | Y92: 342.2411 | Z92: 0.0001249411026 | AA92: 147.7431 | AC92: =L92-INDEX($C92:$L92,1,aux!$BA$1) -> 661.744 | AD92: 0.0006060603396 | AE92: =+IF(INDEX($C92:$L92,1,aux!$BA$1)>0,(L92/INDEX($C92:$L92,1,aux!$BA$1))^(1/($L$3-INDEX($C$3:$L$3,1,aux!$BA$1)))-1,"n.d.") -> n.d. | AF92: =IF(INDEX($C92:$L92,1,aux!$BA$1)>0,(L92-INDEX($C92:$L92,1,aux!$BA$1))/INDEX($C92:$L92,1,aux!$BA$1),"n.d.") -> n.d. | AH92: =X92-INDEX($O92:$X92,1,aux!$BA$1) -> -80.461 | AI92: -4.534389657e-05 | AJ92: =+IF(INDEX($O92:$X92,1,aux!$BA$1)>0,(X92/INDEX($O92:$X92,1,aux!$BA$1))^(1/($X$3-INDEX($O$3:$X$3,1,aux!$BA$1)))-1,"n.d.") -> -0.03529937424 | AK92: =IF(INDEX($O92:$X92,1,aux!$BA$1)>0,(X92-INDEX($O92:$X92,1,aux!$BA$1))/INDEX($O92:$X92,1,aux!$BA$1),"n.d.") -> -0.2763425423 | CC92: =+IF(ISNA(MATCH('5.1'!A92,AUX_2d_pais!$G$2:$G$40000,0)),0,1) -> 1
A93: 0276 | B93: Gana | C93: 6012.558 | D93: 6531.724 | E93: 3375.162 | F93: 6532.986 | G93: 5677.947 | H93: 7792.661 | I93: 9056.895 | J93: 8342.111 | K93: 6908.097 | L93: 8157.645 | M93: 6838.7786 | N93: 0.002967234706 | O93: 619.471 | P93: 2378.125 | Q93: 3068.412 | R93: 2840.199 | S93: 4269.115 | T93: 3424.563 | U93: 4877.287 | V93: 5746.845 | W93: 3109.733 | X93: 4548.987 | Y93: 3488.2737 | Z93: 0.001273455357 | AA93: -3350.5049 | AC93: =L93-INDEX($C93:$L93,1,aux!$BA$1) -> 2145.087 | AD93: 0.001964584727 | AE93: =+IF(INDEX($C93:$L93,1,aux!$BA$1)>0,(L93/INDEX($C93:$L93,1,aux!$BA$1))^(1/($L$3-INDEX($C$3:$L$3,1,aux!$BA$1)))-1,"n.d.") -> 0.03448175602 | AF93: =IF(INDEX($C93:$L93,1,aux!$BA$1)>0,(L93-INDEX($C93:$L93,1,aux!$BA$1))/INDEX($C93:$L93,1,aux!$BA$1),"n.d.") -> 0.356767785 | AH93: =X93-INDEX($O93:$X93,1,aux!$BA$1) -> 3929.516 | AI93: 0.002214483627 | AJ93: =+IF(INDEX($O93:$X93,1,aux!$BA$1)>0,(X93/INDEX($O93:$X93,1,aux!$BA$1))^(1/($X$3-INDEX($O$3:$X$3,1,aux!$BA$1)))-1,"n.d.") -> 0.2479880099 | AK93: =IF(INDEX($O93:$X93,1,aux!$BA$1)>0,(X93-INDEX($O93:$X93,1,aux!$BA$1))/INDEX($O93:$X93,1,aux!$BA$1),"n.d.") -> 6.343341335 | CC93: =+IF(ISNA(MATCH('5.1'!A93,AUX_2d_pais!$G$2:$G$40000,0)),0,1) -> 1
A94: 0076 | B94: Geórgia | C94: 771.657 | D94: 1676.004 | E94: 1682.864 | F94: 4552.679 | G94: 766.088 | H94: 102.422 | I94: 13.4 | J94: 78.611 | K94: 0.178 | L94: 2.393 | M94: 964.6296 | N94: 0.0004185370802 | O94: 1540.828 | P94: 2158.278 | Q94: 2789.381 | R94: 3258.02 | S94: 6195.025 | T94: 4779.602 | U94: 4999.258 | V94: 5146.624 | W94: 5936.294 | X94: 7508.397 | Y94: 4431.1707 | Z94: 0.001617676407 | AA94: 3466.5411 | AC94: =L94-INDEX($C94:$L94,1,aux!$BA$1) -> -769.264 | AD94: -0.0007045328724 | AE94: =+IF(INDEX($C94:$L94,1,aux!$BA$1)>0,(L94/INDEX($C94:$L94,1,aux!$BA$1))^(1/($L$3-INDEX($C$3:$L$3,1,aux!$BA$1)))-1,"n.d.") -> -0.4736437041 | AF94: =IF(INDEX($C94:$L94,1,aux!$BA$1)>0,(L94-INDEX($C94:$L94,1,aux!$BA$1))/INDEX($C94:$L94,1,aux!$BA$1),"n.d.") -> -0.9968988812 | AH94: =X94-INDEX($O94:$X94,1,aux!$BA$1) -> 5967.569 | AI94: 0.003363030928 | AJ94: =+IF(INDEX($O94:$X94,1,aux!$BA$1)>0,(X94/INDEX($O94:$X94,1,aux!$BA$1))^(1/($X$3-INDEX($O$3:$X$3,1,aux!$BA$1)))-1,"n.d.") -> 0.1923985843 | AK94: =IF(INDEX($O94:$X94,1,aux!$BA$1)>0,(X94-INDEX($O94:$X94,1,aux!$BA$1))/INDEX($O94:$X94,1,aux!$BA$1),"n.d.") -> 3.872962459 | CC94: =+IF(ISNA(MATCH('5.1'!A94,AUX_2d_pais!$G$2:$G$40000,0)),0,1) -> 1
A95: 0893 | B95: Geórgia do Sul e Ilhas Sandwich do Sul | C95: 0 | D95: 0 | E95: 0 | F95: 0 | G95: 0 | H95: 0 | I95: 0 | J95: 0 | K95: 0 | L95: 0 | M95: 0 | N95: 0 | O95: 0 | P95: 0 | Q95: 0 | R95: 0 | S95: 0 | T95: 0 | U95: 0 | V95: 0 | W95: 0 | X95: 0 | Y95: 0 | Z95: 0 | AA95: 0 | AC95: =L95-INDEX($C95:$L95,1,aux!$BA$1) -> 0 | AD95: 0 | AE95: =+IF(INDEX($C95:$L95,1,aux!$BA$1)>0,(L95/INDEX($C95:$L95,1,aux!$BA$1))^(1/($L$3-INDEX($C$3:$L$3,1,aux!$BA$1)))-1,"n.d.") -> n.d. | AF95: =IF(INDEX($C95:$L95,1,aux!$BA$1)>0,(L95-INDEX($C95:$L95,1,aux!$BA$1))/INDEX($C95:$L95,1,aux!$BA$1),"n.d.") -> n.d. | AH95: =X95-INDEX($O95:$X95,1,aux!$BA$1) -> 0 | AI95: 0 | AJ95: =+IF(INDEX($O95:$X95,1,aux!$BA$1)>0,(X95/INDEX($O95:$X95,1,aux!$BA$1))^(1/($X$3-INDEX($O$3:$X$3,1,aux!$BA$1)))-1,"n.d.") -> n.d. | AK95: =IF(INDEX($O95:$X95,1,aux!$BA$1)>0,(X95-INDEX($O95:$X95,1,aux!$BA$1))/INDEX($O95:$X95,1,aux!$BA$1),"n.d.") -> n.d. | AM95: 0 | BO95: 0 | CC95: =+IF(ISNA(MATCH('5.1'!A95,AUX_2d_pais!$G$2:$G$40000,0)),0,1) -> 0
A96: 0044 | B96: Gibraltar | C96: 6.824 | D96: 0.362 | E96: 5.017 | F96: 0 | G96: 0 | H96: 0 | I96: 1.5 | J96: 0.818 | K96: 0 | L96: 9.504 | M96: 2.4025 | N96: 1.04240564e-06 | O96: 241.948 | P96: 131.263 | Q96: 85.864 | R96: 129.021 | S96: 115.42 | T96: 337.876 | U96: 748.65 | V96: 2873.017 | W96: 7990.871 | X96: 8958.369 | Y96: 2161.2299 | Z96: 0.0007889947954 | AA96: 2158.8274 | AC96: =L96-INDEX($C96:$L96,1,aux!$BA$1) -> 2.68 | AD96: 2.454486494e-06 | AE96: =+IF(INDEX($C96:$L96,1,aux!$BA$1)>0,(L96/INDEX($C96:$L96,1,aux!$BA$1))^(1/($L$3-INDEX($C$3:$L$3,1,aux!$BA$1)))-1,"n.d.") -> 0.03749322103 | AF96: =IF(INDEX($C96:$L96,1,aux!$BA$1)>0,(L96-INDEX($C96:$L96,1,aux!$BA$1))/INDEX($C96:$L96,1,aux!$BA$1),"n.d.") -> 0.3927315358 | AH96: =X96-INDEX($O96:$X96,1,aux!$BA$1) -> 8716.421 | AI96: 0.00491214989 | AJ96: =+IF(INDEX($O96:$X96,1,aux!$BA$1)>0,(X96/INDEX($O96:$X96,1,aux!$BA$1))^(1/($X$3-INDEX($O$3:$X$3,1,aux!$BA$1)))-1,"n.d.") -> 0.4937521578 | AK96: =IF(INDEX($O96:$X96,1,aux!$BA$1)>0,(X96-INDEX($O96:$X96,1,aux!$BA$1))/INDEX($O96:$X96,1,aux!$BA$1),"n.d.") -> 36.02600972 | CC96: =+IF(ISNA(MATCH('5.1'!A96,AUX_2d_pais!$G$2:$G$40000,0)),0,1) -> 1
A97: 0473 | B97: Granada | C97: 0 | D97: 0 | E97: 0 | F97: 0 | G97: 0 | H97: 0 | I97: 0 | J97: 0 | K97: 0 | L97: 0 | M97: 0 | N97: 0 | O97: 0 | P97: 0 | Q97: 6.746 | R97: 2.186 | S97: 0 | T97: 0.822 | U97: 4.611 | V97: 0 | W97: 2.269 | X97: 0 | Y97: 1.6634 | Z97: 6.072532787e-07 | AA97: 1.6634 | AC97: =L97-INDEX($C97:$L97,1,aux!$BA$1) -> 0 | AD97: 0 | AE97: =+IF(INDEX($C97:$L97,1,aux!$BA$1)>0,(L97/INDEX($C97:$L97,1,aux!$BA$1))^(1/($L$3-INDEX($C$3:$L$3,1,aux!$BA$1)))-1,"n.d.") -> n.d. | AF97: =IF(INDEX($C97:$L97,1,aux!$BA$1)>0,(L97-INDEX($C97:$L97,1,aux!$BA$1))/INDEX($C97:$L97,1,aux!$BA$1),"n.d.") -> n.d. | AH97: =X97-INDEX($O97:$X97,1,aux!$BA$1) -> 0 | AI97: 0 | AJ97: =+IF(INDEX($O97:$X97,1,aux!$BA$1)>0,(X97/INDEX($O97:$X97,1,aux!$BA$1))^(1/($X$3-INDEX($O$3:$X$3,1,aux!$BA$1)))-1,"n.d.") -> n.d. | AK97: =IF(INDEX($O97:$X97,1,aux!$BA$1)>0,(X97-INDEX($O97:$X97,1,aux!$BA$1))/INDEX($O97:$X97,1,aux!$BA$1),"n.d.") -> n.d. | BO97: 16.634 | CC97: =+IF(ISNA(MATCH('5.1'!A97,AUX_2d_pais!$G$2:$G$40000,0)),0,1) -> 1
A98: 0009 | B98: Grécia | C98: 0 | D98: 0 | E98: 0 | F98: 0 | G98: 0 | H98: 0 | I98: 0 | J98: 0 | K98: 0 | L98: 0 | M98: 0 | N98: 0 | O98: 0 | P98: 0 | Q98: 0 | R98: 0 | S98: 0 | T98: 0 | U98: 0 | V98: 0 | W98: 0 | X98: 0 | Y98: 0 | Z98: 0 | AA98: 0 | AC98: =L98-INDEX($C98:$L98,1,aux!$BA$1) -> 0 | AD98: 0 | AE98: =+IF(INDEX($C98:$L98,1,aux!$BA$1)>0,(L98/INDEX($C98:$L98,1,aux!$BA$1))^(1/($L$3-INDEX($C$3:$L$3,1,aux!$BA$1)))-1,"n.d.") -> n.d. | AF98: =IF(INDEX($C98:$L98,1,aux!$BA$1)>0,(L98-INDEX($C98:$L98,1,aux!$BA$1))/INDEX($C98:$L98,1,aux!$BA$1),"n.d.") -> n.d. | AH98: =X98-INDEX($O98:$X98,1,aux!$BA$1) -> 0 | AI98: 0 | AJ98: =+IF(INDEX($O98:$X98,1,aux!$BA$1)>0,(X98/INDEX($O98:$X98,1,aux!$BA$1))^(1/($X$3-INDEX($O$3:$X$3,1,aux!$BA$1)))-1,"n.d.") -> n.d. | AK98: =IF(INDEX($O98:$X98,1,aux!$BA$1)>0,(X98-INDEX($O98:$X98,1,aux!$BA$1))/INDEX($O98:$X98,1,aux!$BA$1),"n.d.") -> n.d. | AM98: 0 | CC98: =+IF(ISNA(MATCH('5.1'!A98,AUX_2d_pais!$G$2:$G$40000,0)),0,1) -> 0
A99: 0406 | B99: Gronelândia | C99: 254.042 | D99: 62.256 | E99: 876.401 | F99: 507.404 | G99: 1480.22 | H99: 0 | I99: 599.613 | J99: 469.819 | K99: 69.508 | L99: 0 | M99: 431.9263 | N99: 0.0001874057902 | O99: 0 | P99: 6.033 | Q99: 0 | R99: 0 | S99: 0 | T99: 0 | U99: 2.699 | V99: 0 | W99: 0 | X99: 0.11 | Y99: 0.8842 | Z99: 3.227926831e-07 | AA99: -431.0421 | AC99: =L99-INDEX($C99:$L99,1,aux!$BA$1) -> -254.042 | AD99: -0.0002326651708 | AE99: =+IF(INDEX($C99:$L99,1,aux!$BA$1)>0,(L99/INDEX($C99:$L99,1,aux!$BA$1))^(1/($L$3-INDEX($C$3:$L$3,1,aux!$BA$1)))-1,"n.d.") -> -1 | AF99: =IF(INDEX($C99:$L99,1,aux!$BA$1)>0,(L99-INDEX($C99:$L99,1,aux!$BA$1))/INDEX($C99:$L99,1,aux!$BA$1),"n.d.") -> -1 | AH99: =X99-INDEX($O99:$X99,1,aux!$BA$1) -> 0.11 | AI99: 6.199063674e-08 | AJ99: =+IF(INDEX($O99:$X99,1,aux!$BA$1)>0,(X99/INDEX($O99:$X99,1,aux!$BA$1))^(1/($X$3-INDEX($O$3:$X$3,1,aux!$BA$1)))-1,"n.d.") -> n.d. | AK99: =IF(INDEX($O99:$X99,1,aux!$BA$1)>0,(X99-INDEX($O99:$X99,1,aux!$BA$1))/INDEX($O99:$X99,1,aux!$BA$1),"n.d.") -> n.d. | BO99: 4328.105 | CC99: =+IF(ISNA(MATCH('5.1'!A99,AUX_2d_pais!$G$2:$G$40000,0)),0,1) -> 1
A100: 0458 | B100: Guadalupe | C100: 0 | D100: 0 | E100: 0 | F100: 0 | G100: 0 | H100: 0 | I100: 0 | J100: 0 | K100: 0 | L100: 0 | M100: 0 | N100: 0 | O100: 0 | P100: 0 | Q100: 0 | R100: 0 | S100: 0 | T100: 0 | U100: 0 | V100: 0 | W100: 0 | X100: 0 | Y100: 0 | Z100: 0 | AA100: 0 | AC100: =L100-INDEX($C100:$L100,1,aux!$BA$1) -> 0 | AD100: =AC100/$AC$252 -> 0 | AE100: =+IF(INDEX($C100:$L100,1,aux!$BA$1)>0,(L100/INDEX($C100:$L100,1,aux!$BA$1))^(1/($L$3-INDEX($C$3:$L$3,1,aux!$BA$1)))-1,"n.d.") -> n.d. | AF100: =IF(INDEX($C100:$L100,1,aux!$BA$1)>0,(L100-INDEX($C100:$L100,1,aux!$BA$1))/INDEX($C100:$L100,1,aux!$BA$1),"n.d.") -> n.d. | AH100: =X100-INDEX($O100:$X100,1,aux!$BA$1) -> 0 | AI100: =AH100/$AH$252 -> 0 | AJ100: =+IF(INDEX($O100:$X100,1,aux!$BA$1)>0,(X100/INDEX($O100:$X100,1,aux!$BA$1))^(1/($X$3-INDEX($O$3:$X$3,1,aux!$BA$1)))-1,"n.d.") -> n.d. | AK100: =IF(INDEX($O100:$X100,1,aux!$BA$1)>0,(X100-INDEX($O100:$X100,1,aux!$BA$1))/INDEX($O100:$X100,1,aux!$BA$1),"n.d.") -> n.d. | AM100: 0 | BO100: 0 | CC100: =+IF(ISNA(MATCH('5.1'!A100,AUX_2d_pais!$G$2:$G$40000,0)),0,1) -> 0
A101: 0831 | B101: Guam | C101: 0 | D101: 0 | E101: 0 | F101: 0 | G101: 0 | H101: 0 | I101: 0 | J101: 0 | K101: 0 | L101: 0 | M101: 0 | N101: 0 | O101: 0.981 | P101: 0 | Q101: 0 | R101: 0 | S101: 0 | T101: 0 | U101: 0 | V101: 0 | W101: 2.131 | X101: 1.447 | Y101: 0.4559 | Z101: 1.66434273e-07 | AA101: 0.4559 | AC101: =L101-INDEX($C101:$L101,1,aux!$BA$1) -> 0 | AD101: =AC101/$AC$252 -> 0 | AE101: =+IF(INDEX($C101:$L101,1,aux!$BA$1)>0,(L101/INDEX($C101:$L101,1,aux!$BA$1))^(1/($L$3-INDEX($C$3:$L$3,1,aux!$BA$1)))-1,"n.d.") -> n.d. | AF101: =IF(INDEX($C101:$L101,1,aux!$BA$1)>0,(L101-INDEX($C101:$L101,1,aux!$BA$1))/INDEX($C101:$L101,1,aux!$BA$1),"n.d.") -> n.d. | AH101: =X101-INDEX($O101:$X101,1,aux!$BA$1) -> 0.466 | AI101: =AH101/$AH$252 -> 2.626148793e-07 | AJ101: =+IF(INDEX($O101:$X101,1,aux!$BA$1)>0,(X101/INDEX($O101:$X101,1,aux!$BA$1))^(1/($X$3-INDEX($O$3:$X$3,1,aux!$BA$1)))-1,"n.d.") -> 0.04413223236 | AK101: =IF(INDEX($O101:$X101,1,aux!$BA$1)>0,(X101-INDEX($O101:$X101,1,aux!$BA$1))/INDEX($O101:$X101,1,aux!$BA$1),"n.d.") -> 0.4750254842 | BO101: 4.559 | CC101: =+IF(ISNA(MATCH('5.1'!A101,AUX_2d_pais!$G$2:$G$40000,0)),0,1) -> 1
A102: 0416 | B102: Guatemala | C102: 2852.096 | D102: 2515.434 | E102: 6227.66 | F102: 11275.53 | G102: 3081.161 | H102: 3193.349 | I102: 9184.407 | J102: 2183.075 | K102: 19798.971 | L102: 10088.139 | M102: 7039.9822 | N102: 0.003054533673 | O102: 272.359 | P102: 647.436 | Q102: 821.979 | R102: 1073.721 | S102: 913.842 | T102: 1042.294 | U102: 1283.936 | V102: 2211.441 | W102: 2688.494 | X102: 5416.557 | Y102: 1637.2059 | Z102: 0.0005976906641 | AA102: -5402.7763 | AC102: =L102-INDEX($C102:$L102,1,aux!$BA$1) -> 7236.043 | AD102: 0.006627152914 | AE102: =+IF(INDEX($C102:$L102,1,aux!$BA$1)>0,(L102/INDEX($C102:$L102,1,aux!$BA$1))^(1/($L$3-INDEX($C$3:$L$3,1,aux!$BA$1)))-1,"n.d.") -> 0.1506964378 | AF102: =IF(INDEX($C102:$L102,1,aux!$BA$1)>0,(L102-INDEX($C102:$L102,1,aux!$BA$1))/INDEX($C102:$L102,1,aux!$BA$1),"n.d.") -> 2.537096577 | AH102: =X102-INDEX($O102:$X102,1,aux!$BA$1) -> 5144.198 | AI102: 0.002899019178 | AJ102: =+IF(INDEX($O102:$X102,1,aux!$BA$1)>0,(X102/INDEX($O102:$X102,1,aux!$BA$1))^(1/($X$3-INDEX($O$3:$X$3,1,aux!$BA$1)))-1,"n.d.") -> 0.3940772596 | AK102: =IF(INDEX($O102:$X102,1,aux!$BA$1)>0,(X102-INDEX($O102:$X102,1,aux!$BA$1))/INDEX($O102:$X102,1,aux!$BA$1),"n.d.") -> 18.88756384 | CC102: =+IF(ISNA(MATCH('5.1'!A102,AUX_2d_pais!$G$2:$G$40000,0)),0,1) -> 1
A103: 0488 | B103: Guiana | C103: 22556.066 | D103: 43936.18 | E103: 33379.142 | F103: 17199.116 | G103: 23239.804 | H103: 26812.054 | I103: 25925.748 | J103: 46692.256 | K103: 27304.526 | L103: 20639.867 | M103: 28768.4759 | N103: 0.01248217337 | O103: 28.461 | P103: 113.661 | Q103: 193.95 | R103: 86.068 | S103: 80.071 | T103: 123.46 | U103: 184.476 | V103: 288.8 | W103: 268.058 | X103: 191.64 | Y103: 155.8645 | Z103: 5.690106328e-05 | AA103: -28612.6114 | AC103: =L103-INDEX($C103:$L103,1,aux!$BA$1) -> -1916.199 | AD103: -0.001754956927 | AE103: =+IF(INDEX($C103:$L103,1,aux!$BA$1)>0,(L103/INDEX($C103:$L103,1,aux!$BA$1))^(1/($L$3-INDEX($C$3:$L$3,1,aux!$BA$1)))-1,"n.d.") -> -0.009815899261 | AF103: =IF(INDEX($C103:$L103,1,aux!$BA$1)>0,(L103-INDEX($C103:$L103,1,aux!$BA$1))/INDEX($C103:$L103,1,aux!$BA$1),"n.d.") -> -0.08495271294 | AH103: =X103-INDEX($O103:$X103,1,aux!$BA$1) -> 163.179 | AI103: 9.19597283e-05 | AJ103: =+IF(INDEX($O103:$X103,1,aux!$BA$1)>0,(X103/INDEX($O103:$X103,1,aux!$BA$1))^(1/($X$3-INDEX($O$3:$X$3,1,aux!$BA$1)))-1,"n.d.") -> 0.236022063 | AK103: =IF(INDEX($O103:$X103,1,aux!$BA$1)>0,(X103-INDEX($O103:$X103,1,aux!$BA$1))/INDEX($O103:$X103,1,aux!$BA$1),"n.d.") -> 5.733424686 | BO103: 289243.404 | CC103: =+IF(ISNA(MATCH('5.1'!A103,AUX_2d_pais!$G$2:$G$40000,0)),0,1) -> 1
A104: 0496 | B104: Guiana Francesa | C104: 0 | D104: 0 | E104: 0 | F104: 0 | G104: 0 | H104: 0 | I104: 0 | J104: 0 | K104: 0 | L104: 0 | M104: 0 | N104: 0 | O104: 0 | P104: 0 | Q104: 0 | R104: 0 | S104: 0 | T104: 0 | U104: 0 | V104: 0 | W104: 0 | X104: 0 | Y104: 0 | Z104: 0 | AA104: 0 | AC104: =L104-INDEX($C104:$L104,1,aux!$BA$1) -> 0 | AD104: 0 | AE104: =+IF(INDEX($C104:$L104,1,aux!$BA$1)>0,(L104/INDEX($C104:$L104,1,aux!$BA$1))^(1/($L$3-INDEX($C$3:$L$3,1,aux!$BA$1)))-1,"n.d.") -> n.d. | AF104: =IF(INDEX($C104:$L104,1,aux!$BA$1)>0,(L104-INDEX($C104:$L104,1,aux!$BA$1))/INDEX($C104:$L104,1,aux!$BA$1),"n.d.") -> n.d. | AH104: =X104-INDEX($O104:$X104,1,aux!$BA$1) -> 0 | AI104: 0 | AJ104: =+IF(INDEX($O104:$X104,1,aux!$BA$1)>0,(X104/INDEX($O104:$X104,1,aux!$BA$1))^(1/($X$3-INDEX($O$3:$X$3,1,aux!$BA$1)))-1,"n.d.") -> n.d. | AK104: =IF(INDEX($O104:$X104,1,aux!$BA$1)>0,(X104-INDEX($O104:$X104,1,aux!$BA$1))/INDEX($O104:$X104,1,aux!$BA$1),"n.d.") -> n.d. | AM104: 0 | BO104: 0 | CC104: =+IF(ISNA(MATCH('5.1'!A104,AUX_2d_pais!$G$2:$G$40000,0)),0,1) -> 0
A105: 0260 | B105: Guiné | C105: 34.897 | D105: 36.11 | E105: 3.07 | F105: 558.893 | G105: 467.282 | H105: 151.695 | I105: 359.789 | J105: 477.502 | K105: 190.095 | L105: 134.231 | M105: 241.3564 | N105: 0.0001047206129 | O105: 822.206 | P105: 852.231 | Q105: 1099.978 | R105: 1310.027 | S105: 1855.02 | T105: 1819.916 | U105: 1507.478 | V105: 1110.951 | W105: 947.064 | X105: 2187.474 | Y105: 1351.2345 | Z105: 0.0004932918001 | AA105: 1109.8781 | AC105: =L105-INDEX($C105:$L105,1,aux!$BA$1) -> 99.334 | AD105: 9.097535871e-05 | AE105: =+IF(INDEX($C105:$L105,1,aux!$BA$1)>0,(L105/INDEX($C105:$L105,1,aux!$BA$1))^(1/($L$3-INDEX($C$3:$L$3,1,aux!$BA$1)))-1,"n.d.") -> 0.1614678491 | AF105: =IF(INDEX($C105:$L105,1,aux!$BA$1)>0,(L105-INDEX($C105:$L105,1,aux!$BA$1))/INDEX($C105:$L105,1,aux!$BA$1),"n.d.") -> 2.846491102 | AH105: =X105-INDEX($O105:$X105,1,aux!$BA$1) -> 1365.268 | AI105: 0.0007693984786 | AJ105: =+IF(INDEX($O105:$X105,1,aux!$BA$1)>0,(X105/INDEX($O105:$X105,1,aux!$BA$1))^(1/($X$3-INDEX($O$3:$X$3,1,aux!$BA$1)))-1,"n.d.") -> 0.1148540828 | AK105: =IF(INDEX($O105:$X105,1,aux!$BA$1)>0,(X105-INDEX($O105:$X105,1,aux!$BA$1))/INDEX($O105:$X105,1,aux!$BA$1),"n.d.") -> 1.660493842 | CC105: =+IF(ISNA(MATCH('5.1'!A105,AUX_2d_pais!$G$2:$G$40000,0)),0,1) -> 1
A106: 0310 | B106: Guiné Equatorial | C106: 137.027 | D106: 50.135 | E106: 45.856 | F106: 0 | G106: 0.685 | H106: 139.081 | I106: 104.589 | J106: 0 | K106: 0 | L106: 29.932 | M106: 50.7305 | N106: 2.201113811e-05 | O106: 585.813 | P106: 671.821 | Q106: 739.839 | R106: 976.345 | S106: 1472.272 | T106: 1399.212 | U106: 1595.082 | V106: 1066.844 | W106: 1448.3 | X106: 767.449 | Y106: 1072.2977 | Z106: 0.0003914610401 | AA106: 1021.5672 | AC106: =L106-INDEX($C106:$L106,1,aux!$BA$1) -> -107.095 | AD106: -9.808329516e-05 | AE106: =+IF(INDEX($C106:$L106,1,aux!$BA$1)>0,(L106/INDEX($C106:$L106,1,aux!$BA$1))^(1/($L$3-INDEX($C$3:$L$3,1,aux!$BA$1)))-1,"n.d.") -> -0.1555145403 | AF106: =IF(INDEX($C106:$L106,1,aux!$BA$1)>0,(L106-INDEX($C106:$L106,1,aux!$BA$1))/INDEX($C106:$L106,1,aux!$BA$1),"n.d.") -> -0.7815612981 | AH106: =X106-INDEX($O106:$X106,1,aux!$BA$1) -> 181.636 | AI106: 0.0001023611936 | AJ106: =+IF(INDEX($O106:$X106,1,aux!$BA$1)>0,(X106/INDEX($O106:$X106,1,aux!$BA$1))^(1/($X$3-INDEX($O$3:$X$3,1,aux!$BA$1)))-1,"n.d.") -> 0.03046270912 | AK106: =IF(INDEX($O106:$X106,1,aux!$BA$1)>0,(X106-INDEX($O106:$X106,1,aux!$BA$1))/INDEX($O106:$X106,1,aux!$BA$1),"n.d.") -> 0.3100579878 | CC106: =+IF(ISNA(MATCH('5.1'!A106,AUX_2d_pais!$G$2:$G$40000,0)),0,1) -> 1
A107: 0257 | B107: Guiné-Bissau | C107: 215.982 | D107: 77.342 | E107: 55.274 | F107: 20.3 | G107: 59.547 | H107: 11.558 | I107: 6.577 | J107: 5.95 | K107: 220.739 | L107: 519.789 | M107: 119.3058 | N107: 5.176484444e-05 | O107: 10780.856 | P107: 13619.598 | Q107: 17515.16 | R107: 15397.124 | S107: 16282.168 | T107: 19008.219 | U107: 19310.902 | V107: 21788.621 | W107: 24667.453 | X107: 26494.417 | Y107: 18486.4518 | Z107: 0.006748802733 | AA107: 18367.146 | AC107: =L107-INDEX($C107:$L107,1,aux!$BA$1) -> 303.807 | AD107: 0.0002782426038 | AE107: =+IF(INDEX($C107:$L107,1,aux!$BA$1)>0,(L107/INDEX($C107:$L107,1,aux!$BA$1))^(1/($L$3-INDEX($C$3:$L$3,1,aux!$BA$1)))-1,"n.d.") -> 0.1025006044 | AF107: =IF(INDEX($C107:$L107,1,aux!$BA$1)>0,(L107-INDEX($C107:$L107,1,aux!$BA$1))/INDEX($C107:$L107,1,aux!$BA$1),"n.d.") -> 1.406631108 | AH107: =X107-INDEX($O107:$X107,1,aux!$BA$1) -> 15713.561 | AI107: 0.008855396836 | AJ107: =+IF(INDEX($O107:$X107,1,aux!$BA$1)>0,(X107/INDEX($O107:$X107,1,aux!$BA$1))^(1/($X$3-INDEX($O$3:$X$3,1,aux!$BA$1)))-1,"n.d.") -> 0.1050680269 | AK107: =IF(INDEX($O107:$X107,1,aux!$BA$1)>0,(X107-INDEX($O107:$X107,1,aux!$BA$1))/INDEX($O107:$X107,1,aux!$BA$1),"n.d.") -> 1.457542982 | CC107: =+IF(ISNA(MATCH('5.1'!A107,AUX_2d_pais!$G$2:$G$40000,0)),0,1) -> 1
A108: 0452 | B108: Haiti | C108: 0 | D108: 0 | E108: 0 | F108: 0 | G108: 0 | H108: 0 | I108: 0 | J108: 0 | K108: 0 | L108: 0 | M108: 0 | N108: 0 | O108: 206.013 | P108: 21.673 | Q108: 426.805 | R108: 331.957 | S108: 256.596 | T108: 80.963 | U108: 130.229 | V108: 360.639 | W108: 132.284 | X108: 110.098 | Y108: 205.7257 | Z108: 7.510376688e-05 | AA108: 205.7257 | AC108: =L108-INDEX($C108:$L108,1,aux!$BA$1) -> 0 | AD108: 0 | AE108: =+IF(INDEX($C108:$L108,1,aux!$BA$1)>0,(L108/INDEX($C108:$L108,1,aux!$BA$1))^(1/($L$3-INDEX($C$3:$L$3,1,aux!$BA$1)))-1,"n.d.") -> n.d. | AF108: =IF(INDEX($C108:$L108,1,aux!$BA$1)>0,(L108-INDEX($C108:$L108,1,aux!$BA$1))/INDEX($C108:$L108,1,aux!$BA$1),"n.d.") -> n.d. | AH108: =X108-INDEX($O108:$X108,1,aux!$BA$1) -> -95.915 | AI108: -5.405301749e-05 | AJ108: =+IF(INDEX($O108:$X108,1,aux!$BA$1)>0,(X108/INDEX($O108:$X108,1,aux!$BA$1))^(1/($X$3-INDEX($O$3:$X$3,1,aux!$BA$1)))-1,"n.d.") -> -0.06725060042 | AK108: =IF(INDEX($O108:$X108,1,aux!$BA$1)>0,(X108-INDEX($O108:$X108,1,aux!$BA$1))/INDEX($O108:$X108,1,aux!$BA$1),"n.d.") -> -0.465577415 | CC108: =+IF(ISNA(MATCH('5.1'!A108,AUX_2d_pais!$G$2:$G$40000,0)),0,1) -> 1
A109: 0835 | B109: Heard, Ilha e McDonald, Ilhas | C109: 0 | D109: 0 | E109: 0 | F109: 0 | G109: 0 | H109: 0 | I109: 0 | J109: 0 | K109: 0 | L109: 0 | M109: 0 | N109: 0 | O109: 0 | P109: 0 | Q109: 0 | R109: 0 | S109: 0 | T109: 0 | U109: 0 | V109: 0 | W109: 0 | X109: 0 | Y109: 0 | Z109: 0 | AA109: 0 | AC109: =L109-INDEX($C109:$L109,1,aux!$BA$1) -> 0 | AD109: 0 | AE109: =+IF(INDEX($C109:$L109,1,aux!$BA$1)>0,(L109/INDEX($C109:$L109,1,aux!$BA$1))^(1/($L$3-INDEX($C$3:$L$3,1,aux!$BA$1)))-1,"n.d.") -> n.d. | AF109: =IF(INDEX($C109:$L109,1,aux!$BA$1)>0,(L109-INDEX($C109:$L109,1,aux!$BA$1))/INDEX($C109:$L109,1,aux!$BA$1),"n.d.") -> n.d. | AH109: =X109-INDEX($O109:$X109,1,aux!$BA$1) -> 0 | AI109: 0 | AJ109: =+IF(INDEX($O109:$X109,1,aux!$BA$1)>0,(X109/INDEX($O109:$X109,1,aux!$BA$1))^(1/($X$3-INDEX($O$3:$X$3,1,aux!$BA$1)))-1,"n.d.") -> n.d. | AK109: =IF(INDEX($O109:$X109,1,aux!$BA$1)>0,(X109-INDEX($O109:$X109,1,aux!$BA$1))/INDEX($O109:$X109,1,aux!$BA$1),"n.d.") -> n.d. | AM109: 0 | BO109: 0 | CC109: =+IF(ISNA(MATCH('5.1'!A109,AUX_2d_pais!$G$2:$G$40000,0)),0,1) -> 0
A110: 0424 | B110: Honduras | C110: 6041.621 | D110: 2625.733 | E110: 10779.61 | F110: 6416.975 | G110: 5230.429 | H110: 5111.67 | I110: 4302.161 | J110: 3961.965 | K110: 6246.51 | L110: 12059.976 | M110: 6277.665 | N110: 0.002723776649 | O110: 103.526 | P110: 457.115 | Q110: 944.685 | R110: 1205.074 | S110: 576.24 | T110: 716.841 | U110: 834.554 | V110: 1509.451 | W110: 1684.864 | X110: 1878.569 | Y110: 991.0919 | Z110: 0.0003618154417 | AA110: -5286.5731 | AC110: =L110-INDEX($C110:$L110,1,aux!$BA$1) -> 6018.355 | AD110: 0.0055119295 | AE110: =+IF(INDEX($C110:$L110,1,aux!$BA$1)>0,(L110/INDEX($C110:$L110,1,aux!$BA$1))^(1/($L$3-INDEX($C$3:$L$3,1,aux!$BA$1)))-1,"n.d.") -> 0.07982847093 | AF110: =IF(INDEX($C110:$L110,1,aux!$BA$1)>0,(L110-INDEX($C110:$L110,1,aux!$BA$1))/INDEX($C110:$L110,1,aux!$BA$1),"n.d.") -> 0.9961490468 | AH110: =X110-INDEX($O110:$X110,1,aux!$BA$1) -> 1775.043 | AI110: 0.001000327689 | AJ110: =+IF(INDEX($O110:$X110,1,aux!$BA$1)>0,(X110/INDEX($O110:$X110,1,aux!$BA$1))^(1/($X$3-INDEX($O$3:$X$3,1,aux!$BA$1)))-1,"n.d.") -> 0.379952669 | AK110: =IF(INDEX($O110:$X110,1,aux!$BA$1)>0,(X110-INDEX($O110:$X110,1,aux!$BA$1))/INDEX($O110:$X110,1,aux!$BA$1),"n.d.") -> 17.14586674 | CC110: =+IF(ISNA(MATCH('5.1'!A110,AUX_2d_pais!$G$2:$G$40000,0)),0,1) -> 1
A111: 0740 | B111: HongKong | C111: 1538.603 | D111: 2077.911 | E111: 1886.445 | F111: 1669.839 | G111: 1846.653 | H111: 1379.331 | I111: 1364.335 | J111: 1975.829 | K111: 1783.291 | L111: 1919.365 | M111: 1744.1602 | N111: 0.0007567627176 | O111: 4473.038 | P111: 12888.427 | Q111: 23124.379 | R111: 16080.049 | S111: 13902.32 | T111: 13110.95 | U111: 21511.002 | V111: 23839.341 | W111: 15739.217 | X111: 15911.988 | Y111: 16058.0711 | Z111: 0.005862279863 | AA111: 14313.9109 | AC111: =L111-INDEX($C111:$L111,1,aux!$BA$1) -> 380.762 | AD111: 0.0003487220844 | AE111: =+IF(INDEX($C111:$L111,1,aux!$BA$1)>0,(L111/INDEX($C111:$L111,1,aux!$BA$1))^(1/($L$3-INDEX($C$3:$L$3,1,aux!$BA$1)))-1,"n.d.") -> 0.0248731387 | AF111: =IF(INDEX($C111:$L111,1,aux!$BA$1)>0,(L111-INDEX($C111:$L111,1,aux!$BA$1))/INDEX($C111:$L111,1,aux!$BA$1),"n.d.") -> 0.2474725449 | AH111: =X111-INDEX($O111:$X111,1,aux!$BA$1) -> 11438.95 | AI111: 0.006446434493 | AJ111: =+IF(INDEX($O111:$X111,1,aux!$BA$1)>0,(X111/INDEX($O111:$X111,1,aux!$BA$1))^(1/($X$3-INDEX($O$3:$X$3,1,aux!$BA$1)))-1,"n.d.") -> 0.1514252835 | AK111: =IF(INDEX($O111:$X111,1,aux!$BA$1)>0,(X111-INDEX($O111:$X111,1,aux!$BA$1))/INDEX($O111:$X111,1,aux!$BA$1),"n.d.") -> 2.557311161 | CC111: =+IF(ISNA(MATCH('5.1'!A111,AUX_2d_pais!$G$2:$G$40000,0)),0,1) -> 1
A112: 0064 | B112: Hungria | C112: 0 | D112: 0 | E112: 0 | F112: 0 | G112: 0 | H112: 0 | I112: 0 | J112: 0 | K112: 0 | L112: 0 | M112: 0 | N112: 0 | O112: 0 | P112: 0 | Q112: 0 | R112: 0 | S112: 0 | T112: 0 | U112: 0 | V112: 0 | W112: 0 | X112: 0 | Y112: 0 | Z112: 0 | AA112: 0 | AC112: =L112-INDEX($C112:$L112,1,aux!$BA$1) -> 0 | AD112: 0 | AE112: =+IF(INDEX($C112:$L112,1,aux!$BA$1)>0,(L112/INDEX($C112:$L112,1,aux!$BA$1))^(1/($L$3-INDEX($C$3:$L$3,1,aux!$BA$1)))-1,"n.d.") -> n.d. | AF112: =IF(INDEX($C112:$L112,1,aux!$BA$1)>0,(L112-INDEX($C112:$L112,1,aux!$BA$1))/INDEX($C112:$L112,1,aux!$BA$1),"n.d.") -> n.d. | AH112: =X112-INDEX($O112:$X112,1,aux!$BA$1) -> 0 | AI112: 0 | AJ112: =+IF(INDEX($O112:$X112,1,aux!$BA$1)>0,(X112/INDEX($O112:$X112,1,aux!$BA$1))^(1/($X$3-INDEX($O$3:$X$3,1,aux!$BA$1)))-1,"n.d.") -> n.d. | AK112: =IF(INDEX($O112:$X112,1,aux!$BA$1)>0,(X112-INDEX($O112:$X112,1,aux!$BA$1))/INDEX($O112:$X112,1,aux!$BA$1),"n.d.") -> n.d. | AM112: 0 | CC112: =+IF(ISNA(MATCH('5.1'!A112,AUX_2d_pais!$G$2:$G$40000,0)),0,1) -> 0
A113: 0653 | B113: Iémen | C113: 252.803 | D113: 137.994 | E113: 664.421 | F113: 206.881 | G113: 162.126 | H113: 0 | I113: 0 | J113: 0 | K113: 260.747 | L113: 2398.123 | M113: 408.3095 | N113: 0.0001771588452 | O113: 0 | P113: 9.597 | Q113: 136.843 | R113: 22.85 | S113: 77.775 | T113: 1403.379 | U113: 163.183 | V113: 374.235 | W113: 1239.501 | X113: 2379.027 | Y113: 580.639 | Z113: 0.0002119724278 | AA113: 172.3295 | AC113: =L113-INDEX($C113:$L113,1,aux!$BA$1) -> 2145.32 | AD113: 0.001964798121 | AE113: =+IF(INDEX($C113:$L113,1,aux!$BA$1)>0,(L113/INDEX($C113:$L113,1,aux!$BA$1))^(1/($L$3-INDEX($C$3:$L$3,1,aux!$BA$1)))-1,"n.d.") -> 0.2840013197 | AF113: =IF(INDEX($C113:$L113,1,aux!$BA$1)>0,(L113-INDEX($C113:$L113,1,aux!$BA$1))/INDEX($C113:$L113,1,aux!$BA$1),"n.d.") -> 8.486133472 | AH113: =X113-INDEX($O113:$X113,1,aux!$BA$1) -> 2379.027 | AI113: 0.001340703623 | AJ113: =+IF(INDEX($O113:$X113,1,aux!$BA$1)>0,(X113/INDEX($O113:$X113,1,aux!$BA$1))^(1/($X$3-INDEX($O$3:$X$3,1,aux!$BA$1)))-1,"n.d.") -> n.d. | AK113: =IF(INDEX($O113:$X113,1,aux!$BA$1)>0,(X113-INDEX($O113:$X113,1,aux!$BA$1))/INDEX($O113:$X113,1,aux!$BA$1),"n.d.") -> n.d. | BO113: 9889.485 | CC113: =+IF(ISNA(MATCH('5.1'!A113,AUX_2d_pais!$G$2:$G$40000,0)),0,1) -> 1
A114: 0664 | B114: Índia | C114: 39368.697 | D114: 40646.876 | E114: 55183.076 | F114: 50224.999 | G114: 47050.337 | H114: 59516.483 | I114: 64505.959 | J114: 69312.229 | K114: 81458.48 | L114: 76498.306 | M114: 58376.5442 | N114: 0.02532863222 | O114: 5962.773 | P114: 7072.684 | Q114: 8298.84 | R114: 7722.631 | S114: 8202.027 | T114: 12638.72 | U114: 8834.525 | V114: 10937.741 | W114: 15344.047 | X114: 16054.98 | Y114: 10106.8968 | Z114: 0.003689699542 | AA114: -48269.6474 | AC114: =L114-INDEX($C114:$L114,1,aux!$BA$1) -> 37129.609 | AD114: 0.03400527008 | AE114: =+IF(INDEX($C114:$L114,1,aux!$BA$1)>0,(L114/INDEX($C114:$L114,1,aux!$BA$1))^(1/($L$3-INDEX($C$3:$L$3,1,aux!$BA$1)))-1,"n.d.") -> 0.07660313941 | AF114: =IF(INDEX($C114:$L114,1,aux!$BA$1)>0,(L114-INDEX($C114:$L114,1,aux!$BA$1))/INDEX($C114:$L114,1,aux!$BA$1),"n.d.") -> 0.9431251687 | AH114: =X114-INDEX($O114:$X114,1,aux!$BA$1) -> 10092.207 | AI114: 0.005687475801 | AJ114: =+IF(INDEX($O114:$X114,1,aux!$BA$1)>0,(X114/INDEX($O114:$X114,1,aux!$BA$1))^(1/($X$3-INDEX($O$3:$X$3,1,aux!$BA$1)))-1,"n.d.") -> 0.1163380336 | AK114: =IF(INDEX($O114:$X114,1,aux!$BA$1)>0,(X114-INDEX($O114:$X114,1,aux!$BA$1))/INDEX($O114:$X114,1,aux!$BA$1),"n.d.") -> 1.692535839 | CC114: =+IF(ISNA(MATCH('5.1'!A114,AUX_2d_pais!$G$2:$G$40000,0)),0,1) -> 1
A115: 0700 | B115: Indonésia | C115: 33009.356 | D115: 18767.176 | E115: 18088.28 | F115: 16820.02 | G115: 34033.054 | H115: 32042.189 | I115: 34220.956 | J115: 35915.161 | K115: 30512.978 | L115: 32633.829 | M115: 28604.2999 | N115: 0.01241094008 | O115: 1687.288 | P115: 2232.11 | Q115: 762.258 | R115: 518.296 | S115: 395.177 | T115: 890.597 | U115: 428.174 | V115: 1134.927 | W115: 2036.04 | X115: 2615.998 | Y115: 1270.0865 | Z115: 0.0004636673027 | AA115: -27334.2134 | AC115: =L115-INDEX($C115:$L115,1,aux!$BA$1) -> -375.527 | AD115: -0.0003439275931 | AE115: =+IF(INDEX($C115:$L115,1,aux!$BA$1)>0,(L115/INDEX($C115:$L115,1,aux!$BA$1))^(1/($L$3-INDEX($C$3:$L$3,1,aux!$BA$1)))-1,"n.d.") -> -0.001270479669 | AF115: =IF(INDEX($C115:$L115,1,aux!$BA$1)>0,(L115-INDEX($C115:$L115,1,aux!$BA$1))/INDEX($C115:$L115,1,aux!$BA$1),"n.d.") -> -0.01137638068 | AH115: =X115-INDEX($O115:$X115,1,aux!$BA$1) -> 928.71 | AI115: 0.000523375675 | AJ115: =+IF(INDEX($O115:$X115,1,aux!$BA$1)>0,(X115/INDEX($O115:$X115,1,aux!$BA$1))^(1/($X$3-INDEX($O$3:$X$3,1,aux!$BA$1)))-1,"n.d.") -> 0.04993136553 | AK115: =IF(INDEX($O115:$X115,1,aux!$BA$1)>0,(X115-INDEX($O115:$X115,1,aux!$BA$1))/INDEX($O115:$X115,1,aux!$BA$1),"n.d.") -> 0.5504158152 | CC115: =+IF(ISNA(MATCH('5.1'!A115,AUX_2d_pais!$G$2:$G$40000,0)),0,1) -> 1
A116: 0616 | B116: Irão, República Islâmica do | C116: 7.715 | D116: 180.169 | E116: 317.755 | F116: 348.957 | G116: 570.045 | H116: 187.94 | I116: 555.171 | J116: 651.354 | K116: 53.643 | L116: 99.327 | M116: 297.2076 | N116: 0.0001289535394 | O116: 5676.411 | P116: 11517.554 | Q116: 20608.749 | R116: 5678.53 | S116: 579.04 | T116: 2927.793 | U116: 6922.082 | V116: 8655.429 | W116: 9860.708 | X116: 5830.991 | Y116: 7825.7287 | Z116: 0.002856919208 | AA116: 7528.5211 | AC116: =L116-INDEX($C116:$L116,1,aux!$BA$1) -> 91.612 | AD116: 8.390314054e-05 | AE116: =+IF(INDEX($C116:$L116,1,aux!$BA$1)>0,(L116/INDEX($C116:$L116,1,aux!$BA$1))^(1/($L$3-INDEX($C$3:$L$3,1,aux!$BA$1)))-1,"n.d.") -> 0.3283223731 | AF116: =IF(INDEX($C116:$L116,1,aux!$BA$1)>0,(L116-INDEX($C116:$L116,1,aux!$BA$1))/INDEX($C116:$L116,1,aux!$BA$1),"n.d.") -> 11.87453014 | AH116: =X116-INDEX($O116:$X116,1,aux!$BA$1) -> 154.58 | AI116: 8.711375116e-05 | AJ116: =+IF(INDEX($O116:$X116,1,aux!$BA$1)>0,(X116/INDEX($O116:$X116,1,aux!$BA$1))^(1/($X$3-INDEX($O$3:$X$3,1,aux!$BA$1)))-1,"n.d.") -> 0.002989771806 | AK116: =IF(INDEX($O116:$X116,1,aux!$BA$1)>0,(X116-INDEX($O116:$X116,1,aux!$BA$1))/INDEX($O116:$X116,1,aux!$BA$1),"n.d.") -> 0.02723199571 | CC116: =+IF(ISNA(MATCH('5.1'!A116,AUX_2d_pais!$G$2:$G$40000,0)),0,1) -> 1
A117: 0612 | B117: Iraque | C117: 0 | D117: 0 | E117: 0 | F117: 0 | G117: 124.733 | H117: 232.456 | I117: 172.396 | J117: 47.819 | K117: 9.198 | L117: 0 | M117: 58.6602 | N117: 2.545170585e-05 | O117: 34.827 | P117: 31.039 | Q117: 89.141 | R117: 710.233 | S117: 2325.038 | T117: 3534.873 | U117: 2593.803 | V117: 7074.93 | W117: 12019.442 | X117: 11342.973 | Y117: 3975.6299 | Z117: 0.001451373267 | AA117: 3916.9697 | AC117: =L117-INDEX($C117:$L117,1,aux!$BA$1) -> 0 | AD117: 0 | AE117: =+IF(INDEX($C117:$L117,1,aux!$BA$1)>0,(L117/INDEX($C117:$L117,1,aux!$BA$1))^(1/($L$3-INDEX($C$3:$L$3,1,aux!$BA$1)))-1,"n.d.") -> n.d. | AF117: =IF(INDEX($C117:$L117,1,aux!$BA$1)>0,(L117-INDEX($C117:$L117,1,aux!$BA$1))/INDEX($C117:$L117,1,aux!$BA$1),"n.d.") -> n.d. | AH117: =X117-INDEX($O117:$X117,1,aux!$BA$1) -> 11308.146 | AI117: 0.006372719736 | AJ117: =+IF(INDEX($O117:$X117,1,aux!$BA$1)>0,(X117/INDEX($O117:$X117,1,aux!$BA$1))^(1/($X$3-INDEX($O$3:$X$3,1,aux!$BA$1)))-1,"n.d.") -> 0.9019592315 | AK117: =IF(INDEX($O117:$X117,1,aux!$BA$1)>0,(X117-INDEX($O117:$X117,1,aux!$BA$1))/INDEX($O117:$X117,1,aux!$BA$1),"n.d.") -> 324.6948058 | CC117: =+IF(ISNA(MATCH('5.1'!A117,AUX_2d_pais!$G$2:$G$40000,0)),0,1) -> 1
A118: 0007 | B118: Irlanda | C118: 0 | D118: 0 | E118: 0 | F118: 0 | G118: 0 | H118: 0 | I118: 0 | J118: 0 | K118: 0 | L118: 0 | M118: 0 | N118: 0 | O118: 0 | P118: 0 | Q118: 0 | R118: 0 | S118: 0 | T118: 0 | U118: 0 | V118: 0 | W118: 0 | X118: 0 | Y118: 0 | Z118: 0 | AA118: 0 | AC118: =L118-INDEX($C118:$L118,1,aux!$BA$1) -> 0 | AD118: 0 | AE118: =+IF(INDEX($C118:$L118,1,aux!$BA$1)>0,(L118/INDEX($C118:$L118,1,aux!$BA$1))^(1/($L$3-INDEX($C$3:$L$3,1,aux!$BA$1)))-1,"n.d.") -> n.d. | AF118: =IF(INDEX($C118:$L118,1,aux!$BA$1)>0,(L118-INDEX($C118:$L118,1,aux!$BA$1))/INDEX($C118:$L118,1,aux!$BA$1),"n.d.") -> n.d. | AH118: =X118-INDEX($O118:$X118,1,aux!$BA$1) -> 0 | AI118: 0 | AJ118: =+IF(INDEX($O118:$X118,1,aux!$BA$1)>0,(X118/INDEX($O118:$X118,1,aux!$BA$1))^(1/($X$3-INDEX($O$3:$X$3,1,aux!$BA$1)))-1,"n.d.") -> n.d. | AK118: =IF(INDEX($O118:$X118,1,aux!$BA$1)>0,(X118-INDEX($O118:$X118,1,aux!$BA$1))/INDEX($O118:$X118,1,aux!$BA$1),"n.d.") -> n.d. | AM118: 0 | CC118: =+IF(ISNA(MATCH('5.1'!A118,AUX_2d_pais!$G$2:$G$40000,0)),0,1) -> 0
A119: 0024 | B119: Islândia | C119: 16288.701 | D119: 11926.842 | E119: 15024.732 | F119: 12602.448 | G119: 13511.122 | H119: 7086.135 | I119: 6736.606 | J119: 5970.894 | K119: 7123.922 | L119: 15282.163 | M119: 11155.3565 | N119: 0.004840127587 | O119: 595.107 | P119: 331.098 | Q119: 1012.869 | R119: 992.084 | S119: 819.886 | T119: 990.251 | U119: 824.799 | V119: 689.334 | W119: 1415.804 | X119: 1619.825 | Y119: 929.1057 | Z119: 0.0003391862947 | AA119: -10226.2508 | AC119: =L119-INDEX($C119:$L119,1,aux!$BA$1) -> -1006.538 | AD119: -0.0009218410173 | AE119: =+IF(INDEX($C119:$L119,1,aux!$BA$1)>0,(L119/INDEX($C119:$L119,1,aux!$BA$1))^(1/($L$3-INDEX($C$3:$L$3,1,aux!$BA$1)))-1,"n.d.") -> -0.007062205256 | AF119: =IF(INDEX($C119:$L119,1,aux!$BA$1)>0,(L119-INDEX($C119:$L119,1,aux!$BA$1))/INDEX($C119:$L119,1,aux!$BA$1),"n.d.") -> -0.06179363229 | AH119: =X119-INDEX($O119:$X119,1,aux!$BA$1) -> 1024.718 | AI119: 0.0005774811028 | AJ119: =+IF(INDEX($O119:$X119,1,aux!$BA$1)>0,(X119/INDEX($O119:$X119,1,aux!$BA$1))^(1/($X$3-INDEX($O$3:$X$3,1,aux!$BA$1)))-1,"n.d.") -> 0.1176844957 | AK119: =IF(INDEX($O119:$X119,1,aux!$BA$1)>0,(X119-INDEX($O119:$X119,1,aux!$BA$1))/INDEX($O119:$X119,1,aux!$BA$1),"n.d.") -> 1.721905472 | CC119: =+IF(ISNA(MATCH('5.1'!A119,AUX_2d_pais!$G$2:$G$40000,0)),0,1) -> 1
A120: 0624 | B120: Israel | C120: 6030.87 | D120: 7007.762 | E120: 6148.417 | F120: 4288.034 | G120: 6432.756 | H120: 11470.409 | I120: 12032.351 | J120: 12857.604 | K120: 12380.679 | L120: 11244.262 | M120: 8989.3144 | N120: 0.003900317181 | O120: 23411.904 | P120: 21450.071 | Q120: 24452.475 | R120: 26001.634 | S120: 28916.76 | T120: 28723.081 | U120: 45207.488 | V120: 90038.608 | W120: 112278.362 | X120: 143080.601 | Y120: 54356.0984 | Z120: 0.01984364493 | AA120: 45366.784 | AC120: =L120-INDEX($C120:$L120,1,aux!$BA$1) -> 5213.392 | AD120: 0.004774701586 | AE120: =+IF(INDEX($C120:$L120,1,aux!$BA$1)>0,(L120/INDEX($C120:$L120,1,aux!$BA$1))^(1/($L$3-INDEX($C$3:$L$3,1,aux!$BA$1)))-1,"n.d.") -> 0.07167036439 | AF120: =IF(INDEX($C120:$L120,1,aux!$BA$1)>0,(L120-INDEX($C120:$L120,1,aux!$BA$1))/INDEX($C120:$L120,1,aux!$BA$1),"n.d.") -> 0.8644510659 | AH120: =X120-INDEX($O120:$X120,1,aux!$BA$1) -> 119668.697 | AI120: 0.06743944296 | AJ120: =+IF(INDEX($O120:$X120,1,aux!$BA$1)>0,(X120/INDEX($O120:$X120,1,aux!$BA$1))^(1/($X$3-INDEX($O$3:$X$3,1,aux!$BA$1)))-1,"n.d.") -> 0.2227828408 | AK120: =IF(INDEX($O120:$X120,1,aux!$BA$1)>0,(X120-INDEX($O120:$X120,1,aux!$BA$1))/INDEX($O120:$X120,1,aux!$BA$1),"n.d.") -> 5.111446596 | CC120: =+IF(ISNA(MATCH('5.1'!A120,AUX_2d_pais!$G$2:$G$40000,0)),0,1) -> 1
A121: 0005 | B121: Itália | C121: 0 | D121: 0 | E121: 0 | F121: 0 | G121: 0 | H121: 0 | I121: 0 | J121: 0 | K121: 0 | L121: 0 | M121: 0 | N121: 0 | O121: 0 | P121: 0 | Q121: 0 | R121: 0 | S121: 0 | T121: 0 | U121: 0 | V121: 0 | W121: 0 | X121: 0 | Y121: 0 | Z121: 0 | AA121: 0 | AC121: =L121-INDEX($C121:$L121,1,aux!$BA$1) -> 0 | AD121: 0 | AE121: =+IF(INDEX($C121:$L121,1,aux!$BA$1)>0,(L121/INDEX($C121:$L121,1,aux!$BA$1))^(1/($L$3-INDEX($C$3:$L$3,1,aux!$BA$1)))-1,"n.d.") -> n.d. | AF121: =IF(INDEX($C121:$L121,1,aux!$BA$1)>0,(L121-INDEX($C121:$L121,1,aux!$BA$1))/INDEX($C121:$L121,1,aux!$BA$1),"n.d.") -> n.d. | AH121: =X121-INDEX($O121:$X121,1,aux!$BA$1) -> 0 | AI121: 0 | AJ121: =+IF(INDEX($O121:$X121,1,aux!$BA$1)>0,(X121/INDEX($O121:$X121,1,aux!$BA$1))^(1/($X$3-INDEX($O$3:$X$3,1,aux!$BA$1)))-1,"n.d.") -> n.d. | AK121: =IF(INDEX($O121:$X121,1,aux!$BA$1)>0,(X121-INDEX($O121:$X121,1,aux!$BA$1))/INDEX($O121:$X121,1,aux!$BA$1),"n.d.") -> n.d. | AM121: 0 | CC121: =+IF(ISNA(MATCH('5.1'!A121,AUX_2d_pais!$G$2:$G$40000,0)),0,1) -> 0
A122: 0464 | B122: Jamaica | C122: 10276.545 | D122: 8156.419 | E122: 8214.737 | F122: 426.501 | G122: 11105.416 | H122: 10214.773 | I122: 6296.563 | J122: 0 | K122: 0 | L122: 0 | M122: 5469.0954 | N122: 0.002372951463 | O122: 32.626 | P122: 10.52 | Q122: 189.315 | R122: 137.268 | S122: 162.158 | T122: 47.185 | U122: 158.342 | V122: 462.453 | W122: 458.087 | X122: 1803.596 | Y122: 346.155 | Z122: 0.0001263699403 | AA122: -5122.9404 | AC122: =L122-INDEX($C122:$L122,1,aux!$BA$1) -> -10276.545 | AD122: -0.009411806307 | AE122: =+IF(INDEX($C122:$L122,1,aux!$BA$1)>0,(L122/INDEX($C122:$L122,1,aux!$BA$1))^(1/($L$3-INDEX($C$3:$L$3,1,aux!$BA$1)))-1,"n.d.") -> -1 | AF122: =IF(INDEX($C122:$L122,1,aux!$BA$1)>0,(L122-INDEX($C122:$L122,1,aux!$BA$1))/INDEX($C122:$L122,1,aux!$BA$1),"n.d.") -> -1 | AH122: =X122-INDEX($O122:$X122,1,aux!$BA$1) -> 1770.97 | AI122: 0.0009980323451 | AJ122: =+IF(INDEX($O122:$X122,1,aux!$BA$1)>0,(X122/INDEX($O122:$X122,1,aux!$BA$1))^(1/($X$3-INDEX($O$3:$X$3,1,aux!$BA$1)))-1,"n.d.") -> 0.5617786889 | AK122: =IF(INDEX($O122:$X122,1,aux!$BA$1)>0,(X122-INDEX($O122:$X122,1,aux!$BA$1))/INDEX($O122:$X122,1,aux!$BA$1),"n.d.") -> 54.28094158 | CC122: =+IF(ISNA(MATCH('5.1'!A122,AUX_2d_pais!$G$2:$G$40000,0)),0,1) -> 1
A123: 0732 | B123: Japão | C123: 1379.488 | D123: 1855.449 | E123: 2251.918 | F123: 2860.171 | G123: 3602.122 | H123: 2952.924 | I123: 4130.508 | J123: 6925.752 | K123: 11807.757 | L123: 16669.273 | M123: 5443.5362 | N123: 0.002361861742 | O123: 30728.084 | P123: 37717.059 | Q123: 44164.32 | R123: 49260.816 | S123: 54543.563 | T123: 45596.731 | U123: 51602.918 | V123: 45064.569 | W123: 58417.85 | X123: 57755.503 | Y123: 47485.1413 | Z123: 0.0173352818 | AA123: 42041.6051 | AC123: =L123-INDEX($C123:$L123,1,aux!$BA$1) -> 15289.785 | AD123: 0.01400319805 | AE123: =+IF(INDEX($C123:$L123,1,aux!$BA$1)>0,(L123/INDEX($C123:$L123,1,aux!$BA$1))^(1/($L$3-INDEX($C$3:$L$3,1,aux!$BA$1)))-1,"n.d.") -> 0.3189985059 | AF123: =IF(INDEX($C123:$L123,1,aux!$BA$1)>0,(L123-INDEX($C123:$L123,1,aux!$BA$1))/INDEX($C123:$L123,1,aux!$BA$1),"n.d.") -> 11.08366655 | AH123: =X123-INDEX($O123:$X123,1,aux!$BA$1) -> 27027.419 | AI123: 0.01523133558 | AJ123: =+IF(INDEX($O123:$X123,1,aux!$BA$1)>0,(X123/INDEX($O123:$X123,1,aux!$BA$1))^(1/($X$3-INDEX($O$3:$X$3,1,aux!$BA$1)))-1,"n.d.") -> 0.0726323146 | AK123: =IF(INDEX($O123:$X123,1,aux!$BA$1)>0,(X123-INDEX($O123:$X123,1,aux!$BA$1))/INDEX($O123:$X123,1,aux!$BA$1),"n.d.") -> 0.8795673365 | CC123: =+IF(ISNA(MATCH('5.1'!A123,AUX_2d_pais!$G$2:$G$40000,0)),0,1) -> 1
A124: 0338 | B124: Jibuti | C124: 0 | D124: 0 | E124: 0 | F124: 0 | G124: 0 | H124: 0 | I124: 0 | J124: 0 | K124: 20.296 | L124: 0.398 | M124: 2.0694 | N124: 8.978789722e-07 | O124: 474.612 | P124: 396.257 | Q124: 475.59 | R124: 717.935 | S124: 709.177 | T124: 1142.254 | U124: 756.628 | V124: 22.343 | W124: 47.813 | X124: 47.581 | Y124: 479.019 | Z124: 0.0001748742685 | AA124: 476.9496 | AC124: =L124-INDEX($C124:$L124,1,aux!$BA$1) -> 0.398 | AD124: 3.645095614e-07 | AE124: =+IF(INDEX($C124:$L124,1,aux!$BA$1)>0,(L124/INDEX($C124:$L124,1,aux!$BA$1))^(1/($L$3-INDEX($C$3:$L$3,1,aux!$BA$1)))-1,"n.d.") -> n.d. | AF124: =IF(INDEX($C124:$L124,1,aux!$BA$1)>0,(L124-INDEX($C124:$L124,1,aux!$BA$1))/INDEX($C124:$L124,1,aux!$BA$1),"n.d.") -> n.d. | AH124: =X124-INDEX($O124:$X124,1,aux!$BA$1) -> -427.031 | AI124: -0.0002406538509 | AJ124: =+IF(INDEX($O124:$X124,1,aux!$BA$1)>0,(X124/INDEX($O124:$X124,1,aux!$BA$1))^(1/($X$3-INDEX($O$3:$X$3,1,aux!$BA$1)))-1,"n.d.") -> -0.2255194082 | AK124: =IF(INDEX($O124:$X124,1,aux!$BA$1)>0,(X124-INDEX($O124:$X124,1,aux!$BA$1))/INDEX($O124:$X124,1,aux!$BA$1),"n.d.") -> -0.8997475833 | BO124: 4810.884 | CC124: =+IF(ISNA(MATCH('5.1'!A124,AUX_2d_pais!$G$2:$G$40000,0)),0,1) -> 1
A125: 0628 | B125: Jordânia | C125: 2.05 | D125: 81.612 | E125: 10.835 | F125: 0 | G125: 65.083 | H125: 0 | I125: 2.488 | J125: 3.149 | K125: 664.283 | L125: 67.075 | M125: 89.6575 | N125: 3.890092972e-05 | O125: 8013.625 | P125: 6133.424 | Q125: 9395.734 | R125: 7781.346 | S125: 18382.733 | T125: 12232.551 | U125: 12155.757 | V125: 14233.093 | W125: 20481.933 | X125: 19130.321 | Y125: 12794.0517 | Z125: 0.004670692463 | AA125: 12704.3942 | AC125: =L125-INDEX($C125:$L125,1,aux!$BA$1) -> 65.025 | AD125: 5.955335233e-05 | AE125: =+IF(INDEX($C125:$L125,1,aux!$BA$1)>0,(L125/INDEX($C125:$L125,1,aux!$BA$1))^(1/($L$3-INDEX($C$3:$L$3,1,aux!$BA$1)))-1,"n.d.") -> 0.4733701567 | AF125: =IF(INDEX($C125:$L125,1,aux!$BA$1)>0,(L125-INDEX($C125:$L125,1,aux!$BA$1))/INDEX($C125:$L125,1,aux!$BA$1),"n.d.") -> 31.7195122 | AH125: =X125-INDEX($O125:$X125,1,aux!$BA$1) -> 11116.696 | AI125: 0.00626482785 | AJ125: =+IF(INDEX($O125:$X125,1,aux!$BA$1)>0,(X125/INDEX($O125:$X125,1,aux!$BA$1))^(1/($X$3-INDEX($O$3:$X$3,1,aux!$BA$1)))-1,"n.d.") -> 0.1015092233 | AK125: =IF(INDEX($O125:$X125,1,aux!$BA$1)>0,(X125-INDEX($O125:$X125,1,aux!$BA$1))/INDEX($O125:$X125,1,aux!$BA$1),"n.d.") -> 1.387224383 | CC125: =+IF(ISNA(MATCH('5.1'!A125,AUX_2d_pais!$G$2:$G$40000,0)),0,1) -> 1
A126: 0812 | B126: Kiribati | C126: 0 | D126: 0 | E126: 0 | F126: 0 | G126: 0 | H126: 0 | I126: 0 | J126: 0 | K126: 140.377 | L126: 0 | M126: 14.0377 | N126: 6.09072951e-06 | O126: 0 | P126: 0 | Q126: 0 | R126: 0 | S126: 0 | T126: 0 | U126: 0 | V126: 0 | W126: 0 | X126: 0 | Y126: 0 | Z126: 0 | AA126: -14.0377 | AC126: =L126-INDEX($C126:$L126,1,aux!$BA$1) -> 0 | AD126: 0 | AE126: =+IF(INDEX($C126:$L126,1,aux!$BA$1)>0,(L126/INDEX($C126:$L126,1,aux!$BA$1))^(1/($L$3-INDEX($C$3:$L$3,1,aux!$BA$1)))-1,"n.d.") -> n.d. | AF126: =IF(INDEX($C126:$L126,1,aux!$BA$1)>0,(L126-INDEX($C126:$L126,1,aux!$BA$1))/INDEX($C126:$L126,1,aux!$BA$1),"n.d.") -> n.d. | AH126: =X126-INDEX($O126:$X126,1,aux!$BA$1) -> 0 | AI126: 0 | AJ126: =+IF(INDEX($O126:$X126,1,aux!$BA$1)>0,(X126/INDEX($O126:$X126,1,aux!$BA$1))^(1/($X$3-INDEX($O$3:$X$3,1,aux!$BA$1)))-1,"n.d.") -> n.d. | AK126: =IF(INDEX($O126:$X126,1,aux!$BA$1)>0,(X126-INDEX($O126:$X126,1,aux!$BA$1))/INDEX($O126:$X126,1,aux!$BA$1),"n.d.") -> n.d. | BO126: 140.377 | CC126: =+IF(ISNA(MATCH('5.1'!A126,AUX_2d_pais!$G$2:$G$40000,0)),0,1) -> 1
A127: 0095 | B127: Kosovo | C127: 0 | D127: 0 | E127: 0 | F127: 0 | G127: 0 | H127: 0 | I127: 0 | J127: 0 | K127: 0 | L127: 0 | M127: 0 | N127: 0 | O127: 0 | P127: 0 | Q127: 11.61 | R127: 36.892 | S127: 68.929 | T127: 29.097 | U127: 55.407 | V127: 105.143 | W127: 66.437 | X127: 38.282 | Y127: 41.1797 | Z127: 1.503337011e-05 | AA127: 41.1797 | AC127: =L127-INDEX($C127:$L127,1,aux!$BA$1) -> 0 | AD127: 0 | AE127: =+IF(INDEX($C127:$L127,1,aux!$BA$1)>0,(L127/INDEX($C127:$L127,1,aux!$BA$1))^(1/($L$3-INDEX($C$3:$L$3,1,aux!$BA$1)))-1,"n.d.") -> n.d. | AF127: =IF(INDEX($C127:$L127,1,aux!$BA$1)>0,(L127-INDEX($C127:$L127,1,aux!$BA$1))/INDEX($C127:$L127,1,aux!$BA$1),"n.d.") -> n.d. | AH127: =X127-INDEX($O127:$X127,1,aux!$BA$1) -> 38.282 | AI127: 2.157386869e-05 | AJ127: =+IF(INDEX($O127:$X127,1,aux!$BA$1)>0,(X127/INDEX($O127:$X127,1,aux!$BA$1))^(1/($X$3-INDEX($O$3:$X$3,1,aux!$BA$1)))-1,"n.d.") -> n.d. | AK127: =IF(INDEX($O127:$X127,1,aux!$BA$1)>0,(X127-INDEX($O127:$X127,1,aux!$BA$1))/INDEX($O127:$X127,1,aux!$BA$1),"n.d.") -> n.d. | BO127: 411.797 | CC127: =+IF(ISNA(MATCH('5.1'!A127,AUX_2d_pais!$G$2:$G$40000,0)),0,1) -> 1
A128: 0636 | B128: Kuwait | C128: 0 | D128: 0 | E128: 0 | F128: 0 | G128: 0.048 | H128: 0.146 | I128: 0.118 | J128: 163.234 | K128: 724.11 | L128: 813.997 | M128: 170.1653 | N128: 7.383195355e-05 | O128: 3812.272 | P128: 5406.583 | Q128: 7673.676 | R128: 7382.064 | S128: 8705.422 | T128: 9592.878 | U128: 8610.925 | V128: 8024.714 | W128: 6618.808 | X128: 6768.362 | Y128: 7259.5704 | Z128: 0.002650233213 | AA128: 7089.4051 | AC128: =L128-INDEX($C128:$L128,1,aux!$BA$1) -> 813.997 | AD128: 0.0007455017322 | AE128: =+IF(INDEX($C128:$L128,1,aux!$BA$1)>0,(L128/INDEX($C128:$L128,1,aux!$BA$1))^(1/($L$3-INDEX($C$3:$L$3,1,aux!$BA$1)))-1,"n.d.") -> n.d. | AF128: =IF(INDEX($C128:$L128,1,aux!$BA$1)>0,(L128-INDEX($C128:$L128,1,aux!$BA$1))/INDEX($C128:$L128,1,aux!$BA$1),"n.d.") -> n.d. | AH128: =X128-INDEX($O128:$X128,1,aux!$BA$1) -> 2956.09 | AI128: 0.001665908194 | AJ128: =+IF(INDEX($O128:$X128,1,aux!$BA$1)>0,(X128/INDEX($O128:$X128,1,aux!$BA$1))^(1/($X$3-INDEX($O$3:$X$3,1,aux!$BA$1)))-1,"n.d.") -> 0.06585951511 | AK128: =IF(INDEX($O128:$X128,1,aux!$BA$1)>0,(X128-INDEX($O128:$X128,1,aux!$BA$1))/INDEX($O128:$X128,1,aux!$BA$1),"n.d.") -> 0.7754142412 | CC128: =+IF(ISNA(MATCH('5.1'!A128,AUX_2d_pais!$G$2:$G$40000,0)),0,1) -> 1
A129: 0684 | B129: Laos, República Democrática Popular do | C129: 1198.493 | D129: 639.945 | E129: 1975.942 | F129: 2265.191 | G129: 1865.676 | H129: 10591.272 | I129: 1214.775 | J129: 1522.526 | K129: 15112.755 | L129: 1493.655 | M129: 3788.023 | N129: 0.001643561514 | O129: 16.545 | P129: 0 | Q129: 0 | R129: 0.637 | S129: 0 | T129: 0 | U129: 0 | V129: 0 | W129: 0.724 | X129: 28.104 | Y129: 4.601 | Z129: 1.679675565e-06 | AA129: -3783.422 | AC129: =L129-INDEX($C129:$L129,1,aux!$BA$1) -> 295.162 | AD129: 0.0002703250531 | AE129: =+IF(INDEX($C129:$L129,1,aux!$BA$1)>0,(L129/INDEX($C129:$L129,1,aux!$BA$1))^(1/($L$3-INDEX($C$3:$L$3,1,aux!$BA$1)))-1,"n.d.") -> 0.02476401395 | AF129: =IF(INDEX($C129:$L129,1,aux!$BA$1)>0,(L129-INDEX($C129:$L129,1,aux!$BA$1))/INDEX($C129:$L129,1,aux!$BA$1),"n.d.") -> 0.246277617 | AH129: =X129-INDEX($O129:$X129,1,aux!$BA$1) -> 11.559 | AI129: 6.514088819e-06 | AJ129: =+IF(INDEX($O129:$X129,1,aux!$BA$1)>0,(X129/INDEX($O129:$X129,1,aux!$BA$1))^(1/($X$3-INDEX($O$3:$X$3,1,aux!$BA$1)))-1,"n.d.") -> 0.06063711011 | AK129: =IF(INDEX($O129:$X129,1,aux!$BA$1)>0,(X129-INDEX($O129:$X129,1,aux!$BA$1))/INDEX($O129:$X129,1,aux!$BA$1),"n.d.") -> 0.6986400725 | BO129: 37926.24 | CC129: =+IF(ISNA(MATCH('5.1'!A129,AUX_2d_pais!$G$2:$G$40000,0)),0,1) -> 1
A130: 0395 | B130: Lesoto | C130: 0 | D130: 0 | E130: 0 | F130: 0 | G130: 0 | H130: 0 | I130: 0 | J130: 0 | K130: 0 | L130: 0 | M130: 0 | N130: 0 | O130: 0 | P130: 0 | Q130: 0 | R130: 0 | S130: 0 | T130: 0 | U130: 0 | V130: 0 | W130: 0 | X130: 0 | Y130: 0 | Z130: 0 | AA130: 0 | AC130: =L130-INDEX($C130:$L130,1,aux!$BA$1) -> 0 | AD130: 0 | AE130: =+IF(INDEX($C130:$L130,1,aux!$BA$1)>0,(L130/INDEX($C130:$L130,1,aux!$BA$1))^(1/($L$3-INDEX($C$3:$L$3,1,aux!$BA$1)))-1,"n.d.") -> n.d. | AF130: =IF(INDEX($C130:$L130,1,aux!$BA$1)>0,(L130-INDEX($C130:$L130,1,aux!$BA$1))/INDEX($C130:$L130,1,aux!$BA$1),"n.d.") -> n.d. | AH130: =X130-INDEX($O130:$X130,1,aux!$BA$1) -> 0 | AI130: 0 | AJ130: =+IF(INDEX($O130:$X130,1,aux!$BA$1)>0,(X130/INDEX($O130:$X130,1,aux!$BA$1))^(1/($X$3-INDEX($O$3:$X$3,1,aux!$BA$1)))-1,"n.d.") -> n.d. | AK130: =IF(INDEX($O130:$X130,1,aux!$BA$1)>0,(X130-INDEX($O130:$X130,1,aux!$BA$1))/INDEX($O130:$X130,1,aux!$BA$1),"n.d.") -> n.d. | AM130: 0 | BO130: 0 | CC130: =+IF(ISNA(MATCH('5.1'!A130,AUX_2d_pais!$G$2:$G$40000,0)),0,1) -> 0
A131: 0054 | B131: Letónia | C131: 0 | D131: 0 | E131: 0 | F131: 0 | G131: 0 | H131: 0 | I131: 0 | J131: 0 | K131: 0 | L131: 0 | M131: 0 | N131: 0 | O131: 0 | P131: 0 | Q131: 0 | R131: 0 | S131: 0 | T131: 0 | U131: 0 | V131: 0 | W131: 0 | X131: 0 | Y131: 0 | Z131: 0 | AA131: 0 | AC131: =L131-INDEX($C131:$L131,1,aux!$BA$1) -> 0 | AD131: 0 | AE131: =+IF(INDEX($C131:$L131,1,aux!$BA$1)>0,(L131/INDEX($C131:$L131,1,aux!$BA$1))^(1/($L$3-INDEX($C$3:$L$3,1,aux!$BA$1)))-1,"n.d.") -> n.d. | AF131: =IF(INDEX($C131:$L131,1,aux!$BA$1)>0,(L131-INDEX($C131:$L131,1,aux!$BA$1))/INDEX($C131:$L131,1,aux!$BA$1),"n.d.") -> n.d. | AH131: =X131-INDEX($O131:$X131,1,aux!$BA$1) -> 0 | AI131: 0 | AJ131: =+IF(INDEX($O131:$X131,1,aux!$BA$1)>0,(X131/INDEX($O131:$X131,1,aux!$BA$1))^(1/($X$3-INDEX($O$3:$X$3,1,aux!$BA$1)))-1,"n.d.") -> n.d. | AK131: =IF(INDEX($O131:$X131,1,aux!$BA$1)>0,(X131-INDEX($O131:$X131,1,aux!$BA$1))/INDEX($O131:$X131,1,aux!$BA$1),"n.d.") -> n.d. | AM131: 0 | CC131: =+IF(ISNA(MATCH('5.1'!A131,AUX_2d_pais!$G$2:$G$40000,0)),0,1) -> 0
A132: 0604 | B132: Líbano | C132: 15.282 | D132: 21.024 | E132: 40.008 | F132: 6.476 | G132: 4.535 | H132: 188.761 | I132: 242.19 | J132: 1524.724 | K132: 4808.849 | L132: 1306.053 | M132: 815.7902 | N132: 0.0003539580875 | O132: 3527.403 | P132: 8633.421 | Q132: 9208.13 | R132: 7110.554 | S132: 10196.704 | T132: 9023.488 | U132: 11286.484 | V132: 10368.348 | W132: 15485.342 | X132: 16328.744 | Y132: 10116.8618 | Z132: 0.00369333744 | AA132: 9301.0716 | AC132: =L132-INDEX($C132:$L132,1,aux!$BA$1) -> 1290.771 | AD132: 0.001182156711 | AE132: =+IF(INDEX($C132:$L132,1,aux!$BA$1)>0,(L132/INDEX($C132:$L132,1,aux!$BA$1))^(1/($L$3-INDEX($C$3:$L$3,1,aux!$BA$1)))-1,"n.d.") -> 0.6392390433 | AF132: =IF(INDEX($C132:$L132,1,aux!$BA$1)>0,(L132-INDEX($C132:$L132,1,aux!$BA$1))/INDEX($C132:$L132,1,aux!$BA$1),"n.d.") -> 84.46348645 | AH132: =X132-INDEX($O132:$X132,1,aux!$BA$1) -> 12801.341 | AI132: 0.007214211634 | AJ132: =+IF(INDEX($O132:$X132,1,aux!$BA$1)>0,(X132/INDEX($O132:$X132,1,aux!$BA$1))^(1/($X$3-INDEX($O$3:$X$3,1,aux!$BA$1)))-1,"n.d.") -> 0.1856163751 | AK132: =IF(INDEX($O132:$X132,1,aux!$BA$1)>0,(X132-INDEX($O132:$X132,1,aux!$BA$1))/INDEX($O132:$X132,1,aux!$BA$1),"n.d.") -> 3.629112126 | CC132: =+IF(ISNA(MATCH('5.1'!A132,AUX_2d_pais!$G$2:$G$40000,0)),0,1) -> 1
A133: 0268 | B133: Libéria | C133: 0 | D133: 0 | E133: 0.035 | F133: 934.802 | G133: 43.811 | H133: 0 | I133: 0 | J133: 51.574 | K133: 4.823 | L133: 0 | M133: 103.5045 | N133: 4.49089176e-05 | O133: 25.111 | P133: 16.95 | Q133: 41.353 | R133: 282.666 | S133: 299.59 | T133: 556.937 | U133: 927.201 | V133: 1077.14 | W133: 624.243 | X133: 183.051 | Y133: 403.4242 | Z133: 0.0001472770639 | AA133: 299.9197 | AC133: =L133-INDEX($C133:$L133,1,aux!$BA$1) -> 0 | AD133: 0 | AE133: =+IF(INDEX($C133:$L133,1,aux!$BA$1)>0,(L133/INDEX($C133:$L133,1,aux!$BA$1))^(1/($L$3-INDEX($C$3:$L$3,1,aux!$BA$1)))-1,"n.d.") -> n.d. | AF133: =IF(INDEX($C133:$L133,1,aux!$BA$1)>0,(L133-INDEX($C133:$L133,1,aux!$BA$1))/INDEX($C133:$L133,1,aux!$BA$1),"n.d.") -> n.d. | AH133: =X133-INDEX($O133:$X133,1,aux!$BA$1) -> 157.94 | AI133: 8.900728334e-05 | AJ133: =+IF(INDEX($O133:$X133,1,aux!$BA$1)>0,(X133/INDEX($O133:$X133,1,aux!$BA$1))^(1/($X$3-INDEX($O$3:$X$3,1,aux!$BA$1)))-1,"n.d.") -> 0.2469712923 | AK133: =IF(INDEX($O133:$X133,1,aux!$BA$1)>0,(X133-INDEX($O133:$X133,1,aux!$BA$1))/INDEX($O133:$X133,1,aux!$BA$1),"n.d.") -> 6.289673848 | CC133: =+IF(ISNA(MATCH('5.1'!A133,AUX_2d_pais!$G$2:$G$40000,0)),0,1) -> 1
A134: 0216 | B134: Líbia, Jamahira Árabe da | C134: 273.134 | D134: 109.103 | E134: 62.159 | F134: 72.804 | G134: 0 | H134: 0 | I134: 0 | J134: 1.114 | K134: 0 | L134: 0.176 | M134: 51.849 | N134: 2.249643705e-05 | O134: 2314.196 | P134: 7871.453 | Q134: 1686.849 | R134: 7083.383 | S134: 4854.308 | T134: 2524.564 | U134: 3256.92 | V134: 3609.476 | W134: 4690.843 | X134: 7955.179 | Y134: 4584.7171 | Z134: 0.001673731208 | AA134: 4532.8681 | AC134: =L134-INDEX($C134:$L134,1,aux!$BA$1) -> -272.958 | AD134: -0.0002499894494 | AE134: =+IF(INDEX($C134:$L134,1,aux!$BA$1)>0,(L134/INDEX($C134:$L134,1,aux!$BA$1))^(1/($L$3-INDEX($C$3:$L$3,1,aux!$BA$1)))-1,"n.d.") -> -0.5579619485 | AF134: =IF(INDEX($C134:$L134,1,aux!$BA$1)>0,(L134-INDEX($C134:$L134,1,aux!$BA$1))/INDEX($C134:$L134,1,aux!$BA$1),"n.d.") -> -0.9993556276 | AH134: =X134-INDEX($O134:$X134,1,aux!$BA$1) -> 5640.983 | AI134: 0.003178982982 | AJ134: =+IF(INDEX($O134:$X134,1,aux!$BA$1)>0,(X134/INDEX($O134:$X134,1,aux!$BA$1))^(1/($X$3-INDEX($O$3:$X$3,1,aux!$BA$1)))-1,"n.d.") -> 0.1470525456 | AK134: =IF(INDEX($O134:$X134,1,aux!$BA$1)>0,(X134-INDEX($O134:$X134,1,aux!$BA$1))/INDEX($O134:$X134,1,aux!$BA$1),"n.d.") -> 2.437556283 | CC134: =+IF(ISNA(MATCH('5.1'!A134,AUX_2d_pais!$G$2:$G$40000,0)),0,1) -> 1
A135: 0037 | B135: Liechtenstein | C135: 1.131 | D135: 27.166 | E135: 0.396 | F135: 0 | G135: 0 | H135: 0.07 | I135: 0 | J135: 0 | K135: 2.989 | L135: 0 | M135: 3.1752 | N135: 1.377667591e-06 | O135: 9.105 | P135: 27.491 | Q135: 90.335 | R135: 111.121 | S135: 183.897 | T135: 245.516 | U135: 196.364 | V135: 232.062 | W135: 78.655 | X135: 102.538 | Y135: 127.7084 | Z135: 4.662218625e-05 | AA135: 124.5332 | AC135: =L135-INDEX($C135:$L135,1,aux!$BA$1) -> -1.131 | AD135: -1.035829934e-06 | AE135: =+IF(INDEX($C135:$L135,1,aux!$BA$1)>0,(L135/INDEX($C135:$L135,1,aux!$BA$1))^(1/($L$3-INDEX($C$3:$L$3,1,aux!$BA$1)))-1,"n.d.") -> -1 | AF135: =IF(INDEX($C135:$L135,1,aux!$BA$1)>0,(L135-INDEX($C135:$L135,1,aux!$BA$1))/INDEX($C135:$L135,1,aux!$BA$1),"n.d.") -> -1 | AH135: =X135-INDEX($O135:$X135,1,aux!$BA$1) -> 93.433 | AI135: 5.26542833e-05 | AJ135: =+IF(INDEX($O135:$X135,1,aux!$BA$1)>0,(X135/INDEX($O135:$X135,1,aux!$BA$1))^(1/($X$3-INDEX($O$3:$X$3,1,aux!$BA$1)))-1,"n.d.") -> 0.3087147223 | AK135: =IF(INDEX($O135:$X135,1,aux!$BA$1)>0,(X135-INDEX($O135:$X135,1,aux!$BA$1))/INDEX($O135:$X135,1,aux!$BA$1),"n.d.") -> 10.26172433 | CC135: =+IF(ISNA(MATCH('5.1'!A135,AUX_2d_pais!$G$2:$G$40000,0)),0,1) -> 1
A136: 0055 | B136: Lituânia | C136: 0 | D136: 0 | E136: 0 | F136: 0 | G136: 0 | H136: 0 | I136: 0 | J136: 0 | K136: 0 | L136: 0 | M136: 0 | N136: 0 | O136: 0 | P136: 0 | Q136: 0 | R136: 0 | S136: 0 | T136: 0 | U136: 0 | V136: 0 | W136: 0 | X136: 0 | Y136: 0 | Z136: 0 | AA136: 0 | AC136: =L136-INDEX($C136:$L136,1,aux!$BA$1) -> 0 | AD136: 0 | AE136: =+IF(INDEX($C136:$L136,1,aux!$BA$1)>0,(L136/INDEX($C136:$L136,1,aux!$BA$1))^(1/($L$3-INDEX($C$3:$L$3,1,aux!$BA$1)))-1,"n.d.") -> n.d. | AF136: =IF(INDEX($C136:$L136,1,aux!$BA$1)>0,(L136-INDEX($C136:$L136,1,aux!$BA$1))/INDEX($C136:$L136,1,aux!$BA$1),"n.d.") -> n.d. | AH136: =X136-INDEX($O136:$X136,1,aux!$BA$1) -> 0 | AI136: 0 | AJ136: =+IF(INDEX($O136:$X136,1,aux!$BA$1)>0,(X136/INDEX($O136:$X136,1,aux!$BA$1))^(1/($X$3-INDEX($O$3:$X$3,1,aux!$BA$1)))-1,"n.d.") -> n.d. | AK136: =IF(INDEX($O136:$X136,1,aux!$BA$1)>0,(X136-INDEX($O136:$X136,1,aux!$BA$1))/INDEX($O136:$X136,1,aux!$BA$1),"n.d.") -> n.d. | AM136: =SUM(A136:AA136) -> 0 | CC136: =+IF(ISNA(MATCH('5.1'!A136,AUX_2d_pais!$G$2:$G$40000,0)),0,1) -> 0
A137: 0018 | B137: Luxemburgo | C137: 0 | D137: 0 | E137: 0 | F137: 0 | G137: 0 | H137: 0 | I137: 0 | J137: 0 | K137: 0 | L137: 0 | M137: 0 | N137: 0 | O137: 0 | P137: 0 | Q137: 0 | R137: 0 | S137: 0 | T137: 0 | U137: 0 | V137: 0 | W137: 0 | X137: 0 | Y137: 0 | Z137: 0 | AA137: 0 | AC137: =L137-INDEX($C137:$L137,1,aux!$BA$1) -> 0 | AD137: 0 | AE137: =+IF(INDEX($C137:$L137,1,aux!$BA$1)>0,(L137/INDEX($C137:$L137,1,aux!$BA$1))^(1/($L$3-INDEX($C$3:$L$3,1,aux!$BA$1)))-1,"n.d.") -> n.d. | AF137: =IF(INDEX($C137:$L137,1,aux!$BA$1)>0,(L137-INDEX($C137:$L137,1,aux!$BA$1))/INDEX($C137:$L137,1,aux!$BA$1),"n.d.") -> n.d. | AH137: =X137-INDEX($O137:$X137,1,aux!$BA$1) -> 0 | AI137: 0 | AJ137: =+IF(INDEX($O137:$X137,1,aux!$BA$1)>0,(X137/INDEX($O137:$X137,1,aux!$BA$1))^(1/($X$3-INDEX($O$3:$X$3,1,aux!$BA$1)))-1,"n.d.") -> n.d. | AK137: =IF(INDEX($O137:$X137,1,aux!$BA$1)>0,(X137-INDEX($O137:$X137,1,aux!$BA$1))/INDEX($O137:$X137,1,aux!$BA$1),"n.d.") -> n.d. | AM137: 0 | CC137: =+IF(ISNA(MATCH('5.1'!A137,AUX_2d_pais!$G$2:$G$40000,0)),0,1) -> 0
A138: 0743 | B138: Macau | C138: 15.255 | D138: 12.576 | E138: 1.69 | F138: 83.468 | G138: 2.382 | H138: 0.604 | I138: 101.206 | J138: 54.768 | K138: 6.153 | L138: 0.779 | M138: 27.8881 | N138: 1.21001926e-05 | O138: 7435.172 | P138: 8294.963 | Q138: 9727.463 | R138: 11856.233 | S138: 11543.547 | T138: 12950.672 | U138: 12543.095 | V138: 13857.428 | W138: 14230.51 | X138: 15005.542 | Y138: 11744.4625 | Z138: 0.004287521558 | AA138: 11716.5744 | AC138: =L138-INDEX($C138:$L138,1,aux!$BA$1) -> -14.476 | AD138: -1.325789048e-05 | AE138: =+IF(INDEX($C138:$L138,1,aux!$BA$1)>0,(L138/INDEX($C138:$L138,1,aux!$BA$1))^(1/($L$3-INDEX($C$3:$L$3,1,aux!$BA$1)))-1,"n.d.") -> -0.2814477384 | AF138: =IF(INDEX($C138:$L138,1,aux!$BA$1)>0,(L138-INDEX($C138:$L138,1,aux!$BA$1))/INDEX($C138:$L138,1,aux!$BA$1),"n.d.") -> -0.9489347755 | AH138: =X138-INDEX($O138:$X138,1,aux!$BA$1) -> 7570.37 | AI138: 0.004266291424 | AJ138: =+IF(INDEX($O138:$X138,1,aux!$BA$1)>0,(X138/INDEX($O138:$X138,1,aux!$BA$1))^(1/($X$3-INDEX($O$3:$X$3,1,aux!$BA$1)))-1,"n.d.") -> 0.08114642994 | AK138: =IF(INDEX($O138:$X138,1,aux!$BA$1)>0,(X138-INDEX($O138:$X138,1,aux!$BA$1))/INDEX($O138:$X138,1,aux!$BA$1),"n.d.") -> 1.018183574 | CC138: =+IF(ISNA(MATCH('5.1'!A138,AUX_2d_pais!$G$2:$G$40000,0)),0,1) -> 1
A139: 0096 | B139: Macedónia, Antiga República jugoslava da | C139: 2.098 | D139: 37.199 | E139: 2286.397 | F139: 2003.853 | G139: 3093.72 | H139: 1794.336 | I139: 2409.884 | J139: 1661.689 | K139: 2364.444 | L139: 3985.193 | M139: 1963.8813 | N139: 0.000852096126 | O139: 135.111 | P139: 313.213 | Q139: 477.222 | R139: 332.754 | S139: 544.639 | T139: 344.794 | U139: 385.832 | V139: 629.204 | W139: 409.267 | X139: 584.14 | Y139: 415.6176 | Z139: 0.000151728478 | AA139: -1548.2637 | AC139: =L139-INDEX($C139:$L139,1,aux!$BA$1) -> 3983.095 | AD139: 0.003647930179 | AE139: =+IF(INDEX($C139:$L139,1,aux!$BA$1)>0,(L139/INDEX($C139:$L139,1,aux!$BA$1))^(1/($L$3-INDEX($C$3:$L$3,1,aux!$BA$1)))-1,"n.d.") -> 1.313629238 | AF139: =IF(INDEX($C139:$L139,1,aux!$BA$1)>0,(L139-INDEX($C139:$L139,1,aux!$BA$1))/INDEX($C139:$L139,1,aux!$BA$1),"n.d.") -> 1898.520019 | AH139: =X139-INDEX($O139:$X139,1,aux!$BA$1) -> 449.029 | AI139: 0.0002530508512 | AJ139: =+IF(INDEX($O139:$X139,1,aux!$BA$1)>0,(X139/INDEX($O139:$X139,1,aux!$BA$1))^(1/($X$3-INDEX($O$3:$X$3,1,aux!$BA$1)))-1,"n.d.") -> 0.1766501643 | AK139: =IF(INDEX($O139:$X139,1,aux!$BA$1)>0,(X139-INDEX($O139:$X139,1,aux!$BA$1))/INDEX($O139:$X139,1,aux!$BA$1),"n.d.") -> 3.323408161 | CC139: =+IF(ISNA(MATCH('5.1'!A139,AUX_2d_pais!$G$2:$G$40000,0)),0,1) -> 1
A140: 0370 | B140: Madagáscar | C140: 1224.234 | D140: 2658.65 | E140: 4305.577 | F140: 4468.49 | G140: 19676.369 | H140: 17649.546 | I140: 2973.625 | J140: 6294.652 | K140: 6611.458 | L140: 3964.22 | M140: 6982.6821 | N140: 0.003029672092 | O140: 71.247 | P140: 85.705 | Q140: 176.814 | R140: 449.084 | S140: 604.476 | T140: 381.098 | U140: 223.653 | V140: 219.852 | W140: 174.232 | X140: 152.634 | Y140: 253.8795 | Z140: 9.268315424e-05 | AA140: -6728.8026 | AC140: =L140-INDEX($C140:$L140,1,aux!$BA$1) -> 2739.986 | AD140: 0.002509424862 | AE140: =+IF(INDEX($C140:$L140,1,aux!$BA$1)>0,(L140/INDEX($C140:$L140,1,aux!$BA$1))^(1/($L$3-INDEX($C$3:$L$3,1,aux!$BA$1)))-1,"n.d.") -> 0.139460453 | AF140: =IF(INDEX($C140:$L140,1,aux!$BA$1)>0,(L140-INDEX($C140:$L140,1,aux!$BA$1))/INDEX($C140:$L140,1,aux!$BA$1),"n.d.") -> 2.238122777 | AH140: =X140-INDEX($O140:$X140,1,aux!$BA$1) -> 81.387 | AI140: 4.586574503e-05 | AJ140: =+IF(INDEX($O140:$X140,1,aux!$BA$1)>0,(X140/INDEX($O140:$X140,1,aux!$BA$1))^(1/($X$3-INDEX($O$3:$X$3,1,aux!$BA$1)))-1,"n.d.") -> 0.08834094192 | AK140: =IF(INDEX($O140:$X140,1,aux!$BA$1)>0,(X140-INDEX($O140:$X140,1,aux!$BA$1))/INDEX($O140:$X140,1,aux!$BA$1),"n.d.") -> 1.142321782 | CC140: =+IF(ISNA(MATCH('5.1'!A140,AUX_2d_pais!$G$2:$G$40000,0)),0,1) -> 1
A141: 0701 | B141: Malásia | C141: 10423.791 | D141: 7056.118 | E141: 2429.018 | F141: 1060.415 | G141: 4444.993 | H141: 5762.822 | I141: 4744.528 | J141: 2554.118 | K141: 2132.426 | L141: 7011.016 | M141: 4761.9245 | N141: 0.002066121521 | O141: 2123.904 | P141: 1564.481 | Q141: 2344.433 | R141: 2340.358 | S141: 2172.555 | T141: 2773.22 | U141: 2342.089 | V141: 3562.884 | W141: 4274.252 | X141: 4475.752 | Y141: 2797.3928 | Z141: 0.001021237195 | AA141: -1964.5317 | AC141: =L141-INDEX($C141:$L141,1,aux!$BA$1) -> -3412.775 | AD141: -0.0031256008 | AE141: =+IF(INDEX($C141:$L141,1,aux!$BA$1)>0,(L141/INDEX($C141:$L141,1,aux!$BA$1))^(1/($L$3-INDEX($C$3:$L$3,1,aux!$BA$1)))-1,"n.d.") -> -0.04311070527 | AF141: =IF(INDEX($C141:$L141,1,aux!$BA$1)>0,(L141-INDEX($C141:$L141,1,aux!$BA$1))/INDEX($C141:$L141,1,aux!$BA$1),"n.d.") -> -0.3274024777 | AH141: =X141-INDEX($O141:$X141,1,aux!$BA$1) -> 2351.848 | AI141: 0.001325386864 | AJ141: =+IF(INDEX($O141:$X141,1,aux!$BA$1)>0,(X141/INDEX($O141:$X141,1,aux!$BA$1))^(1/($X$3-INDEX($O$3:$X$3,1,aux!$BA$1)))-1,"n.d.") -> 0.08635089309 | AK141: =IF(INDEX($O141:$X141,1,aux!$BA$1)>0,(X141-INDEX($O141:$X141,1,aux!$BA$1))/INDEX($O141:$X141,1,aux!$BA$1),"n.d.") -> 1.107323118 | CC141: =+IF(ISNA(MATCH('5.1'!A141,AUX_2d_pais!$G$2:$G$40000,0)),0,1) -> 1
A142: 0386 | B142: Malavi | C142: 7870.677 | D142: 2250.441 | E142: 7918.511 | F142: 11471.308 | G142: 23088.123 | H142: 10210.011 | I142: 22647.858 | J142: 24363.441 | K142: 8784.158 | L142: 1866.604 | M142: 12047.1132 | N142: 0.005227046303 | O142: 2.047 | P142: 27.18 | Q142: 27.59 | R142: 122.671 | S142: 26.802 | T142: 37.042 | U142: 161.309 | V142: 149.321 | W142: 15.5 | X142: 10.36 | Y142: 57.9822 | Z142: 2.116741677e-05 | AA142: -11989.131 | AC142: =L142-INDEX($C142:$L142,1,aux!$BA$1) -> -6004.073 | AD142: -0.005498849285 | AE142: =+IF(INDEX($C142:$L142,1,aux!$BA$1)>0,(L142/INDEX($C142:$L142,1,aux!$BA$1))^(1/($L$3-INDEX($C$3:$L$3,1,aux!$BA$1)))-1,"n.d.") -> -0.1477637337 | AF142: =IF(INDEX($C142:$L142,1,aux!$BA$1)>0,(L142-INDEX($C142:$L142,1,aux!$BA$1))/INDEX($C142:$L142,1,aux!$BA$1),"n.d.") -> -0.7628407315 | AH142: =X142-INDEX($O142:$X142,1,aux!$BA$1) -> 8.313 | AI142: 4.684801484e-06 | AJ142: =+IF(INDEX($O142:$X142,1,aux!$BA$1)>0,(X142/INDEX($O142:$X142,1,aux!$BA$1))^(1/($X$3-INDEX($O$3:$X$3,1,aux!$BA$1)))-1,"n.d.") -> 0.1974271513 | AK142: =IF(INDEX($O142:$X142,1,aux!$BA$1)>0,(X142-INDEX($O142:$X142,1,aux!$BA$1))/INDEX($O142:$X142,1,aux!$BA$1),"n.d.") -> 4.061064973 | CC142: =+IF(ISNA(MATCH('5.1'!A142,AUX_2d_pais!$G$2:$G$40000,0)),0,1) -> 1
A143: 0667 | B143: Maldivas | C143: 0 | D143: 0 | E143: 0 | F143: 0 | G143: 0 | H143: 37.697 | I143: 80.183 | J143: 87.277 | K143: 72.707 | L143: 48.541 | M143: 32.6405 | N143: 1.41621816e-05 | O143: 45.773 | P143: 66.065 | Q143: 28.05 | R143: 28.713 | S143: 72.323 | T143: 34.685 | U143: 51.041 | V143: 106.579 | W143: 92.373 | X143: 87.355 | Y143: 61.2957 | Z143: 2.237706793e-05 | AA143: 28.6552 | AC143: =L143-INDEX($C143:$L143,1,aux!$BA$1) -> 48.541 | AD143: 4.445642869e-05 | AE143: =+IF(INDEX($C143:$L143,1,aux!$BA$1)>0,(L143/INDEX($C143:$L143,1,aux!$BA$1))^(1/($L$3-INDEX($C$3:$L$3,1,aux!$BA$1)))-1,"n.d.") -> n.d. | AF143: =IF(INDEX($C143:$L143,1,aux!$BA$1)>0,(L143-INDEX($C143:$L143,1,aux!$BA$1))/INDEX($C143:$L143,1,aux!$BA$1),"n.d.") -> n.d. | AH143: =X143-INDEX($O143:$X143,1,aux!$BA$1) -> 41.582 | AI143: 2.343358779e-05 | AJ143: =+IF(INDEX($O143:$X143,1,aux!$BA$1)>0,(X143/INDEX($O143:$X143,1,aux!$BA$1))^(1/($X$3-INDEX($O$3:$X$3,1,aux!$BA$1)))-1,"n.d.") -> 0.07445068688 | AK143: =IF(INDEX($O143:$X143,1,aux!$BA$1)>0,(X143-INDEX($O143:$X143,1,aux!$BA$1))/INDEX($O143:$X143,1,aux!$BA$1),"n.d.") -> 0.9084394731 | CC143: =+IF(ISNA(MATCH('5.1'!A143,AUX_2d_pais!$G$2:$G$40000,0)),0,1) -> 1
A144: 0232 | B144: Mali | C144: 123.671 | D144: 715.829 | E144: 390.452 | F144: 261.332 | G144: 888.44 | H144: 1326.026 | I144: 5958.533 | J144: 5168.138 | K144: 4429.814 | L144: 8796.503 | M144: 2805.8738 | N144: 0.001217422965 | O144: 65.396 | P144: 95.619 | Q144: 76.281 | R144: 125.33 | S144: 444.051 | T144: 1025.688 | U144: 932.908 | V144: 556.307 | W144: 1205.087 | X144: 617.296 | Y144: 514.3963 | Z144: 0.000187789371 | AA144: -2291.4775 | AC144: =L144-INDEX($C144:$L144,1,aux!$BA$1) -> 8672.832 | AD144: 0.007943040674 | AE144: =+IF(INDEX($C144:$L144,1,aux!$BA$1)>0,(L144/INDEX($C144:$L144,1,aux!$BA$1))^(1/($L$3-INDEX($C$3:$L$3,1,aux!$BA$1)))-1,"n.d.") -> 0.6061365482 | AF144: =IF(INDEX($C144:$L144,1,aux!$BA$1)>0,(L144-INDEX($C144:$L144,1,aux!$BA$1))/INDEX($C144:$L144,1,aux!$BA$1),"n.d.") -> 70.12825966 | AH144: =X144-INDEX($O144:$X144,1,aux!$BA$1) -> 551.9 | AI144: 0.0003110239311 | AJ144: =+IF(INDEX($O144:$X144,1,aux!$BA$1)>0,(X144/INDEX($O144:$X144,1,aux!$BA$1))^(1/($X$3-INDEX($O$3:$X$3,1,aux!$BA$1)))-1,"n.d.") -> 0.2832962339 | AK144: =IF(INDEX($O144:$X144,1,aux!$BA$1)>0,(X144-INDEX($O144:$X144,1,aux!$BA$1))/INDEX($O144:$X144,1,aux!$BA$1),"n.d.") -> 8.439354089 | CC144: =+IF(ISNA(MATCH('5.1'!A144,AUX_2d_pais!$G$2:$G$40000,0)),0,1) -> 1
A145: 0046 | B145: Malta | C145: 0 | D145: 0 | E145: 0 | F145: 0 | G145: 0 | H145: 0 | I145: 0 | J145: 0 | K145: 0 | L145: 0 | M145: 0 | N145: 0 | O145: 0 | P145: 0 | Q145: 0 | R145: 0 | S145: 0 | T145: 0 | U145: 0 | V145: 0 | W145: 0 | X145: 0 | Y145: 0 | Z145: 0 | AA145: 0 | AC145: =L145-INDEX($C145:$L145,1,aux!$BA$1) -> 0 | AD145: 0 | AE145: =+IF(INDEX($C145:$L145,1,aux!$BA$1)>0,(L145/INDEX($C145:$L145,1,aux!$BA$1))^(1/($L$3-INDEX($C$3:$L$3,1,aux!$BA$1)))-1,"n.d.") -> n.d. | AF145: =IF(INDEX($C145:$L145,1,aux!$BA$1)>0,(L145-INDEX($C145:$L145,1,aux!$BA$1))/INDEX($C145:$L145,1,aux!$BA$1),"n.d.") -> n.d. | AH145: =X145-INDEX($O145:$X145,1,aux!$BA$1) -> 0 | AI145: 0 | AJ145: =+IF(INDEX($O145:$X145,1,aux!$BA$1)>0,(X145/INDEX($O145:$X145,1,aux!$BA$1))^(1/($X$3-INDEX($O$3:$X$3,1,aux!$BA$1)))-1,"n.d.") -> n.d. | AK145: =IF(INDEX($O145:$X145,1,aux!$BA$1)>0,(X145-INDEX($O145:$X145,1,aux!$BA$1))/INDEX($O145:$X145,1,aux!$BA$1),"n.d.") -> n.d. | AM145: 0 | CC145: =+IF(ISNA(MATCH('5.1'!A145,AUX_2d_pais!$G$2:$G$40000,0)),0,1) -> 0
A146: 0820 | B146: Marianas do Norte, Ilhas | C146: 0 | D146: 0 | E146: 0 | F146: 0 | G146: 0 | H146: 0 | I146: 0 | J146: 0 | K146: 0 | L146: 0 | M146: 0 | N146: 0 | O146: 0 | P146: 0 | Q146: 0 | R146: 0 | S146: 0 | T146: 0 | U146: 0 | V146: 0 | W146: 3.953 | X146: 0 | Y146: 0.3953 | Z146: 1.443111826e-07 | AA146: 0.3953 | AC146: =L146-INDEX($C146:$L146,1,aux!$BA$1) -> 0 | AD146: 0 | AE146: =+IF(INDEX($C146:$L146,1,aux!$BA$1)>0,(L146/INDEX($C146:$L146,1,aux!$BA$1))^(1/($L$3-INDEX($C$3:$L$3,1,aux!$BA$1)))-1,"n.d.") -> n.d. | AF146: =IF(INDEX($C146:$L146,1,aux!$BA$1)>0,(L146-INDEX($C146:$L146,1,aux!$BA$1))/INDEX($C146:$L146,1,aux!$BA$1),"n.d.") -> n.d. | AH146: =X146-INDEX($O146:$X146,1,aux!$BA$1) -> 0 | AI146: 0 | AJ146: =+IF(INDEX($O146:$X146,1,aux!$BA$1)>0,(X146/INDEX($O146:$X146,1,aux!$BA$1))^(1/($X$3-INDEX($O$3:$X$3,1,aux!$BA$1)))-1,"n.d.") -> n.d. | AK146: =IF(INDEX($O146:$X146,1,aux!$BA$1)>0,(X146-INDEX($O146:$X146,1,aux!$BA$1))/INDEX($O146:$X146,1,aux!$BA$1),"n.d.") -> n.d. | BO146: =SUM(C146:L146,O146:X146) -> 3.953 | CC146: =+IF(ISNA(MATCH('5.1'!A146,AUX_2d_pais!$G$2:$G$40000,0)),0,1) -> 1
A147: 0204 | B147: Marrocos | C147: 15072.713 | D147: 22037.469 | E147: 24936.622 | F147: 30555.02 | G147: 48248.953 | H147: 36399.122 | I147: 65363.723 | J147: 60649.668 | K147: 53517.593 | L147: 58055.855 | M147: 41483.6738 | N147: 0.01799909075 | O147: 24563.177 | P147: 59260.166 | Q147: 68758.656 | R147: 86904.798 | S147: 75615.235 | T147: 86016.803 | U147: 79086.426 | V147: 75727.794 | W147: 68813.308 | X147: 92414.169 | Y147: 71716.0532 | Z147: 0.02618120022 | AA147: 30232.3794 | AC147: =L147-INDEX($C147:$L147,1,aux!$BA$1) -> 42983.142 | AD147: 0.03936624682 | AE147: =+IF(INDEX($C147:$L147,1,aux!$BA$1)>0,(L147/INDEX($C147:$L147,1,aux!$BA$1))^(1/($L$3-INDEX($C$3:$L$3,1,aux!$BA$1)))-1,"n.d.") -> 0.1616431421 | AF147: =IF(INDEX($C147:$L147,1,aux!$BA$1)>0,(L147-INDEX($C147:$L147,1,aux!$BA$1))/INDEX($C147:$L147,1,aux!$BA$1),"n.d.") -> 2.851718997 | AH147: =X147-INDEX($O147:$X147,1,aux!$BA$1) -> 67850.992 | AI147: 0.03823751089 | AJ147: =+IF(INDEX($O147:$X147,1,aux!$BA$1)>0,(X147/INDEX($O147:$X147,1,aux!$BA$1))^(1/($X$3-INDEX($O$3:$X$3,1,aux!$BA$1)))-1,"n.d.") -> 0.158615505 | AK147: =IF(INDEX($O147:$X147,1,aux!$BA$1)>0,(X147-INDEX($O147:$X147,1,aux!$BA$1))/INDEX($O147:$X147,1,aux!$BA$1),"n.d.") -> 2.762305218 | CC147: =+IF(ISNA(MATCH('5.1'!A147,AUX_2d_pais!$G$2:$G$40000,0)),0,1) -> 1
A148: 0824 | B148: Marshall, Ilhas | C148: 0 | D148: 0 | E148: 0 | F148: 0 | G148: 0 | H148: 0 | I148: 0 | J148: 0 | K148: 0 | L148: 0 | M148: 0 | N148: 0 | O148: 0 | P148: 0 | Q148: 0 | R148: 0 | S148: 0 | T148: 0 | U148: 0.515 | V148: 0.206 | W148: 0.808 | X148: 0 | Y148: 0.1529 | Z148: 5.581882067e-08 | AA148: 0.1529 | AC148: =L148-INDEX($C148:$L148,1,aux!$BA$1) -> 0 | AD148: 0 | AE148: =+IF(INDEX($C148:$L148,1,aux!$BA$1)>0,(L148/INDEX($C148:$L148,1,aux!$BA$1))^(1/($L$3-INDEX($C$3:$L$3,1,aux!$BA$1)))-1,"n.d.") -> n.d. | AF148: =IF(INDEX($C148:$L148,1,aux!$BA$1)>0,(L148-INDEX($C148:$L148,1,aux!$BA$1))/INDEX($C148:$L148,1,aux!$BA$1),"n.d.") -> n.d. | AH148: =X148-INDEX($O148:$X148,1,aux!$BA$1) -> 0 | AI148: 0 | AJ148: =+IF(INDEX($O148:$X148,1,aux!$BA$1)>0,(X148/INDEX($O148:$X148,1,aux!$BA$1))^(1/($X$3-INDEX($O$3:$X$3,1,aux!$BA$1)))-1,"n.d.") -> n.d. | AK148: =IF(INDEX($O148:$X148,1,aux!$BA$1)>0,(X148-INDEX($O148:$X148,1,aux!$BA$1))/INDEX($O148:$X148,1,aux!$BA$1),"n.d.") -> n.d. | CC148: =+IF(ISNA(MATCH('5.1'!A148,AUX_2d_pais!$G$2:$G$40000,0)),0,1) -> 1
A149: 0462 | B149: Martinica | C149: 0 | D149: 0 | E149: 0 | F149: 0 | G149: 0 | H149: 0 | I149: 0 | J149: 0 | K149: 0 | L149: 0 | M149: 0 | N149: 0 | O149: 0 | P149: 0 | Q149: 0 | R149: 0 | S149: 0 | T149: 0 | U149: 0 | V149: 0 | W149: 0 | X149: 0 | Y149: 0 | Z149: 0 | AA149: 0 | AC149: =L149-INDEX($C149:$L149,1,aux!$BA$1) -> 0 | AD149: 0 | AE149: =+IF(INDEX($C149:$L149,1,aux!$BA$1)>0,(L149/INDEX($C149:$L149,1,aux!$BA$1))^(1/($L$3-INDEX($C$3:$L$3,1,aux!$BA$1)))-1,"n.d.") -> n.d. | AF149: =IF(INDEX($C149:$L149,1,aux!$BA$1)>0,(L149-INDEX($C149:$L149,1,aux!$BA$1))/INDEX($C149:$L149,1,aux!$BA$1),"n.d.") -> n.d. | AH149: =X149-INDEX($O149:$X149,1,aux!$BA$1) -> 0 | AI149: 0 | AJ149: =+IF(INDEX($O149:$X149,1,aux!$BA$1)>0,(X149/INDEX($O149:$X149,1,aux!$BA$1))^(1/($X$3-INDEX($O$3:$X$3,1,aux!$BA$1)))-1,"n.d.") -> n.d. | AK149: =IF(INDEX($O149:$X149,1,aux!$BA$1)>0,(X149-INDEX($O149:$X149,1,aux!$BA$1))/INDEX($O149:$X149,1,aux!$BA$1),"n.d.") -> n.d. | AM149: 0 | BO149: 0 | CC149: =+IF(ISNA(MATCH('5.1'!A149,AUX_2d_pais!$G$2:$G$40000,0)),0,1) -> 0
A150: 0373 | B150: Maurícias | C150: 18698.568 | D150: 12122.966 | E150: 3597.439 | F150: 4078.724 | G150: 3676.889 | H150: 2855.122 | I150: 5742.28 | J150: 11884.65 | K150: 19980.713 | L150: 12809.047 | M150: 9544.6398 | N150: 0.004141263832 | O150: 452.968 | P150: 630.57 | Q150: 446.141 | R150: 546.552 | S150: 795.254 | T150: 983.833 | U150: 1513.568 | V150: 2209.132 | W150: 1477.15 | X150: 3520.513 | Y150: 1257.5681 | Z150: 0.0004590972417 | AA150: -8287.0717 | AC150: =L150-INDEX($C150:$L150,1,aux!$BA$1) -> -5889.521 | AD150: -0.005393936473 | AE150: =+IF(INDEX($C150:$L150,1,aux!$BA$1)>0,(L150/INDEX($C150:$L150,1,aux!$BA$1))^(1/($L$3-INDEX($C$3:$L$3,1,aux!$BA$1)))-1,"n.d.") -> -0.04116167253 | AF150: =IF(INDEX($C150:$L150,1,aux!$BA$1)>0,(L150-INDEX($C150:$L150,1,aux!$BA$1))/INDEX($C150:$L150,1,aux!$BA$1),"n.d.") -> -0.3149717668 | AH150: =X150-INDEX($O150:$X150,1,aux!$BA$1) -> 3067.545 | AI150: 0.001728718798 | AJ150: =+IF(INDEX($O150:$X150,1,aux!$BA$1)>0,(X150/INDEX($O150:$X150,1,aux!$BA$1))^(1/($X$3-INDEX($O$3:$X$3,1,aux!$BA$1)))-1,"n.d.") -> 0.2558816487 | AK150: =IF(INDEX($O150:$X150,1,aux!$BA$1)>0,(X150-INDEX($O150:$X150,1,aux!$BA$1))/INDEX($O150:$X150,1,aux!$BA$1),"n.d.") -> 6.772100899 | CC150: =+IF(ISNA(MATCH('5.1'!A150,AUX_2d_pais!$G$2:$G$40000,0)),0,1) -> 1
A151: 0228 | B151: Mauritânia | C151: 2240.386 | D151: 924.1 | E151: 11303.451 | F151: 15342.133 | G151: 7605.219 | H151: 19817.839 | I151: 8102.328 | J151: 6112.408 | K151: 19361.49 | L151: 20025.787 | M151: 11083.5141 | N151: 0.004808956339 | O151: 46.539 | P151: 109.588 | Q151: 228.113 | R151: 591.895 | S151: 1013.456 | T151: 905.361 | U151: 878.894 | V151: 1069.007 | W151: 1645.912 | X151: 1977.193 | Y151: 846.5958 | Z151: 0.0003090646118 | AA151: -10236.9183 | AC151: =L151-INDEX($C151:$L151,1,aux!$BA$1) -> 17785.401 | AD151: 0.01628881587 | AE151: =+IF(INDEX($C151:$L151,1,aux!$BA$1)>0,(L151/INDEX($C151:$L151,1,aux!$BA$1))^(1/($L$3-INDEX($C$3:$L$3,1,aux!$BA$1)))-1,"n.d.") -> 0.2755465273 | AF151: =IF(INDEX($C151:$L151,1,aux!$BA$1)>0,(L151-INDEX($C151:$L151,1,aux!$BA$1))/INDEX($C151:$L151,1,aux!$BA$1),"n.d.") -> 7.93854318 | AH151: =X151-INDEX($O151:$X151,1,aux!$BA$1) -> 1930.654 | AI151: 0.001088022462 | AJ151: =+IF(INDEX($O151:$X151,1,aux!$BA$1)>0,(X151/INDEX($O151:$X151,1,aux!$BA$1))^(1/($X$3-INDEX($O$3:$X$3,1,aux!$BA$1)))-1,"n.d.") -> 0.5167523223 | AK151: =IF(INDEX($O151:$X151,1,aux!$BA$1)>0,(X151-INDEX($O151:$X151,1,aux!$BA$1))/INDEX($O151:$X151,1,aux!$BA$1),"n.d.") -> 41.48464729 | CC151: =+IF(ISNA(MATCH('5.1'!A151,AUX_2d_pais!$G$2:$G$40000,0)),0,1) -> 1
A152: 0377 | B152: Mayotte | C152: 0 | D152: 0 | E152: 0 | F152: 0 | G152: 0 | H152: 0 | I152: 0 | J152: 0 | K152: 0 | L152: 0 | M152: 0 | N152: 0 | O152: 40.693 | P152: 96.07 | Q152: 104.987 | R152: 108.312 | S152: 101.53 | T152: 0 | U152: 0 | V152: 0 | W152: 0 | X152: 0 | Y152: 45.1592 | Z152: 1.648615622e-05 | AA152: 45.1592 | AC152: =L152-INDEX($C152:$L152,1,aux!$BA$1) -> 0 | AD152: 0 | AE152: =+IF(INDEX($C152:$L152,1,aux!$BA$1)>0,(L152/INDEX($C152:$L152,1,aux!$BA$1))^(1/($L$3-INDEX($C$3:$L$3,1,aux!$BA$1)))-1,"n.d.") -> n.d. | AF152: =IF(INDEX($C152:$L152,1,aux!$BA$1)>0,(L152-INDEX($C152:$L152,1,aux!$BA$1))/INDEX($C152:$L152,1,aux!$BA$1),"n.d.") -> n.d. | AH152: =X152-INDEX($O152:$X152,1,aux!$BA$1) -> -40.693 | AI152: -2.293259074e-05 | AJ152: =+IF(INDEX($O152:$X152,1,aux!$BA$1)>0,(X152/INDEX($O152:$X152,1,aux!$BA$1))^(1/($X$3-INDEX($O$3:$X$3,1,aux!$BA$1)))-1,"n.d.") -> -1 | AK152: =IF(INDEX($O152:$X152,1,aux!$BA$1)>0,(X152-INDEX($O152:$X152,1,aux!$BA$1))/INDEX($O152:$X152,1,aux!$BA$1),"n.d.") -> -1 | BO152: 451.592 | CC152: =+IF(ISNA(MATCH('5.1'!A152,AUX_2d_pais!$G$2:$G$40000,0)),0,1) -> 1
A153: 0023 | B153: Melilha | C153: 0 | D153: 0 | E153: 0 | F153: 0 | G153: 0 | H153: 0 | I153: 0 | J153: 0 | K153: 0 | L153: 0 | M153: 0 | N153: 0 | O153: 48.297 | P153: 0 | Q153: 157.642 | R153: 36.278 | S153: 391.573 | T153: 601.118 | U153: 816.769 | V153: 378.349 | W153: 159.437 | X153: 14.626 | Y153: 260.4089 | Z153: 9.506682597e-05 | AA153: 260.4089 | AC153: =L153-INDEX($C153:$L153,1,aux!$BA$1) -> 0 | AD153: 0 | AE153: =+IF(INDEX($C153:$L153,1,aux!$BA$1)>0,(L153/INDEX($C153:$L153,1,aux!$BA$1))^(1/($L$3-INDEX($C$3:$L$3,1,aux!$BA$1)))-1,"n.d.") -> n.d. | AF153: =IF(INDEX($C153:$L153,1,aux!$BA$1)>0,(L153-INDEX($C153:$L153,1,aux!$BA$1))/INDEX($C153:$L153,1,aux!$BA$1),"n.d.") -> n.d. | AH153: =X153-INDEX($O153:$X153,1,aux!$BA$1) -> -33.671 | AI153: -1.897533391e-05 | AJ153: =+IF(INDEX($O153:$X153,1,aux!$BA$1)>0,(X153/INDEX($O153:$X153,1,aux!$BA$1))^(1/($X$3-INDEX($O$3:$X$3,1,aux!$BA$1)))-1,"n.d.") -> -0.124298372 | AK153: =IF(INDEX($O153:$X153,1,aux!$BA$1)>0,(X153-INDEX($O153:$X153,1,aux!$BA$1))/INDEX($O153:$X153,1,aux!$BA$1),"n.d.") -> -0.6971654554 | CC153: =+IF(ISNA(MATCH('5.1'!A153,AUX_2d_pais!$G$2:$G$40000,0)),0,1) -> 1
A154: 0832 | B154: Menores distantes dos Estados Unidos, lhas | C154: 0 | D154: 0 | E154: 0 | F154: 0 | G154: 0 | H154: 0 | I154: 0 | J154: 0 | K154: 0 | L154: 0 | M154: 0 | N154: 0 | O154: 53.982 | P154: 0 | Q154: 0 | R154: 0 | S154: 0 | T154: 0 | U154: 0 | V154: 0 | W154: 0 | X154: 22.772 | Y154: 7.6754 | Z154: 2.802039086e-06 | AA154: 7.6754 | AC154: =L154-INDEX($C154:$L154,1,aux!$BA$1) -> 0 | AD154: 0 | AE154: =+IF(INDEX($C154:$L154,1,aux!$BA$1)>0,(L154/INDEX($C154:$L154,1,aux!$BA$1))^(1/($L$3-INDEX($C$3:$L$3,1,aux!$BA$1)))-1,"n.d.") -> n.d. | AF154: =IF(INDEX($C154:$L154,1,aux!$BA$1)>0,(L154-INDEX($C154:$L154,1,aux!$BA$1))/INDEX($C154:$L154,1,aux!$BA$1),"n.d.") -> n.d. | AH154: =X154-INDEX($O154:$X154,1,aux!$BA$1) -> -31.21 | AI154: -1.75884343e-05 | AJ154: =+IF(INDEX($O154:$X154,1,aux!$BA$1)>0,(X154/INDEX($O154:$X154,1,aux!$BA$1))^(1/($X$3-INDEX($O$3:$X$3,1,aux!$BA$1)))-1,"n.d.") -> -0.09144704565 | AK154: =IF(INDEX($O154:$X154,1,aux!$BA$1)>0,(X154-INDEX($O154:$X154,1,aux!$BA$1))/INDEX($O154:$X154,1,aux!$BA$1),"n.d.") -> -0.5781556815 | BO154: 76.754 | CC154: =+IF(ISNA(MATCH('5.1'!A154,AUX_2d_pais!$G$2:$G$40000,0)),0,1) -> 1
A155: 0412 | B155: México | C155: 11687.689 | D155: 16740.405 | E155: 13730.276 | F155: 8338.552 | G155: 13845.726 | H155: 13925.356 | I155: 13225.137 | J155: 12701.698 | K155: 14219.175 | L155: 27366.468 | M155: 14578.0482 | N155: 0.006325177798 | O155: 10318.067 | P155: 14421.674 | Q155: 21238.598 | R155: 26820.216 | S155: 24680.151 | T155: 27256.702 | U155: 35566.12 | V155: 34077.28 | W155: 33402.987 | X155: 55916.196 | Y155: 28369.7991 | Z155: 0.01035689162 | AA155: 13791.7509 | AC155: =L155-INDEX($C155:$L155,1,aux!$BA$1) -> 15678.779 | AD155: 0.01435945944 | AE155: =+IF(INDEX($C155:$L155,1,aux!$BA$1)>0,(L155/INDEX($C155:$L155,1,aux!$BA$1))^(1/($L$3-INDEX($C$3:$L$3,1,aux!$BA$1)))-1,"n.d.") -> 0.09914365161 | AF155: =IF(INDEX($C155:$L155,1,aux!$BA$1)>0,(L155-INDEX($C155:$L155,1,aux!$BA$1))/INDEX($C155:$L155,1,aux!$BA$1),"n.d.") -> 1.341478114 | AH155: =X155-INDEX($O155:$X155,1,aux!$BA$1) -> 45598.129 | AI155: 0.02569688228 | AJ155: =+IF(INDEX($O155:$X155,1,aux!$BA$1)>0,(X155/INDEX($O155:$X155,1,aux!$BA$1))^(1/($X$3-INDEX($O$3:$X$3,1,aux!$BA$1)))-1,"n.d.") -> 0.2065596802 | AK155: =IF(INDEX($O155:$X155,1,aux!$BA$1)>0,(X155-INDEX($O155:$X155,1,aux!$BA$1))/INDEX($O155:$X155,1,aux!$BA$1),"n.d.") -> 4.419251106 | CC155: =+IF(ISNA(MATCH('5.1'!A155,AUX_2d_pais!$G$2:$G$40000,0)),0,1) -> 1
A156: 0823 | B156: Micronésia, Estados Federados da | C156: 0 | D156: 0 | E156: 0 | F156: 0 | G156: 0 | H156: 0 | I156: 0 | J156: 0 | K156: 0 | L156: 0 | M156: 0 | N156: 0 | O156: 0 | P156: 0 | Q156: 0 | R156: 0 | S156: 0 | T156: 0 | U156: 0 | V156: 0 | W156: 0 | X156: 0 | Y156: 0 | Z156: 0 | AA156: 0 | AC156: =L156-INDEX($C156:$L156,1,aux!$BA$1) -> 0 | AD156: 0 | AE156: =+IF(INDEX($C156:$L156,1,aux!$BA$1)>0,(L156/INDEX($C156:$L156,1,aux!$BA$1))^(1/($L$3-INDEX($C$3:$L$3,1,aux!$BA$1)))-1,"n.d.") -> n.d. | AF156: =IF(INDEX($C156:$L156,1,aux!$BA$1)>0,(L156-INDEX($C156:$L156,1,aux!$BA$1))/INDEX($C156:$L156,1,aux!$BA$1),"n.d.") -> n.d. | AH156: =X156-INDEX($O156:$X156,1,aux!$BA$1) -> 0 | AI156: 0 | AJ156: =+IF(INDEX($O156:$X156,1,aux!$BA$1)>0,(X156/INDEX($O156:$X156,1,aux!$BA$1))^(1/($X$3-INDEX($O$3:$X$3,1,aux!$BA$1)))-1,"n.d.") -> n.d. | AK156: =IF(INDEX($O156:$X156,1,aux!$BA$1)>0,(X156-INDEX($O156:$X156,1,aux!$BA$1))/INDEX($O156:$X156,1,aux!$BA$1),"n.d.") -> n.d. | AM156: 0 | BO156: 0 | CC156: =+IF(ISNA(MATCH('5.1'!A156,AUX_2d_pais!$G$2:$G$40000,0)),0,1) -> 0
A157: 0366 | B157: Moçambique | C157: 42375.275 | D157: 27070.204 | E157: 41468.095 | F157: 15890.893 | G157: 60771.555 | H157: 34234.178 | I157: 35366.534 | J157: 32632.83 | K157: 40184.384 | L157: 37766.394 | M157: 36776.0342 | N157: 0.01595652256 | O157: 20669.845 | P157: 22484.487 | Q157: 30559.844 | R157: 40944.682 | S157: 46350.234 | T157: 47912.935 | U157: 47676.318 | V157: 36358.191 | W157: 33441.566 | X157: 33586.257 | Y157: 35998.4359 | Z157: 0.01314185898 | AA157: -777.5983 | AC157: =L157-INDEX($C157:$L157,1,aux!$BA$1) -> -4608.881 | AD157: -0.004221058271 | AE157: =+IF(INDEX($C157:$L157,1,aux!$BA$1)>0,(L157/INDEX($C157:$L157,1,aux!$BA$1))^(1/($L$3-INDEX($C$3:$L$3,1,aux!$BA$1)))-1,"n.d.") -> -0.01271243842 | AF157: =IF(INDEX($C157:$L157,1,aux!$BA$1)>0,(L157-INDEX($C157:$L157,1,aux!$BA$1))/INDEX($C157:$L157,1,aux!$BA$1),"n.d.") -> -0.1087634476 | AH157: =X157-INDEX($O157:$X157,1,aux!$BA$1) -> 12916.412 | AI157: 0.007279060039 | AJ157: =+IF(INDEX($O157:$X157,1,aux!$BA$1)>0,(X157/INDEX($O157:$X157,1,aux!$BA$1))^(1/($X$3-INDEX($O$3:$X$3,1,aux!$BA$1)))-1,"n.d.") -> 0.05541905749 | AK157: =IF(INDEX($O157:$X157,1,aux!$BA$1)>0,(X157-INDEX($O157:$X157,1,aux!$BA$1))/INDEX($O157:$X157,1,aux!$BA$1),"n.d.") -> 0.6248915751 | CC157: =+IF(ISNA(MATCH('5.1'!A157,AUX_2d_pais!$G$2:$G$40000,0)),0,1) -> 1
A158: 0074 | B158: Moldava, República de | C158: 1547.248 | D158: 0.068 | E158: 2675.166 | F158: 5464.556 | G158: 3504.768 | H158: 6645.07 | I158: 1512.014 | J158: 5377.168 | K158: 5687.135 | L158: 8729.08 | M158: 4114.2273 | N158: 0.00178509625 | O158: 1617.982 | P158: 2728.794 | Q158: 4146.572 | R158: 4394.444 | S158: 4189.261 | T158: 2651.35 | U158: 2365.403 | V158: 2232.403 | W158: 3089.465 | X158: 2813.082 | Y158: 3022.8756 | Z158: 0.001103553637 | AA158: -1091.3517 | AC158: =L158-INDEX($C158:$L158,1,aux!$BA$1) -> 7181.832 | AD158: 0.006577503598 | AE158: =+IF(INDEX($C158:$L158,1,aux!$BA$1)>0,(L158/INDEX($C158:$L158,1,aux!$BA$1))^(1/($L$3-INDEX($C$3:$L$3,1,aux!$BA$1)))-1,"n.d.") -> 0.2119643304 | AF158: =IF(INDEX($C158:$L158,1,aux!$BA$1)>0,(L158-INDEX($C158:$L158,1,aux!$BA$1))/INDEX($C158:$L158,1,aux!$BA$1),"n.d.") -> 4.64168123 | AH158: =X158-INDEX($O158:$X158,1,aux!$BA$1) -> 1195.1 | AI158: 0.0006735000907 | AJ158: =+IF(INDEX($O158:$X158,1,aux!$BA$1)>0,(X158/INDEX($O158:$X158,1,aux!$BA$1))^(1/($X$3-INDEX($O$3:$X$3,1,aux!$BA$1)))-1,"n.d.") -> 0.06338335047 | AK158: =IF(INDEX($O158:$X158,1,aux!$BA$1)>0,(X158-INDEX($O158:$X158,1,aux!$BA$1))/INDEX($O158:$X158,1,aux!$BA$1),"n.d.") -> 0.7386361529 | CC158: =+IF(ISNA(MATCH('5.1'!A158,AUX_2d_pais!$G$2:$G$40000,0)),0,1) -> 1
A159: 0716 | B159: Mongólia | C159: 0 | D159: 0 | E159: 0 | F159: 0 | G159: 0 | H159: 0 | I159: 0 | J159: 0 | K159: 0 | L159: 0 | M159: 0 | N159: 0 | O159: 0 | P159: 0 | Q159: 16.249 | R159: 13.482 | S159: 51.662 | T159: 127.57 | U159: 62.587 | V159: 0.005 | W159: 4.654 | X159: 58.623 | Y159: 33.4832 | Z159: 1.22236281e-05 | AA159: 33.4832 | AC159: =L159-INDEX($C159:$L159,1,aux!$BA$1) -> 0 | AD159: 0 | AE159: =+IF(INDEX($C159:$L159,1,aux!$BA$1)>0,(L159/INDEX($C159:$L159,1,aux!$BA$1))^(1/($L$3-INDEX($C$3:$L$3,1,aux!$BA$1)))-1,"n.d.") -> n.d. | AF159: =IF(INDEX($C159:$L159,1,aux!$BA$1)>0,(L159-INDEX($C159:$L159,1,aux!$BA$1))/INDEX($C159:$L159,1,aux!$BA$1),"n.d.") -> n.d. | AH159: =X159-INDEX($O159:$X159,1,aux!$BA$1) -> 58.623 | AI159: 3.303706453e-05 | AJ159: =+IF(INDEX($O159:$X159,1,aux!$BA$1)>0,(X159/INDEX($O159:$X159,1,aux!$BA$1))^(1/($X$3-INDEX($O$3:$X$3,1,aux!$BA$1)))-1,"n.d.") -> n.d. | AK159: =IF(INDEX($O159:$X159,1,aux!$BA$1)>0,(X159-INDEX($O159:$X159,1,aux!$BA$1))/INDEX($O159:$X159,1,aux!$BA$1),"n.d.") -> n.d. | BO159: 334.832 | CC159: =+IF(ISNA(MATCH('5.1'!A159,AUX_2d_pais!$G$2:$G$40000,0)),0,1) -> 1
A160: 0470 | B160: Monserrate | C160: 0 | D160: 0 | E160: 0 | F160: 0 | G160: 0 | H160: 0 | I160: 0 | J160: 0 | K160: 0 | L160: 0 | M160: 0 | N160: 0 | O160: 0 | P160: 0 | Q160: 0 | R160: 0 | S160: 0 | T160: 0 | U160: 0 | V160: 0 | W160: 0 | X160: 0 | Y160: 0 | Z160: 0 | AA160: 0 | AC160: =L160-INDEX($C160:$L160,1,aux!$BA$1) -> 0 | AD160: 0 | AE160: =+IF(INDEX($C160:$L160,1,aux!$BA$1)>0,(L160/INDEX($C160:$L160,1,aux!$BA$1))^(1/($L$3-INDEX($C$3:$L$3,1,aux!$BA$1)))-1,"n.d.") -> n.d. | AF160: =IF(INDEX($C160:$L160,1,aux!$BA$1)>0,(L160-INDEX($C160:$L160,1,aux!$BA$1))/INDEX($C160:$L160,1,aux!$BA$1),"n.d.") -> n.d. | AH160: =X160-INDEX($O160:$X160,1,aux!$BA$1) -> 0 | AI160: 0 | AJ160: =+IF(INDEX($O160:$X160,1,aux!$BA$1)>0,(X160/INDEX($O160:$X160,1,aux!$BA$1))^(1/($X$3-INDEX($O$3:$X$3,1,aux!$BA$1)))-1,"n.d.") -> n.d. | AK160: =IF(INDEX($O160:$X160,1,aux!$BA$1)>0,(X160-INDEX($O160:$X160,1,aux!$BA$1))/INDEX($O160:$X160,1,aux!$BA$1),"n.d.") -> n.d. | AM160: 0 | BO160: 0 | CC160: =+IF(ISNA(MATCH('5.1'!A160,AUX_2d_pais!$G$2:$G$40000,0)),0,1) -> 0
A161: 0097 | B161: Montenegro | C161: 0 | D161: 0 | E161: 0 | F161: 0 | G161: 0 | H161: 0 | I161: 0 | J161: 0 | K161: 66.197 | L161: 1.543 | M161: 6.774 | N161: 2.939128326e-06 | O161: 0 | P161: 0 | Q161: 133.89 | R161: 76.819 | S161: 72.273 | T161: 248.467 | U161: 64.728 | V161: 522.447 | W161: 426.948 | X161: 1006.29 | Y161: 255.1862 | Z161: 9.316018794e-05 | AA161: 248.4122 | AC161: =L161-INDEX($C161:$L161,1,aux!$BA$1) -> 1.543 | AD161: 1.41316144e-06 | AE161: =+IF(INDEX($C161:$L161,1,aux!$BA$1)>0,(L161/INDEX($C161:$L161,1,aux!$BA$1))^(1/($L$3-INDEX($C$3:$L$3,1,aux!$BA$1)))-1,"n.d.") -> n.d. | AF161: =IF(INDEX($C161:$L161,1,aux!$BA$1)>0,(L161-INDEX($C161:$L161,1,aux!$BA$1))/INDEX($C161:$L161,1,aux!$BA$1),"n.d.") -> n.d. | AH161: =X161-INDEX($O161:$X161,1,aux!$BA$1) -> 1006.29 | AI161: 0.0005670959805 | AJ161: =+IF(INDEX($O161:$X161,1,aux!$BA$1)>0,(X161/INDEX($O161:$X161,1,aux!$BA$1))^(1/($X$3-INDEX($O$3:$X$3,1,aux!$BA$1)))-1,"n.d.") -> n.d. | AK161: =IF(INDEX($O161:$X161,1,aux!$BA$1)>0,(X161-INDEX($O161:$X161,1,aux!$BA$1))/INDEX($O161:$X161,1,aux!$BA$1),"n.d.") -> n.d. | BO161: 2619.602 | CC161: =+IF(ISNA(MATCH('5.1'!A161,AUX_2d_pais!$G$2:$G$40000,0)),0,1) -> 1
A162: 0676 | B162: Myanmar | C162: 120.439 | D162: 99.25 | E162: 42.66 | F162: 215.232 | G162: 434.364 | H162: 3099.2 | I162: 1191.197 | J162: 1356.023 | K162: 1235.819 | L162: 6699.172 | M162: 1449.3356 | N162: 0.0006288431231 | O162: 0 | P162: 0 | Q162: 19.385 | R162: 19.722 | S162: 31.952 | T162: 27.867 | U162: 38.69 | V162: 53.55 | W162: 68.587 | X162: 639.609 | Y162: 89.9362 | Z162: 3.283278365e-05 | AA162: -1359.3994 | AC162: =L162-INDEX($C162:$L162,1,aux!$BA$1) -> 6578.733 | AD162: 0.006025153468 | AE162: =+IF(INDEX($C162:$L162,1,aux!$BA$1)>0,(L162/INDEX($C162:$L162,1,aux!$BA$1))^(1/($L$3-INDEX($C$3:$L$3,1,aux!$BA$1)))-1,"n.d.") -> 0.5628493257 | AF162: =IF(INDEX($C162:$L162,1,aux!$BA$1)>0,(L162-INDEX($C162:$L162,1,aux!$BA$1))/INDEX($C162:$L162,1,aux!$BA$1),"n.d.") -> 54.62294606 | AH162: =X162-INDEX($O162:$X162,1,aux!$BA$1) -> 639.609 | AI162: 0.0003604524471 | AJ162: =+IF(INDEX($O162:$X162,1,aux!$BA$1)>0,(X162/INDEX($O162:$X162,1,aux!$BA$1))^(1/($X$3-INDEX($O$3:$X$3,1,aux!$BA$1)))-1,"n.d.") -> n.d. | AK162: =IF(INDEX($O162:$X162,1,aux!$BA$1)>0,(X162-INDEX($O162:$X162,1,aux!$BA$1))/INDEX($O162:$X162,1,aux!$BA$1),"n.d.") -> n.d. | CC162: =+IF(ISNA(MATCH('5.1'!A162,AUX_2d_pais!$G$2:$G$40000,0)),0,1) -> 1
A163: 0389 | B163: Namíbia | C163: 16799.327 | D163: 19354.821 | E163: 15518.428 | F163: 12330.015 | G163: 14512.501 | H163: 17172.056 | I163: 25434.863 | J163: 25755.98 | K163: 26201.357 | L163: 24638.754 | M163: 19771.8102 | N163: 0.00857866658 | O163: 1896.479 | P163: 1168.735 | Q163: 870.107 | R163: 1109.321 | S163: 1053.34 | T163: 1043.334 | U163: 647.863 | V163: 298.592 | W163: 462.649 | X163: 970.095 | Y163: 952.0515 | Z163: 0.0003475630605 | AA163: -18819.7587 | AC163: =L163-INDEX($C163:$L163,1,aux!$BA$1) -> 7839.427 | AD163: 0.007179764063 | AE163: =+IF(INDEX($C163:$L163,1,aux!$BA$1)>0,(L163/INDEX($C163:$L163,1,aux!$BA$1))^(1/($L$3-INDEX($C$3:$L$3,1,aux!$BA$1)))-1,"n.d.") -> 0.04347190881 | AF163: =IF(INDEX($C163:$L163,1,aux!$BA$1)>0,(L163-INDEX($C163:$L163,1,aux!$BA$1))/INDEX($C163:$L163,1,aux!$BA$1),"n.d.") -> 0.4666512534 | AH163: =X163-INDEX($O163:$X163,1,aux!$BA$1) -> -926.384 | AI163: -0.0005220648548 | AJ163: =+IF(INDEX($O163:$X163,1,aux!$BA$1)>0,(X163/INDEX($O163:$X163,1,aux!$BA$1))^(1/($X$3-INDEX($O$3:$X$3,1,aux!$BA$1)))-1,"n.d.") -> -0.07177811625 | AK163: =IF(INDEX($O163:$X163,1,aux!$BA$1)>0,(X163-INDEX($O163:$X163,1,aux!$BA$1))/INDEX($O163:$X163,1,aux!$BA$1),"n.d.") -> -0.488475749 | CC163: =+IF(ISNA(MATCH('5.1'!A163,AUX_2d_pais!$G$2:$G$40000,0)),0,1) -> 1
A164: 0803 | B164: Nauru | C164: 0 | D164: 0 | E164: 0 | F164: 0 | G164: 0 | H164: 0 | I164: 0 | J164: 0 | K164: 0 | L164: 0 | M164: 0 | N164: 0 | O164: 0 | P164: 0 | Q164: 0 | R164: 0 | S164: 0 | T164: 0 | U164: 0 | V164: 0 | W164: 0 | X164: 0 | Y164: 0 | Z164: 0 | AA164: 0 | AC164: =L164-INDEX($C164:$L164,1,aux!$BA$1) -> 0 | AD164: 0 | AE164: =+IF(INDEX($C164:$L164,1,aux!$BA$1)>0,(L164/INDEX($C164:$L164,1,aux!$BA$1))^(1/($L$3-INDEX($C$3:$L$3,1,aux!$BA$1)))-1,"n.d.") -> n.d. | AF164: =IF(INDEX($C164:$L164,1,aux!$BA$1)>0,(L164-INDEX($C164:$L164,1,aux!$BA$1))/INDEX($C164:$L164,1,aux!$BA$1),"n.d.") -> n.d. | AH164: =X164-INDEX($O164:$X164,1,aux!$BA$1) -> 0 | AI164: 0 | AJ164: =+IF(INDEX($O164:$X164,1,aux!$BA$1)>0,(X164/INDEX($O164:$X164,1,aux!$BA$1))^(1/($X$3-INDEX($O$3:$X$3,1,aux!$BA$1)))-1,"n.d.") -> n.d. | AK164: =IF(INDEX($O164:$X164,1,aux!$BA$1)>0,(X164-INDEX($O164:$X164,1,aux!$BA$1))/INDEX($O164:$X164,1,aux!$BA$1),"n.d.") -> n.d. | AM164: 0 | BO164: 0 | CC164: =+IF(ISNA(MATCH('5.1'!A164,AUX_2d_pais!$G$2:$G$40000,0)),0,1) -> 0
A165: 0672 | B165: Nepal | C165: 2.634 | D165: 21.317 | E165: 14.27 | F165: 1.93 | G165: 5.547 | H165: 0.965 | I165: 0.454 | J165: 3.022 | K165: 1.948 | L165: 2.654 | M165: 5.4741 | N165: 2.375122877e-06 | O165: 24.964 | P165: 44.21 | Q165: 10.325 | R165: 20.125 | S165: 6.745 | T165: 52.178 | U165: 5.735 | V165: 0 | W165: 53.891 | X165: 35.799 | Y165: 25.3972 | Z165: 9.271692298e-06 | AA165: 19.9231 | AC165: =L165-INDEX($C165:$L165,1,aux!$BA$1) -> 0.02 | AD165: =AC165/$AC$252 -> 1.831706338e-08 | AE165: =+IF(INDEX($C165:$L165,1,aux!$BA$1)>0,(L165/INDEX($C165:$L165,1,aux!$BA$1))^(1/($L$3-INDEX($C$3:$L$3,1,aux!$BA$1)))-1,"n.d.") -> 0.0008408347022 | AF165: =IF(INDEX($C165:$L165,1,aux!$BA$1)>0,(L165-INDEX($C165:$L165,1,aux!$BA$1))/INDEX($C165:$L165,1,aux!$BA$1),"n.d.") -> 0.007593014427 | AH165: =X165-INDEX($O165:$X165,1,aux!$BA$1) -> 10.835 | AI165: =AH165/$AH$252 -> 6.106077719e-06 | AJ165: =+IF(INDEX($O165:$X165,1,aux!$BA$1)>0,(X165/INDEX($O165:$X165,1,aux!$BA$1))^(1/($X$3-INDEX($O$3:$X$3,1,aux!$BA$1)))-1,"n.d.") -> 0.04086688385 | AK165: =IF(INDEX($O165:$X165,1,aux!$BA$1)>0,(X165-INDEX($O165:$X165,1,aux!$BA$1))/INDEX($O165:$X165,1,aux!$BA$1),"n.d.") -> 0.434024996 | BO165: 308.713 | CC165: =+IF(ISNA(MATCH('5.1'!A165,AUX_2d_pais!$G$2:$G$40000,0)),0,1) -> 1
A166: 0432 | B166: Nicarágua | C166: 2213.135 | D166: 759.712 | E166: 1013.003 | F166: 837.106 | G166: 3201.565 | H166: 2285.086 | I166: 8757.172 | J166: 11292.631 | K166: 2308.219 | L166: 1732.014 | M166: 3439.9643 | N166: 0.001492544511 | O166: 46.601 | P166: 222.235 | Q166: 330.878 | R166: 326.119 | S166: 459.583 | T166: 305.228 | U166: 534.765 | V166: 662.423 | W166: 315.146 | X166: 1157.511 | Y166: 436.0489 | Z166: 0.0001591872816 | AA166: -3003.9154 | AC166: =L166-INDEX($C166:$L166,1,aux!$BA$1) -> -481.121 | AD166: -0.0004406361926 | AE166: =+IF(INDEX($C166:$L166,1,aux!$BA$1)>0,(L166/INDEX($C166:$L166,1,aux!$BA$1))^(1/($L$3-INDEX($C$3:$L$3,1,aux!$BA$1)))-1,"n.d.") -> -0.02686857104 | AF166: =IF(INDEX($C166:$L166,1,aux!$BA$1)>0,(L166-INDEX($C166:$L166,1,aux!$BA$1))/INDEX($C166:$L166,1,aux!$BA$1),"n.d.") -> -0.2173934261 | AH166: =X166-INDEX($O166:$X166,1,aux!$BA$1) -> 1110.91 | AI166: 0.0006260547115 | AJ166: =+IF(INDEX($O166:$X166,1,aux!$BA$1)>0,(X166/INDEX($O166:$X166,1,aux!$BA$1))^(1/($X$3-INDEX($O$3:$X$3,1,aux!$BA$1)))-1,"n.d.") -> 0.4289414437 | AK166: =IF(INDEX($O166:$X166,1,aux!$BA$1)>0,(X166-INDEX($O166:$X166,1,aux!$BA$1))/INDEX($O166:$X166,1,aux!$BA$1),"n.d.") -> 23.83875882 | CC166: =+IF(ISNA(MATCH('5.1'!A166,AUX_2d_pais!$G$2:$G$40000,0)),0,1) -> 1
A167: 0240 | B167: Niger | C167: 0 | D167: 0 | E167: 0 | F167: 29.7 | G167: 362.869 | H167: 0 | I167: 0 | J167: 0 | K167: 0 | L167: 0 | M167: 39.2569 | N167: 1.703292985e-05 | O167: 12.123 | P167: 0 | Q167: 54.402 | R167: 40.271 | S167: 111.877 | T167: 260.743 | U167: 554.533 | V167: 600.402 | W167: 782.056 | X167: 283.674 | Y167: 270.0081 | Z167: 9.857118191e-05 | AA167: 230.7512 | AC167: =L167-INDEX($C167:$L167,1,aux!$BA$1) -> 0 | AD167: 0 | AE167: =+IF(INDEX($C167:$L167,1,aux!$BA$1)>0,(L167/INDEX($C167:$L167,1,aux!$BA$1))^(1/($L$3-INDEX($C$3:$L$3,1,aux!$BA$1)))-1,"n.d.") -> n.d. | AF167: =IF(INDEX($C167:$L167,1,aux!$BA$1)>0,(L167-INDEX($C167:$L167,1,aux!$BA$1))/INDEX($C167:$L167,1,aux!$BA$1),"n.d.") -> n.d. | AH167: =X167-INDEX($O167:$X167,1,aux!$BA$1) -> 271.551 | AI167: 0.0001530329036 | AJ167: =+IF(INDEX($O167:$X167,1,aux!$BA$1)>0,(X167/INDEX($O167:$X167,1,aux!$BA$1))^(1/($X$3-INDEX($O$3:$X$3,1,aux!$BA$1)))-1,"n.d.") -> 0.4194966791 | AK167: =IF(INDEX($O167:$X167,1,aux!$BA$1)>0,(X167-INDEX($O167:$X167,1,aux!$BA$1))/INDEX($O167:$X167,1,aux!$BA$1),"n.d.") -> 22.39965355 | CC167: =+IF(ISNA(MATCH('5.1'!A167,AUX_2d_pais!$G$2:$G$40000,0)),0,1) -> 1
A168: 0288 | B168: Nigéria | C168: 2666.287 | D168: 2858.842 | E168: 4030.093 | F168: 4422.306 | G168: 5445.908 | H168: 2350.97 | I168: 2898.111 | J168: 4645.127 | K168: 4201.679 | L168: 5456.633 | M168: 3897.5956 | N168: 0.001691103282 | O168: 1155.074 | P168: 5051.235 | Q168: 11926.516 | R168: 11116.965 | S168: 10468.029 | T168: 14458.72 | U168: 11392.309 | V168: 8288.138 | W168: 6891.394 | X168: 9053.444 | Y168: 8980.1824 | Z168: 0.003278372734 | AA168: 5082.5868 | AC168: =L168-INDEX($C168:$L168,1,aux!$BA$1) -> 2790.346 | AD168: 0.002555547227 | AE168: =+IF(INDEX($C168:$L168,1,aux!$BA$1)>0,(L168/INDEX($C168:$L168,1,aux!$BA$1))^(1/($L$3-INDEX($C$3:$L$3,1,aux!$BA$1)))-1,"n.d.") -> 0.0828231669 | AF168: =IF(INDEX($C168:$L168,1,aux!$BA$1)>0,(L168-INDEX($C168:$L168,1,aux!$BA$1))/INDEX($C168:$L168,1,aux!$BA$1),"n.d.") -> 1.04652875 | AH168: =X168-INDEX($O168:$X168,1,aux!$BA$1) -> 7898.37 | AI168: 0.004451136232 | AJ168: =+IF(INDEX($O168:$X168,1,aux!$BA$1)>0,(X168/INDEX($O168:$X168,1,aux!$BA$1))^(1/($X$3-INDEX($O$3:$X$3,1,aux!$BA$1)))-1,"n.d.") -> 0.2570599827 | AK168: =IF(INDEX($O168:$X168,1,aux!$BA$1)>0,(X168-INDEX($O168:$X168,1,aux!$BA$1))/INDEX($O168:$X168,1,aux!$BA$1),"n.d.") -> 6.83797748 | CC168: =+IF(ISNA(MATCH('5.1'!A168,AUX_2d_pais!$G$2:$G$40000,0)),0,1) -> 1
A169: 0838 | B169: Niue | C169: 0 | D169: 0 | E169: 0 | F169: 0 | G169: 0 | H169: 0 | I169: 0 | J169: 0 | K169: 0 | L169: 0 | M169: 0 | N169: 0 | O169: 0 | P169: 0 | Q169: 0 | R169: 0 | S169: 0 | T169: 0 | U169: 0 | V169: 0 | W169: 0 | X169: 0 | Y169: 0 | Z169: 0 | AA169: 0 | AC169: =L169-INDEX($C169:$L169,1,aux!$BA$1) -> 0 | AD169: 0 | AE169: =+IF(INDEX($C169:$L169,1,aux!$BA$1)>0,(L169/INDEX($C169:$L169,1,aux!$BA$1))^(1/($L$3-INDEX($C$3:$L$3,1,aux!$BA$1)))-1,"n.d.") -> n.d. | AF169: =IF(INDEX($C169:$L169,1,aux!$BA$1)>0,(L169-INDEX($C169:$L169,1,aux!$BA$1))/INDEX($C169:$L169,1,aux!$BA$1),"n.d.") -> n.d. | AH169: =X169-INDEX($O169:$X169,1,aux!$BA$1) -> 0 | AI169: 0 | AJ169: =+IF(INDEX($O169:$X169,1,aux!$BA$1)>0,(X169/INDEX($O169:$X169,1,aux!$BA$1))^(1/($X$3-INDEX($O$3:$X$3,1,aux!$BA$1)))-1,"n.d.") -> n.d. | AK169: =IF(INDEX($O169:$X169,1,aux!$BA$1)>0,(X169-INDEX($O169:$X169,1,aux!$BA$1))/INDEX($O169:$X169,1,aux!$BA$1),"n.d.") -> n.d. | AM169: 0 | BO169: 0 | CC169: =+IF(ISNA(MATCH('5.1'!A169,AUX_2d_pais!$G$2:$G$40000,0)),0,1) -> 0
A170: 0836 | B170: Norfolk, Ilha | C170: 0 | D170: 0 | E170: 0 | F170: 0 | G170: 0 | H170: 0 | I170: 0 | J170: 0 | K170: 0 | L170: 0 | M170: 0 | N170: 0 | O170: 0 | P170: 0 | Q170: 0 | R170: 0 | S170: 0 | T170: 0 | U170: 0 | V170: 0 | W170: 0 | X170: 0 | Y170: 0 | Z170: 0 | AA170: 0 | AC170: =L170-INDEX($C170:$L170,1,aux!$BA$1) -> 0 | AD170: 0 | AE170: =+IF(INDEX($C170:$L170,1,aux!$BA$1)>0,(L170/INDEX($C170:$L170,1,aux!$BA$1))^(1/($L$3-INDEX($C$3:$L$3,1,aux!$BA$1)))-1,"n.d.") -> n.d. | AF170: =IF(INDEX($C170:$L170,1,aux!$BA$1)>0,(L170-INDEX($C170:$L170,1,aux!$BA$1))/INDEX($C170:$L170,1,aux!$BA$1),"n.d.") -> n.d. | AH170: =X170-INDEX($O170:$X170,1,aux!$BA$1) -> 0 | AI170: 0 | AJ170: =+IF(INDEX($O170:$X170,1,aux!$BA$1)>0,(X170/INDEX($O170:$X170,1,aux!$BA$1))^(1/($X$3-INDEX($O$3:$X$3,1,aux!$BA$1)))-1,"n.d.") -> n.d. | AK170: =IF(INDEX($O170:$X170,1,aux!$BA$1)>0,(X170-INDEX($O170:$X170,1,aux!$BA$1))/INDEX($O170:$X170,1,aux!$BA$1),"n.d.") -> n.d. | AM170: 0 | BO170: 0 | CC170: =+IF(ISNA(MATCH('5.1'!A170,AUX_2d_pais!$G$2:$G$40000,0)),0,1) -> 0
A171: 0028 | B171: Noruega | C171: 17725.436 | D171: 3565.078 | E171: 4167.12 | F171: 4750.657 | G171: 5708.865 | H171: 7310.508 | I171: 816.884 | J171: 3774.843 | K171: 1149.593 | L171: 3620.423 | M171: 5258.9407 | N171: 0.002281768759 | O171: 12765.899 | P171: 12880.245 | Q171: 10754.072 | R171: 13928.946 | S171: 12850.006 | T171: 40041.111 | U171: 54483.895 | V171: 54638.961 | W171: 19164.025 | X171: 17798.326 | Y171: 24930.5486 | Z171: 0.009101333038 | AA171: 19671.6079 | AC171: =L171-INDEX($C171:$L171,1,aux!$BA$1) -> -14105.013 | AD171: -0.01291812086 | AE171: =+IF(INDEX($C171:$L171,1,aux!$BA$1)>0,(L171/INDEX($C171:$L171,1,aux!$BA$1))^(1/($L$3-INDEX($C$3:$L$3,1,aux!$BA$1)))-1,"n.d.") -> -0.1617928202 | AF171: =IF(INDEX($C171:$L171,1,aux!$BA$1)>0,(L171-INDEX($C171:$L171,1,aux!$BA$1))/INDEX($C171:$L171,1,aux!$BA$1),"n.d.") -> -0.7957498478 | AH171: =X171-INDEX($O171:$X171,1,aux!$BA$1) -> 5032.427 | AI171: 0.002836030492 | AJ171: =+IF(INDEX($O171:$X171,1,aux!$BA$1)>0,(X171/INDEX($O171:$X171,1,aux!$BA$1))^(1/($X$3-INDEX($O$3:$X$3,1,aux!$BA$1)))-1,"n.d.") -> 0.03761541961 | AK171: =IF(INDEX($O171:$X171,1,aux!$BA$1)>0,(X171-INDEX($O171:$X171,1,aux!$BA$1))/INDEX($O171:$X171,1,aux!$BA$1),"n.d.") -> 0.3942085865 | CC171: =+IF(ISNA(MATCH('5.1'!A171,AUX_2d_pais!$G$2:$G$40000,0)),0,1) -> 1
A172: 0809 | B172: Nova Caledónia | C172: 0 | D172: 0 | E172: 0 | F172: 0 | G172: 0 | H172: 0 | I172: 0 | J172: 0 | K172: 0 | L172: 0 | M172: 0 | N172: 0 | O172: 124.003 | P172: 91.496 | Q172: 98.817 | R172: 101.856 | S172: 165.865 | T172: 113.96 | U172: 135.442 | V172: 133.395 | W172: 404.255 | X172: 147.55 | Y172: 151.6639 | Z172: 5.536756074e-05 | AA172: 151.6639 | AC172: =L172-INDEX($C172:$L172,1,aux!$BA$1) -> 0 | AD172: 0 | AE172: =+IF(INDEX($C172:$L172,1,aux!$BA$1)>0,(L172/INDEX($C172:$L172,1,aux!$BA$1))^(1/($L$3-INDEX($C$3:$L$3,1,aux!$BA$1)))-1,"n.d.") -> n.d. | AF172: =IF(INDEX($C172:$L172,1,aux!$BA$1)>0,(L172-INDEX($C172:$L172,1,aux!$BA$1))/INDEX($C172:$L172,1,aux!$BA$1),"n.d.") -> n.d. | AH172: =X172-INDEX($O172:$X172,1,aux!$BA$1) -> 23.547 | AI172: 1.326994112e-05 | AJ172: =+IF(INDEX($O172:$X172,1,aux!$BA$1)>0,(X172/INDEX($O172:$X172,1,aux!$BA$1))^(1/($X$3-INDEX($O$3:$X$3,1,aux!$BA$1)))-1,"n.d.") -> 0.01950572544 | AK172: =IF(INDEX($O172:$X172,1,aux!$BA$1)>0,(X172-INDEX($O172:$X172,1,aux!$BA$1))/INDEX($O172:$X172,1,aux!$BA$1),"n.d.") -> 0.1898905672 | CC172: =+IF(ISNA(MATCH('5.1'!A172,AUX_2d_pais!$G$2:$G$40000,0)),0,1) -> 1
A173: 0804 | B173: Nova Zelânda | C173: 16664.771 | D173: 17142.585 | E173: 23415.765 | F173: 18912.821 | G173: 13212.928 | H173: 15430.746 | I173: 17401.489 | J173: 21050.991 | K173: 18700.446 | L173: 21970.22 | M173: 18390.2762 | N173: 0.007979241468 | O173: 2054.873 | P173: 2236.639 | Q173: 2277.665 | R173: 2528.083 | S173: 2055.578 | T173: 3869.466 | U173: 3810.935 | V173: 3141.652 | W173: 2802.155 | X173: 4185.381 | Y173: 2896.2427 | Z173: 0.00105732408 | AA173: -15494.0335 | AC173: =L173-INDEX($C173:$L173,1,aux!$BA$1) -> 5305.449 | AD173: 0.004859012281 | AE173: =+IF(INDEX($C173:$L173,1,aux!$BA$1)>0,(L173/INDEX($C173:$L173,1,aux!$BA$1))^(1/($L$3-INDEX($C$3:$L$3,1,aux!$BA$1)))-1,"n.d.") -> 0.03118652298 | AF173: =IF(INDEX($C173:$L173,1,aux!$BA$1)>0,(L173-INDEX($C173:$L173,1,aux!$BA$1))/INDEX($C173:$L173,1,aux!$BA$1),"n.d.") -> 0.3183631506 | AH173: =X173-INDEX($O173:$X173,1,aux!$BA$1) -> 2130.508 | AI173: 0.001200650432 | AJ173: =+IF(INDEX($O173:$X173,1,aux!$BA$1)>0,(X173/INDEX($O173:$X173,1,aux!$BA$1))^(1/($X$3-INDEX($O$3:$X$3,1,aux!$BA$1)))-1,"n.d.") -> 0.08225046027 | AK173: =IF(INDEX($O173:$X173,1,aux!$BA$1)>0,(X173-INDEX($O173:$X173,1,aux!$BA$1))/INDEX($O173:$X173,1,aux!$BA$1),"n.d.") -> 1.036807628 | CC173: =+IF(ISNA(MATCH('5.1'!A173,AUX_2d_pais!$G$2:$G$40000,0)),0,1) -> 1
A174: 0357 | B174: Oceano Indico, Território Britânico do | C174: 0 | D174: 0 | E174: 0 | F174: 0 | G174: 0 | H174: 0 | I174: 0 | J174: 0 | K174: 0 | L174: 0 | M174: 0 | N174: 0 | O174: 0 | P174: 0 | Q174: 0 | R174: 0 | S174: 0 | T174: 0 | U174: 0 | V174: 0 | W174: 0 | X174: 0 | Y174: 0 | Z174: 0 | AA174: 0 | AC174: =L174-INDEX($C174:$L174,1,aux!$BA$1) -> 0 | AD174: 0 | AE174: =+IF(INDEX($C174:$L174,1,aux!$BA$1)>0,(L174/INDEX($C174:$L174,1,aux!$BA$1))^(1/($L$3-INDEX($C$3:$L$3,1,aux!$BA$1)))-1,"n.d.") -> n.d. | AF174: =IF(INDEX($C174:$L174,1,aux!$BA$1)>0,(L174-INDEX($C174:$L174,1,aux!$BA$1))/INDEX($C174:$L174,1,aux!$BA$1),"n.d.") -> n.d. | AH174: =X174-INDEX($O174:$X174,1,aux!$BA$1) -> 0 | AI174: 0 | AJ174: =+IF(INDEX($O174:$X174,1,aux!$BA$1)>0,(X174/INDEX($O174:$X174,1,aux!$BA$1))^(1/($X$3-INDEX($O$3:$X$3,1,aux!$BA$1)))-1,"n.d.") -> n.d. | AK174: =IF(INDEX($O174:$X174,1,aux!$BA$1)>0,(X174-INDEX($O174:$X174,1,aux!$BA$1))/INDEX($O174:$X174,1,aux!$BA$1),"n.d.") -> n.d. | AM174: 0 | BO174: 0 | CC174: =+IF(ISNA(MATCH('5.1'!A174,AUX_2d_pais!$G$2:$G$40000,0)),0,1) -> 0
A175: 0649 | B175: Omã | C175: 128.07 | D175: 0.789 | E175: 0 | F175: 0 | G175: 0 | H175: 0.725 | I175: 139.055 | J175: 0 | K175: 175.154 | L175: 0.501 | M175: 44.4294 | N175: 1.927719339e-05 | O175: 92.674 | P175: 138.926 | Q175: 1561.39 | R175: 2149.696 | S175: 2953.886 | T175: 3740.611 | U175: 7179.945 | V175: 5232.504 | W175: 5013.864 | X175: 3821.703 | Y175: 3188.5199 | Z175: 0.001164024987 | AA175: 3144.0905 | AC175: =L175-INDEX($C175:$L175,1,aux!$BA$1) -> -127.569 | AD175: -0.0001168344729 | AE175: =+IF(INDEX($C175:$L175,1,aux!$BA$1)>0,(L175/INDEX($C175:$L175,1,aux!$BA$1))^(1/($L$3-INDEX($C$3:$L$3,1,aux!$BA$1)))-1,"n.d.") -> -0.4598830421 | AF175: =IF(INDEX($C175:$L175,1,aux!$BA$1)>0,(L175-INDEX($C175:$L175,1,aux!$BA$1))/INDEX($C175:$L175,1,aux!$BA$1),"n.d.") -> -0.9960880768 | AH175: =X175-INDEX($O175:$X175,1,aux!$BA$1) -> 3729.029 | AI175: 0.002101498929 | AJ175: =+IF(INDEX($O175:$X175,1,aux!$BA$1)>0,(X175/INDEX($O175:$X175,1,aux!$BA$1))^(1/($X$3-INDEX($O$3:$X$3,1,aux!$BA$1)))-1,"n.d.") -> 0.5117419665 | AK175: =IF(INDEX($O175:$X175,1,aux!$BA$1)>0,(X175-INDEX($O175:$X175,1,aux!$BA$1))/INDEX($O175:$X175,1,aux!$BA$1),"n.d.") -> 40.23813583 | CC175: =+IF(ISNA(MATCH('5.1'!A175,AUX_2d_pais!$G$2:$G$40000,0)),0,1) -> 1
A176: 0003 | B176: Países Baixos | C176: 0 | D176: 0 | E176: 0 | F176: 0 | G176: 0 | H176: 0 | I176: 0 | J176: 0 | K176: 0 | L176: 0 | M176: 0 | N176: 0 | O176: 0 | P176: 0 | Q176: 0 | R176: 0 | S176: 0 | T176: 0 | U176: 0 | V176: 0 | W176: 0 | X176: 0 | Y176: 0 | Z176: 0 | AA176: 0 | AC176: =L176-INDEX($C176:$L176,1,aux!$BA$1) -> 0 | AD176: 0 | AE176: =+IF(INDEX($C176:$L176,1,aux!$BA$1)>0,(L176/INDEX($C176:$L176,1,aux!$BA$1))^(1/($L$3-INDEX($C$3:$L$3,1,aux!$BA$1)))-1,"n.d.") -> n.d. | AF176: =IF(INDEX($C176:$L176,1,aux!$BA$1)>0,(L176-INDEX($C176:$L176,1,aux!$BA$1))/INDEX($C176:$L176,1,aux!$BA$1),"n.d.") -> n.d. | AH176: =X176-INDEX($O176:$X176,1,aux!$BA$1) -> 0 | AI176: 0 | AJ176: =+IF(INDEX($O176:$X176,1,aux!$BA$1)>0,(X176/INDEX($O176:$X176,1,aux!$BA$1))^(1/($X$3-INDEX($O$3:$X$3,1,aux!$BA$1)))-1,"n.d.") -> n.d. | AK176: =IF(INDEX($O176:$X176,1,aux!$BA$1)>0,(X176-INDEX($O176:$X176,1,aux!$BA$1))/INDEX($O176:$X176,1,aux!$BA$1),"n.d.") -> n.d. | AM176: 0 | CC176: =+IF(ISNA(MATCH('5.1'!A176,AUX_2d_pais!$G$2:$G$40000,0)),0,1) -> 0
A177: 0825 | B177: Palau | C177: 0 | D177: 0 | E177: 0 | F177: 0 | G177: 0 | H177: 0 | I177: 0 | J177: 0 | K177: 0 | L177: 0 | M177: 0 | N177: 0 | O177: 0 | P177: 0 | Q177: 0 | R177: 0 | S177: 0 | T177: 0 | U177: 0 | V177: 0 | W177: 0.69 | X177: 0 | Y177: 0.069 | Z177: 2.518965747e-08 | AA177: 0.069 | AC177: =L177-INDEX($C177:$L177,1,aux!$BA$1) -> 0 | AD177: 0 | AE177: =+IF(INDEX($C177:$L177,1,aux!$BA$1)>0,(L177/INDEX($C177:$L177,1,aux!$BA$1))^(1/($L$3-INDEX($C$3:$L$3,1,aux!$BA$1)))-1,"n.d.") -> n.d. | AF177: =IF(INDEX($C177:$L177,1,aux!$BA$1)>0,(L177-INDEX($C177:$L177,1,aux!$BA$1))/INDEX($C177:$L177,1,aux!$BA$1),"n.d.") -> n.d. | AH177: =X177-INDEX($O177:$X177,1,aux!$BA$1) -> 0 | AI177: 0 | AJ177: =+IF(INDEX($O177:$X177,1,aux!$BA$1)>0,(X177/INDEX($O177:$X177,1,aux!$BA$1))^(1/($X$3-INDEX($O$3:$X$3,1,aux!$BA$1)))-1,"n.d.") -> n.d. | AK177: =IF(INDEX($O177:$X177,1,aux!$BA$1)>0,(X177-INDEX($O177:$X177,1,aux!$BA$1))/INDEX($O177:$X177,1,aux!$BA$1),"n.d.") -> n.d. | BO177: 0.69 | CC177: =+IF(ISNA(MATCH('5.1'!A177,AUX_2d_pais!$G$2:$G$40000,0)),0,1) -> 1
A178: 0442 | B178: Panamá | C178: 2229.975 | D178: 3302.952 | E178: 2629.771 | F178: 2761.487 | G178: 6455.627 | H178: 5172.175 | I178: 6766.188 | J178: 9407.494 | K178: 10796.912 | L178: 7039.46 | M178: 5656.2041 | N178: 0.002454134882 | O178: 384.684 | P178: 1003.389 | Q178: 1049.121 | R178: 2216.593 | S178: 1812.937 | T178: 1740.32 | U178: 3814.946 | V178: 3203.7 | W178: 2104.586 | X178: 2434.751 | Y178: 1976.5027 | Z178: 0.0007215568984 | AA178: -3679.7014 | AC178: =L178-INDEX($C178:$L178,1,aux!$BA$1) -> 4809.485 | AD178: 0.00440478208 | AE178: =+IF(INDEX($C178:$L178,1,aux!$BA$1)>0,(L178/INDEX($C178:$L178,1,aux!$BA$1))^(1/($L$3-INDEX($C$3:$L$3,1,aux!$BA$1)))-1,"n.d.") -> 0.1362425247 | AF178: =IF(INDEX($C178:$L178,1,aux!$BA$1)>0,(L178-INDEX($C178:$L178,1,aux!$BA$1))/INDEX($C178:$L178,1,aux!$BA$1),"n.d.") -> 2.15674391 | AH178: =X178-INDEX($O178:$X178,1,aux!$BA$1) -> 2050.067 | AI178: 0.001155317806 | AJ178: =+IF(INDEX($O178:$X178,1,aux!$BA$1)>0,(X178/INDEX($O178:$X178,1,aux!$BA$1))^(1/($X$3-INDEX($O$3:$X$3,1,aux!$BA$1)))-1,"n.d.") -> 0.227549282 | AK178: =IF(INDEX($O178:$X178,1,aux!$BA$1)>0,(X178-INDEX($O178:$X178,1,aux!$BA$1))/INDEX($O178:$X178,1,aux!$BA$1),"n.d.") -> 5.329223467 | CC178: =+IF(ISNA(MATCH('5.1'!A178,AUX_2d_pais!$G$2:$G$40000,0)),0,1) -> 1
A179: 0801 | B179: Papuásia-Nova Guiné | C179: 545.754 | D179: 451.99 | E179: 509.387 | F179: 2181.815 | G179: 2042.966 | H179: 3807.915 | I179: 226.267 | J179: 577.592 | K179: 1409.63 | L179: 1217.84 | M179: 1297.1156 | N179: 0.0005627973431 | O179: 0 | P179: 0 | Q179: 0 | R179: 0 | S179: 0 | T179: 0 | U179: 0 | V179: 0 | W179: 4.264 | X179: 0 | Y179: 0.4264 | Z179: 1.556647818e-07 | AA179: -1296.6892 | AC179: =L179-INDEX($C179:$L179,1,aux!$BA$1) -> 672.086 | AD179: 0.0006155320931 | AE179: =+IF(INDEX($C179:$L179,1,aux!$BA$1)>0,(L179/INDEX($C179:$L179,1,aux!$BA$1))^(1/($L$3-INDEX($C$3:$L$3,1,aux!$BA$1)))-1,"n.d.") -> 0.0932829863 | AF179: =IF(INDEX($C179:$L179,1,aux!$BA$1)>0,(L179-INDEX($C179:$L179,1,aux!$BA$1))/INDEX($C179:$L179,1,aux!$BA$1),"n.d.") -> 1.231481583 | AH179: =X179-INDEX($O179:$X179,1,aux!$BA$1) -> 0 | AI179: 0 | AJ179: =+IF(INDEX($O179:$X179,1,aux!$BA$1)>0,(X179/INDEX($O179:$X179,1,aux!$BA$1))^(1/($X$3-INDEX($O$3:$X$3,1,aux!$BA$1)))-1,"n.d.") -> n.d. | AK179: =IF(INDEX($O179:$X179,1,aux!$BA$1)>0,(X179-INDEX($O179:$X179,1,aux!$BA$1))/INDEX($O179:$X179,1,aux!$BA$1),"n.d.") -> n.d. | BO179: 12975.42 | CC179: =+IF(ISNA(MATCH('5.1'!A179,AUX_2d_pais!$G$2:$G$40000,0)),0,1) -> 1
A180: 0662 | B180: Paquistão | C180: 3759.071 | D180: 2830.055 | E180: 4379.68 | F180: 2751.474 | G180: 2841.818 | H180: 3275.237 | I180: 3597.1 | J180: 2868.618 | K180: 2091.452 | L180: 6169.419 | M180: 3456.3924 | N180: 0.001499672396 | O180: 273.094 | P180: 914.54 | Q180: 1425.089 | R180: 808.48 | S180: 919.413 | T180: 1569.3 | U180: 2691.862 | V180: 3457.299 | W180: 2693.94 | X180: 2296.57 | Y180: 1704.9587 | Z180: 0.0006224250094 | AA180: -1751.4337 | AC180: =L180-INDEX($C180:$L180,1,aux!$BA$1) -> 2410.348 | AD180: 0.002207524855 | AE180: =+IF(INDEX($C180:$L180,1,aux!$BA$1)>0,(L180/INDEX($C180:$L180,1,aux!$BA$1))^(1/($L$3-INDEX($C$3:$L$3,1,aux!$BA$1)))-1,"n.d.") -> 0.05659142561 | AF180: =IF(INDEX($C180:$L180,1,aux!$BA$1)>0,(L180-INDEX($C180:$L180,1,aux!$BA$1))/INDEX($C180:$L180,1,aux!$BA$1),"n.d.") -> 0.6412084262 | AH180: =X180-INDEX($O180:$X180,1,aux!$BA$1) -> 2023.476 | AI180: 0.001140332415 | AJ180: =+IF(INDEX($O180:$X180,1,aux!$BA$1)>0,(X180/INDEX($O180:$X180,1,aux!$BA$1))^(1/($X$3-INDEX($O$3:$X$3,1,aux!$BA$1)))-1,"n.d.") -> 0.2669280384 | AK180: =IF(INDEX($O180:$X180,1,aux!$BA$1)>0,(X180-INDEX($O180:$X180,1,aux!$BA$1))/INDEX($O180:$X180,1,aux!$BA$1),"n.d.") -> 7.409448761 | CC180: =+IF(ISNA(MATCH('5.1'!A180,AUX_2d_pais!$G$2:$G$40000,0)),0,1) -> 1
A181: 0520 | B181: Paraguai | C181: 870.345 | D181: 44850.751 | E181: 66708.447 | F181: 37962.718 | G181: 44088.396 | H181: 20076.898 | I181: 64524.503 | J181: 87735.108 | K181: 84654.428 | L181: 50712.335 | M181: 50218.3929 | N181: 0.02178894317 | O181: 68.691 | P181: 333.628 | Q181: 799.231 | R181: 1480.37 | S181: 963.759 | T181: 522.264 | U181: 1063.324 | V181: 915.949 | W181: 2740.878 | X181: 2432.333 | Y181: 1132.0427 | Z181: 0.0004132719978 | AA181: -49086.3502 | AC181: =L181-INDEX($C181:$L181,1,aux!$BA$1) -> 49841.99 | AD181: 0.0456479445 | AE181: =+IF(INDEX($C181:$L181,1,aux!$BA$1)>0,(L181/INDEX($C181:$L181,1,aux!$BA$1))^(1/($L$3-INDEX($C$3:$L$3,1,aux!$BA$1)))-1,"n.d.") -> 0.5709342874 | AF181: =IF(INDEX($C181:$L181,1,aux!$BA$1)>0,(L181-INDEX($C181:$L181,1,aux!$BA$1))/INDEX($C181:$L181,1,aux!$BA$1),"n.d.") -> 57.26693438 | AH181: =X181-INDEX($O181:$X181,1,aux!$BA$1) -> 2363.642 | AI181: 0.001332033387 | AJ181: =+IF(INDEX($O181:$X181,1,aux!$BA$1)>0,(X181/INDEX($O181:$X181,1,aux!$BA$1))^(1/($X$3-INDEX($O$3:$X$3,1,aux!$BA$1)))-1,"n.d.") -> 0.4863627034 | AK181: =IF(INDEX($O181:$X181,1,aux!$BA$1)>0,(X181-INDEX($O181:$X181,1,aux!$BA$1))/INDEX($O181:$X181,1,aux!$BA$1),"n.d.") -> 34.40977712 | CC181: =+IF(ISNA(MATCH('5.1'!A181,AUX_2d_pais!$G$2:$G$40000,0)),0,1) -> 1
A182: 0504 | B182: Peru | C182: 8083.762 | D182: 9530.54 | E182: 11527.592 | F182: 10153.498 | G182: 8402.901 | H182: 9335.693 | I182: 11061.724 | J182: 9549.779 | K182: 17220.588 | L182: 15295.405 | M182: 11016.1482 | N182: 0.004779727372 | O182: 612.268 | P182: 1386.458 | Q182: 4400.305 | R182: 7263.551 | S182: 7170.311 | T182: 9005.727 | U182: 15605.009 | V182: 12206.436 | W182: 6620.74 | X182: 8081.444 | Y182: 7235.2249 | Z182: 0.002641345463 | AA182: -3780.9233 | AC182: =L182-INDEX($C182:$L182,1,aux!$BA$1) -> 7211.643 | AD182: 0.006604806097 | AE182: =+IF(INDEX($C182:$L182,1,aux!$BA$1)>0,(L182/INDEX($C182:$L182,1,aux!$BA$1))^(1/($L$3-INDEX($C$3:$L$3,1,aux!$BA$1)))-1,"n.d.") -> 0.0734255796 | AF182: =IF(INDEX($C182:$L182,1,aux!$BA$1)>0,(L182-INDEX($C182:$L182,1,aux!$BA$1))/INDEX($C182:$L182,1,aux!$BA$1),"n.d.") -> 0.8921147109 | AH182: =X182-INDEX($O182:$X182,1,aux!$BA$1) -> 7469.176 | AI182: 0.00420926342 | AJ182: =+IF(INDEX($O182:$X182,1,aux!$BA$1)>0,(X182/INDEX($O182:$X182,1,aux!$BA$1))^(1/($X$3-INDEX($O$3:$X$3,1,aux!$BA$1)))-1,"n.d.") -> 0.3320031974 | AK182: =IF(INDEX($O182:$X182,1,aux!$BA$1)>0,(X182-INDEX($O182:$X182,1,aux!$BA$1))/INDEX($O182:$X182,1,aux!$BA$1),"n.d.") -> 12.19919382 | CC182: =+IF(ISNA(MATCH('5.1'!A182,AUX_2d_pais!$G$2:$G$40000,0)),0,1) -> 1
A183: 0813 | B183: Pitcairn | C183: 0 | D183: 0 | E183: 0 | F183: 0 | G183: 0 | H183: 0 | I183: 0 | J183: 0 | K183: 0 | L183: 0 | M183: 0 | N183: 0 | O183: 0 | P183: 0 | Q183: 0 | R183: 0 | S183: 0 | T183: 0 | U183: 0 | V183: 0 | W183: 0 | X183: 0 | Y183: 0 | Z183: 0 | AA183: 0 | AC183: =L183-INDEX($C183:$L183,1,aux!$BA$1) -> 0 | AD183: 0 | AE183: =+IF(INDEX($C183:$L183,1,aux!$BA$1)>0,(L183/INDEX($C183:$L183,1,aux!$BA$1))^(1/($L$3-INDEX($C$3:$L$3,1,aux!$BA$1)))-1,"n.d.") -> n.d. | AF183: =IF(INDEX($C183:$L183,1,aux!$BA$1)>0,(L183-INDEX($C183:$L183,1,aux!$BA$1))/INDEX($C183:$L183,1,aux!$BA$1),"n.d.") -> n.d. | AH183: =X183-INDEX($O183:$X183,1,aux!$BA$1) -> 0 | AI183: 0 | AJ183: =+IF(INDEX($O183:$X183,1,aux!$BA$1)>0,(X183/INDEX($O183:$X183,1,aux!$BA$1))^(1/($X$3-INDEX($O$3:$X$3,1,aux!$BA$1)))-1,"n.d.") -> n.d. | AK183: =IF(INDEX($O183:$X183,1,aux!$BA$1)>0,(X183-INDEX($O183:$X183,1,aux!$BA$1))/INDEX($O183:$X183,1,aux!$BA$1),"n.d.") -> n.d. | AM183: 0 | BO183: 0 | CC183: =+IF(ISNA(MATCH('5.1'!A183,AUX_2d_pais!$G$2:$G$40000,0)),0,1) -> 0
A184: 0822 | B184: Polinésia Francesa | C184: 14.004 | D184: 17.116 | E184: 14.038 | F184: 0 | G184: 0 | H184: 0 | I184: 0 | J184: 0 | K184: 0 | L184: 1.903 | M184: 4.7061 | N184: 2.041900179e-06 | O184: 50.371 | P184: 143.797 | Q184: 41.998 | R184: 16.217 | S184: 0 | T184: 15.877 | U184: 180.994 | V184: 336.284 | W184: 509.521 | X184: 443.515 | Y184: 173.8574 | Z184: 6.346968629e-05 | AA184: 169.1513 | AC184: =L184-INDEX($C184:$L184,1,aux!$BA$1) -> -12.101 | AD184: -1.10827392e-05 | AE184: =+IF(INDEX($C184:$L184,1,aux!$BA$1)>0,(L184/INDEX($C184:$L184,1,aux!$BA$1))^(1/($L$3-INDEX($C$3:$L$3,1,aux!$BA$1)))-1,"n.d.") -> -0.1988987497 | AF184: =IF(INDEX($C184:$L184,1,aux!$BA$1)>0,(L184-INDEX($C184:$L184,1,aux!$BA$1))/INDEX($C184:$L184,1,aux!$BA$1),"n.d.") -> -0.8641102542 | AH184: =X184-INDEX($O184:$X184,1,aux!$BA$1) -> 393.144 | AI184: 0.0002215567899 | AJ184: =+IF(INDEX($O184:$X184,1,aux!$BA$1)>0,(X184/INDEX($O184:$X184,1,aux!$BA$1))^(1/($X$3-INDEX($O$3:$X$3,1,aux!$BA$1)))-1,"n.d.") -> 0.2734143772 | AK184: =IF(INDEX($O184:$X184,1,aux!$BA$1)>0,(X184-INDEX($O184:$X184,1,aux!$BA$1))/INDEX($O184:$X184,1,aux!$BA$1),"n.d.") -> 7.804967144 | CC184: =+IF(ISNA(MATCH('5.1'!A184,AUX_2d_pais!$G$2:$G$40000,0)),0,1) -> 1
A185: 0060 | B185: Polónia | C185: 0 | D185: 0 | E185: 0 | F185: 0 | G185: 0 | H185: 0 | I185: 0 | J185: 0 | K185: 0 | L185: 0 | M185: 0 | N185: 0 | O185: 0 | P185: 0 | Q185: 0 | R185: 0 | S185: 0 | T185: 0 | U185: 0 | V185: 0 | W185: 0 | X185: 0 | Y185: 0 | Z185: 0 | AA185: 0 | AC185: =L185-INDEX($C185:$L185,1,aux!$BA$1) -> 0 | AD185: 0 | AE185: =+IF(INDEX($C185:$L185,1,aux!$BA$1)>0,(L185/INDEX($C185:$L185,1,aux!$BA$1))^(1/($L$3-INDEX($C$3:$L$3,1,aux!$BA$1)))-1,"n.d.") -> n.d. | AF185: =IF(INDEX($C185:$L185,1,aux!$BA$1)>0,(L185-INDEX($C185:$L185,1,aux!$BA$1))/INDEX($C185:$L185,1,aux!$BA$1),"n.d.") -> n.d. | AH185: =X185-INDEX($O185:$X185,1,aux!$BA$1) -> 0 | AI185: 0 | AJ185: =+IF(INDEX($O185:$X185,1,aux!$BA$1)>0,(X185/INDEX($O185:$X185,1,aux!$BA$1))^(1/($X$3-INDEX($O$3:$X$3,1,aux!$BA$1)))-1,"n.d.") -> n.d. | AK185: =IF(INDEX($O185:$X185,1,aux!$BA$1)>0,(X185-INDEX($O185:$X185,1,aux!$BA$1))/INDEX($O185:$X185,1,aux!$BA$1),"n.d.") -> n.d. | AM185: 0 | CC185: =+IF(ISNA(MATCH('5.1'!A185,AUX_2d_pais!$G$2:$G$40000,0)),0,1) -> 0
A186: 0346 | B186: Quénia | C186: 3646.036 | D186: 3816.075 | E186: 4281.679 | F186: 3664.098 | G186: 3864.201 | H186: 4062.388 | I186: 4089.5 | J186: 5559.069 | K186: 4721.322 | L186: 4657.47 | M186: 4236.1838 | N186: 0.00183801119 | O186: 911.437 | P186: 1326.008 | Q186: 2460.562 | R186: 1686.224 | S186: 3832.375 | T186: 2204.215 | U186: 1981.461 | V186: 1551.387 | W186: 1724.376 | X186: 4846.754 | Y186: 2252.4799 | Z186: 0.0008223072048 | AA186: -1983.7039 | AC186: =L186-INDEX($C186:$L186,1,aux!$BA$1) -> 1011.434 | AD186: 0.0009263250344 | AE186: =+IF(INDEX($C186:$L186,1,aux!$BA$1)>0,(L186/INDEX($C186:$L186,1,aux!$BA$1))^(1/($L$3-INDEX($C$3:$L$3,1,aux!$BA$1)))-1,"n.d.") -> 0.02757693132 | AF186: =IF(INDEX($C186:$L186,1,aux!$BA$1)>0,(L186-INDEX($C186:$L186,1,aux!$BA$1))/INDEX($C186:$L186,1,aux!$BA$1),"n.d.") -> 0.2774064765 | AH186: =X186-INDEX($O186:$X186,1,aux!$BA$1) -> 3935.317 | AI186: 0.002217752787 | AJ186: =+IF(INDEX($O186:$X186,1,aux!$BA$1)>0,(X186/INDEX($O186:$X186,1,aux!$BA$1))^(1/($X$3-INDEX($O$3:$X$3,1,aux!$BA$1)))-1,"n.d.") -> 0.2040264729 | AK186: =IF(INDEX($O186:$X186,1,aux!$BA$1)>0,(X186-INDEX($O186:$X186,1,aux!$BA$1))/INDEX($O186:$X186,1,aux!$BA$1),"n.d.") -> 4.317705996 | CC186: =+IF(ISNA(MATCH('5.1'!A186,AUX_2d_pais!$G$2:$G$40000,0)),0,1) -> 1
A187: 0083 | B187: Quirguizistão | C187: 53.197 | D187: 100.732 | E187: 0 | F187: 0 | G187: 72.712 | H187: 143.196 | I187: 0 | J187: 85.615 | K187: 0 | L187: 0 | M187: 45.5452 | N187: 1.976132085e-05 | O187: 3.75 | P187: 14.123 | Q187: 40.6 | R187: 232.788 | S187: 195.968 | T187: 106.645 | U187: 95.45 | V187: 96.688 | W187: 78.28 | X187: 139.115 | Y187: 100.3407 | Z187: 3.663112845e-05 | AA187: 54.7955 | AC187: =L187-INDEX($C187:$L187,1,aux!$BA$1) -> -53.197 | AD187: -4.872064104e-05 | AE187: =+IF(INDEX($C187:$L187,1,aux!$BA$1)>0,(L187/INDEX($C187:$L187,1,aux!$BA$1))^(1/($L$3-INDEX($C$3:$L$3,1,aux!$BA$1)))-1,"n.d.") -> -1 | AF187: =IF(INDEX($C187:$L187,1,aux!$BA$1)>0,(L187-INDEX($C187:$L187,1,aux!$BA$1))/INDEX($C187:$L187,1,aux!$BA$1),"n.d.") -> -1 | AH187: =X187-INDEX($O187:$X187,1,aux!$BA$1) -> 135.365 | AI187: 7.628511403e-05 | AJ187: =+IF(INDEX($O187:$X187,1,aux!$BA$1)>0,(X187/INDEX($O187:$X187,1,aux!$BA$1))^(1/($X$3-INDEX($O$3:$X$3,1,aux!$BA$1)))-1,"n.d.") -> 0.494071599 | AK187: =IF(INDEX($O187:$X187,1,aux!$BA$1)>0,(X187-INDEX($O187:$X187,1,aux!$BA$1))/INDEX($O187:$X187,1,aux!$BA$1),"n.d.") -> 36.09733333 | CC187: =+IF(ISNA(MATCH('5.1'!A187,AUX_2d_pais!$G$2:$G$40000,0)),0,1) -> 1
A188: 0890 | B188: Região Polar | C188: 0 | D188: 0 | E188: 0 | F188: 0 | G188: 0 | H188: 0 | I188: 0 | J188: 0 | K188: 0 | L188: 0 | M188: 0 | N188: 0 | O188: 0 | P188: 0 | Q188: 0 | R188: 0 | S188: 0 | T188: 0 | U188: 0 | V188: 0 | W188: 0 | X188: 0 | Y188: 0 | Z188: 0 | AA188: 0 | AC188: =L188-INDEX($C188:$L188,1,aux!$BA$1) -> 0 | AD188: 0 | AE188: =+IF(INDEX($C188:$L188,1,aux!$BA$1)>0,(L188/INDEX($C188:$L188,1,aux!$BA$1))^(1/($L$3-INDEX($C$3:$L$3,1,aux!$BA$1)))-1,"n.d.") -> n.d. | AF188: =IF(INDEX($C188:$L188,1,aux!$BA$1)>0,(L188-INDEX($C188:$L188,1,aux!$BA$1))/INDEX($C188:$L188,1,aux!$BA$1),"n.d.") -> n.d. | AH188: =X188-INDEX($O188:$X188,1,aux!$BA$1) -> 0 | AI188: 0 | AJ188: =+IF(INDEX($O188:$X188,1,aux!$BA$1)>0,(X188/INDEX($O188:$X188,1,aux!$BA$1))^(1/($X$3-INDEX($O$3:$X$3,1,aux!$BA$1)))-1,"n.d.") -> n.d. | AK188: =IF(INDEX($O188:$X188,1,aux!$BA$1)>0,(X188-INDEX($O188:$X188,1,aux!$BA$1))/INDEX($O188:$X188,1,aux!$BA$1),"n.d.") -> n.d. | AM188: 0 | BO188: 0 | CC188: =+IF(ISNA(MATCH('5.1'!A188,AUX_2d_pais!$G$2:$G$40000,0)),0,1) -> 0
A189: 0006 | B189: Reino Unido | C189: 0 | D189: 0 | E189: 0 | F189: 0 | G189: 0 | H189: 0 | I189: 0 | J189: 0 | K189: 0 | L189: 0 | M189: 0 | N189: 0 | O189: 0 | P189: 0 | Q189: 0 | R189: 0 | S189: 0 | T189: 0 | U189: 0 | V189: 0 | W189: 0 | X189: 0 | Y189: 0 | Z189: 0 | AA189: 0 | AC189: =L189-INDEX($C189:$L189,1,aux!$BA$1) -> 0 | AD189: 0 | AE189: =+IF(INDEX($C189:$L189,1,aux!$BA$1)>0,(L189/INDEX($C189:$L189,1,aux!$BA$1))^(1/($L$3-INDEX($C$3:$L$3,1,aux!$BA$1)))-1,"n.d.") -> n.d. | AF189: =IF(INDEX($C189:$L189,1,aux!$BA$1)>0,(L189-INDEX($C189:$L189,1,aux!$BA$1))/INDEX($C189:$L189,1,aux!$BA$1),"n.d.") -> n.d. | AH189: =X189-INDEX($O189:$X189,1,aux!$BA$1) -> 0 | AI189: 0 | AJ189: =+IF(INDEX($O189:$X189,1,aux!$BA$1)>0,(X189/INDEX($O189:$X189,1,aux!$BA$1))^(1/($X$3-INDEX($O$3:$X$3,1,aux!$BA$1)))-1,"n.d.") -> n.d. | AK189: =IF(INDEX($O189:$X189,1,aux!$BA$1)>0,(X189-INDEX($O189:$X189,1,aux!$BA$1))/INDEX($O189:$X189,1,aux!$BA$1),"n.d.") -> n.d. | AM189: 0 | CC189: =+IF(ISNA(MATCH('5.1'!A189,AUX_2d_pais!$G$2:$G$40000,0)),0,1) -> 0
A190: 0372 | B190: Reunião, Ilha da | C190: 0 | D190: 0 | E190: 0 | F190: 0 | G190: 0 | H190: 0 | I190: 0 | J190: 0 | K190: 0 | L190: 0 | M190: 0 | N190: 0 | O190: 0 | P190: 0 | Q190: 0 | R190: 0 | S190: 0 | T190: 0 | U190: 0 | V190: 0 | W190: 0 | X190: 0 | Y190: 0 | Z190: 0 | AA190: 0 | AC190: =L190-INDEX($C190:$L190,1,aux!$BA$1) -> 0 | AD190: 0 | AE190: =+IF(INDEX($C190:$L190,1,aux!$BA$1)>0,(L190/INDEX($C190:$L190,1,aux!$BA$1))^(1/($L$3-INDEX($C$3:$L$3,1,aux!$BA$1)))-1,"n.d.") -> n.d. | AF190: =IF(INDEX($C190:$L190,1,aux!$BA$1)>0,(L190-INDEX($C190:$L190,1,aux!$BA$1))/INDEX($C190:$L190,1,aux!$BA$1),"n.d.") -> n.d. | AH190: =X190-INDEX($O190:$X190,1,aux!$BA$1) -> 0 | AI190: 0 | AJ190: =+IF(INDEX($O190:$X190,1,aux!$BA$1)>0,(X190/INDEX($O190:$X190,1,aux!$BA$1))^(1/($X$3-INDEX($O$3:$X$3,1,aux!$BA$1)))-1,"n.d.") -> n.d. | AK190: =IF(INDEX($O190:$X190,1,aux!$BA$1)>0,(X190-INDEX($O190:$X190,1,aux!$BA$1))/INDEX($O190:$X190,1,aux!$BA$1),"n.d.") -> n.d. | AM190: 0 | BO190: 0 | CC190: =+IF(ISNA(MATCH('5.1'!A190,AUX_2d_pais!$G$2:$G$40000,0)),0,1) -> 0
A191: 0066 | B191: Roménia | C191: 0 | D191: 0 | E191: 0 | F191: 0 | G191: 0 | H191: 0 | I191: 0 | J191: 0 | K191: 0 | L191: 0 | M191: 0 | N191: 0 | O191: 0 | P191: 0 | Q191: 0 | R191: 0 | S191: 0 | T191: 0 | U191: 0 | V191: 0 | W191: 0 | X191: 0 | Y191: 0 | Z191: 0 | AA191: 0 | AC191: =L191-INDEX($C191:$L191,1,aux!$BA$1) -> 0 | AD191: 0 | AE191: =+IF(INDEX($C191:$L191,1,aux!$BA$1)>0,(L191/INDEX($C191:$L191,1,aux!$BA$1))^(1/($L$3-INDEX($C$3:$L$3,1,aux!$BA$1)))-1,"n.d.") -> n.d. | AF191: =IF(INDEX($C191:$L191,1,aux!$BA$1)>0,(L191-INDEX($C191:$L191,1,aux!$BA$1))/INDEX($C191:$L191,1,aux!$BA$1),"n.d.") -> n.d. | AH191: =X191-INDEX($O191:$X191,1,aux!$BA$1) -> 0 | AI191: 0 | AJ191: =+IF(INDEX($O191:$X191,1,aux!$BA$1)>0,(X191/INDEX($O191:$X191,1,aux!$BA$1))^(1/($X$3-INDEX($O$3:$X$3,1,aux!$BA$1)))-1,"n.d.") -> n.d. | AK191: =IF(INDEX($O191:$X191,1,aux!$BA$1)>0,(X191-INDEX($O191:$X191,1,aux!$BA$1))/INDEX($O191:$X191,1,aux!$BA$1),"n.d.") -> n.d. | AM191: 0 | CC191: =+IF(ISNA(MATCH('5.1'!A191,AUX_2d_pais!$G$2:$G$40000,0)),0,1) -> 0
A192: 0324 | B192: Ruanda | C192: 265.655 | D192: 875.701 | E192: 184.57 | F192: 0 | G192: 0 | H192: 0 | I192: 314.975 | J192: 0 | K192: 234.818 | L192: 0 | M192: 187.5719 | N192: 8.138439393e-05 | O192: 0.122 | P192: 0 | Q192: 0 | R192: 33.215 | S192: 0.188 | T192: 0 | U192: 27.122 | V192: 0.21 | W192: 192.537 | X192: 1785.885 | Y192: 203.9279 | Z192: 7.444744853e-05 | AA192: 16.356 | AC192: =L192-INDEX($C192:$L192,1,aux!$BA$1) -> -265.655 | AD192: -0.0002433009737 | AE192: =+IF(INDEX($C192:$L192,1,aux!$BA$1)>0,(L192/INDEX($C192:$L192,1,aux!$BA$1))^(1/($L$3-INDEX($C$3:$L$3,1,aux!$BA$1)))-1,"n.d.") -> -1 | AF192: =IF(INDEX($C192:$L192,1,aux!$BA$1)>0,(L192-INDEX($C192:$L192,1,aux!$BA$1))/INDEX($C192:$L192,1,aux!$BA$1),"n.d.") -> -1 | AH192: =X192-INDEX($O192:$X192,1,aux!$BA$1) -> 1785.763 | AI192: 0.001006368959 | AJ192: =+IF(INDEX($O192:$X192,1,aux!$BA$1)>0,(X192/INDEX($O192:$X192,1,aux!$BA$1))^(1/($X$3-INDEX($O$3:$X$3,1,aux!$BA$1)))-1,"n.d.") -> 1.902903699 | AK192: =IF(INDEX($O192:$X192,1,aux!$BA$1)>0,(X192-INDEX($O192:$X192,1,aux!$BA$1))/INDEX($O192:$X192,1,aux!$BA$1),"n.d.") -> 14637.40164 | BO192: 3914.998 | CC192: =+IF(ISNA(MATCH('5.1'!A192,AUX_2d_pais!$G$2:$G$40000,0)),0,1) -> 1
A193: 0075 | B193: Rússia, Federação da | C193: 37677.412 | D193: 27024.877 | E193: 47867.006 | F193: 73921.505 | G193: 35679.302 | H193: 43174.847 | I193: 40559.199 | J193: 56799.132 | K193: 67998.82 | L193: 110719.752 | M193: 54142.1852 | N193: 0.02349141278 | O193: 33382.225 | P193: 46140.184 | Q193: 56984.486 | R193: 69100.456 | S193: 97236.397 | T193: 83273.473 | U193: 63076.704 | V193: 69469.913 | W193: 82977.817 | X193: 85448.737 | Y193: 68709.0392 | Z193: 0.02508343713 | AA193: 14566.854 | AC193: =L193-INDEX($C193:$L193,1,aux!$BA$1) -> 73042.34 | AD193: 0.06689605858 | AE193: =+IF(INDEX($C193:$L193,1,aux!$BA$1)>0,(L193/INDEX($C193:$L193,1,aux!$BA$1))^(1/($L$3-INDEX($C$3:$L$3,1,aux!$BA$1)))-1,"n.d.") -> 0.127238996 | AF193: =IF(INDEX($C193:$L193,1,aux!$BA$1)>0,(L193-INDEX($C193:$L193,1,aux!$BA$1))/INDEX($C193:$L193,1,aux!$BA$1),"n.d.") -> 1.938624128 | AH193: =X193-INDEX($O193:$X193,1,aux!$BA$1) -> 52066.512 | AI193: 0.02934214756 | AJ193: =+IF(INDEX($O193:$X193,1,aux!$BA$1)>0,(X193/INDEX($O193:$X193,1,aux!$BA$1))^(1/($X$3-INDEX($O$3:$X$3,1,aux!$BA$1)))-1,"n.d.") -> 0.1100805295 | AK193: =IF(INDEX($O193:$X193,1,aux!$BA$1)>0,(X193-INDEX($O193:$X193,1,aux!$BA$1))/INDEX($O193:$X193,1,aux!$BA$1),"n.d.") -> 1.559707659 | CC193: =+IF(ISNA(MATCH('5.1'!A193,AUX_2d_pais!$G$2:$G$40000,0)),0,1) -> 1
A194: 0806 | B194: Salomão, Ilhas | C194: 0 | D194: 0 | E194: 0 | F194: 0 | G194: 0 | H194: 0 | I194: 0 | J194: 0 | K194: 0 | L194: 0 | M194: 0 | N194: 0 | O194: 0 | P194: 0 | Q194: 0 | R194: 0 | S194: 0 | T194: 0 | U194: 0 | V194: 0.337 | W194: 0 | X194: 0 | Y194: 0.0337 | Z194: 1.230277473e-08 | AA194: 0.0337 | AC194: =L194-INDEX($C194:$L194,1,aux!$BA$1) -> 0 | AD194: 0 | AE194: =+IF(INDEX($C194:$L194,1,aux!$BA$1)>0,(L194/INDEX($C194:$L194,1,aux!$BA$1))^(1/($L$3-INDEX($C$3:$L$3,1,aux!$BA$1)))-1,"n.d.") -> n.d. | AF194: =IF(INDEX($C194:$L194,1,aux!$BA$1)>0,(L194-INDEX($C194:$L194,1,aux!$BA$1))/INDEX($C194:$L194,1,aux!$BA$1),"n.d.") -> n.d. | AH194: =X194-INDEX($O194:$X194,1,aux!$BA$1) -> 0 | AI194: 0 | AJ194: =+IF(INDEX($O194:$X194,1,aux!$BA$1)>0,(X194/INDEX($O194:$X194,1,aux!$BA$1))^(1/($X$3-INDEX($O$3:$X$3,1,aux!$BA$1)))-1,"n.d.") -> n.d. | AK194: =IF(INDEX($O194:$X194,1,aux!$BA$1)>0,(X194-INDEX($O194:$X194,1,aux!$BA$1))/INDEX($O194:$X194,1,aux!$BA$1),"n.d.") -> n.d. | BO194: 0.337 | CC194: =+IF(ISNA(MATCH('5.1'!A194,AUX_2d_pais!$G$2:$G$40000,0)),0,1) -> 1
A195: 0819 | B195: Samoa | C195: 0 | D195: 0 | E195: 0 | F195: 0 | G195: 0 | H195: 0 | I195: 0 | J195: 0 | K195: 0 | L195: 0 | M195: 0 | N195: 0 | O195: 0 | P195: 0 | Q195: 0 | R195: 0 | S195: 0 | T195: 0 | U195: 0 | V195: 0 | W195: 0 | X195: 0 | Y195: 0 | Z195: 0 | AA195: 0 | AC195: =L195-INDEX($C195:$L195,1,aux!$BA$1) -> 0 | AD195: 0 | AE195: =+IF(INDEX($C195:$L195,1,aux!$BA$1)>0,(L195/INDEX($C195:$L195,1,aux!$BA$1))^(1/($L$3-INDEX($C$3:$L$3,1,aux!$BA$1)))-1,"n.d.") -> n.d. | AF195: =IF(INDEX($C195:$L195,1,aux!$BA$1)>0,(L195-INDEX($C195:$L195,1,aux!$BA$1))/INDEX($C195:$L195,1,aux!$BA$1),"n.d.") -> n.d. | AH195: =X195-INDEX($O195:$X195,1,aux!$BA$1) -> 0 | AI195: 0 | AJ195: =+IF(INDEX($O195:$X195,1,aux!$BA$1)>0,(X195/INDEX($O195:$X195,1,aux!$BA$1))^(1/($X$3-INDEX($O$3:$X$3,1,aux!$BA$1)))-1,"n.d.") -> n.d. | AK195: =IF(INDEX($O195:$X195,1,aux!$BA$1)>0,(X195-INDEX($O195:$X195,1,aux!$BA$1))/INDEX($O195:$X195,1,aux!$BA$1),"n.d.") -> n.d. | AM195: 0 | BO195: 0 | CC195: =+IF(ISNA(MATCH('5.1'!A195,AUX_2d_pais!$G$2:$G$40000,0)),0,1) -> 0
A196: 0830 | B196: Samoa Americana | C196: 0 | D196: 0 | E196: 0 | F196: 0 | G196: 0 | H196: 0 | I196: 0 | J196: 432.909 | K196: 2054.023 | L196: 0 | M196: 248.6932 | N196: 0.000107903931 | O196: 0 | P196: 0 | Q196: 0 | R196: 0 | S196: 0 | T196: 0 | U196: 0 | V196: 0 | W196: 0 | X196: 0 | Y196: 0 | Z196: 0 | AA196: -248.6932 | AC196: =L196-INDEX($C196:$L196,1,aux!$BA$1) -> 0 | AD196: 0 | AE196: =+IF(INDEX($C196:$L196,1,aux!$BA$1)>0,(L196/INDEX($C196:$L196,1,aux!$BA$1))^(1/($L$3-INDEX($C$3:$L$3,1,aux!$BA$1)))-1,"n.d.") -> n.d. | AF196: =IF(INDEX($C196:$L196,1,aux!$BA$1)>0,(L196-INDEX($C196:$L196,1,aux!$BA$1))/INDEX($C196:$L196,1,aux!$BA$1),"n.d.") -> n.d. | AH196: =X196-INDEX($O196:$X196,1,aux!$BA$1) -> 0 | AI196: 0 | AJ196: =+IF(INDEX($O196:$X196,1,aux!$BA$1)>0,(X196/INDEX($O196:$X196,1,aux!$BA$1))^(1/($X$3-INDEX($O$3:$X$3,1,aux!$BA$1)))-1,"n.d.") -> n.d. | AK196: =IF(INDEX($O196:$X196,1,aux!$BA$1)>0,(X196-INDEX($O196:$X196,1,aux!$BA$1))/INDEX($O196:$X196,1,aux!$BA$1),"n.d.") -> n.d. | BO196: =SUM(C196:L196,O196:X196) -> 2486.932 | CC196: =+IF(ISNA(MATCH('5.1'!A196,AUX_2d_pais!$G$2:$G$40000,0)),0,1) -> 1
A197: 0329 | B197: Santa Helena | C197: 0 | D197: 0 | E197: 0 | F197: 0 | G197: 0 | H197: 0 | I197: 130.298 | J197: 115.78 | K197: 253.701 | L197: 53.431 | M197: 55.321 | N197: 2.400288133e-05 | O197: 0 | P197: 0 | Q197: 0 | R197: 0 | S197: 0 | T197: 0 | U197: 0 | V197: 0 | W197: 0 | X197: 0 | Y197: 0 | Z197: 0 | AA197: -55.321 | AC197: =L197-INDEX($C197:$L197,1,aux!$BA$1) -> 53.431 | AD197: 4.893495069e-05 | AE197: =+IF(INDEX($C197:$L197,1,aux!$BA$1)>0,(L197/INDEX($C197:$L197,1,aux!$BA$1))^(1/($L$3-INDEX($C$3:$L$3,1,aux!$BA$1)))-1,"n.d.") -> n.d. | AF197: =IF(INDEX($C197:$L197,1,aux!$BA$1)>0,(L197-INDEX($C197:$L197,1,aux!$BA$1))/INDEX($C197:$L197,1,aux!$BA$1),"n.d.") -> n.d. | AH197: =X197-INDEX($O197:$X197,1,aux!$BA$1) -> 0 | AI197: 0 | AJ197: =+IF(INDEX($O197:$X197,1,aux!$BA$1)>0,(X197/INDEX($O197:$X197,1,aux!$BA$1))^(1/($X$3-INDEX($O$3:$X$3,1,aux!$BA$1)))-1,"n.d.") -> n.d. | AK197: =IF(INDEX($O197:$X197,1,aux!$BA$1)>0,(X197-INDEX($O197:$X197,1,aux!$BA$1))/INDEX($O197:$X197,1,aux!$BA$1),"n.d.") -> n.d. | BO197: 553.21 | CC197: =+IF(ISNA(MATCH('5.1'!A197,AUX_2d_pais!$G$2:$G$40000,0)),0,1) -> 1
A198: 0465 | B198: Santa Lúcia | C198: 0 | D198: 0 | E198: 0 | F198: 0 | G198: 0 | H198: 0 | I198: 0 | J198: 0 | K198: 0 | L198: 0 | M198: 0 | N198: 0 | O198: 6.063 | P198: 12.656 | Q198: 5.924 | R198: 29.508 | S198: 21.805 | T198: 25.366 | U198: 54.471 | V198: 59.115 | W198: 54.703 | X198: 146.674 | Y198: 41.6285 | Z198: 1.51972124e-05 | AA198: 41.6285 | AC198: =L198-INDEX($C198:$L198,1,aux!$BA$1) -> 0 | AD198: 0 | AE198: =+IF(INDEX($C198:$L198,1,aux!$BA$1)>0,(L198/INDEX($C198:$L198,1,aux!$BA$1))^(1/($L$3-INDEX($C$3:$L$3,1,aux!$BA$1)))-1,"n.d.") -> n.d. | AF198: =IF(INDEX($C198:$L198,1,aux!$BA$1)>0,(L198-INDEX($C198:$L198,1,aux!$BA$1))/INDEX($C198:$L198,1,aux!$BA$1),"n.d.") -> n.d. | AH198: =X198-INDEX($O198:$X198,1,aux!$BA$1) -> 140.611 | AI198: 7.924150385e-05 | AJ198: =+IF(INDEX($O198:$X198,1,aux!$BA$1)>0,(X198/INDEX($O198:$X198,1,aux!$BA$1))^(1/($X$3-INDEX($O$3:$X$3,1,aux!$BA$1)))-1,"n.d.") -> 0.424756407 | AK198: =IF(INDEX($O198:$X198,1,aux!$BA$1)>0,(X198-INDEX($O198:$X198,1,aux!$BA$1))/INDEX($O198:$X198,1,aux!$BA$1),"n.d.") -> 23.1916543 | BO198: 416.285 | CC198: =+IF(ISNA(MATCH('5.1'!A198,AUX_2d_pais!$G$2:$G$40000,0)),0,1) -> 1
A199: 0045 | B199: Santa Sé (Cidade Estado do Vaticano) | C199: 0 | D199: 0 | E199: 0 | F199: 0 | G199: 0 | H199: 0 | I199: 0 | J199: 0 | K199: 0 | L199: 0 | M199: 0 | N199: 0 | O199: 0 | P199: 0 | Q199: 0 | R199: 0 | S199: 2.619 | T199: 0 | U199: 0 | V199: 0 | W199: 0 | X199: 0.011 | Y199: 0.263 | Z199: 9.601275237e-08 | AA199: 0.263 | AC199: =L199-INDEX($C199:$L199,1,aux!$BA$1) -> 0 | AD199: 0 | AE199: =+IF(INDEX($C199:$L199,1,aux!$BA$1)>0,(L199/INDEX($C199:$L199,1,aux!$BA$1))^(1/($L$3-INDEX($C$3:$L$3,1,aux!$BA$1)))-1,"n.d.") -> n.d. | AF199: =IF(INDEX($C199:$L199,1,aux!$BA$1)>0,(L199-INDEX($C199:$L199,1,aux!$BA$1))/INDEX($C199:$L199,1,aux!$BA$1),"n.d.") -> n.d. | AH199: =X199-INDEX($O199:$X199,1,aux!$BA$1) -> 0.011 | AI199: 6.199063674e-09 | AJ199: =+IF(INDEX($O199:$X199,1,aux!$BA$1)>0,(X199/INDEX($O199:$X199,1,aux!$BA$1))^(1/($X$3-INDEX($O$3:$X$3,1,aux!$BA$1)))-1,"n.d.") -> n.d. | AK199: =IF(INDEX($O199:$X199,1,aux!$BA$1)>0,(X199-INDEX($O199:$X199,1,aux!$BA$1))/INDEX($O199:$X199,1,aux!$BA$1),"n.d.") -> n.d. | BO199: 2.63 | CC199: =+IF(ISNA(MATCH('5.1'!A199,AUX_2d_pais!$G$2:$G$40000,0)),0,1) -> 1
A200: 0466 | B200: São Bartolomeu | C200: 0 | D200: 0 | E200: 0 | F200: 0 | G200: 0 | H200: 0 | I200: 0 | J200: 0.017 | K200: 0 | L200: 0 | M200: 0.0017 | N200: 7.376023257e-10 | O200: 0 | P200: 0 | Q200: 0 | R200: 0 | S200: 251.518 | T200: 408.098 | U200: 657.877 | V200: 1223.027 | W200: 1417.352 | X200: 1633.081 | Y200: 559.0953 | Z200: 0.0002041075232 | AA200: 559.0936 | AC200: =L200-INDEX($C200:$L200,1,aux!$BA$1) -> 0 | AD200: 0 | AE200: =+IF(INDEX($C200:$L200,1,aux!$BA$1)>0,(L200/INDEX($C200:$L200,1,aux!$BA$1))^(1/($L$3-INDEX($C$3:$L$3,1,aux!$BA$1)))-1,"n.d.") -> n.d. | AF200: =IF(INDEX($C200:$L200,1,aux!$BA$1)>0,(L200-INDEX($C200:$L200,1,aux!$BA$1))/INDEX($C200:$L200,1,aux!$BA$1),"n.d.") -> n.d. | AH200: =X200-INDEX($O200:$X200,1,aux!$BA$1) -> 1633.081 | AI200: 0.0009203248277 | AJ200: =+IF(INDEX($O200:$X200,1,aux!$BA$1)>0,(X200/INDEX($O200:$X200,1,aux!$BA$1))^(1/($X$3-INDEX($O$3:$X$3,1,aux!$BA$1)))-1,"n.d.") -> n.d. | AK200: =IF(INDEX($O200:$X200,1,aux!$BA$1)>0,(X200-INDEX($O200:$X200,1,aux!$BA$1))/INDEX($O200:$X200,1,aux!$BA$1),"n.d.") -> n.d. | CC200: =+IF(ISNA(MATCH('5.1'!A200,AUX_2d_pais!$G$2:$G$40000,0)),0,1) -> 1
... 54 more rows

Sheet 5.1_var
A1: ="Principais contributos por país para a variação das trocas comerciais PT-Países Terceiros_x000D_ no período " & INDEX('5.2'!P3:X3,1,aux!BA1) & "-2018 Agroalimentar, Mar & Florestas (valores em milhares de euros)" -> Principais contributos por país para a variação das trocas comerciais PT-Países Terceiros no período 2009-2018 Agroalimentar, Mar & Florestas (valores em milhares de euros)
E5: aumento das importações | J5: aumento das exportações
E17: redução das importações | J17: redução das exportações
A28: Fonte: GPP a partir de dados INE/Comércio Internacional (2017 provisórios; 2018 preliminares) | H28: ='3'!Y116 -> 2019-11-21T09:59:42.630
A29: Cód. NC | B29: Descritivo | C29: ="Variação das Importações " & INDEX('5.2'!C3:L3,1,aux!BA1) & "-"& '5.2'!L3&"" -> Variação das Importações 2009-2018 | F29: Cód. NC | G29: Descritivo | H29: ="Variação das Exportações " & INDEX('5.2'!P3:X3,1,aux!BA1) & "-"& '5.2'!Y3 &"" -> Variação das Exportações 2009-2018
C30: variação total em valor | D30: % do aumento/ redução total | H30: variação total em valor | I30: % do aumento/ redução total
A31: =IF(C31>0,aux!CY6,"") -> 0400 | B31: =IF(C31>0,aux!CZ6,"") -> Estados Unidos | C31: =IF(aux!DA6>0,aux!DA6,0) -> 225360.688 | D31: =IF(SUM($C$31:$C$41)<>0,C31/SUM($C$31:$C$41),0) -> 0.1633422114 | F31: =IF(H31>0,aux!DD6,"") -> 0400 | G31: =IF(H31>0,aux!DE6,"") -> Estados Unidos | H31: =IF(aux!DF6>0,aux!DF6,0) -> 279675.683 | I31: =IF(SUM($H$31:$H$41)<>0,H31/SUM($H$31:$H$41),0) -> 0.1539317832
A32: =IF(C32>0,aux!CY7,"") -> 0072 | B32: =IF(C32>0,aux!CZ7,"") -> Ucrânia | C32: =IF(aux!DA7>0,aux!DA7,0) -> 135275.44 | D32: =IF(SUM($C$31:$C$41)<>0,C32/SUM($C$31:$C$41),0) -> 0.09804810995 | F32: =IF(H32>0,aux!DD7,"") -> 0508 | G32: =IF(H32>0,aux!DE7,"") -> Brasil | H32: =IF(aux!DF7>0,aux!DF7,0) -> 271847.423 | I32: =IF(SUM($H$31:$H$41)<>0,H32/SUM($H$31:$H$41),0) -> 0.1496231569
A33: =IF(C33>0,aux!CY8,"") -> 0388 | B33: =IF(C33>0,aux!CZ8,"") -> África do Sul | C33: =IF(aux!DA8>0,aux!DA8,0) -> 124423.331 | D33: 0.09018246356 | F33: =IF(H33>0,aux!DD8,"") -> 0720 | G33: =IF(H33>0,aux!DE8,"") -> China, República Popular da | H33: =IF(aux!DF8>0,aux!DF8,0) -> 145998.868 | I33: 0.08035688287
A34: =IF(C34>0,aux!CY9,"") -> 0524 | B34: =IF(C34>0,aux!CZ9,"") -> Uruguai | C34: =IF(aux!DA9>0,aux!DA9,0) -> 106967.704 | D34: 0.07753056433 | F34: =IF(H34>0,aux!DD9,"") -> 0624 | G34: =IF(H34>0,aux!DE9,"") -> Israel | H34: =IF(aux!DF9>0,aux!DF9,0) -> 119668.697 | I34: 0.065864918
A35: =IF(C35>0,aux!CY10,"") -> 0075 | B35: =IF(C35>0,aux!CZ10,"") -> Rússia, Federação da | C35: =IF(aux!DA10>0,aux!DA10,0) -> 73042.34 | D35: 0.05294134237 | F35: =IF(H35>0,aux!DD10,"") -> 0052 | G35: =IF(H35>0,aux!DE10,"") -> Turquia | H35: =IF(aux!DF10>0,aux!DF10,0) -> 114774.873 | I35: 0.06317138724
A36: =IF(C36>0,aux!CY11,"") -> 0508 | B36: =IF(C36>0,aux!CZ11,"") -> Brasil | C36: =IF(aux!DA11>0,aux!DA11,0) -> 70952.464 | D36: 0.05142659297 | F36: =IF(H36>0,aux!DD11,"") -> 0204 | G36: =IF(H36>0,aux!DE11,"") -> Marrocos | H36: =IF(aux!DF11>0,aux!DF11,0) -> 67850.992 | I36: 0.03734477049
A37: =IF(C37>0,aux!CY12,"") -> 0720 | B37: =IF(C37>0,aux!CZ12,"") -> China, República Popular da | C37: =IF(aux!DA12>0,aux!DA12,0) -> 66296.479 | D37: 0.04805191883 | F37: =IF(H37>0,aux!DD12,"") -> 0220 | G37: =IF(H37>0,aux!DE12,"") -> Egito | H37: =IF(aux!DF12>0,aux!DF12,0) -> 64688.93 | I37: 0.03560439093
A38: =IF(C38>0,aux!CY13,"") -> 0520 | B38: =IF(C38>0,aux!CZ13,"") -> Paraguai | C38: =IF(aux!DA13>0,aux!DA13,0) -> 49841.99 | D38: 0.0361256479 | F38: =IF(H38>0,aux!DD13,"") -> 0208 | G38: =IF(H38>0,aux!DE13,"") -> Argélia | H38: =IF(aux!DF13>0,aux!DF13,0) -> 56208.838 | I38: 0.03093700022
A39: =IF(C39>0,aux!CY14,"") -> 0052 | B39: =IF(C39>0,aux!CZ14,"") -> Turquia | C39: =IF(aux!DA14>0,aux!DA14,0) -> 46227.866 | D39: 0.03350611824 | F39: =IF(H39>0,aux!DD14,"") -> 0075 | G39: =IF(H39>0,aux!DE14,"") -> Rússia, Federação da | H39: =IF(aux!DF14>0,aux!DF14,0) -> 52066.512 | I39: 0.02865708936
A40: =IF(C40>0,aux!CY15,"") -> 0204 | B40: =IF(C40>0,aux!CZ15,"") -> Marrocos | C40: =IF(aux!DA15>0,aux!DA15,0) -> 42983.142 | D40: 0.03115433099 | F40: =IF(H40>0,aux!DD15,"") -> 0412 | G40: =IF(H40>0,aux!DE15,"") -> México | H40: =IF(aux!DF15>0,aux!DF15,0) -> 45598.129 | I40: 0.02509693097
B41: Outros contributos para o aumento das importações | C41: =SUMIF(aux!DA16:DA252,">0") -> 438312.877 | D41: 0.3176906995 | G41: Outros contributos para o aumento das exportações | H41: =SUMIF(aux!DF16:DF252,">0") -> 598501.735 | I41: 0.3294116898
B42: Outros contributos para a redução das importações | C42: =SUMIF(aux!DA6:DA242,"<0") -> -54122.539 | D42: =IF(SUM($C$42:$C$52)<>0,C42/SUM($C$42:$C$52),0) -> 0.1880519992 | G42: Outros contributos para a redução das exportações | H42: =SUMIF(aux!DF6:DF242,"<0") -> -225.845 | I42: =IF(SUM($H$42:$H$52)<>0,H42/SUM($H$42:$H$52),0) -> 0.00532412812
A43: =IF(C43<>0,aux!CY243,"") -> 0284 | B43: =IF(C43<0,aux!CZ243,"") -> Benim | C43: =IF(aux!DA243<0,aux!DA243,0) -> -9511.089 | D43: =IF(SUM($C$42:$C$52)<>0,C43/SUM($C$42:$C$52),0) -> 0.03304684765 | F43: =IF(H43<>0,aux!DD243,"") -> 0452 | G43: =IF(H43<>0,aux!DE243,"") -> Haiti | H43: =IF(aux!DF243<0,aux!DF243,0) -> -95.915 | I43: =IF(SUM($H$42:$H$52)<>0,H43/SUM($H$42:$H$52),0) -> 0.002261124881
A44: =IF(C44<>0,aux!CY244,"") -> 0464 | B44: =IF(C44<0,aux!CZ244,"") -> Jamaica | C44: =IF(aux!DA244<0,aux!DA244,0) -> -10276.545 | D44: 0.03570647031 | F44: =IF(H44<>0,aux!DD244,"") -> 0338 | G44: =IF(H44<>0,aux!DE244,"") -> Jibuti | H44: =IF(aux!DF244<0,aux!DF244,0) -> -427.031 | I44: 0.01006693863
A45: =IF(C45<>0,aux!CY245,"") -> 0322 | B45: =IF(C45<0,aux!CZ245,"") -> Congo, República Democrática do | C45: =IF(aux!DA245<0,aux!DA245,0) -> -13284.782 | D45: 0.04615876971 | F45: =IF(H45<>0,aux!DD245,"") -> 0478 | G45: =IF(H45<>0,aux!DE245,"") -> Antilhas Holandesas | H45: =IF(aux!DF245<0,aux!DF245,0) -> -611.524 | I45: 0.01441622407
A46: =IF(C46<>0,aux!CY246,"") -> 0028 | B46: =IF(C46<0,aux!CZ246,"") -> Noruega | C46: =IF(aux!DA246<0,aux!DA246,0) -> -14105.013 | D46: 0.04900871139 | F46: =IF(H46<>0,aux!DD246,"") -> 0043 | G46: =IF(H46<>0,aux!DE246,"") -> Andorra | H46: =IF(aux!DF246<0,aux!DF246,0) -> -637.208 | I46: 0.01502170529
A47: =IF(C47<>0,aux!CY247,"") -> 0393 | B47: =IF(C47<0,aux!CZ247,"") -> Suazilândia | C47: =IF(aux!DA247<0,aux!DA247,0) -> -15040.186 | D47: 0.05225802591 | F47: =IF(H47<>0,aux!DD247,"") -> 0389 | G47: =IF(H47<>0,aux!DE247,"") -> Namíbia | H47: =IF(aux!DF247<0,aux!DF247,0) -> -926.384 | I47: 0.02183881469
A48: =IF(C48<>0,aux!CY248,"") -> 0382 | B48: =IF(C48<0,aux!CZ248,"") -> Zimbabwe | C48: =IF(aux!DA248<0,aux!DA248,0) -> -22611.411 | D48: 0.07856470006 | F48: =IF(H48<>0,aux!DD248,"") -> 0047 | G48: =IF(H48<>0,aux!DE248,"") -> São Marino | H48: =IF(aux!DF248<0,aux!DF248,0) -> -1061.57 | I48: 0.02502572423
A49: =IF(C49<>0,aux!CY249,"") -> 0378 | B49: =IF(C49<0,aux!CZ249,"") -> Zâmbia | C49: =IF(aux!DA249<0,aux!DA249,0) -> -28438.238 | D49: 0.09881035902 | F49: =IF(H49<>0,aux!DD249,"") -> 0728 | G49: =IF(H49<>0,aux!DE249,"") -> Coreia, República da | H49: =IF(aux!DF249<0,aux!DF249,0) -> -2637.324 | I49: 0.06217295433
A50: =IF(C50<>0,aux!CY250,"") -> 0039 | B50: =IF(C50<0,aux!CZ250,"") -> Suíça | C50: =IF(aux!DA250<0,aux!DA250,0) -> -39620.596 | D50: 0.1376641308 | F50: =IF(H50<>0,aux!DD250,"") -> 0528 | G50: =IF(H50<>0,aux!DE250,"") -> Argentina | H50: =IF(aux!DF250<0,aux!DF250,0) -> -3118.935 | I50: 0.07352657592
A51: =IF(C51<>0,aux!CY251,"") -> 90XS | B51: =IF(C51<0,aux!CZ251,"") -> Sérvia | C51: =IF(aux!DA251<0,aux!DA251,0) -> -40095.132 | D51: 0.1393129345 | F51: =IF(H51<>0,aux!DD251,"") -> 0484 | G51: =IF(H51<>0,aux!DE251,"") -> Venezuela | H51: =IF(aux!DF251<0,aux!DF251,0) -> -8571.777 | I51: 0.2020732758
A52: =IF(C52<>0,aux!CY252,"") -> 0528 | B52: =IF(C52<0,aux!CZ252,"") -> Argentina | C52: =IF(aux!DA252<0,aux!DA252,0) -> -40700.71 | D52: 0.1414170515 | F52: =IF(H52<>0,aux!DD252,"") -> 0330 | G52: =IF(H52<>0,aux!DE252,"") -> Angola | H52: =IF(aux!DF252<0,aux!DF252,0) -> -24105.639 | I52: 0.5682725341
A53: TOTAL | C53: =SUM(C31:C52) -> 1091878.08 | F53: TOTAL | H53: =SUM(H31:H52) -> 1774461.528

Sheet 5.1A
A1: Trocas comerciais Portugal-Países Terceiros (2009-2018) por país em milhares de euros | C1: Produtos agrícolas e agroalimentares
A2: Cód. País | B2: País | C2: Importações | O2: Exportações | AA2: Saldo período (exp-imp) | AB2: Evolução das importações | AC2: =+"Variação das Importações " & INDEX(C3:K3,1,aux!$BA$1) & "-"& L3 &"" -> Variação das Importações 2009-2018 | AG2: Evolução das exportações | AH2: ="Variação das Exportações " & INDEX(O3:W3,1,aux!BA1) & "-"& X3 &"" -> Variação das Exportações 2009-2018
C3: 2009 | D3: 2010 | E3: 2011 | F3: 2012 | G3: 2013 | H3: 2014 | I3: 2015 | J3: 2016 | K3: 2017 | L3: 2018 | M3: média período | N3: % Total | O3: 2009 | P3: 2010 | Q3: 2011 | R3: 2012 | S3: 2013 | T3: 2014 | U3: 2015 | V3: 2016 | W3: 2017 | X3: 2018 | Y3: média período | Z3: % Total | AC3: variação total em valor | AD3: % no total de variação | AE3: taxa de variação média anual | AF3: taxa de variação total | AH3: variação total em valor | AI3: % no total de variação | AJ3: taxa de variação média anual | AK3: taxa de variação total | CC3: filtro
A4: 0660 | B4: Afeganistão | C4: 0 | D4: 0 | E4: 0 | F4: 0 | G4: 0 | H4: 0 | I4: 15.895 | J4: 0 | K4: 385.134 | L4: 21.004 | M4: 42.2033 | N4: 2.694196284e-05 | O4: 6.722 | P4: 2.25 | Q4: 0 | R4: 0 | S4: 0 | T4: 0.03 | U4: 0.192 | V4: 0 | W4: 0 | X4: 0 | Y4: 0.9194 | Z4: 6.183428317e-07 | AA4: -41.2839 | AC4: =L4-INDEX($C4:$L4,1,aux!$BA$1) -> 21.004 | AD4: =AC4/$AC$252 -> 3.82327191e-05 | AE4: =+IF(INDEX($C4:$L4,1,aux!$BA$1)>0,(L4/INDEX($C4:$L4,1,aux!$BA$1))^(1/($L$3-INDEX($C$3:$L$3,1,aux!$BA$1)))-1,"n.d.") -> n.d. | AF4: =IF(INDEX($C4:$L4,1,aux!$BA$1)>0,(L4-INDEX($C4:$L4,1,aux!$BA$1))/INDEX($C4:$L4,1,aux!$BA$1),"n.d.") -> n.d. | AH4: =X4-INDEX($O4:$X4,1,aux!$BA$1) -> -6.722 | AI4: =AH4/$AH$252 -> -8.410853134e-06 | AJ4: =+IF(INDEX($O4:$X4,1,aux!$BA$1)>0,(X4/INDEX($O4:$X4,1,aux!$BA$1))^(1/($X$3-INDEX($O$3:$X$3,1,aux!$BA$1)))-1,"n.d.") -> -1 | AK4: =IF(INDEX($O4:$X4,1,aux!$BA$1)>0,(X4-INDEX($O4:$X4,1,aux!$BA$1))/INDEX($O4:$X4,1,aux!$BA$1),"n.d.") -> -1 | CC4: =+IF(ISNA(MATCH('5.1'!A4,AUX_2d_pais!$G$2:$G$40000,0)),0,1) -> 1
A5: 0388 | B5: África do Sul | C5: 15400.085 | D5: 40581.087 | E5: 36819.645 | F5: 35319.847 | G5: 37246.913 | H5: 47445.036 | I5: 55368.133 | J5: 64094.19 | K5: 93558.929 | L5: 115213.62 | M5: 54104.7485 | N5: 0.03453967162 | O5: 8972.366 | P5: 7612.911 | Q5: 10431.808 | R5: 10083.849 | S5: 35594.762 | T5: 20697.407 | U5: 12427.155 | V5: 13862.752 | W5: 23879.863 | X5: 15501.594 | Y5: 15906.4467 | Z5: 0.01069788699 | AA5: -38198.3018 | AC5: =L5-INDEX($C5:$L5,1,aux!$BA$1) -> 99813.535 | AD5: 0.181686481 | AE5: =+IF(INDEX($C5:$L5,1,aux!$BA$1)>0,(L5/INDEX($C5:$L5,1,aux!$BA$1))^(1/($L$3-INDEX($C$3:$L$3,1,aux!$BA$1)))-1,"n.d.") -> 0.2505727673 | AF5: =IF(INDEX($C5:$L5,1,aux!$BA$1)>0,(L5-INDEX($C5:$L5,1,aux!$BA$1))/INDEX($C5:$L5,1,aux!$BA$1),"n.d.") -> 6.481362603 | AH5: =X5-INDEX($O5:$X5,1,aux!$BA$1) -> 6529.228 | AI5: 0.008169648584 | AJ5: =+IF(INDEX($O5:$X5,1,aux!$BA$1)>0,(X5/INDEX($O5:$X5,1,aux!$BA$1))^(1/($X$3-INDEX($O$3:$X$3,1,aux!$BA$1)))-1,"n.d.") -> 0.0626383526 | AK5: =IF(INDEX($O5:$X5,1,aux!$BA$1)>0,(X5-INDEX($O5:$X5,1,aux!$BA$1))/INDEX($O5:$X5,1,aux!$BA$1),"n.d.") -> 0.727704153 | CC5: =+IF(ISNA(MATCH('5.1'!A5,AUX_2d_pais!$G$2:$G$40000,0)),0,1) -> 1
A6: 0070 | B6: Albânia | C6: 0 | D6: 0 | E6: 0 | F6: 0 | G6: 0 | H6: 0 | I6: 0 | J6: 0 | K6: 0 | L6: 87.963 | M6: 8.7963 | N6: 5.615427886e-06 | O6: 30.467 | P6: 421.657 | Q6: 255.452 | R6: 40.973 | S6: 279.015 | T6: 828.576 | U6: 770.443 | V6: 1347.413 | W6: 3423.806 | X6: 3641.372 | Y6: 1103.9174 | Z6: 0.0007424400817 | AA6: 1095.1211 | AC6: =L6-INDEX($C6:$L6,1,aux!$BA$1) -> 87.963 | AD6: 0.0001601154385 | AE6: =+IF(INDEX($C6:$L6,1,aux!$BA$1)>0,(L6/INDEX($C6:$L6,1,aux!$BA$1))^(1/($L$3-INDEX($C$3:$L$3,1,aux!$BA$1)))-1,"n.d.") -> n.d. | AF6: =IF(INDEX($C6:$L6,1,aux!$BA$1)>0,(L6-INDEX($C6:$L6,1,aux!$BA$1))/INDEX($C6:$L6,1,aux!$BA$1),"n.d.") -> n.d. | AH6: =X6-INDEX($O6:$X6,1,aux!$BA$1) -> 3610.905 | AI6: 0.004518118363 | AJ6: =+IF(INDEX($O6:$X6,1,aux!$BA$1)>0,(X6/INDEX($O6:$X6,1,aux!$BA$1))^(1/($X$3-INDEX($O$3:$X$3,1,aux!$BA$1)))-1,"n.d.") -> 0.7014772657 | AK6: =IF(INDEX($O6:$X6,1,aux!$BA$1)>0,(X6-INDEX($O6:$X6,1,aux!$BA$1))/INDEX($O6:$X6,1,aux!$BA$1),"n.d.") -> 118.5185611 | CC6: =+IF(ISNA(MATCH('5.1'!A6,AUX_2d_pais!$G$2:$G$40000,0)),0,1) -> 1
A7: 0004 | B7: Alemanha | C7: 0 | D7: 0 | E7: 0 | F7: 0 | G7: 0 | H7: 0 | I7: 0 | J7: 0 | K7: 0 | L7: 0 | M7: 0 | N7: 0 | O7: 0 | P7: 0 | Q7: 0 | R7: 0 | S7: 0 | T7: 0 | U7: 0 | V7: 0 | W7: 0 | X7: 0 | Y7: 0 | Z7: 0 | AA7: 0 | AC7: =L7-INDEX($C7:$L7,1,aux!$BA$1) -> 0 | AD7: 0 | AE7: =+IF(INDEX($C7:$L7,1,aux!$BA$1)>0,(L7/INDEX($C7:$L7,1,aux!$BA$1))^(1/($L$3-INDEX($C$3:$L$3,1,aux!$BA$1)))-1,"n.d.") -> n.d. | AF7: =IF(INDEX($C7:$L7,1,aux!$BA$1)>0,(L7-INDEX($C7:$L7,1,aux!$BA$1))/INDEX($C7:$L7,1,aux!$BA$1),"n.d.") -> n.d. | AH7: =X7-INDEX($O7:$X7,1,aux!$BA$1) -> 0 | AI7: 0 | AJ7: =+IF(INDEX($O7:$X7,1,aux!$BA$1)>0,(X7/INDEX($O7:$X7,1,aux!$BA$1))^(1/($X$3-INDEX($O$3:$X$3,1,aux!$BA$1)))-1,"n.d.") -> n.d. | AK7: =IF(INDEX($O7:$X7,1,aux!$BA$1)>0,(X7-INDEX($O7:$X7,1,aux!$BA$1))/INDEX($O7:$X7,1,aux!$BA$1),"n.d.") -> n.d. | AM7: =SUM(A7:AA7) -> 0 | CC7: =+IF(ISNA(MATCH('5.1'!A7,AUX_2d_pais!$G$2:$G$40000,0)),0,1) -> 0
A8: 0043 | B8: Andorra | C8: 2.455 | D8: 2.901 | E8: 3.91 | F8: 8.466 | G8: 2.405 | H8: 8.515 | I8: 3.737 | J8: 0.352 | K8: 4.672 | L8: 6.077 | M8: 4.349 | N8: 2.77633731e-06 | O8: 3536.14 | P8: 4477.275 | Q8: 4023.27 | R8: 3964.223 | S8: 3298.011 | T8: 3200.76 | U8: 2627.718 | V8: 2849.47 | W8: 3019.059 | X8: 2997.265 | Y8: 3399.3191 | Z8: 0.002286213398 | AA8: 3394.9701 | AC8: =L8-INDEX($C8:$L8,1,aux!$BA$1) -> 3.622 | AD8: 6.592977936e-06 | AE8: =+IF(INDEX($C8:$L8,1,aux!$BA$1)>0,(L8/INDEX($C8:$L8,1,aux!$BA$1))^(1/($L$3-INDEX($C$3:$L$3,1,aux!$BA$1)))-1,"n.d.") -> 0.1059551789 | AF8: =IF(INDEX($C8:$L8,1,aux!$BA$1)>0,(L8-INDEX($C8:$L8,1,aux!$BA$1))/INDEX($C8:$L8,1,aux!$BA$1),"n.d.") -> 1.475356415 | AH8: =X8-INDEX($O8:$X8,1,aux!$BA$1) -> -538.875 | AI8: -0.0006742633863 | AJ8: =+IF(INDEX($O8:$X8,1,aux!$BA$1)>0,(X8/INDEX($O8:$X8,1,aux!$BA$1))^(1/($X$3-INDEX($O$3:$X$3,1,aux!$BA$1)))-1,"n.d.") -> -0.01820290333 | AK8: =IF(INDEX($O8:$X8,1,aux!$BA$1)>0,(X8-INDEX($O8:$X8,1,aux!$BA$1))/INDEX($O8:$X8,1,aux!$BA$1),"n.d.") -> -0.1523907424 | CC8: =+IF(ISNA(MATCH('5.1'!A8,AUX_2d_pais!$G$2:$G$40000,0)),0,1) -> 1
A9: 0330 | B9: Angola | C9: 523.687 | D9: 424.506 | E9: 484.559 | F9: 836.134 | G9: 438.308 | H9: 655.822 | I9: 1723.645 | J9: 549.181 | K9: 1862.253 | L9: 2770.573 | M9: 1026.8668 | N9: 0.0006555365852 | O9: 391268.748 | P9: 411863.273 | Q9: 585144.886 | R9: 643349.358 | S9: 678931.402 | T9: 727341.365 | U9: 515869.71 | V9: 413455.182 | W9: 465986.251 | X9: 372012.803 | Y9: 520522.2978 | Z9: 0.3500774762 | AA9: 519495.431 | AC9: =L9-INDEX($C9:$L9,1,aux!$BA$1) -> 2246.886 | AD9: 0.004089914363 | AE9: =+IF(INDEX($C9:$L9,1,aux!$BA$1)>0,(L9/INDEX($C9:$L9,1,aux!$BA$1))^(1/($L$3-INDEX($C$3:$L$3,1,aux!$BA$1)))-1,"n.d.") -> 0.2033408082 | AF9: =IF(INDEX($C9:$L9,1,aux!$BA$1)>0,(L9-INDEX($C9:$L9,1,aux!$BA$1))/INDEX($C9:$L9,1,aux!$BA$1),"n.d.") -> 4.290513226 | AH9: =X9-INDEX($O9:$X9,1,aux!$BA$1) -> -19255.945 | AI9: -0.02409385977 | AJ9: =+IF(INDEX($O9:$X9,1,aux!$BA$1)>0,(X9/INDEX($O9:$X9,1,aux!$BA$1))^(1/($X$3-INDEX($O$3:$X$3,1,aux!$BA$1)))-1,"n.d.") -> -0.005591684516 | AK9: =IF(INDEX($O9:$X9,1,aux!$BA$1)>0,(X9-INDEX($O9:$X9,1,aux!$BA$1))/INDEX($O9:$X9,1,aux!$BA$1),"n.d.") -> -0.04921411459 | CC9: =+IF(ISNA(MATCH('5.1'!A9,AUX_2d_pais!$G$2:$G$40000,0)),0,1) -> 1
A10: 0446 | B10: Anguila | C10: 0 | D10: 0 | E10: 0 | F10: 0 | G10: 0 | H10: 0 | I10: 0 | J10: 0 | K10: 0 | L10: 0 | M10: 0 | N10: 0 | O10: 0 | P10: 0 | Q10: 0 | R10: 0 | S10: 12.412 | T10: 2 | U10: 0 | V10: 0 | W10: 0 | X10: 0 | Y10: 1.4412 | Z10: 9.69279627e-07 | AA10: 1.4412 | AC10: =L10-INDEX($C10:$L10,1,aux!$BA$1) -> 0 | AD10: 0 | AE10: =+IF(INDEX($C10:$L10,1,aux!$BA$1)>0,(L10/INDEX($C10:$L10,1,aux!$BA$1))^(1/($L$3-INDEX($C$3:$L$3,1,aux!$BA$1)))-1,"n.d.") -> n.d. | AF10: =IF(INDEX($C10:$L10,1,aux!$BA$1)>0,(L10-INDEX($C10:$L10,1,aux!$BA$1))/INDEX($C10:$L10,1,aux!$BA$1),"n.d.") -> n.d. | AH10: =X10-INDEX($O10:$X10,1,aux!$BA$1) -> 0 | AI10: 0 | AJ10: =+IF(INDEX($O10:$X10,1,aux!$BA$1)>0,(X10/INDEX($O10:$X10,1,aux!$BA$1))^(1/($X$3-INDEX($O$3:$X$3,1,aux!$BA$1)))-1,"n.d.") -> n.d. | AK10: =IF(INDEX($O10:$X10,1,aux!$BA$1)>0,(X10-INDEX($O10:$X10,1,aux!$BA$1))/INDEX($O10:$X10,1,aux!$BA$1),"n.d.") -> n.d. | CC10: =+IF(ISNA(MATCH('5.1'!A10,AUX_2d_pais!$G$2:$G$40000,0)),0,1) -> 1
A11: 0891 | B11: Antárctica | C11: 0 | D11: 0 | E11: 0 | F11: 0 | G11: 0 | H11: 0 | I11: 0 | J11: 0 | K11: 0 | L11: 0 | M11: 0 | N11: 0 | O11: 0 | P11: 0 | Q11: 0 | R11: 0 | S11: 0 | T11: 0 | U11: 0 | V11: 0 | W11: 0 | X11: 0 | Y11: 0 | Z11: 0 | AA11: 0 | AC11: =L11-INDEX($C11:$L11,1,aux!$BA$1) -> 0 | AD11: 0 | AE11: =+IF(INDEX($C11:$L11,1,aux!$BA$1)>0,(L11/INDEX($C11:$L11,1,aux!$BA$1))^(1/($L$3-INDEX($C$3:$L$3,1,aux!$BA$1)))-1,"n.d.") -> n.d. | AF11: =IF(INDEX($C11:$L11,1,aux!$BA$1)>0,(L11-INDEX($C11:$L11,1,aux!$BA$1))/INDEX($C11:$L11,1,aux!$BA$1),"n.d.") -> n.d. | AH11: =X11-INDEX($O11:$X11,1,aux!$BA$1) -> 0 | AI11: 0 | AJ11: =+IF(INDEX($O11:$X11,1,aux!$BA$1)>0,(X11/INDEX($O11:$X11,1,aux!$BA$1))^(1/($X$3-INDEX($O$3:$X$3,1,aux!$BA$1)))-1,"n.d.") -> n.d. | AK11: =IF(INDEX($O11:$X11,1,aux!$BA$1)>0,(X11-INDEX($O11:$X11,1,aux!$BA$1))/INDEX($O11:$X11,1,aux!$BA$1),"n.d.") -> n.d. | CC11: =+IF(ISNA(MATCH('5.1'!A11,AUX_2d_pais!$G$2:$G$40000,0)),0,1) -> 1
A12: 0459 | B12: Antígua e Barbuda | C12: 0 | D12: 0 | E12: 15.412 | F12: 0 | G12: 0 | H12: 0 | I12: 0.728 | J12: 0 | K12: 0 | L12: 0 | M12: 1.614 | N12: 1.030353741e-06 | O12: 214.562 | P12: 0.548 | Q12: 6.272 | R12: 37.143 | S12: 8.527 | T12: 6.977 | U12: 12.685 | V12: 5.282 | W12: 0.15 | X12: 20.861 | Y12: 31.3007 | Z12: 2.10512981e-05 | AA12: 29.6867 | AC12: =L12-INDEX($C12:$L12,1,aux!$BA$1) -> 0 | AD12: 0 | AE12: =+IF(INDEX($C12:$L12,1,aux!$BA$1)>0,(L12/INDEX($C12:$L12,1,aux!$BA$1))^(1/($L$3-INDEX($C$3:$L$3,1,aux!$BA$1)))-1,"n.d.") -> n.d. | AF12: =IF(INDEX($C12:$L12,1,aux!$BA$1)>0,(L12-INDEX($C12:$L12,1,aux!$BA$1))/INDEX($C12:$L12,1,aux!$BA$1),"n.d.") -> n.d. | AH12: =X12-INDEX($O12:$X12,1,aux!$BA$1) -> -193.701 | AI12: -0.0002423669537 | AJ12: =+IF(INDEX($O12:$X12,1,aux!$BA$1)>0,(X12/INDEX($O12:$X12,1,aux!$BA$1))^(1/($X$3-INDEX($O$3:$X$3,1,aux!$BA$1)))-1,"n.d.") -> -0.2281527374 | AK12: =IF(INDEX($O12:$X12,1,aux!$BA$1)>0,(X12-INDEX($O12:$X12,1,aux!$BA$1))/INDEX($O12:$X12,1,aux!$BA$1),"n.d.") -> -0.9027740234 | CC12: =+IF(ISNA(MATCH('5.1'!A12,AUX_2d_pais!$G$2:$G$40000,0)),0,1) -> 1
